Workbook

Sheet Intro
B1: McGeachie's Multi-Class Average-Case 5e DPR Calculator
B3: Purpose
B4: This is an average-case Damage-per-Round (DPR) calculator for multiclass builds in Dungeons and Dragons 5th Edition.
B6: Disclaimer
B7: Damage per round is not everything. It only considers damage done using the elements modeled. Damage is averaged over the expected length of the fight. DPR is only one tool that may help you to design a character that is enjoyable for you. Only you can pick the character right for you.
B9: Instructions
B10: To edit this spreadsheet, download a copy to your device or drive in Microsoft Excel format. Then open that file using MS Excel or Google Sheets. You can then edit your own copy!
B11: the main DPR is done on the page called "Sorcadins." To model a character, edit the Green Box areas in the first 100-150 rows of the sheet. The DPR is listed at the very bottom of the sheet, and at the top row, and is also graphed at the top right.
B12: Each column from E to X represents the character and the character's DPR at a specific level, from Level 1 to Level 20.
B14: Step 1. Enter multiclass levels
B15: The character's levels in various classes are represented in the green box labeled Class from E7 to X19. At each Character Level, a character can have Class Levels in one or more classes that sum to the Total Character Level.
B16: Input the level of the corresponding class in the column for character level.
B17: For example, if at Level 1, your character will have one level of Paladin, enter a "1" in box E7. Make sure there are no non-zero entries in the rows corresponding to other classes.
B18: Then at Level 2, if you will have two levels of Paladin, enter a "2" in box F7. If the character will progress only as a Paladin, continue entering the class level of paladin in the column corresponding to total character level, in other words enter the sequence of numbers from 1 to 20 in boxes E7 to X7.
B19: Multiclass characters are entered in the same way. At each level, the character's total class levels must sum to the character's Total Character Level.
B20: For example, suppose the Paladin at Level 3 decides to multiclass into Warlock. In the column for Character Level 3, enter a "2" in the Paladin row and a "1" in the Warlock row to indicate they have 2 Levels of Paladin and 1 Level of Warlock.
B22: Step 2. Indicate Subclasses
B23: Character subclasses are indicated in the green and white striped boxes from rows 36 to 85.
B24: A character's subclass is indicated by a "1" for having the subclass and a "0" for not having the subclass.
B25: There should be only one subclass with a "1" indicated for each class at each level.
B26: If you wish to model the DPR of a subclass that doesn't contribute to DPR, such as a Bear Totem Barbarian, simply place "0"s in all barbarian subclasses.
B28: Step 3. Feats and Ability Score Increases (ASIs)
B29: Feats and ASI's are indicated in the green box from B5 to B29.
B30: The total number of ASI's and/or feats your character has at each Total Character Level is shown in Row 22. This is a guide for you. If your DM awards other ASI's/Feats, it's ok to deviate from this number. This does not include Level-1 Feats awarded by certain races.
B31: A feat or ASI is indicated with a non-zero number for the Total Character Level at which the feat or ASI is obtained.
B32: For example, if the Paladin/Warlock character takes the Great Weapon Master (GWM) feat at L6, enter a "6" in box B6.
B33: If the Paladin/Warlock character is a race that provides a Feat at Level 1, then enter a "1" in (for example) box B8 to indicate that Pole Arm Master feat was taken at Level 1.
B34: Ability scores are all treated as having a 16 (or a +3 bonus) at character creation. This is a reasonable assumption if this score is important to the class.
B35: For each additional ability score increases resulting in an increase of the ability score bonus (increases to 18 and then to 20), indicate the Level at which this is obtained in the same manner as Feats.
B36: For example, if the Paladin/Warlock takes an ASI for Charisma at Level 12, then enter a "12" in box B10.
B37: If the Paladin/Warlock's DM lets players roll for stats or start with stats much higher than 16, then indicate this with Level 1 ASI increases.
B38: For example, if the Paladin/Warlock started with a 20 charisma, enter a "1" in box B10 and also a "1" in box B11. This shows that at L1, this character has a +5 bonus to Charisma-based abilities and attacks.
B39: Half Feats.
B40: If a character obtains a Half-Feat (such as Piercer, or Elven Accuracy) and this also results in an increase in an ability score to the next even number, these must be indicated separately.
B41: For example, if the Paladin/Warlock is an Elf and at Level 10 takes Elven Accuracy with a +1 Charisma bonus, and this increases his/her charisma to 18, indicate this with a "1" in box B7 and a "1" in box B10.
B43: Step 4. Weapon Choice
B44: Weapon choice is indicated in the green box from B32 to B40. Use a "1" to indicate that the character will use this type of weapon, and a "0" to indicate that he/she will not.
B45: Indicate only one weapon!
B47: Step 5. Fighting Options
B48: In the green box from B44 to B47, certain strategic options can be indicated.
B49: These are indicated with a "1" for something the character will do, and a "0" for something the character will not do
B50: Indicate "Use 2 Weapons" if the character will dual-weild melee weapons
B51: Indicate "Force Range" or "Force Melee" if the character will exclusively fight from range or in melee. If both are "0" then DPR simulator will try to guess based on feats and weapon selections.
B52: Indicate "Exclude Eld Blast" if your character would qualify for the Eldritch Blast cantrip, but you do not want this to be a source of your DPR.
B54: Step 6. Racial Traits
B55: Racial traits that impact DPR are indicated in the green box from B51 to B53.
B56: These are indicated with a "1" for an ability the the character has, and a "0" for an ability the character lacks
B58: Step 7. Fighting Style (Martial Classes)
B59: In the green box from B56 to B63, indicate at what level the character obtains a martial fighting style. These styles are granted from Classes: Fighter, Paladin, and Ranger. Fighting Styles can also be granted by Feats.
B60: Indicate in the corresponding box what level the character obtains a particular fighting style. Characters can potentially obtain more than one. Leave other fighting styles with a "0" to indicate the character does not have them.
B61: If you wish to model a fighting style that does not contribute to DPR, such as the Defensive style which adds +1 to AC, simply do not select a fighting style. Place "0" in all fighting style boxes.
B63: Step 8. Spell Casts per Day
B64: The large green and white striped box from E88 to X124 indicates which spells will be cast per day.
B65: For each spell the character wishes to cast every day, indicate the number of times this spell will be cast.
B66: There is some checking for available spells and spell slots, but this works best if the number of spells cast is kept under the limit of spells that the character would have from their class abilities.
B67: Spells that can be upcast using a higher level slot for a numerical benefit will automatically be upcast to the highest available slot.
B68: Spells take higher priority than other actions, such as attacking. Thus casting a spell that has a sub-optimal effect may decrease your total DRP.
B70: Step 9. Done! (optionally look at Simulation Parameters)
B71: There's no need to look at any sheets besides the main one, "Sorcadins", and the base parameters sheet, "Base Numbers".
B73: Advanced DPR Simluation Parameters
B74: The "Base Numbers" sheet has many parameters used by the DPR calculations here. These can be edited to match the expectations of your DM, playgroup, and adventuring style.
B75: The most important numbers for the DPR simulation are the number of fights per day (or per long rest, these terms are used interchangably), the length of those fights in rounds, and the number of short rests per adventuring day.
B76: These numbers are in boxes C5 to C7 on the "Base Numbers" sheet
B77: Your campaign and DM's style will determine how many fights you have per long rest (or per day). WOTC recommends 9 fights per day, popular DND podcasts such as Critical Role are closer to 1.5 per day. A more typical number is probably 4 or 5 fights per long rest.
B78: The average DND combat encounter lasts 3.5 rounds. You can adjust this number based on your DM's style: maybe fights are long and involved, maybe they're more typical.
B79: The number of short rests per long rest will determine how effective short-rest characters (monks, warlocks, certain fighters) are relative to long-rest characters (barbarians, paladins, sorcerers, wizards, etc). WOTC recommends 2 short rests per long rest (or 2 short rests per 9 fights), but most campaigns seem to have fewer.
B80: Percent of Fights with a Buff Round is the proportion of fights where casters will have a round to prepare and cast something like Bless without taking up an action during the fight itself.
B81: Some general modifiers can be set for the DPR simulation, these include global changes to enemy's armor class and magic weapons that a character may have.
B82: Enter the average damage dice for "Magic Weapon additional damage dice", for example for a Flame Tongue weapon which does 2d6, enter the average damage "7". For a weapon that adds 1d6 to each hit, enter "3.5"
B83: The chance for Booming Blade to deal it's secondary damage, triggered upon the target's voluntary movement, is entered in the "booming blade secondary damage percent" box.
B84: Since the publication of Tasha's Cauldron of Everything, it has been against Rules As Written for booming blade to be cast using a shadowblade as the weapon. It seems to be allowed by Rules As Intended, since Jeremy Crawford himself has said he would allow it at his table. There is an option here for you to indicate the ruling used by your DM: enter a "1" if allowed and a "0" if disallowed.
B85: There are a number of parameters that reflect the likelihood of a character to be able to execute an opportunity attack on an opponent's turn, and these may be edited. It is recommended to leave them as is.
B86: A number of parameters relating to Area of Effect attacks can be indicated.
B87: The total number of opportunities to use each Area of Effect skill can be indicated. This limits the total number of, for example, fireballs that can be usefully cast on multiple targets.
B88: The number of targets effected by each ability is also indicated here. This is sometimes increased by certain skills which have much larger areas of effect (such as fireball).
B89: Simulacrum, when available, tends to dominate DPR calculations. To disable the contribution from Simulacrum, enter a "0" in this box.
B92: Copyright 2021 Michael McGeachie. Permission is given to use this for non-commercial purposes as long as attribution is preserved.
B93: Contact me at u/mmcgeach on Reddit with comments, suggestions, error reports, and bugs!

Sheet Sorcadins
D1: TOTAL DPR OUTPUT | E1: =E1421 -> 4.40 | F1: =F1421 -> 4.40 | G1: 4.08 | H1: 4.08 | I1: 4.40 | J1: 4.08 | K1: 4.08 | L1: 4.08 | M1: 4.08 | N1: 4.08 | O1: 4.08 | P1: 3.75 | Q1: 4.08 | R1: 4.08 | S1: 3.75 | T1: 3.75 | U1: 4.08 | V1: 3.75 | W1: 3.75 | X1: 3.75
A3: Feats / ASI | B3: Level
A5: Warcaster | B5: 0 | D5: CLASS
A6: Great Weapon Master (GWM) | B6: 0 | D6: Total Character Level | E6: 1 | F6: 2 | G6: 3 | H6: 4 | I6: 5 | J6: 6 | K6: 7 | L6: 8 | M6: 9 | N6: 10 | O6: 11 | P6: 12 | Q6: 13 | R6: 14 | S6: 15 | T6: 16 | U6: 17 | V6: 18 | W6: 19 | X6: 20
A7: Elven Accuracy (half) | B7: 0 | D7: Paladin Level | E7: 0 | F7: 0 | G7: 0 | H7: 0 | I7: 0 | J7: 0 | K7: 0 | L7: 0 | M7: 0 | N7: 0 | O7: 0 | P7: 0 | Q7: 0 | R7: 0 | S7: 0 | T7: 0 | U7: 0 | V7: 0 | W7: 0 | X7: 0
A8: Polearm Master | B8: 0 | D8: Barbarian Level | E8: 0 | F8: 0 | G8: 0 | H8: 0 | I8: 0 | J8: 0 | K8: 0 | L8: 0 | M8: 0 | N8: 0 | O8: 0 | P8: 0 | Q8: 0 | R8: 0 | S8: 0 | T8: 0 | U8: 0 | V8: 0 | W8: 0 | X8: 0
A9: Sentinel | B9: 0 | D9: Ranger Level | E9: 0 | F9: 0 | G9: 0 | H9: 0 | I9: 0 | J9: 0 | K9: 0 | L9: 0 | M9: 0 | N9: 0 | O9: 0 | P9: 0 | Q9: 0 | R9: 0 | S9: 0 | T9: 0 | U9: 0 | V9: 0 | W9: 0 | X9: 0
A10: first CHA +2 | B10: 0 | D10: Fighter Level | E10: 0 | F10: 0 | G10: 0 | H10: 0 | I10: 0 | J10: 0 | K10: 0 | L10: 0 | M10: 0 | N10: 0 | O10: 0 | P10: 0 | Q10: 0 | R10: 0 | S10: 0 | T10: 0 | U10: 0 | V10: 0 | W10: 0 | X10: 0
A11: second CHA +2 | B11: 0 | D11: Rogue Level | E11: 0 | F11: 0 | G11: 0 | H11: 0 | I11: 0 | J11: 0 | K11: 0 | L11: 0 | M11: 0 | N11: 0 | O11: 0 | P11: 0 | Q11: 0 | R11: 0 | S11: 0 | T11: 0 | U11: 0 | V11: 0 | W11: 0 | X11: 0
A12: first STR +2 | B12: 0 | D12: Warlock Level | E12: 0 | F12: 0 | G12: 0 | H12: 0 | I12: 0 | J12: 0 | K12: 0 | L12: 0 | M12: 0 | N12: 0 | O12: 0 | P12: 0 | Q12: 0 | R12: 0 | S12: 0 | T12: 0 | U12: 0 | V12: 0 | W12: 0 | X12: 0
A13: second STR +2 | B13: 0 | D13: Sorceror Level | E13: 0 | F13: 0 | G13: 0 | H13: 0 | I13: 0 | J13: 0 | K13: 0 | L13: 0 | M13: 0 | N13: 0 | O13: 0 | P13: 0 | Q13: 0 | R13: 0 | S13: 0 | T13: 0 | U13: 0 | V13: 0 | W13: 0 | X13: 0
A14: first DEX +2 | B14: 0 | D14: Bard Level | E14: 0 | F14: 0 | G14: 0 | H14: 0 | I14: 0 | J14: 0 | K14: 0 | L14: 0 | M14: 0 | N14: 0 | O14: 0 | P14: 0 | Q14: 0 | R14: 0 | S14: 0 | T14: 0 | U14: 0 | V14: 0 | W14: 0 | X14: 0
A15: second DEX +2 | B15: 0 | D15: Wizard Level | E15: 0 | F15: 0 | G15: 0 | H15: 0 | I15: 0 | J15: 0 | K15: 0 | L15: 0 | M15: 0 | N15: 0 | O15: 0 | P15: 0 | Q15: 0 | R15: 0 | S15: 0 | T15: 0 | U15: 0 | V15: 0 | W15: 0 | X15: 0
A16: resilient CON | B16: 0 | D16: Cleric Level | E16: 0 | F16: 0 | G16: 0 | H16: 0 | I16: 0 | J16: 0 | K16: 0 | L16: 0 | M16: 0 | N16: 0 | O16: 0 | P16: 0 | Q16: 0 | R16: 0 | S16: 0 | T16: 0 | U16: 0 | V16: 0 | W16: 0 | X16: 0
A17: first INT +2 | B17: 0 | D17: Druid Level | E17: 0 | F17: 0 | G17: 0 | H17: 0 | I17: 0 | J17: 0 | K17: 0 | L17: 0 | M17: 0 | N17: 0 | O17: 0 | P17: 0 | Q17: 0 | R17: 0 | S17: 0 | T17: 0 | U17: 0 | V17: 0 | W17: 0 | X17: 0
A18: second INT +2 | B18: 0 | D18: Monk Level | E18: 0 | F18: 0 | G18: 0 | H18: 0 | I18: 0 | J18: 0 | K18: 0 | L18: 0 | M18: 0 | N18: 0 | O18: 0 | P18: 0 | Q18: 0 | R18: 0 | S18: 0 | T18: 0 | U18: 0 | V18: 0 | W18: 0 | X18: 0
A19: first WIS +2 | B19: 0 | D19: Artificer Level | E19: 0 | F19: 0 | G19: 0 | H19: 0 | I19: 0 | J19: 0 | K19: 0 | L19: 0 | M19: 0 | N19: 0 | O19: 0 | P19: 0 | Q19: 0 | R19: 0 | S19: 0 | T19: 0 | U19: 0 | V19: 0 | W19: 0 | X19: 0
A20: second WIS +2 | B20: 0 | D20: Use single class caster levels | E20: =IF(IF(E7>=2,1,0)+IF(E9>=2,1,0)+IF(E13>=1,1,0)+IF(E14>=1,1,0)+IF(E15>=1,1,0)+IF(E16>=1,1,0)+IF(E17>=1,1,0)+IF(E19>=1,1,0)+IF(AND(E10>=3,E54>=1),1,0)+IF(AND(E11>=3,E67>=1),1,0)=1,1,0) -> 0 | F20: =IF(IF(F7>=2,1,0)+IF(F9>=2,1,0)+IF(F13>=1,1,0)+IF(F14>=1,1,0)+IF(F15>=1,1,0)+IF(F16>=1,1,0)+IF(F17>=1,1,0)+IF(F19>=1,1,0)+IF(AND(F10>=3,F54>=1),1,0)+IF(AND(F11>=3,F67>=1),1,0)=1,1,0) -> 0 | G20: 0 | H20: 0 | I20: 0 | J20: 0 | K20: 0 | L20: 0 | M20: 0 | N20: 0 | O20: 0 | P20: 0 | Q20: 0 | R20: 0 | S20: 0 | T20: 0 | U20: 0 | V20: 0 | W20: 0 | X20: 0
A21: Dual Wielder | B21: 0 | D21: Total Multiclass Caster Levels | E21: =E16+E13+E14+E15+E17+IF(AND(E20>=1,E9+E7>=2),CEILING((E9+E19+E7)/2,1),FLOOR((E9+E7)/2,1)+CEILING(E19/2,1))+IF(AND(E20>=1,OR(AND(E10>=3,E54>=1),AND(E11>=3,E67>=1))),CEILING((E10+E11)/3,1),IF(OR(AND(E10>=3,E54>=1),AND(E11>=3,E67>=1)),FLOOR((E10+E11)/3,1),0)) -> 0 | F21: =F16+F13+F14+F15+F17+IF(AND(F20>=1,F9+F7>=2),CEILING((F9+F19+F7)/2,1),FLOOR((F9+F7)/2,1)+CEILING(F19/2,1))+IF(AND(F20>=1,OR(AND(F10>=3,F54>=1),AND(F11>=3,F67>=1))),CEILING((F10+F11)/3,1),IF(OR(AND(F10>=3,F54>=1),AND(F11>=3,F67>=1)),FLOOR((F10+F11)/3,1),0)) -> 0 | G21: 0 | H21: 0 | I21: 0 | J21: 0 | K21: 0 | L21: 0 | M21: 0 | N21: 0 | O21: 0 | P21: 0 | Q21: 0 | R21: 0 | S21: 0 | T21: 0 | U21: 0 | V21: 0 | W21: 0 | X21: 0
A22: Sharpshooter | B22: 0 | D22: ASI's (Ability Score Increase or Feats) | E22: =IF(E10>=19,7,IF(E11>=19,6,IF(OR(E7>=19,E12>=19,E16>=19,E14>=19,E15>19,E8>=19,E9>=19,E17>=19,E18>=19,E19>=19,E13>=19),5,FLOOR(E7/4,1)+FLOOR(E13/4,1)+FLOOR(E14/4,1)+FLOOR(E12/4,1)+FLOOR(E16/4,1)+FLOOR(E15/4,1)+FLOOR(E10/4,1)+FLOOR(E8/4,1)+FLOOR(E11/4,1)+FLOOR(E17/4,1)+FLOOR(E9/4,1)+FLOOR(E18/4,1)+FLOOR(E19/4,1)+IF(E10>=6,1,0)+IF(E10>=14,1,0)+IF(E11>=10,1,0)))) -> 0 | F22: =IF(F10>=19,7,IF(F11>=19,6,IF(OR(F7>=19,F12>=19,F16>=19,F14>=19,F15>19,F8>=19,F9>=19,F17>=19,F18>=19,F19>=19,F13>=19),5,FLOOR(F7/4,1)+FLOOR(F13/4,1)+FLOOR(F14/4,1)+FLOOR(F12/4,1)+FLOOR(F16/4,1)+FLOOR(F15/4,1)+FLOOR(F10/4,1)+FLOOR(F8/4,1)+FLOOR(F11/4,1)+FLOOR(F17/4,1)+FLOOR(F9/4,1)+FLOOR(F18/4,1)+FLOOR(F19/4,1)+IF(F10>=6,1,0)+IF(F10>=14,1,0)+IF(F11>=10,1,0)))) -> 0 | G22: 0 | H22: 0 | I22: 0 | J22: 0 | K22: 0 | L22: 0 | M22: 0 | N22: 0 | O22: 0 | P22: 0 | Q22: 0 | R22: 0 | S22: 0 | T22: 0 | U22: 0 | V22: 0 | W22: 0 | X22: 0
A23: Xbow Master | B23: 0 | D23: feat: Warcaster (opportunity spell attack) | E23: =IF(AND($B5>0,E$6>=$B5),1,0) -> 0 | F23: 0 | G23: 0 | H23: 0 | I23: 0 | J23: 0 | K23: 0 | L23: 0 | M23: 0 | N23: 0 | O23: 0 | P23: 0 | Q23: 0 | R23: 0 | S23: 0 | T23: 0 | U23: 0 | V23: 0 | W23: 0 | X23: 0
A24: Magic Initiate/Eld Blast | B24: 0 | D24: feat: GWM (-5 hit, +10 dmg) | E24: =IF(AND($B6>0,E$6>=$B6),1,0) -> 0 | F24: 0 | G24: 0 | H24: 0 | I24: 0 | J24: 0 | K24: 0 | L24: 0 | M24: 0 | N24: 0 | O24: 0 | P24: 0 | Q24: 0 | R24: 0 | S24: 0 | T24: 0 | U24: 0 | V24: 0 | W24: 0 | X24: 0
A25: RitualCaster/FF/BB | B25: 0 | D25: feat: Elven Acc (3 adv dice vs 2) | E25: =IF(AND($B$7>0,E6>=$B$7),1,0) -> 0 | F25: =IF(AND($B$7>0,F6>=$B$7),1,0) -> 0 | G25: 0 | H25: 0 | I25: 0 | J25: 0 | K25: 0 | L25: 0 | M25: 0 | N25: 0 | O25: 0 | P25: 0 | Q25: 0 | R25: 0 | S25: 0 | T25: 0 | U25: 0 | V25: 0 | W25: 0 | X25: 0
A26: Metamagic Adept | B26: 0 | D26: feat: Polearm Master (bonus action attack) | E26: =IF(AND($B8>0,E$6>=$B8),1,0) -> 0 | F26: 0 | G26: 0 | H26: 0 | I26: 0 | J26: 0 | K26: 0 | L26: 0 | M26: 0 | N26: 0 | O26: 0 | P26: 0 | Q26: 0 | R26: 0 | S26: 0 | T26: 0 | U26: 0 | V26: 0 | W26: 0 | X26: 0
A27: Piercer (+1 Dex/Str) | B27: 0 | D27: feat: Sentinel (increases opp attacks) | E27: =IF(AND($B9>0,E$6>=$B9),1,0) -> 0 | F27: 0 | G27: 0 | H27: 0 | I27: 0 | J27: 0 | K27: 0 | L27: 0 | M27: 0 | N27: 0 | O27: 0 | P27: 0 | Q27: 0 | R27: 0 | S27: 0 | T27: 0 | U27: 0 | V27: 0 | W27: 0 | X27: 0
A28: Crusher (+1 Str/Con) | B28: 0 | D28: feat: Sharpshooter (-5 hit, +10 dmg, forces ranged) | E28: =IF(AND($B22>0,E$6>=$B22),1,0) -> 0 | F28: 0 | G28: 0 | H28: 0 | I28: 0 | J28: 0 | K28: 0 | L28: 0 | M28: 0 | N28: 0 | O28: 0 | P28: 0 | Q28: 0 | R28: 0 | S28: 0 | T28: 0 | U28: 0 | V28: 0 | W28: 0 | X28: 0
A29: Fey Touched (half) | B29: 0 | D29: feat: xbow master (ranged bonus attack, no DisAdv from melee) | E29: =IF(AND($B23>0,E$6>=$B23),1,0) -> 0 | F29: 0 | G29: 0 | H29: 0 | I29: 0 | J29: 0 | K29: 0 | L29: 0 | M29: 0 | N29: 0 | O29: 0 | P29: 0 | Q29: 0 | R29: 0 | S29: 0 | T29: 0 | U29: 0 | V29: 0 | W29: 0 | X29: 0
D30: str bon | E30: =IF(E8>=20,7,MIN(5,3+SUM(IF(AND($B$12>0,E6>=$B$12),1,0),IF(AND($B$13>0,E6>=$B$13),1,0)))) -> 3 | F30: 3 | G30: 3 | H30: 3 | I30: 3 | J30: 3 | K30: 3 | L30: 3 | M30: 3 | N30: 3 | O30: 3 | P30: 3 | Q30: 3 | R30: 3 | S30: 3 | T30: 3 | U30: 3 | V30: 3 | W30: 3 | X30: 3
A31: Weapon Choice | D31: dex bon | E31: =MIN(5,3+SUM(IF(AND($B$14>0,E6>=$B$14),1,0),IF(AND($B$15>0,E6>=$B$15),1,0))) -> 3 | F31: 3 | G31: 3 | H31: 3 | I31: 3 | J31: 3 | K31: 3 | L31: 3 | M31: 3 | N31: 3 | O31: 3 | P31: 3 | Q31: 3 | R31: 3 | S31: 3 | T31: 3 | U31: 3 | V31: 3 | W31: 3 | X31: 3
A32: Daggers (d4) | B32: 0 | D32: cha bonus | E32: =MIN(5,3+SUM(IF(AND($B$10>0,E6>=$B$10),1,0),IF(AND($B$11>0,E6>=$B$11),1,0))) -> 3 | F32: =MIN(5,3+SUM(IF(AND($B$10>0,F6>=$B$10),1,0),IF(AND($B$11>0,F6>=$B$11),1,0))) -> 3 | G32: 3 | H32: 3 | I32: 3 | J32: 3 | K32: 3 | L32: 3 | M32: 3 | N32: 3 | O32: 3 | P32: 3 | Q32: 3 | R32: 3 | S32: 3 | T32: 3 | U32: 3 | V32: 3 | W32: 3 | X32: 3
A33: Short Sword, Spear, Staff (d6) | B33: 0 | D33: int bonus | E33: =MIN(5,3+SUM(IF(AND($B$17>0,E6>=$B$17),1,0),IF(AND($B$18>0,E6>=$B$18),1,0))) -> 3 | F33: 3 | G33: 3 | H33: 3 | I33: 3 | J33: 3 | K33: 3 | L33: 3 | M33: 3 | N33: 3 | O33: 3 | P33: 3 | Q33: 3 | R33: 3 | S33: 3 | T33: 3 | U33: 3 | V33: 3 | W33: 3 | X33: 3
A34: Long Sword, Rapier (d8) | B34: 0 | D34: wis bonus | E34: =MIN(5,3+SUM(IF(AND($B$19>0,E6>=$B$19),1,0),IF(AND($B$20>0,E6>=$B$20),1,0))) -> 3 | F34: 3 | G34: 3 | H34: 3 | I34: 3 | J34: 3 | K34: 3 | L34: 3 | M34: 3 | N34: 3 | O34: 3 | P34: 3 | Q34: 3 | R34: 3 | S34: 3 | T34: 3 | U34: 3 | V34: 3 | W34: 3 | X34: 3
A35: Pole arm (d10), reach | B35: 0 | D35: prof bon | E35: 2 | F35: 2 | G35: 2 | H35: 2 | I35: 3 | J35: 3 | K35: 3 | L35: 3 | M35: 4 | N35: 4 | O35: 4 | P35: 4 | Q35: 5 | R35: 5 | S35: 5 | T35: 5 | U35: 6 | V35: 6 | W35: 6 | X35: 6
A36: Great Axe (d12) | B36: 0 | D36: paladin devotion: Oath of Vengence | E36: 0 | F36: 1 | G36: 1 | H36: 1 | I36: 1 | J36: 1 | K36: 1 | L36: 1 | M36: 1 | N36: 1 | O36: 1 | P36: 1 | Q36: 1 | R36: 1 | S36: 1 | T36: 1 | U36: 1 | V36: 1 | W36: 1 | X36: 1
A37: Great Sword (2d6) | B37: 0 | D37: paladin devotion: Oathbreaker | E37: 0 | F37: 0 | G37: 0 | H37: 0 | I37: 0 | J37: 0 | K37: 0 | L37: 0 | M37: 0 | N37: 0 | O37: 0 | P37: 0 | Q37: 0 | R37: 0 | S37: 0 | T37: 0 | U37: 0 | V37: 0 | W37: 0 | X37: 0 | Z37: To Do List:
A38: hand xbow (d6) | B38: 0 | D38: paladin devotion: Oath of Conquest | E38: 0 | F38: 0 | G38: 0 | H38: 0 | I38: 0 | J38: 0 | K38: 0 | L38: 0 | M38: 0 | N38: 0 | O38: 0 | P38: 0 | Q38: 0 | R38: 0 | S38: 0 | T38: 0 | U38: 0 | V38: 0 | W38: 0 | X38: 0 | Z38: shadow sorc hound
A39: long bow (d8) | B39: 0 | D39: sorcerous origin: shadow | E39: 1 | F39: 1 | G39: 1 | H39: 1 | I39: 1 | J39: 1 | K39: 1 | L39: 1 | M39: 1 | N39: 1 | O39: 1 | P39: 1 | Q39: 1 | R39: 1 | S39: 1 | T39: 1 | U39: 1 | V39: 1 | W39: 1 | X39: 1 | Z39: oathbreaker L20 ability
A40: heavy xbow (d10) | B40: 0 | D40: sorcerous origin: divine soul | E40: 0 | F40: 0 | G40: 0 | H40: 0 | I40: 0 | J40: 0 | K40: 0 | L40: 0 | M40: 0 | N40: 0 | O40: 0 | P40: 0 | Q40: 0 | R40: 0 | S40: 0 | T40: 0 | U40: 0 | V40: 0 | W40: 0 | X40: 0 | Z40: oath of veng L20 ability
D41: sorcerous origin: draconic ancestor | E41: 0 | F41: 0 | G41: 0 | H41: 0 | I41: 0 | J41: 0 | K41: 0 | L41: 0 | M41: 0 | N41: 0 | O41: 0 | P41: 0 | Q41: 0 | R41: 0 | S41: 0 | T41: 0 | U41: 0 | V41: 0 | W41: 0 | X41: 0 | Z41: tempest cleric additional spells
D42: wizard arcane tradition: Bladesinger | E42: 0 | F42: 1 | G42: 1 | H42: 1 | I42: 1 | J42: 1 | K42: 1 | L42: 1 | M42: 1 | N42: 1 | O42: 1 | P42: 1 | Q42: 1 | R42: 1 | S42: 1 | T42: 1 | U42: 1 | V42: 1 | W42: 1 | X42: 1 | Z42: fear: additional sources of fear
A43: Fighting Options | D43: wizard arcane tradition: Conjurer | E43: 0 | F43: 0 | G43: 0 | H43: 0 | I43: 0 | J43: 0 | K43: 0 | L43: 0 | M43: 0 | N43: 0 | O43: 0 | P43: 0 | Q43: 0 | R43: 0 | S43: 0 | T43: 0 | U43: 0 | V43: 0 | W43: 0 | X43: 0 | Z43: Swiftquivver
A44: Use 2 Weapons | B44: 0 | D44: wizard arcane tradition: Evoker | E44: 0 | F44: 0 | G44: 0 | H44: 0 | I44: 0 | J44: 0 | K44: 0 | L44: 0 | M44: 0 | N44: 0 | O44: 0 | P44: 0 | Q44: 0 | R44: 0 | S44: 0 | T44: 0 | U44: 0 | V44: 0 | W44: 0 | X44: 0 | Z44: monks using weapons, like xbow master + sharpshooter
A45: Force Ranged | B45: 0 | D45: wizard arcane tradition: Necromancer | E45: 0 | F45: 0 | G45: 0 | H45: 0 | I45: 0 | J45: 0 | K45: 0 | L45: 0 | M45: 0 | N45: 0 | O45: 0 | P45: 0 | Q45: 0 | R45: 0 | S45: 0 | T45: 0 | U45: 0 | V45: 0 | W45: 0 | X45: 0 | Z45: kensei monk longbow may benefit from ki-fueled bonus attack at range
A46: Force Melee | B46: 0 | D46: warlock patron: Hexblade | E46: 1 | F46: 1 | G46: 1 | H46: 1 | I46: 1 | J46: 1 | K46: 1 | L46: 1 | M46: 1 | N46: 1 | O46: 1 | P46: 1 | Q46: 1 | R46: 1 | S46: 1 | T46: 1 | U46: 1 | V46: 1 | W46: 1 | X46: 1 | Z46: kensei monk longbow may benefit from additional martial arts die on each attack if bonus action used
A47: Exclude Eld Blast | B47: 0 | D47: warlock patron: Fiend | E47: 0 | F47: 0 | G47: 0 | H47: 0 | I47: 0 | J47: 0 | K47: 0 | L47: 0 | M47: 0 | N47: 0 | O47: 0 | P47: 0 | Q47: 0 | R47: 0 | S47: 0 | T47: 0 | U47: 0 | V47: 0 | W47: 0 | X47: 0 | Z47: crusher plus PAM feats leads to more Opp Atts
A48: Use a Shield | B48: 0 | D48: warlock patron: Genie | E48: 0 | F48: 0 | G48: 0 | H48: 0 | I48: 0 | J48: 0 | K48: 0 | L48: 0 | M48: 0 | N48: 0 | O48: 0 | P48: 0 | Q48: 0 | R48: 0 | S48: 0 | T48: 0 | U48: 0 | V48: 0 | W48: 0 | X48: 0 | Z48: rogue sneak crit chance should be proportional to : (crit attack 1)+(miss att 1)*(crit att2)
D49: warlock pact: pact of the blade | E49: 0 | F49: 0 | G49: 1 | H49: 1 | I49: 1 | J49: 1 | K49: 1 | L49: 1 | M49: 1 | N49: 1 | O49: 1 | P49: 1 | Q49: 1 | R49: 1 | S49: 1 | T49: 1 | U49: 1 | V49: 1 | W49: 1 | X49: 1 | Z49: shield option which limits dual wielding
A50: Racial Traits | D50: warlock pact: pact of the tome | E50: 0 | F50: 0 | G50: 0 | H50: 0 | I50: 0 | J50: 0 | K50: 0 | L50: 0 | M50: 0 | N50: 0 | O50: 0 | P50: 0 | Q50: 0 | R50: 0 | S50: 0 | T50: 0 | U50: 0 | V50: 0 | W50: 0 | X50: 0 | Z50: thunderous smite
A51: Half Orc Brutal Crit | B51: 0 | D51: warlock pact: pact of the chain | E51: 0 | F51: 0 | G51: 0 | H51: 0 | I51: 0 | J51: 0 | K51: 0 | L51: 0 | M51: 0 | N51: 0 | O51: 0 | P51: 0 | Q51: 0 | R51: 0 | S51: 0 | T51: 0 | U51: 0 | V51: 0 | W51: 0 | X51: 0
A52: Halfling Lucky | B52: 0 | D52: fighter martial archetype: Battlemaster | E52: 0 | F52: 0 | G52: 1 | H52: 1 | I52: 1 | J52: 1 | K52: 1 | L52: 1 | M52: 1 | N52: 1 | O52: 1 | P52: 1 | Q52: 1 | R52: 1 | S52: 1 | T52: 1 | U52: 1 | V52: 1 | W52: 1 | X52: 1
A53: Kobold pack tactics | B53: 0 | D53: fighter martial archetype: Champion | E53: 0 | F53: 0 | G53: 0 | H53: 0 | I53: 0 | J53: 0 | K53: 0 | L53: 0 | M53: 0 | N53: 0 | O53: 0 | P53: 0 | Q53: 0 | R53: 0 | S53: 0 | T53: 0 | U53: 0 | V53: 0 | W53: 0 | X53: 0
D54: fighter martial archetype: Eldritch Knight | E54: 0 | F54: 0 | G54: 0 | H54: 0 | I54: 0 | J54: 0 | K54: 0 | L54: 0 | M54: 0 | N54: 0 | O54: 0 | P54: 0 | Q54: 0 | R54: 0 | S54: 0 | T54: 0 | U54: 0 | V54: 0 | W54: 0 | X54: 0
A55: Fighting Style | B55: Level | D55: fighter martial archetype: Echo Knight | E55: 0 | F55: 0 | G55: 0 | H55: 0 | I55: 0 | J55: 0 | K55: 0 | L55: 0 | M55: 0 | N55: 0 | O55: 0 | P55: 0 | Q55: 0 | R55: 0 | S55: 0 | T55: 0 | U55: 0 | V55: 0 | W55: 0 | X55: 0
A56: Archery | B56: 0 | D56: fighter martial archetype: Samurai | E56: 0 | F56: 0 | G56: 0 | H56: 0 | I56: 0 | J56: 0 | K56: 0 | L56: 0 | M56: 0 | N56: 0 | O56: 0 | P56: 0 | Q56: 0 | R56: 0 | S56: 0 | T56: 0 | U56: 0 | V56: 0 | W56: 0 | X56: 0
A57: Blind Fighting | B57: 0 | D57: fighter martial archetype: Cavalier | E57: 0 | F57: 0 | G57: 0 | H57: 0 | I57: 0 | J57: 0 | K57: 0 | L57: 0 | M57: 0 | N57: 0 | O57: 0 | P57: 0 | Q57: 0 | R57: 0 | S57: 0 | T57: 0 | U57: 0 | V57: 0 | W57: 0 | X57: 0
A58: Dueling | B58: 0 | D58: fighter martial archetype: Psi-Warrior | E58: 0 | F58: 0 | G58: 0 | H58: 0 | I58: 0 | J58: 0 | K58: 0 | L58: 0 | M58: 0 | N58: 0 | O58: 0 | P58: 0 | Q58: 0 | R58: 0 | S58: 0 | T58: 0 | U58: 0 | V58: 0 | W58: 0 | X58: 0
A59: GW Fighting | B59: 0 | D59: fighter martial archetype: Rune Knight | E59: 0 | F59: 0 | G59: 0 | H59: 0 | I59: 0 | J59: 0 | K59: 0 | L59: 0 | M59: 0 | N59: 0 | O59: 0 | P59: 0 | Q59: 0 | R59: 0 | S59: 0 | T59: 0 | U59: 0 | V59: 0 | W59: 0 | X59: 0
A60: Superior Technique | B60: 0 | D60: bard college: swords | E60: 0 | F60: 0 | G60: 0 | H60: 0 | I60: 0 | J60: 0 | K60: 0 | L60: 0 | M60: 0 | N60: 0 | O60: 0 | P60: 0 | Q60: 0 | R60: 0 | S60: 0 | T60: 0 | U60: 0 | V60: 0 | W60: 0 | X60: 0 | Z60: DONE
A61: Thrown Weapon Fighting | B61: 0 | D61: bard college: whispers | E61: 1 | F61: 1 | G61: 1 | H61: 1 | I61: 1 | J61: 1 | K61: 1 | L61: 1 | M61: 1 | N61: 1 | O61: 1 | P61: 1 | Q61: 1 | R61: 1 | S61: 1 | T61: 1 | U61: 1 | V61: 1 | W61: 1 | X61: 1 | Z61: sentinel feat should reduce booming blade movement bonuses
A62: Two Weapon Fighting | B62: 0 | D62: bard college: lore | E62: 0 | F62: 0 | G62: 0 | H62: 0 | I62: 0 | J62: 0 | K62: 0 | L62: 0 | M62: 0 | N62: 0 | O62: 0 | P62: 0 | Q62: 0 | R62: 0 | S62: 0 | T62: 0 | U62: 0 | V62: 0 | W62: 0 | X62: 0 | Z62: Bards
A63: Unarmed Fighting | B63: 0 | D63: barbarian path: zealot | E63: 0 | F63: 1 | G63: 1 | H63: 1 | I63: 1 | J63: 1 | K63: 1 | L63: 1 | M63: 1 | N63: 1 | O63: 1 | P63: 1 | Q63: 1 | R63: 1 | S63: 1 | T63: 1 | U63: 1 | V63: 1 | W63: 1 | X63: 1 | Z63: College of Swords
D64: barbarian path: ancestral guardian | E64: 0 | F64: 0 | G64: 0 | H64: 0 | I64: 0 | J64: 0 | K64: 0 | L64: 0 | M64: 0 | N64: 0 | O64: 0 | P64: 0 | Q64: 0 | R64: 0 | S64: 0 | T64: 0 | U64: 0 | V64: 0 | W64: 0 | X64: 0 | Z64: monks
D65: barbarian path: beast | E65: 0 | F65: 0 | G65: 0 | H65: 0 | I65: 0 | J65: 0 | K65: 0 | L65: 0 | M65: 0 | N65: 0 | O65: 0 | P65: 0 | Q65: 0 | R65: 0 | S65: 0 | T65: 0 | U65: 0 | V65: 0 | W65: 0 | X65: 0 | Z65: model using best slot by decreasing damage of slot-based spells per action
D66: roguish archetype: assassin | E66: 0 | F66: 0 | G66: 1 | H66: 1 | I66: 1 | J66: 1 | K66: 1 | L66: 1 | M66: 1 | N66: 1 | O66: 1 | P66: 1 | Q66: 1 | R66: 1 | S66: 1 | T66: 1 | U66: 1 | V66: 1 | W66: 1 | X66: 1 | Z66: Eldritch Smite: knock target prone if used a warlock slot for smiting. L5 Warlock
D67: roguish archetype: arcane trickster | E67: 0 | F67: 0 | G67: 0 | H67: 0 | I67: 0 | J67: 0 | K67: 0 | L67: 0 | M67: 0 | N67: 0 | O67: 0 | P67: 0 | Q67: 0 | R67: 0 | S67: 0 | T67: 0 | U67: 0 | V67: 0 | W67: 0 | X67: 0 | Z67: warlock smite (eldritch smite) only once per turn
D68: roguish archetype: phantom | E68: 0 | F68: 0 | G68: 0 | H68: 0 | I68: 0 | J68: 0 | K68: 0 | L68: 0 | M68: 0 | N68: 0 | O68: 0 | P68: 0 | Q68: 0 | R68: 0 | S68: 0 | T68: 0 | U68: 0 | V68: 0 | W68: 0 | X68: 0 | Z68: Dual Weilding
D69: roguish archetype: swashbuckler | E69: 0 | F69: 0 | G69: 0 | H69: 0 | I69: 0 | J69: 0 | K69: 0 | L69: 0 | M69: 0 | N69: 0 | O69: 0 | P69: 0 | Q69: 0 | R69: 0 | S69: 0 | T69: 0 | U69: 0 | V69: 0 | W69: 0 | X69: 0 | Z69: Dual Wielding feat
D70: artificer specialist: battle smith | E70: 0 | F70: 0 | G70: 1 | H70: 1 | I70: 1 | J70: 1 | K70: 1 | L70: 1 | M70: 1 | N70: 1 | O70: 1 | P70: 1 | Q70: 1 | R70: 1 | S70: 1 | T70: 1 | U70: 1 | V70: 1 | W70: 1 | X70: 1 | Z70: Sorc Points coverted to Smite Slots if not used on Quicken
D71: artificer specialist: artillerist | E71: 0 | F71: 0 | G71: 0 | H71: 0 | I71: 0 | J71: 0 | K71: 0 | L71: 0 | M71: 0 | N71: 0 | O71: 0 | P71: 0 | Q71: 0 | R71: 0 | S71: 0 | T71: 0 | U71: 0 | V71: 0 | W71: 0 | X71: 0 | Z71: percent of fights with a buff round preceeding them
D72: druid circle: stars | E72: 0 | F72: 0 | G72: 0 | H72: 0 | I72: 0 | J72: 0 | K72: 0 | L72: 0 | M72: 0 | N72: 0 | O72: 0 | P72: 0 | Q72: 0 | R72: 0 | S72: 0 | T72: 0 | U72: 0 | V72: 0 | W72: 0 | X72: 0 | Z72: compute average duration of concentration spells
D73: druid circle: spores | E73: 0 | F73: 0 | G73: 0 | H73: 0 | I73: 0 | J73: 0 | K73: 0 | L73: 0 | M73: 0 | N73: 0 | O73: 0 | P73: 0 | Q73: 0 | R73: 0 | S73: 0 | T73: 0 | U73: 0 | V73: 0 | W73: 0 | X73: 0 | Z73: concentration probability, based on feats
D74: druid circle: shepherd | E74: 0 | F74: 0 | G74: 0 | H74: 0 | I74: 0 | J74: 0 | K74: 0 | L74: 0 | M74: 0 | N74: 0 | O74: 0 | P74: 0 | Q74: 0 | R74: 0 | S74: 0 | T74: 0 | U74: 0 | V74: 0 | W74: 0 | X74: 0 | Z74: intelligent use of GWM bonus; only on advantage, for example
D75: monastic tradition: kensei | E75: 1 | F75: 1 | G75: 1 | H75: 1 | I75: 1 | J75: 1 | K75: 1 | L75: 1 | M75: 1 | N75: 1 | O75: 1 | P75: 1 | Q75: 1 | R75: 1 | S75: 1 | T75: 1 | U75: 1 | V75: 1 | W75: 1 | X75: 1 | Z75: actual DEX stat, some kind of Main Stat indicator
D76: monastic tradition: way of mercy | E76: 0 | F76: 0 | G76: 0 | H76: 0 | I76: 0 | J76: 0 | K76: 0 | L76: 0 | M76: 0 | N76: 0 | O76: 0 | P76: 0 | Q76: 0 | R76: 0 | S76: 0 | T76: 0 | U76: 0 | V76: 0 | W76: 0 | X76: 0 | Z76: wizard spell allowances
D77: ranger conclave: gloomstalker | E77: 0 | F77: 0 | G77: 1 | H77: 1 | I77: 1 | J77: 1 | K77: 1 | L77: 1 | M77: 1 | N77: 1 | O77: 1 | P77: 1 | Q77: 1 | R77: 1 | S77: 1 | T77: 1 | U77: 1 | V77: 1 | W77: 1 | X77: 1 | Z77: rogue
D78: ranger conclave: swarmkeeper | E78: 0 | F78: 0 | G78: 0 | H78: 0 | I78: 0 | J78: 0 | K78: 0 | L78: 0 | M78: 0 | N78: 0 | O78: 0 | P78: 0 | Q78: 0 | R78: 0 | S78: 0 | T78: 0 | U78: 0 | V78: 0 | W78: 0 | X78: 0 | Z78: barbarian
D79: ranger conclave: beastmaster | E79: 0 | F79: 0 | G79: 0 | H79: 0 | I79: 0 | J79: 0 | K79: 0 | L79: 0 | M79: 0 | N79: 0 | O79: 0 | P79: 0 | Q79: 0 | R79: 0 | S79: 0 | T79: 0 | U79: 0 | V79: 0 | W79: 0 | X79: 0 | Z79: reckless only with STR attacks
D80: ranger conclave: hunter | E80: 0 | F80: 0 | G80: 0 | H80: 0 | I80: 0 | J80: 0 | K80: 0 | L80: 0 | M80: 0 | N80: 0 | O80: 0 | P80: 0 | Q80: 0 | R80: 0 | S80: 0 | T80: 0 | U80: 0 | V80: 0 | W80: 0 | X80: 0 | Z80: fewer prone targets at level increases
D81: cleric domain: war | E81: 0 | F81: 0 | G81: 0 | H81: 0 | I81: 0 | J81: 0 | K81: 0 | L81: 0 | M81: 0 | N81: 0 | O81: 0 | P81: 0 | Q81: 0 | R81: 0 | S81: 0 | T81: 0 | U81: 0 | V81: 0 | W81: 0 | X81: 0 | Z81: bard spell allowances
D82: cleric domain: death | E82: 0 | F82: 0 | G82: 0 | H82: 0 | I82: 0 | J82: 0 | K82: 0 | L82: 0 | M82: 0 | N82: 0 | O82: 0 | P82: 0 | Q82: 0 | R82: 0 | S82: 0 | T82: 0 | U82: 0 | V82: 0 | W82: 0 | X82: 0 | Z82: other ranged attacks
D83: cleric domain: tempest | E83: 0 | F83: 0 | G83: 0 | H83: 0 | I83: 0 | J83: 0 | K83: 0 | L83: 0 | M83: 0 | N83: 0 | O83: 0 | P83: 0 | Q83: 0 | R83: 0 | S83: 0 | T83: 0 | U83: 0 | V83: 0 | W83: 0 | X83: 0 | Z83: should allow ranged Rogues to use bonus action on hiding
D84: cleric domain: peace | E84: 1 | F84: 1 | G84: 1 | H84: 1 | I84: 1 | J84: 1 | K84: 1 | L84: 1 | M84: 1 | N84: 1 | O84: 1 | P84: 1 | Q84: 1 | R84: 1 | S84: 1 | T84: 1 | U84: 1 | V84: 1 | W84: 1 | X84: 1 | Z84: and L14 rangers
D85: Use GWM only with Advantage | E85: 0 | F85: 0 | G85: 0 | H85: 0 | I85: 0 | J85: 0 | K85: 0 | L85: 0 | M85: 0 | N85: 0 | O85: 0 | P85: 0 | Q85: 0 | R85: 0 | S85: 0 | T85: 0 | U85: 0 | V85: 0 | W85: 0 | X85: 0 | Z85: need to allow booming blade attacks with assassination
Z86: need to compare booming blade auto crit damage to
D87: DESIRED CASTS PER DAY | E87: 1 | F87: 2 | G87: 3 | H87: 4 | I87: 5 | J87: 6 | K87: 7 | L87: 8 | M87: 9 | N87: 10 | O87: 11 | P87: 12 | Q87: 13 | R87: 14 | S87: 15 | T87: 16 | U87: 17 | V87: 18 | W87: 19 | X87: 20 | Z87: all regular attacks during main attack
D88: guiding bolt casts: (cleric, divine soul sorc, druid of stars) : AE | E88: 0 | F88: 0 | G88: 0 | H88: 0 | I88: 0 | J88: 0 | K88: 0 | L88: 0 | M88: 0 | N88: 0 | O88: 0 | P88: 0 | Q88: 0 | R88: 0 | S88: 0 | T88: 0 | U88: 0 | V88: 0 | W88: 0 | X88: 0 | Z88: split rogue damage into ranged vs melee
D89: magic missile: AE | E89: 0 | F89: 0 | G89: 0 | H89: 0 | I89: 0 | J89: 0 | K89: 0 | L89: 0 | M89: 0 | N89: 0 | O89: 0 | P89: 0 | Q89: 0 | R89: 0 | S89: 0 | T89: 0 | U89: 0 | V89: 0 | W89: 0 | X89: 0 | Z89: reckless attacks doesn't apply to Opp attacks
D90: fog cloud casts: (c) | E90: 0 | F90: 0 | G90: 0 | H90: 0 | I90: 0 | J90: 0 | K90: 0 | L90: 0 | M90: 0 | N90: 0 | O90: 0 | P90: 0 | Q90: 0 | R90: 0 | S90: 0 | T90: 0 | U90: 0 | V90: 0 | W90: 0 | X90: 0 | Z90: longbow hexweapon combo…
D91: pyrotechnics casts: | E91: 0 | F91: 0 | G91: 0 | H91: 0 | I91: 0 | J91: 0 | K91: 0 | L91: 0 | M91: 0 | N91: 0 | O91: 0 | P91: 0 | Q91: 0 | R91: 0 | S91: 0 | T91: 0 | U91: 0 | V91: 0 | W91: 0 | X91: 0 | Z91: would let you smite, can choose to not knock prone
D92: darkness casts: (c) (oathbreaker) | E92: 0 | F92: 0 | G92: 0 | H92: 0 | I92: 0 | J92: 0 | K92: 0 | L92: 0 | M92: 0 | N92: 0 | O92: 0 | P92: 0 | Q92: 0 | R92: 0 | S92: 0 | T92: 0 | U92: 0 | V92: 0 | W92: 0 | X92: 0 | Z92: requires a L2 eldritch invocation, no hand xbow.
D93: shadow blade (c) | E93: 0 | F93: 0 | G93: 0 | H93: 0 | I93: 0 | J93: 0 | K93: 0 | L93: 0 | M93: 0 | N93: 0 | O93: 0 | P93: 0 | Q93: 0 | R93: 0 | S93: 0 | T93: 0 | U93: 0 | V93: 0 | W93: 0 | X93: 0 | Z93: Should fully integrate Eld Blas
D94: bless casts (c) | E94: 0 | F94: 0 | G94: 0 | H94: 0 | I94: 0 | J94: 0 | K94: 0 | L94: 0 | M94: 0 | N94: 0 | O94: 0 | P94: 0 | Q94: 0 | R94: 0 | S94: 0 | T94: 0 | U94: 0 | V94: 0 | W94: 0 | X94: 0 | Z94: animate objects
D95: divine favor casts (c) | E95: 0 | F95: 0 | G95: 0 | H95: 0 | I95: 0 | J95: 0 | K95: 0 | L95: 0 | M95: 0 | N95: 0 | O95: 0 | P95: 0 | Q95: 0 | R95: 0 | S95: 0 | T95: 0 | U95: 0 | V95: 0 | W95: 0 | X95: 0 | Z95: tiny servant
D96: haste casts (c) (veng) | E96: 0 | F96: 0 | G96: 0 | H96: 0 | I96: 0 | J96: 0 | K96: 0 | L96: 0 | M96: 0 | N96: 0 | O96: 0 | P96: 0 | Q96: 0 | R96: 0 | S96: 0 | T96: 0 | U96: 0 | V96: 0 | W96: 0 | X96: 0 | Z96: bigby's hand
D97: hunter's mark / hex casts (c) (veng) (bonus action) | E97: 0 | F97: 0 | G97: 0 | H97: 0 | I97: 0 | J97: 0 | K97: 0 | L97: 0 | M97: 0 | N97: 0 | O97: 0 | P97: 0 | Q97: 0 | R97: 0 | S97: 0 | T97: 0 | U97: 0 | V97: 0 | W97: 0 | X97: 0 | Z97: simulacrum
D98: spirit guardians casts (c) (req Divine Soul) | E98: 0 | F98: 0 | G98: 0 | H98: 0 | I98: 0 | J98: 0 | K98: 0 | L98: 0 | M98: 0 | N98: 0 | O98: 0 | P98: 0 | Q98: 0 | R98: 0 | S98: 0 | T98: 0 | U98: 0 | V98: 0 | W98: 0 | X98: 0 | Z98: flaming sphere
D99: faerie fire casts (c) | E99: 0 | F99: 0 | G99: 0 | H99: 0 | I99: 0 | J99: 0 | K99: 0 | L99: 0 | M99: 0 | N99: 0 | O99: 0 | P99: 0 | Q99: 0 | R99: 0 | S99: 0 | T99: 0 | U99: 0 | V99: 0 | W99: 0 | X99: 0 | Z99: tenser's transformation
D100: spirit shroud casts (c) | E100: 0 | F100: 0 | G100: 0 | H100: 0 | I100: 0 | J100: 0 | K100: 0 | L100: 0 | M100: 0 | N100: 0 | O100: 0 | P100: 0 | Q100: 0 | R100: 0 | S100: 0 | T100: 0 | U100: 0 | V100: 0 | W100: 0 | X100: 0 | Z100: wizard
D101: steel wind strike : AE | E101: 0 | F101: 0 | G101: 0 | H101: 0 | I101: 0 | J101: 0 | K101: 0 | L101: 0 | M101: 0 | N101: 0 | O101: 0 | P101: 0 | Q101: 0 | R101: 0 | S101: 0 | T101: 0 | U101: 0 | V101: 0 | W101: 0 | X101: 0 | Z101: bladesinger
D102: guardian of nature (c) | E102: 0 | F102: 0 | G102: 0 | H102: 0 | I102: 0 | J102: 0 | K102: 0 | L102: 0 | M102: 0 | N102: 0 | O102: 0 | P102: 0 | Q102: 0 | R102: 0 | S102: 0 | T102: 0 | U102: 0 | V102: 0 | W102: 0 | X102: 0 | Z102: spells
D103: crown of stars | E103: 0 | F103: 0 | G103: 0 | H103: 0 | I103: 0 | J103: 0 | K103: 0 | L103: 0 | M103: 0 | N103: 0 | O103: 0 | P103: 0 | Q103: 0 | R103: 0 | S103: 0 | T103: 0 | U103: 0 | V103: 0 | W103: 0 | X103: 0 | Z103: faerie fire
D104: holy weapon casts (bonus action) (c) | E104: 0 | F104: 0 | G104: 0 | H104: 0 | I104: 0 | J104: 0 | K104: 0 | L104: 0 | M104: 0 | N104: 0 | O104: 0 | P104: 0 | Q104: 0 | R104: 0 | S104: 0 | T104: 0 | U104: 0 | V104: 0 | W104: 0 | X104: 0 | Z104: steel wind strike
D105: hold person casts (conq, veng) (c) | E105: 0 | F105: 0 | G105: 0 | H105: 0 | I105: 0 | J105: 0 | K105: 0 | L105: 0 | M105: 0 | N105: 0 | O105: 0 | P105: 0 | Q105: 0 | R105: 0 | S105: 0 | T105: 0 | U105: 0 | V105: 0 | W105: 0 | X105: 0 | Z105: guardian of nature
D106: hold monster casts (veng) (c) | E106: 0 | F106: 0 | G106: 0 | H106: 0 | I106: 0 | J106: 0 | K106: 0 | L106: 0 | M106: 0 | N106: 0 | O106: 0 | P106: 0 | Q106: 0 | R106: 0 | S106: 0 | T106: 0 | U106: 0 | V106: 0 | W106: 0 | X106: 0 | Z106: feat for blindfighting allowing darkness.
D107: shadow of moil (c) | E107: 0 | F107: 0 | G107: 0 | H107: 0 | I107: 0 | J107: 0 | K107: 0 | L107: 0 | M107: 0 | N107: 0 | O107: 0 | P107: 0 | Q107: 0 | R107: 0 | S107: 0 | T107: 0 | U107: 0 | V107: 0 | W107: 0 | X107: 0 | Z107: add two weapon fighting to weapon choice
D108: greater invisibility (c) | E108: 0 | F108: 0 | G108: 0 | H108: 0 | I108: 0 | J108: 0 | K108: 0 | L108: 0 | M108: 0 | N108: 0 | O108: 0 | P108: 0 | Q108: 0 | R108: 0 | S108: 0 | T108: 0 | U108: 0 | V108: 0 | W108: 0 | X108: 0 | Z108: sorc L20 capstone
D109: fear casts (conq) (c) | E109: 0 | F109: 0 | G109: 0 | H109: 0 | I109: 0 | J109: 0 | K109: 0 | L109: 0 | M109: 0 | N109: 0 | O109: 0 | P109: 0 | Q109: 0 | R109: 0 | S109: 0 | T109: 0 | U109: 0 | V109: 0 | W109: 0 | X109: 0 | Z109: rogue weapons (finesse weapons)
D110: tenser's transformation casts (c) | E110: 0 | F110: 0 | G110: 0 | H110: 0 | I110: 0 | J110: 0 | K110: 0 | L110: 0 | M110: 0 | N110: 0 | O110: 0 | P110: 0 | Q110: 0 | R110: 0 | S110: 0 | T110: 0 | U110: 0 | V110: 0 | W110: 0 | X110: 0 | Z110: shadow blade damage scaling
D111: flaming sphere casts (c) | E111: 0 | F111: 0 | G111: 0 | H111: 0 | I111: 0 | J111: 0 | K111: 0 | L111: 0 | M111: 0 | N111: 0 | O111: 0 | P111: 0 | Q111: 0 | R111: 0 | S111: 0 | T111: 0 | U111: 0 | V111: 0 | W111: 0 | X111: 0 | Z111: shadow blade L2 warlock dependence(?)
D112: bigby's hand casts (c) | E112: 0 | F112: 0 | G112: 0 | H112: 0 | I112: 0 | J112: 0 | K112: 0 | L112: 0 | M112: 0 | N112: 0 | O112: 0 | P112: 0 | Q112: 0 | R112: 0 | S112: 0 | T112: 0 | U112: 0 | V112: 0 | W112: 0 | X112: 0 | Z112: shadow blade advantage percentage : 0.1?
D113: animate objects casts (c) | E113: 0 | F113: 0 | G113: 0 | H113: 0 | I113: 0 | J113: 0 | K113: 0 | L113: 0 | M113: 0 | N113: 0 | O113: 0 | P113: 0 | Q113: 0 | R113: 0 | S113: 0 | T113: 0 | U113: 0 | V113: 0 | W113: 0 | X113: 0 | Z113: Eldritch Blast with xbow master feat
D114: spirtual weapon casts (free) req Conq or Divine S | E114: 0 | F114: 0 | G114: 0 | H114: 0 | I114: 0 | J114: 0 | K114: 0 | L114: 0 | M114: 0 | N114: 0 | O114: 0 | P114: 0 | Q114: 0 | R114: 0 | S114: 0 | T114: 0 | U114: 0 | V114: 0 | W114: 0 | X114: 0 | Z114: Eld Blast review
D115: fireball casts : AE | E115: 0 | F115: 0 | G115: 0 | H115: 0 | I115: 0 | J115: 0 | K115: 0 | L115: 0 | M115: 0 | N115: 0 | O115: 0 | P115: 0 | Q115: 0 | R115: 0 | S115: 0 | T115: 0 | U115: 0 | V115: 0 | W115: 0 | X115: 0 | Z115: shadow blade incompatibilty with BB (?)
D116: animate dead (non-combat) | E116: 0 | F116: 0 | G116: 0 | H116: 0 | I116: 0 | J116: 0 | K116: 0 | L116: 0 | M116: 0 | N116: 0 | O116: 0 | P116: 0 | Q116: 0 | R116: 0 | S116: 0 | T116: 0 | U116: 0 | V116: 0 | W116: 0 | X116: 0 | Z116: spending leftover sorc points on Empowered Spell
D117: tiny servants (non-combat) | E117: 0 | F117: 0 | G117: 0 | H117: 0 | I117: 0 | J117: 0 | K117: 0 | L117: 0 | M117: 0 | N117: 0 | O117: 0 | P117: 0 | Q117: 0 | R117: 0 | S117: 0 | T117: 0 | U117: 0 | V117: 0 | W117: 0 | X117: 0 | Z117: shadow blade reduction of PAM and GWM bonus attacks
D118: summon beast (c) | E118: 0 | F118: 0 | G118: 0 | H118: 0 | I118: 0 | J118: 0 | K118: 0 | L118: 0 | M118: 0 | N118: 0 | O118: 0 | P118: 0 | Q118: 0 | R118: 0 | S118: 0 | T118: 0 | U118: 0 | V118: 0 | W118: 0 | X118: 0 | Z118: great weapon fighting style should affect base weapon damage (and crits)
D119: summon fey (c) | E119: 0 | F119: 0 | G119: 0 | H119: 0 | I119: 0 | J119: 0 | K119: 0 | L119: 0 | M119: 0 | N119: 0 | O119: 0 | P119: 0 | Q119: 0 | R119: 0 | S119: 0 | T119: 0 | U119: 0 | V119: 0 | W119: 0 | X119: 0 | Z119: and also the d4 bonus attack from PAM
D120: summon undead (c) | E120: 0 | F120: 0 | G120: 0 | H120: 0 | I120: 0 | J120: 0 | K120: 0 | L120: 0 | M120: 0 | N120: 0 | O120: 0 | P120: 0 | Q120: 0 | R120: 0 | S120: 0 | T120: 0 | U120: 0 | V120: 0 | W120: 0 | X120: 0 | Z120: spirit shroud - scaling spell attack damage buff
D121: summon aberation (c) | E121: 0 | F121: 0 | G121: 0 | H121: 0 | I121: 0 | J121: 0 | K121: 0 | L121: 0 | M121: 0 | N121: 0 | O121: 0 | P121: 0 | Q121: 0 | R121: 0 | S121: 0 | T121: 0 | U121: 0 | V121: 0 | W121: 0 | X121: 0 | Z121: ss damage on spiritual weapon
D122: summon construct (c) | E122: 0 | F122: 0 | G122: 0 | H122: 0 | I122: 0 | J122: 0 | K122: 0 | L122: 0 | M122: 0 | N122: 0 | O122: 0 | P122: 0 | Q122: 0 | R122: 0 | S122: 0 | T122: 0 | U122: 0 | V122: 0 | W122: 0 | X122: 0 | Z122: ss damage on eldritch blast
D123: summon celestial (c) | E123: 0 | F123: 0 | G123: 0 | H123: 0 | I123: 0 | J123: 0 | K123: 0 | L123: 0 | M123: 0 | N123: 0 | O123: 0 | P123: 0 | Q123: 0 | R123: 0 | S123: 0 | T123: 0 | U123: 0 | V123: 0 | W123: 0 | X123: 0 | Z123: need to fix spell effects to be based on rounds active
D124: Favored Foe Ranger marking ability (c) (free action) | E124: 0 | F124: 0 | G124: 0 | H124: 0 | I124: 0 | J124: 0 | K124: 0 | L124: 0 | M124: 0 | N124: 0 | O124: 0 | P124: 0 | Q124: 0 | R124: 0 | S124: 0 | T124: 0 | U124: 0 | V124: 0 | W124: 0 | X124: 0 | Z124: darkness
D125: Bonus Action to provide Advantage (Spell-like action: Rogue, Ranger) | E125: 0 | F125: 0 | G125: 0 | H125: 0 | I125: 0 | J125: 0 | K125: 0 | L125: 0 | M125: 0 | N125: 0 | O125: 0 | P125: 0 | Q125: 0 | R125: 0 | S125: 0 | T125: 0 | U125: 0 | V125: 0 | W125: 0 | X125: 0 | Z125: shadowblade
Z126: blesss
D127: Find Familiar (adv on first attack of every round) | E127: =IF(IF(E13>=17,1,0)+IF(E15>=1,1,0)+IF(AND($B$25>=1,E6>=$B$25),1,0)+IF(AND(E10>=3,E54>=1),1,0)+IF(AND(E11>=3,E67>=1)+IF(AND(E12>=3,OR(E51>=1,E50>=1)),1,0),1,0)>=1,1,0)+IF(E19>=2,1,0) -> 0 | F127: =IF(IF(F13>=17,1,0)+IF(F15>=1,1,0)+IF(AND($B$25>=1,F6>=$B$25),1,0)+IF(AND(F10>=3,F54>=1),1,0)+IF(AND(F11>=3,F67>=1)+IF(AND(F12>=3,OR(F51>=1,F50>=1)),1,0),1,0)>=1,1,0)+IF(F19>=2,1,0) -> 0 | G127: 0 | H127: 0 | I127: 0 | J127: 0 | K127: 0 | L127: 0 | M127: 0 | N127: 0 | O127: 0 | P127: 0 | Q127: 0 | R127: 0 | S127: 0 | T127: 0 | U127: 0 | V127: 0 | W127: 0 | X127: 0 | Z127: divine favor
D128: Has Booming Blade (based on cantrip-class availability, and NOT PAM) | E128: =IF(OR(E12>=1,E13>=1,E15>=1,E19>=1,AND(E10>=3,E54),AND($B$25>=1,E6>=$B$25),AND(E11>=3,E67)),1,0) -> 0 | F128: =IF(OR(F12>=1,F13>=1,F15>=1,F19>=1,AND(F10>=3,F54),AND($B$25>=1,F6>=$B$25),AND(F11>=3,F67)),1,0) -> 0 | G128: 0 | H128: 0 | I128: 0 | J128: 0 | K128: 0 | L128: 0 | M128: 0 | N128: 0 | O128: 0 | P128: 0 | Q128: 0 | R128: 0 | S128: 0 | T128: 0 | U128: 0 | V128: 0 | W128: 0 | X128: 0 | Z128: haste
D129: Avg Opp AC | E129: ='Caster Tables'!C7+'Base Numbers'!$G$5 -> 13 | F129: ='Caster Tables'!D7+'Base Numbers'!$G$5 -> 13 | G129: ='Caster Tables'!E7+'Base Numbers'!$G$5 -> 14 | H129: ='Caster Tables'!F7+'Base Numbers'!$G$5 -> 14 | I129: ='Caster Tables'!G7+'Base Numbers'!$G$5 -> 14 | J129: ='Caster Tables'!H7+'Base Numbers'!$G$5 -> 15 | K129: ='Caster Tables'!I7+'Base Numbers'!$G$5 -> 15 | L129: ='Caster Tables'!J7+'Base Numbers'!$G$5 -> 15 | M129: ='Caster Tables'!K7+'Base Numbers'!$G$5 -> 16 | N129: ='Caster Tables'!L7+'Base Numbers'!$G$5 -> 16 | O129: ='Caster Tables'!M7+'Base Numbers'!$G$5 -> 16 | P129: ='Caster Tables'!N7+'Base Numbers'!$G$5 -> 17 | Q129: ='Caster Tables'!O7+'Base Numbers'!$G$5 -> 17 | R129: ='Caster Tables'!P7+'Base Numbers'!$G$5 -> 17 | S129: ='Caster Tables'!Q7+'Base Numbers'!$G$5 -> 18 | T129: ='Caster Tables'!R7+'Base Numbers'!$G$5 -> 18 | U129: ='Caster Tables'!S7+'Base Numbers'!$G$5 -> 18 | V129: ='Caster Tables'!T7+'Base Numbers'!$G$5 -> 19 | W129: ='Caster Tables'!U7+'Base Numbers'!$G$5 -> 19 | X129: ='Caster Tables'!V7+'Base Numbers'!$G$5 -> 19 | Z129: hold perseon
D130: Avg Opp save prob | E130: =14/20 - E32/20 - E35/20+'Caster Tables'!C6/20 -> 0.4 | F130: =14/20 - F32/20 - F35/20+'Caster Tables'!D6/20 -> 0.4 | G130: =14/20 - G32/20 - G35/20+'Caster Tables'!E6/20 -> 0.45 | H130: =14/20 - H32/20 - H35/20+'Caster Tables'!F6/20 -> 0.45 | I130: =14/20 - I32/20 - I35/20+'Caster Tables'!G6/20 -> 0.4 | J130: =14/20 - J32/20 - J35/20+'Caster Tables'!H6/20 -> 0.4 | K130: =14/20 - K32/20 - K35/20+'Caster Tables'!I6/20 -> 0.45 | L130: =14/20 - L32/20 - L35/20+'Caster Tables'!J6/20 -> 0.45 | M130: =14/20 - M32/20 - M35/20+'Caster Tables'!K6/20 -> 0.45 | N130: =14/20 - N32/20 - N35/20+'Caster Tables'!L6/20 -> 0.45 | O130: =14/20 - O32/20 - O35/20+'Caster Tables'!M6/20 -> 0.45 | P130: =14/20 - P32/20 - P35/20+'Caster Tables'!N6/20 -> 0.5 | Q130: =14/20 - Q32/20 - Q35/20+'Caster Tables'!O6/20 -> 0.45 | R130: =14/20 - R32/20 - R35/20+'Caster Tables'!P6/20 -> 0.5 | S130: =14/20 - S32/20 - S35/20+'Caster Tables'!Q6/20 -> 0.5 | T130: =14/20 - T32/20 - T35/20+'Caster Tables'!R6/20 -> 0.55 | U130: =14/20 - U32/20 - U35/20+'Caster Tables'!S6/20 -> 0.5 | V130: =14/20 - V32/20 - V35/20+'Caster Tables'!T6/20 -> 0.55 | W130: =14/20 - W32/20 - W35/20+'Caster Tables'!U6/20 -> 0.55 | X130: =14/20 - X32/20 - X35/20+'Caster Tables'!V6/20 -> 0.6 | Z130: greater invis
D131: Use CHA bonus (if Hexblade Warlock >0) | E131: =IF(AND(E133=0,E8<=1,E46>0,OR(AND(E12>=1,AND(E32>=E31,E32>=E30),OR($B$32>=1,$B$33>=1,$B$34>=1)),AND(E12>=3,E49>=1,$B$38=0,E32>=E30))),1,0) -> 0 | F131: 0 | G131: 0 | H131: 0 | I131: 0 | J131: 0 | K131: 0 | L131: 0 | M131: 0 | N131: 0 | O131: 0 | P131: 0 | Q131: 0 | R131: 0 | S131: 0 | T131: 0 | U131: 0 | V131: 0 | W131: 0 | X131: 0 | Z131: Most of these will take effect on the Bonus Action, if available
D132: Use DEX bonus (if no GWM, PAM, and DEX > STR, no Barb 2, Or Monk1) | E132: =IF(AND(E133=0,E8<=1),IF(AND(E131=0,OR(E18>=1,AND(E26=0,E24=0)),E31>E30),1,0),0) -> 0 | F132: =IF(AND(F133=0,F8<=1),IF(AND(F131=0,OR(F18>=1,AND(F26=0,F24=0)),F31>F30),1,0),0) -> 0 | G132: 0 | H132: 0 | I132: 0 | J132: 0 | K132: 0 | L132: 0 | M132: 0 | N132: 0 | O132: 0 | P132: 0 | Q132: 0 | R132: 0 | S132: 0 | T132: 0 | U132: 0 | V132: 0 | W132: 0 | X132: 0 | Z132: can add +1 to their duration for bonus action Advantage, which is the point of most of them
D133: Use INT bonus (if Artificer Battle Smith) | E133: =IF(AND(E8<=1,AND(E19>=3,E70>=1)),1,0) -> 0 | F133: 0 | G133: 0 | H133: 0 | I133: 0 | J133: 0 | K133: 0 | L133: 0 | M133: 0 | N133: 0 | O133: 0 | P133: 0 | Q133: 0 | R133: 0 | S133: 0 | T133: 0 | U133: 0 | V133: 0 | W133: 0 | X133: 0 | Z133: fighters
D134: Use STR bonus (otherwise) | E134: =IF(E8>=2,1,IF(AND(E132=0,AND(E131=0,E133=0)),1,0)) -> 1 | F134: 1 | G134: 1 | H134: 1 | I134: 1 | J134: 1 | K134: 1 | L134: 1 | M134: 1 | N134: 1 | O134: 1 | P134: 1 | Q134: 1 | R134: 1 | S134: 1 | T134: 1 | U134: 1 | V134: 1 | W134: 1 | X134: 1 | Z134: action surge
D135: Total hit and damage bonus (CHA discounted by shadowblade uptime) | E135: =IF(E134,E30,0)+IF(E133,E33,0)+IF(E132,E31,0)+IF(E131,E32*(1-E313)+E313*MAX(E30,E31),0) -> 3 | F135: 3 | G135: 3 | H135: 3 | I135: 3 | J135: 3 | K135: 3 | L135: 3 | M135: 3 | N135: 3 | O135: 3 | P135: 3 | Q135: 3 | R135: 3 | S135: 3 | T135: 3 | U135: 3 | V135: 3 | W135: 3 | X135: 3 | Z135: subclasses
D136: Infer if Ranged: Best guess based on spec | E136: =IF(AND(E28>=1,NOT(E26),NOT(E24)),1,0) -> 0 | F136: 0 | G136: 0 | H136: 0 | I136: 0 | J136: 0 | K136: 0 | L136: 0 | M136: 0 | N136: 0 | O136: 0 | P136: 0 | Q136: 0 | R136: 0 | S136: 0 | T136: 0 | U136: 0 | V136: 0 | W136: 0 | X136: 0 | Z136: psi-warrior
D137: Force Ranged (turns off melee attacks, bonus attacks, smites, BB) | E137: =IF($B45>=1,1,0) -> 0 | F137: 0 | G137: 0 | H137: 0 | I137: 0 | J137: 0 | K137: 0 | L137: 0 | M137: 0 | N137: 0 | O137: 0 | P137: 0 | Q137: 0 | R137: 0 | S137: 0 | T137: 0 | U137: 0 | V137: 0 | W137: 0 | X137: 0 | Z137: battlemaster has dice with minimal damage impact, although can prone
D138: Force Melee (turns off ranged attacks) | E138: =IF($B46>=1,1,0) -> 0 | F138: 0 | G138: 0 | H138: 0 | I138: 0 | J138: 0 | K138: 0 | L138: 0 | M138: 0 | N138: 0 | O138: 0 | P138: 0 | Q138: 0 | R138: 0 | S138: 0 | T138: 0 | U138: 0 | V138: 0 | W138: 0 | X138: 0 | Z138: battlemaster can also turn miss into hit, and gain a reposte opp att
D139: Exclude Eld Blast | E139: =IF($B47>=1,1,0) -> 0 | F139: 0 | G139: 0 | H139: 0 | I139: 0 | J139: 0 | K139: 0 | L139: 0 | M139: 0 | N139: 0 | O139: 0 | P139: 0 | Q139: 0 | R139: 0 | S139: 0 | T139: 0 | U139: 0 | V139: 0 | W139: 0 | X139: 0 | Z139: cavalier has extra opp attacks and prone stuff
Z140: champion has increased crit range
Z141: echo knight
D142: ALLOWED CASTS PER DAY (checks level/class requirements) | E142: 1 | F142: 2 | G142: 3 | H142: 4 | I142: 5 | J142: 6 | K142: 7 | L142: 8 | M142: 9 | N142: 10 | O142: 11 | P142: 12 | Q142: 13 | R142: 14 | S142: 15 | T142: 16 | U142: 17 | V142: 18 | W142: 19 | X142: 20 | Z142: eldritch knight gives bonus actions if use a cantrip
D143: guiding bolt casts (cleric, druid of stars) | E143: =IF(OR('Base Numbers'!$C$21,AND(E17>=2,E72),AND(E13>=1,E40),E16>=1,E14>=10,AND(E14>=6,E61>=1)),E88,0) -> 0 | F143: =IF(OR('Base Numbers'!$C$21,AND(F17>=2,F72),AND(F13>=1,F40),F16>=1,F14>=10,AND(F14>=6,F61>=1)),F88,0) -> 0 | G143: =IF(OR('Base Numbers'!$C$21,AND(G17>=2,G72),AND(G13>=1,G40),G16>=1,G14>=10,AND(G14>=6,G61>=1)),G88,0) -> 0 | H143: =IF(OR('Base Numbers'!$C$21,AND(H17>=2,H72),AND(H13>=1,H40),H16>=1,H14>=10,AND(H14>=6,H61>=1)),H88,0) -> 0 | I143: =IF(OR('Base Numbers'!$C$21,AND(I17>=2,I72),AND(I13>=1,I40),I16>=1,I14>=10,AND(I14>=6,I61>=1)),I88,0) -> 0 | J143: =IF(OR('Base Numbers'!$C$21,AND(J17>=2,J72),AND(J13>=1,J40),J16>=1,J14>=10,AND(J14>=6,J61>=1)),J88,0) -> 0 | K143: =IF(OR('Base Numbers'!$C$21,AND(K17>=2,K72),AND(K13>=1,K40),K16>=1,K14>=10,AND(K14>=6,K61>=1)),K88,0) -> 0 | L143: =IF(OR('Base Numbers'!$C$21,AND(L17>=2,L72),AND(L13>=1,L40),L16>=1,L14>=10,AND(L14>=6,L61>=1)),L88,0) -> 0 | M143: =IF(OR('Base Numbers'!$C$21,AND(M17>=2,M72),AND(M13>=1,M40),M16>=1,M14>=10,AND(M14>=6,M61>=1)),M88,0) -> 0 | N143: =IF(OR('Base Numbers'!$C$21,AND(N17>=2,N72),AND(N13>=1,N40),N16>=1,N14>=10,AND(N14>=6,N61>=1)),N88,0) -> 0 | O143: =IF(OR('Base Numbers'!$C$21,AND(O17>=2,O72),AND(O13>=1,O40),O16>=1,O14>=10,AND(O14>=6,O61>=1)),O88,0) -> 0 | P143: =IF(OR('Base Numbers'!$C$21,AND(P17>=2,P72),AND(P13>=1,P40),P16>=1,P14>=10,AND(P14>=6,P61>=1)),P88,0) -> 0 | Q143: =IF(OR('Base Numbers'!$C$21,AND(Q17>=2,Q72),AND(Q13>=1,Q40),Q16>=1,Q14>=10,AND(Q14>=6,Q61>=1)),Q88,0) -> 0 | R143: =IF(OR('Base Numbers'!$C$21,AND(R17>=2,R72),AND(R13>=1,R40),R16>=1,R14>=10,AND(R14>=6,R61>=1)),R88,0) -> 0 | S143: =IF(OR('Base Numbers'!$C$21,AND(S17>=2,S72),AND(S13>=1,S40),S16>=1,S14>=10,AND(S14>=6,S61>=1)),S88,0) -> 0 | T143: =IF(OR('Base Numbers'!$C$21,AND(T17>=2,T72),AND(T13>=1,T40),T16>=1,T14>=10,AND(T14>=6,T61>=1)),T88,0) -> 0 | U143: =IF(OR('Base Numbers'!$C$21,AND(U17>=2,U72),AND(U13>=1,U40),U16>=1,U14>=10,AND(U14>=6,U61>=1)),U88,0) -> 0 | V143: =IF(OR('Base Numbers'!$C$21,AND(V17>=2,V72),AND(V13>=1,V40),V16>=1,V14>=10,AND(V14>=6,V61>=1)),V88,0) -> 0 | W143: =IF(OR('Base Numbers'!$C$21,AND(W17>=2,W72),AND(W13>=1,W40),W16>=1,W14>=10,AND(W14>=6,W61>=1)),W88,0) -> 0 | X143: =IF(OR('Base Numbers'!$C$21,AND(X17>=2,X72),AND(X13>=1,X40),X16>=1,X14>=10,AND(X14>=6,X61>=1)),X88,0) -> 0 | Z143: Tasha's subclasses for:
D144: magic missile: AE | E144: =IF(OR('Base Numbers'!$C$21,E15>=1,E13>=1,E14>=10,AND(E14>=6,E61>=1)),E89,0) -> 0 | F144: =IF(OR('Base Numbers'!$C$21,F15>=1,F13>=1,F14>=10,AND(F14>=6,F61>=1)),F89,0) -> 0 | G144: =IF(OR('Base Numbers'!$C$21,G15>=1,G13>=1,G14>=10,AND(G14>=6,G61>=1)),G89,0) -> 0 | H144: =IF(OR('Base Numbers'!$C$21,H15>=1,H13>=1,H14>=10,AND(H14>=6,H61>=1)),H89,0) -> 0 | I144: =IF(OR('Base Numbers'!$C$21,I15>=1,I13>=1,I14>=10,AND(I14>=6,I61>=1)),I89,0) -> 0 | J144: =IF(OR('Base Numbers'!$C$21,J15>=1,J13>=1,J14>=10,AND(J14>=6,J61>=1)),J89,0) -> 0 | K144: =IF(OR('Base Numbers'!$C$21,K15>=1,K13>=1,K14>=10,AND(K14>=6,K61>=1)),K89,0) -> 0 | L144: =IF(OR('Base Numbers'!$C$21,L15>=1,L13>=1,L14>=10,AND(L14>=6,L61>=1)),L89,0) -> 0 | M144: =IF(OR('Base Numbers'!$C$21,M15>=1,M13>=1,M14>=10,AND(M14>=6,M61>=1)),M89,0) -> 0 | N144: =IF(OR('Base Numbers'!$C$21,N15>=1,N13>=1,N14>=10,AND(N14>=6,N61>=1)),N89,0) -> 0 | O144: =IF(OR('Base Numbers'!$C$21,O15>=1,O13>=1,O14>=10,AND(O14>=6,O61>=1)),O89,0) -> 0 | P144: =IF(OR('Base Numbers'!$C$21,P15>=1,P13>=1,P14>=10,AND(P14>=6,P61>=1)),P89,0) -> 0 | Q144: =IF(OR('Base Numbers'!$C$21,Q15>=1,Q13>=1,Q14>=10,AND(Q14>=6,Q61>=1)),Q89,0) -> 0 | R144: =IF(OR('Base Numbers'!$C$21,R15>=1,R13>=1,R14>=10,AND(R14>=6,R61>=1)),R89,0) -> 0 | S144: =IF(OR('Base Numbers'!$C$21,S15>=1,S13>=1,S14>=10,AND(S14>=6,S61>=1)),S89,0) -> 0 | T144: =IF(OR('Base Numbers'!$C$21,T15>=1,T13>=1,T14>=10,AND(T14>=6,T61>=1)),T89,0) -> 0 | U144: =IF(OR('Base Numbers'!$C$21,U15>=1,U13>=1,U14>=10,AND(U14>=6,U61>=1)),U89,0) -> 0 | V144: =IF(OR('Base Numbers'!$C$21,V15>=1,V13>=1,V14>=10,AND(V14>=6,V61>=1)),V89,0) -> 0 | W144: =IF(OR('Base Numbers'!$C$21,W15>=1,W13>=1,W14>=10,AND(W14>=6,W61>=1)),W89,0) -> 0 | X144: =IF(OR('Base Numbers'!$C$21,X15>=1,X13>=1,X14>=10,AND(X14>=6,X61>=1)),X89,0) -> 0 | Z144: rogue
D145: fog cloud casts: (c) | E145: =IF(OR('Base Numbers'!$C$21,E9>=2,E13>=1,E15>=1,E17>=1,AND(E10>=3,E54>=1),AND(E11>=3,E67>=1),E14>=10,AND(E14>=6,E61>=1),AND(E12>=1,E48>=1)),E90,0) -> 0 | F145: =IF(OR('Base Numbers'!$C$21,F9>=2,F13>=1,F15>=1,F17>=1,AND(F10>=3,F54>=1),AND(F11>=3,F67>=1),F14>=10,AND(F14>=6,F61>=1),AND(F12>=1,F48>=1)),F90,0) -> 0 | G145: =IF(OR('Base Numbers'!$C$21,G9>=2,G13>=1,G15>=1,G17>=1,AND(G10>=3,G54>=1),AND(G11>=3,G67>=1),G14>=10,AND(G14>=6,G61>=1),AND(G12>=1,G48>=1)),G90,0) -> 0 | H145: =IF(OR('Base Numbers'!$C$21,H9>=2,H13>=1,H15>=1,H17>=1,AND(H10>=3,H54>=1),AND(H11>=3,H67>=1),H14>=10,AND(H14>=6,H61>=1),AND(H12>=1,H48>=1)),H90,0) -> 0 | I145: =IF(OR('Base Numbers'!$C$21,I9>=2,I13>=1,I15>=1,I17>=1,AND(I10>=3,I54>=1),AND(I11>=3,I67>=1),I14>=10,AND(I14>=6,I61>=1),AND(I12>=1,I48>=1)),I90,0) -> 0 | J145: =IF(OR('Base Numbers'!$C$21,J9>=2,J13>=1,J15>=1,J17>=1,AND(J10>=3,J54>=1),AND(J11>=3,J67>=1),J14>=10,AND(J14>=6,J61>=1),AND(J12>=1,J48>=1)),J90,0) -> 0 | K145: =IF(OR('Base Numbers'!$C$21,K9>=2,K13>=1,K15>=1,K17>=1,AND(K10>=3,K54>=1),AND(K11>=3,K67>=1),K14>=10,AND(K14>=6,K61>=1),AND(K12>=1,K48>=1)),K90,0) -> 0 | L145: =IF(OR('Base Numbers'!$C$21,L9>=2,L13>=1,L15>=1,L17>=1,AND(L10>=3,L54>=1),AND(L11>=3,L67>=1),L14>=10,AND(L14>=6,L61>=1),AND(L12>=1,L48>=1)),L90,0) -> 0 | M145: =IF(OR('Base Numbers'!$C$21,M9>=2,M13>=1,M15>=1,M17>=1,AND(M10>=3,M54>=1),AND(M11>=3,M67>=1),M14>=10,AND(M14>=6,M61>=1),AND(M12>=1,M48>=1)),M90,0) -> 0 | N145: =IF(OR('Base Numbers'!$C$21,N9>=2,N13>=1,N15>=1,N17>=1,AND(N10>=3,N54>=1),AND(N11>=3,N67>=1),N14>=10,AND(N14>=6,N61>=1),AND(N12>=1,N48>=1)),N90,0) -> 0 | O145: =IF(OR('Base Numbers'!$C$21,O9>=2,O13>=1,O15>=1,O17>=1,AND(O10>=3,O54>=1),AND(O11>=3,O67>=1),O14>=10,AND(O14>=6,O61>=1),AND(O12>=1,O48>=1)),O90,0) -> 0 | P145: =IF(OR('Base Numbers'!$C$21,P9>=2,P13>=1,P15>=1,P17>=1,AND(P10>=3,P54>=1),AND(P11>=3,P67>=1),P14>=10,AND(P14>=6,P61>=1),AND(P12>=1,P48>=1)),P90,0) -> 0 | Q145: =IF(OR('Base Numbers'!$C$21,Q9>=2,Q13>=1,Q15>=1,Q17>=1,AND(Q10>=3,Q54>=1),AND(Q11>=3,Q67>=1),Q14>=10,AND(Q14>=6,Q61>=1),AND(Q12>=1,Q48>=1)),Q90,0) -> 0 | R145: =IF(OR('Base Numbers'!$C$21,R9>=2,R13>=1,R15>=1,R17>=1,AND(R10>=3,R54>=1),AND(R11>=3,R67>=1),R14>=10,AND(R14>=6,R61>=1),AND(R12>=1,R48>=1)),R90,0) -> 0 | S145: =IF(OR('Base Numbers'!$C$21,S9>=2,S13>=1,S15>=1,S17>=1,AND(S10>=3,S54>=1),AND(S11>=3,S67>=1),S14>=10,AND(S14>=6,S61>=1),AND(S12>=1,S48>=1)),S90,0) -> 0 | T145: =IF(OR('Base Numbers'!$C$21,T9>=2,T13>=1,T15>=1,T17>=1,AND(T10>=3,T54>=1),AND(T11>=3,T67>=1),T14>=10,AND(T14>=6,T61>=1),AND(T12>=1,T48>=1)),T90,0) -> 0 | U145: =IF(OR('Base Numbers'!$C$21,U9>=2,U13>=1,U15>=1,U17>=1,AND(U10>=3,U54>=1),AND(U11>=3,U67>=1),U14>=10,AND(U14>=6,U61>=1),AND(U12>=1,U48>=1)),U90,0) -> 0 | V145: =IF(OR('Base Numbers'!$C$21,V9>=2,V13>=1,V15>=1,V17>=1,AND(V10>=3,V54>=1),AND(V11>=3,V67>=1),V14>=10,AND(V14>=6,V61>=1),AND(V12>=1,V48>=1)),V90,0) -> 0 | W145: =IF(OR('Base Numbers'!$C$21,W9>=2,W13>=1,W15>=1,W17>=1,AND(W10>=3,W54>=1),AND(W11>=3,W67>=1),W14>=10,AND(W14>=6,W61>=1),AND(W12>=1,W48>=1)),W90,0) -> 0 | X145: =IF(OR('Base Numbers'!$C$21,X9>=2,X13>=1,X15>=1,X17>=1,AND(X10>=3,X54>=1),AND(X11>=3,X67>=1),X14>=10,AND(X14>=6,X61>=1),AND(X12>=1,X48>=1)),X90,0) -> 0 | Z145: phantom
D146: pyrotechnics casts: | E146: =IF(OR('Base Numbers'!$C$21,E13>=3,E15>=3,E19>=5,E14>=3,AND(E10>=7,E54>=1),AND(E11>=7,E67>=1)),E91,0) -> 0 | F146: =IF(OR('Base Numbers'!$C$21,F13>=3,F15>=3,F19>=5,F14>=3,AND(F10>=7,F54>=1),AND(F11>=7,F67>=1)),F91,0) -> 0 | G146: =IF(OR('Base Numbers'!$C$21,G13>=3,G15>=3,G19>=5,G14>=3,AND(G10>=7,G54>=1),AND(G11>=7,G67>=1)),G91,0) -> 0 | H146: =IF(OR('Base Numbers'!$C$21,H13>=3,H15>=3,H19>=5,H14>=3,AND(H10>=7,H54>=1),AND(H11>=7,H67>=1)),H91,0) -> 0 | I146: =IF(OR('Base Numbers'!$C$21,I13>=3,I15>=3,I19>=5,I14>=3,AND(I10>=7,I54>=1),AND(I11>=7,I67>=1)),I91,0) -> 0 | J146: =IF(OR('Base Numbers'!$C$21,J13>=3,J15>=3,J19>=5,J14>=3,AND(J10>=7,J54>=1),AND(J11>=7,J67>=1)),J91,0) -> 0 | K146: =IF(OR('Base Numbers'!$C$21,K13>=3,K15>=3,K19>=5,K14>=3,AND(K10>=7,K54>=1),AND(K11>=7,K67>=1)),K91,0) -> 0 | L146: =IF(OR('Base Numbers'!$C$21,L13>=3,L15>=3,L19>=5,L14>=3,AND(L10>=7,L54>=1),AND(L11>=7,L67>=1)),L91,0) -> 0 | M146: =IF(OR('Base Numbers'!$C$21,M13>=3,M15>=3,M19>=5,M14>=3,AND(M10>=7,M54>=1),AND(M11>=7,M67>=1)),M91,0) -> 0 | N146: =IF(OR('Base Numbers'!$C$21,N13>=3,N15>=3,N19>=5,N14>=3,AND(N10>=7,N54>=1),AND(N11>=7,N67>=1)),N91,0) -> 0 | O146: =IF(OR('Base Numbers'!$C$21,O13>=3,O15>=3,O19>=5,O14>=3,AND(O10>=7,O54>=1),AND(O11>=7,O67>=1)),O91,0) -> 0 | P146: =IF(OR('Base Numbers'!$C$21,P13>=3,P15>=3,P19>=5,P14>=3,AND(P10>=7,P54>=1),AND(P11>=7,P67>=1)),P91,0) -> 0 | Q146: =IF(OR('Base Numbers'!$C$21,Q13>=3,Q15>=3,Q19>=5,Q14>=3,AND(Q10>=7,Q54>=1),AND(Q11>=7,Q67>=1)),Q91,0) -> 0 | R146: =IF(OR('Base Numbers'!$C$21,R13>=3,R15>=3,R19>=5,R14>=3,AND(R10>=7,R54>=1),AND(R11>=7,R67>=1)),R91,0) -> 0 | S146: =IF(OR('Base Numbers'!$C$21,S13>=3,S15>=3,S19>=5,S14>=3,AND(S10>=7,S54>=1),AND(S11>=7,S67>=1)),S91,0) -> 0 | T146: =IF(OR('Base Numbers'!$C$21,T13>=3,T15>=3,T19>=5,T14>=3,AND(T10>=7,T54>=1),AND(T11>=7,T67>=1)),T91,0) -> 0 | U146: =IF(OR('Base Numbers'!$C$21,U13>=3,U15>=3,U19>=5,U14>=3,AND(U10>=7,U54>=1),AND(U11>=7,U67>=1)),U91,0) -> 0 | V146: =IF(OR('Base Numbers'!$C$21,V13>=3,V15>=3,V19>=5,V14>=3,AND(V10>=7,V54>=1),AND(V11>=7,V67>=1)),V91,0) -> 0 | W146: =IF(OR('Base Numbers'!$C$21,W13>=3,W15>=3,W19>=5,W14>=3,AND(W10>=7,W54>=1),AND(W11>=7,W67>=1)),W91,0) -> 0 | X146: =IF(OR('Base Numbers'!$C$21,X13>=3,X15>=3,X19>=5,X14>=3,AND(X10>=7,X54>=1),AND(X11>=7,X67>=1)),X91,0) -> 0 | Z146: ranger
D147: darkness casts: (c) (oathbreaker) | E147: =IF(OR('Base Numbers'!$C$21,E14>=6,E15>=3,E13>=3,E12>=3,AND(E7>=5,E37)),E92,0) -> 0 | F147: =IF(OR('Base Numbers'!$C$21,F14>=6,F15>=3,F13>=3,F12>=3,AND(F7>=5,F37)),F92,0) -> 0 | G147: =IF(OR('Base Numbers'!$C$21,G14>=6,G15>=3,G13>=3,G12>=3,AND(G7>=5,G37)),G92,0) -> 0 | H147: =IF(OR('Base Numbers'!$C$21,H14>=6,H15>=3,H13>=3,H12>=3,AND(H7>=5,H37)),H92,0) -> 0 | I147: =IF(OR('Base Numbers'!$C$21,I14>=6,I15>=3,I13>=3,I12>=3,AND(I7>=5,I37)),I92,0) -> 0 | J147: =IF(OR('Base Numbers'!$C$21,J14>=6,J15>=3,J13>=3,J12>=3,AND(J7>=5,J37)),J92,0) -> 0 | K147: =IF(OR('Base Numbers'!$C$21,K14>=6,K15>=3,K13>=3,K12>=3,AND(K7>=5,K37)),K92,0) -> 0 | L147: =IF(OR('Base Numbers'!$C$21,L14>=6,L15>=3,L13>=3,L12>=3,AND(L7>=5,L37)),L92,0) -> 0 | M147: =IF(OR('Base Numbers'!$C$21,M14>=6,M15>=3,M13>=3,M12>=3,AND(M7>=5,M37)),M92,0) -> 0 | N147: =IF(OR('Base Numbers'!$C$21,N14>=6,N15>=3,N13>=3,N12>=3,AND(N7>=5,N37)),N92,0) -> 0 | O147: =IF(OR('Base Numbers'!$C$21,O14>=6,O15>=3,O13>=3,O12>=3,AND(O7>=5,O37)),O92,0) -> 0 | P147: =IF(OR('Base Numbers'!$C$21,P14>=6,P15>=3,P13>=3,P12>=3,AND(P7>=5,P37)),P92,0) -> 0 | Q147: =IF(OR('Base Numbers'!$C$21,Q14>=6,Q15>=3,Q13>=3,Q12>=3,AND(Q7>=5,Q37)),Q92,0) -> 0 | R147: =IF(OR('Base Numbers'!$C$21,R14>=6,R15>=3,R13>=3,R12>=3,AND(R7>=5,R37)),R92,0) -> 0 | S147: =IF(OR('Base Numbers'!$C$21,S14>=6,S15>=3,S13>=3,S12>=3,AND(S7>=5,S37)),S92,0) -> 0 | T147: =IF(OR('Base Numbers'!$C$21,T14>=6,T15>=3,T13>=3,T12>=3,AND(T7>=5,T37)),T92,0) -> 0 | U147: =IF(OR('Base Numbers'!$C$21,U14>=6,U15>=3,U13>=3,U12>=3,AND(U7>=5,U37)),U92,0) -> 0 | V147: =IF(OR('Base Numbers'!$C$21,V14>=6,V15>=3,V13>=3,V12>=3,AND(V7>=5,V37)),V92,0) -> 0 | W147: =IF(OR('Base Numbers'!$C$21,W14>=6,W15>=3,W13>=3,W12>=3,AND(W7>=5,W37)),W92,0) -> 0 | X147: =IF(OR('Base Numbers'!$C$21,X14>=6,X15>=3,X13>=3,X12>=3,AND(X7>=5,X37)),X92,0) -> 0 | Z147: swarmkeeper
D148: shadow blade (c) (bonus action) | E148: =IF(OR('Base Numbers'!$C$21,AND(E10>=7,E54>=1),AND(E11>=7, E67>=1),E15>=3,E14>=10,AND(E14>=6,E61>=1),E12>=3,E13>=3),E93,0) -> 0 | F148: =IF(OR('Base Numbers'!$C$21,AND(F10>=7,F54>=1),AND(F11>=7, F67>=1),F15>=3,F14>=10,AND(F14>=6,F61>=1),F12>=3,F13>=3),F93,0) -> 0 | G148: =IF(OR('Base Numbers'!$C$21,AND(G10>=7,G54>=1),AND(G11>=7, G67>=1),G15>=3,G14>=10,AND(G14>=6,G61>=1),G12>=3,G13>=3),G93,0) -> 0 | H148: =IF(OR('Base Numbers'!$C$21,AND(H10>=7,H54>=1),AND(H11>=7, H67>=1),H15>=3,H14>=10,AND(H14>=6,H61>=1),H12>=3,H13>=3),H93,0) -> 0 | I148: =IF(OR('Base Numbers'!$C$21,AND(I10>=7,I54>=1),AND(I11>=7, I67>=1),I15>=3,I14>=10,AND(I14>=6,I61>=1),I12>=3,I13>=3),I93,0) -> 0 | J148: =IF(OR('Base Numbers'!$C$21,AND(J10>=7,J54>=1),AND(J11>=7, J67>=1),J15>=3,J14>=10,AND(J14>=6,J61>=1),J12>=3,J13>=3),J93,0) -> 0 | K148: =IF(OR('Base Numbers'!$C$21,AND(K10>=7,K54>=1),AND(K11>=7, K67>=1),K15>=3,K14>=10,AND(K14>=6,K61>=1),K12>=3,K13>=3),K93,0) -> 0 | L148: =IF(OR('Base Numbers'!$C$21,AND(L10>=7,L54>=1),AND(L11>=7, L67>=1),L15>=3,L14>=10,AND(L14>=6,L61>=1),L12>=3,L13>=3),L93,0) -> 0 | M148: =IF(OR('Base Numbers'!$C$21,AND(M10>=7,M54>=1),AND(M11>=7, M67>=1),M15>=3,M14>=10,AND(M14>=6,M61>=1),M12>=3,M13>=3),M93,0) -> 0 | N148: =IF(OR('Base Numbers'!$C$21,AND(N10>=7,N54>=1),AND(N11>=7, N67>=1),N15>=3,N14>=10,AND(N14>=6,N61>=1),N12>=3,N13>=3),N93,0) -> 0 | O148: =IF(OR('Base Numbers'!$C$21,AND(O10>=7,O54>=1),AND(O11>=7, O67>=1),O15>=3,O14>=10,AND(O14>=6,O61>=1),O12>=3,O13>=3),O93,0) -> 0 | P148: =IF(OR('Base Numbers'!$C$21,AND(P10>=7,P54>=1),AND(P11>=7, P67>=1),P15>=3,P14>=10,AND(P14>=6,P61>=1),P12>=3,P13>=3),P93,0) -> 0 | Q148: =IF(OR('Base Numbers'!$C$21,AND(Q10>=7,Q54>=1),AND(Q11>=7, Q67>=1),Q15>=3,Q14>=10,AND(Q14>=6,Q61>=1),Q12>=3,Q13>=3),Q93,0) -> 0 | R148: =IF(OR('Base Numbers'!$C$21,AND(R10>=7,R54>=1),AND(R11>=7, R67>=1),R15>=3,R14>=10,AND(R14>=6,R61>=1),R12>=3,R13>=3),R93,0) -> 0 | S148: =IF(OR('Base Numbers'!$C$21,AND(S10>=7,S54>=1),AND(S11>=7, S67>=1),S15>=3,S14>=10,AND(S14>=6,S61>=1),S12>=3,S13>=3),S93,0) -> 0 | T148: =IF(OR('Base Numbers'!$C$21,AND(T10>=7,T54>=1),AND(T11>=7, T67>=1),T15>=3,T14>=10,AND(T14>=6,T61>=1),T12>=3,T13>=3),T93,0) -> 0 | U148: =IF(OR('Base Numbers'!$C$21,AND(U10>=7,U54>=1),AND(U11>=7, U67>=1),U15>=3,U14>=10,AND(U14>=6,U61>=1),U12>=3,U13>=3),U93,0) -> 0 | V148: =IF(OR('Base Numbers'!$C$21,AND(V10>=7,V54>=1),AND(V11>=7, V67>=1),V15>=3,V14>=10,AND(V14>=6,V61>=1),V12>=3,V13>=3),V93,0) -> 0 | W148: =IF(OR('Base Numbers'!$C$21,AND(W10>=7,W54>=1),AND(W11>=7, W67>=1),W15>=3,W14>=10,AND(W14>=6,W61>=1),W12>=3,W13>=3),W93,0) -> 0 | X148: =IF(OR('Base Numbers'!$C$21,AND(X10>=7,X54>=1),AND(X11>=7, X67>=1),X15>=3,X14>=10,AND(X14>=6,X61>=1),X12>=3,X13>=3),X93,0) -> 0 | Z148: monk
D149: bless casts (c) | E149: =IF(OR('Base Numbers'!$C$21,E14>=6,E16>=1,E7>=2,AND(E40,E13>=1),E14>=10,AND(E14>=6,E61>=1)),E94,0) -> 0 | F149: =IF(OR('Base Numbers'!$C$21,F14>=6,F16>=1,F7>=2,AND(F40,F13>=1),F14>=10,AND(F14>=6,F61>=1)),F94,0) -> 0 | G149: =IF(OR('Base Numbers'!$C$21,G14>=6,G16>=1,G7>=2,AND(G40,G13>=1),G14>=10,AND(G14>=6,G61>=1)),G94,0) -> 0 | H149: =IF(OR('Base Numbers'!$C$21,H14>=6,H16>=1,H7>=2,AND(H40,H13>=1),H14>=10,AND(H14>=6,H61>=1)),H94,0) -> 0 | I149: =IF(OR('Base Numbers'!$C$21,I14>=6,I16>=1,I7>=2,AND(I40,I13>=1),I14>=10,AND(I14>=6,I61>=1)),I94,0) -> 0 | J149: =IF(OR('Base Numbers'!$C$21,J14>=6,J16>=1,J7>=2,AND(J40,J13>=1),J14>=10,AND(J14>=6,J61>=1)),J94,0) -> 0 | K149: =IF(OR('Base Numbers'!$C$21,K14>=6,K16>=1,K7>=2,AND(K40,K13>=1),K14>=10,AND(K14>=6,K61>=1)),K94,0) -> 0 | L149: =IF(OR('Base Numbers'!$C$21,L14>=6,L16>=1,L7>=2,AND(L40,L13>=1),L14>=10,AND(L14>=6,L61>=1)),L94,0) -> 0 | M149: =IF(OR('Base Numbers'!$C$21,M14>=6,M16>=1,M7>=2,AND(M40,M13>=1),M14>=10,AND(M14>=6,M61>=1)),M94,0) -> 0 | N149: =IF(OR('Base Numbers'!$C$21,N14>=6,N16>=1,N7>=2,AND(N40,N13>=1),N14>=10,AND(N14>=6,N61>=1)),N94,0) -> 0 | O149: =IF(OR('Base Numbers'!$C$21,O14>=6,O16>=1,O7>=2,AND(O40,O13>=1),O14>=10,AND(O14>=6,O61>=1)),O94,0) -> 0 | P149: =IF(OR('Base Numbers'!$C$21,P14>=6,P16>=1,P7>=2,AND(P40,P13>=1),P14>=10,AND(P14>=6,P61>=1)),P94,0) -> 0 | Q149: =IF(OR('Base Numbers'!$C$21,Q14>=6,Q16>=1,Q7>=2,AND(Q40,Q13>=1),Q14>=10,AND(Q14>=6,Q61>=1)),Q94,0) -> 0 | R149: =IF(OR('Base Numbers'!$C$21,R14>=6,R16>=1,R7>=2,AND(R40,R13>=1),R14>=10,AND(R14>=6,R61>=1)),R94,0) -> 0 | S149: =IF(OR('Base Numbers'!$C$21,S14>=6,S16>=1,S7>=2,AND(S40,S13>=1),S14>=10,AND(S14>=6,S61>=1)),S94,0) -> 0 | T149: =IF(OR('Base Numbers'!$C$21,T14>=6,T16>=1,T7>=2,AND(T40,T13>=1),T14>=10,AND(T14>=6,T61>=1)),T94,0) -> 0 | U149: =IF(OR('Base Numbers'!$C$21,U14>=6,U16>=1,U7>=2,AND(U40,U13>=1),U14>=10,AND(U14>=6,U61>=1)),U94,0) -> 0 | V149: =IF(OR('Base Numbers'!$C$21,V14>=6,V16>=1,V7>=2,AND(V40,V13>=1),V14>=10,AND(V14>=6,V61>=1)),V94,0) -> 0 | W149: =IF(OR('Base Numbers'!$C$21,W14>=6,W16>=1,W7>=2,AND(W40,W13>=1),W14>=10,AND(W14>=6,W61>=1)),W94,0) -> 0 | X149: =IF(OR('Base Numbers'!$C$21,X14>=6,X16>=1,X7>=2,AND(X40,X13>=1),X14>=10,AND(X14>=6,X61>=1)),X94,0) -> 0 | Z149: astral self
D150: divine favor casts (c) | E150: =IF(OR('Base Numbers'!$C$21,E14>=6,E7>=2,AND(E40,E13>=1),E14>=10,AND(E14>=6,E61>=1)),E95,0) -> 0 | F150: =IF(OR('Base Numbers'!$C$21,F14>=6,F7>=2,AND(F40,F13>=1),F14>=10,AND(F14>=6,F61>=1)),F95,0) -> 0 | G150: =IF(OR('Base Numbers'!$C$21,G14>=6,G7>=2,AND(G40,G13>=1),G14>=10,AND(G14>=6,G61>=1)),G95,0) -> 0 | H150: =IF(OR('Base Numbers'!$C$21,H14>=6,H7>=2,AND(H40,H13>=1),H14>=10,AND(H14>=6,H61>=1)),H95,0) -> 0 | I150: =IF(OR('Base Numbers'!$C$21,I14>=6,I7>=2,AND(I40,I13>=1),I14>=10,AND(I14>=6,I61>=1)),I95,0) -> 0 | J150: =IF(OR('Base Numbers'!$C$21,J14>=6,J7>=2,AND(J40,J13>=1),J14>=10,AND(J14>=6,J61>=1)),J95,0) -> 0 | K150: =IF(OR('Base Numbers'!$C$21,K14>=6,K7>=2,AND(K40,K13>=1),K14>=10,AND(K14>=6,K61>=1)),K95,0) -> 0 | L150: =IF(OR('Base Numbers'!$C$21,L14>=6,L7>=2,AND(L40,L13>=1),L14>=10,AND(L14>=6,L61>=1)),L95,0) -> 0 | M150: =IF(OR('Base Numbers'!$C$21,M14>=6,M7>=2,AND(M40,M13>=1),M14>=10,AND(M14>=6,M61>=1)),M95,0) -> 0 | N150: =IF(OR('Base Numbers'!$C$21,N14>=6,N7>=2,AND(N40,N13>=1),N14>=10,AND(N14>=6,N61>=1)),N95,0) -> 0 | O150: =IF(OR('Base Numbers'!$C$21,O14>=6,O7>=2,AND(O40,O13>=1),O14>=10,AND(O14>=6,O61>=1)),O95,0) -> 0 | P150: =IF(OR('Base Numbers'!$C$21,P14>=6,P7>=2,AND(P40,P13>=1),P14>=10,AND(P14>=6,P61>=1)),P95,0) -> 0 | Q150: =IF(OR('Base Numbers'!$C$21,Q14>=6,Q7>=2,AND(Q40,Q13>=1),Q14>=10,AND(Q14>=6,Q61>=1)),Q95,0) -> 0 | R150: =IF(OR('Base Numbers'!$C$21,R14>=6,R7>=2,AND(R40,R13>=1),R14>=10,AND(R14>=6,R61>=1)),R95,0) -> 0 | S150: =IF(OR('Base Numbers'!$C$21,S14>=6,S7>=2,AND(S40,S13>=1),S14>=10,AND(S14>=6,S61>=1)),S95,0) -> 0 | T150: =IF(OR('Base Numbers'!$C$21,T14>=6,T7>=2,AND(T40,T13>=1),T14>=10,AND(T14>=6,T61>=1)),T95,0) -> 0 | U150: =IF(OR('Base Numbers'!$C$21,U14>=6,U7>=2,AND(U40,U13>=1),U14>=10,AND(U14>=6,U61>=1)),U95,0) -> 0 | V150: =IF(OR('Base Numbers'!$C$21,V14>=6,V7>=2,AND(V40,V13>=1),V14>=10,AND(V14>=6,V61>=1)),V95,0) -> 0 | W150: =IF(OR('Base Numbers'!$C$21,W14>=6,W7>=2,AND(W40,W13>=1),W14>=10,AND(W14>=6,W61>=1)),W95,0) -> 0 | X150: =IF(OR('Base Numbers'!$C$21,X14>=6,X7>=2,AND(X40,X13>=1),X14>=10,AND(X14>=6,X61>=1)),X95,0) -> 0 | Z150: mercy
D151: haste casts (c) (veng) | E151: =IF(OR('Base Numbers'!$C$21,E14>=6,E15>=5,E13>=5,E19>=9,AND(E36,E7>=9)),E96,0) -> 0 | F151: =IF(OR('Base Numbers'!$C$21,F14>=6,F15>=5,F13>=5,F19>=9,AND(F36,F7>=9)),F96,0) -> 0 | G151: =IF(OR('Base Numbers'!$C$21,G14>=6,G15>=5,G13>=5,G19>=9,AND(G36,G7>=9)),G96,0) -> 0 | H151: =IF(OR('Base Numbers'!$C$21,H14>=6,H15>=5,H13>=5,H19>=9,AND(H36,H7>=9)),H96,0) -> 0 | I151: =IF(OR('Base Numbers'!$C$21,I14>=6,I15>=5,I13>=5,I19>=9,AND(I36,I7>=9)),I96,0) -> 0 | J151: =IF(OR('Base Numbers'!$C$21,J14>=6,J15>=5,J13>=5,J19>=9,AND(J36,J7>=9)),J96,0) -> 0 | K151: =IF(OR('Base Numbers'!$C$21,K14>=6,K15>=5,K13>=5,K19>=9,AND(K36,K7>=9)),K96,0) -> 0 | L151: =IF(OR('Base Numbers'!$C$21,L14>=6,L15>=5,L13>=5,L19>=9,AND(L36,L7>=9)),L96,0) -> 0 | M151: =IF(OR('Base Numbers'!$C$21,M14>=6,M15>=5,M13>=5,M19>=9,AND(M36,M7>=9)),M96,0) -> 0 | N151: =IF(OR('Base Numbers'!$C$21,N14>=6,N15>=5,N13>=5,N19>=9,AND(N36,N7>=9)),N96,0) -> 0 | O151: =IF(OR('Base Numbers'!$C$21,O14>=6,O15>=5,O13>=5,O19>=9,AND(O36,O7>=9)),O96,0) -> 0 | P151: =IF(OR('Base Numbers'!$C$21,P14>=6,P15>=5,P13>=5,P19>=9,AND(P36,P7>=9)),P96,0) -> 0 | Q151: =IF(OR('Base Numbers'!$C$21,Q14>=6,Q15>=5,Q13>=5,Q19>=9,AND(Q36,Q7>=9)),Q96,0) -> 0 | R151: =IF(OR('Base Numbers'!$C$21,R14>=6,R15>=5,R13>=5,R19>=9,AND(R36,R7>=9)),R96,0) -> 0 | S151: =IF(OR('Base Numbers'!$C$21,S14>=6,S15>=5,S13>=5,S19>=9,AND(S36,S7>=9)),S96,0) -> 0 | T151: =IF(OR('Base Numbers'!$C$21,T14>=6,T15>=5,T13>=5,T19>=9,AND(T36,T7>=9)),T96,0) -> 0 | U151: =IF(OR('Base Numbers'!$C$21,U14>=6,U15>=5,U13>=5,U19>=9,AND(U36,U7>=9)),U96,0) -> 0 | V151: =IF(OR('Base Numbers'!$C$21,V14>=6,V15>=5,V13>=5,V19>=9,AND(V36,V7>=9)),V96,0) -> 0 | W151: =IF(OR('Base Numbers'!$C$21,W14>=6,W15>=5,W13>=5,W19>=9,AND(W36,W7>=9)),W96,0) -> 0 | X151: =IF(OR('Base Numbers'!$C$21,X14>=6,X15>=5,X13>=5,X19>=9,AND(X36,X7>=9)),X96,0) -> 0 | Z151: druid
D152: hunter's mark / hex casts (c) (veng) (bonus action) | E152: =IF(OR('Base Numbers'!$C$21,E14>=10,AND(E14>=6,E61>=1),E12>=1,E9>=2,AND(E36,E7>=3),AND($B$29>=1,E6>=$B$29)),E97,0) -> 0 | F152: =IF(OR('Base Numbers'!$C$21,F14>=10,AND(F14>=6,F61>=1),F12>=1,F9>=2,AND(F36,F7>=3),AND($B$29>=1,F6>=$B$29)),F97,0) -> 0 | G152: =IF(OR('Base Numbers'!$C$21,G14>=10,AND(G14>=6,G61>=1),G12>=1,G9>=2,AND(G36,G7>=3),AND($B$29>=1,G6>=$B$29)),G97,0) -> 0 | H152: =IF(OR('Base Numbers'!$C$21,H14>=10,AND(H14>=6,H61>=1),H12>=1,H9>=2,AND(H36,H7>=3),AND($B$29>=1,H6>=$B$29)),H97,0) -> 0 | I152: =IF(OR('Base Numbers'!$C$21,I14>=10,AND(I14>=6,I61>=1),I12>=1,I9>=2,AND(I36,I7>=3),AND($B$29>=1,I6>=$B$29)),I97,0) -> 0 | J152: =IF(OR('Base Numbers'!$C$21,J14>=10,AND(J14>=6,J61>=1),J12>=1,J9>=2,AND(J36,J7>=3),AND($B$29>=1,J6>=$B$29)),J97,0) -> 0 | K152: =IF(OR('Base Numbers'!$C$21,K14>=10,AND(K14>=6,K61>=1),K12>=1,K9>=2,AND(K36,K7>=3),AND($B$29>=1,K6>=$B$29)),K97,0) -> 0 | L152: =IF(OR('Base Numbers'!$C$21,L14>=10,AND(L14>=6,L61>=1),L12>=1,L9>=2,AND(L36,L7>=3),AND($B$29>=1,L6>=$B$29)),L97,0) -> 0 | M152: =IF(OR('Base Numbers'!$C$21,M14>=10,AND(M14>=6,M61>=1),M12>=1,M9>=2,AND(M36,M7>=3),AND($B$29>=1,M6>=$B$29)),M97,0) -> 0 | N152: =IF(OR('Base Numbers'!$C$21,N14>=10,AND(N14>=6,N61>=1),N12>=1,N9>=2,AND(N36,N7>=3),AND($B$29>=1,N6>=$B$29)),N97,0) -> 0 | O152: =IF(OR('Base Numbers'!$C$21,O14>=10,AND(O14>=6,O61>=1),O12>=1,O9>=2,AND(O36,O7>=3),AND($B$29>=1,O6>=$B$29)),O97,0) -> 0 | P152: =IF(OR('Base Numbers'!$C$21,P14>=10,AND(P14>=6,P61>=1),P12>=1,P9>=2,AND(P36,P7>=3),AND($B$29>=1,P6>=$B$29)),P97,0) -> 0 | Q152: =IF(OR('Base Numbers'!$C$21,Q14>=10,AND(Q14>=6,Q61>=1),Q12>=1,Q9>=2,AND(Q36,Q7>=3),AND($B$29>=1,Q6>=$B$29)),Q97,0) -> 0 | R152: =IF(OR('Base Numbers'!$C$21,R14>=10,AND(R14>=6,R61>=1),R12>=1,R9>=2,AND(R36,R7>=3),AND($B$29>=1,R6>=$B$29)),R97,0) -> 0 | S152: =IF(OR('Base Numbers'!$C$21,S14>=10,AND(S14>=6,S61>=1),S12>=1,S9>=2,AND(S36,S7>=3),AND($B$29>=1,S6>=$B$29)),S97,0) -> 0 | T152: =IF(OR('Base Numbers'!$C$21,T14>=10,AND(T14>=6,T61>=1),T12>=1,T9>=2,AND(T36,T7>=3),AND($B$29>=1,T6>=$B$29)),T97,0) -> 0 | U152: =IF(OR('Base Numbers'!$C$21,U14>=10,AND(U14>=6,U61>=1),U12>=1,U9>=2,AND(U36,U7>=3),AND($B$29>=1,U6>=$B$29)),U97,0) -> 0 | V152: =IF(OR('Base Numbers'!$C$21,V14>=10,AND(V14>=6,V61>=1),V12>=1,V9>=2,AND(V36,V7>=3),AND($B$29>=1,V6>=$B$29)),V97,0) -> 0 | W152: =IF(OR('Base Numbers'!$C$21,W14>=10,AND(W14>=6,W61>=1),W12>=1,W9>=2,AND(W36,W7>=3),AND($B$29>=1,W6>=$B$29)),W97,0) -> 0 | X152: =IF(OR('Base Numbers'!$C$21,X14>=10,AND(X14>=6,X61>=1),X12>=1,X9>=2,AND(X36,X7>=3),AND($B$29>=1,X6>=$B$29)),X97,0) -> 0 | Z152: warlock
D153: spirit guardians casts (c) (req Divine Soul) | E153: =IF('Base Numbers'!$C$21,'Base Numbers'!$G$21,MIN('Base Numbers'!$G$21,IF(OR('Base Numbers'!E14>=10,AND(E14>=6,E61>=1),E16>=5,AND(E40,E13>=5)),E98,0))) -> 0 | F153: =IF('Base Numbers'!$C$21,'Base Numbers'!$G$21,MIN('Base Numbers'!$G$21,IF(OR('Base Numbers'!F14>=10,AND(F14>=6,F61>=1),F16>=5,AND(F40,F13>=5)),F98,0))) -> 0 | G153: =IF('Base Numbers'!$C$21,'Base Numbers'!$G$21,MIN('Base Numbers'!$G$21,IF(OR('Base Numbers'!G14>=10,AND(G14>=6,G61>=1),G16>=5,AND(G40,G13>=5)),G98,0))) -> 0 | H153: =IF('Base Numbers'!$C$21,'Base Numbers'!$G$21,MIN('Base Numbers'!$G$21,IF(OR('Base Numbers'!H14>=10,AND(H14>=6,H61>=1),H16>=5,AND(H40,H13>=5)),H98,0))) -> 0 | I153: =IF('Base Numbers'!$C$21,'Base Numbers'!$G$21,MIN('Base Numbers'!$G$21,IF(OR('Base Numbers'!I14>=10,AND(I14>=6,I61>=1),I16>=5,AND(I40,I13>=5)),I98,0))) -> 0 | J153: =IF('Base Numbers'!$C$21,'Base Numbers'!$G$21,MIN('Base Numbers'!$G$21,IF(OR('Base Numbers'!J14>=10,AND(J14>=6,J61>=1),J16>=5,AND(J40,J13>=5)),J98,0))) -> 0 | K153: =IF('Base Numbers'!$C$21,'Base Numbers'!$G$21,MIN('Base Numbers'!$G$21,IF(OR('Base Numbers'!K14>=10,AND(K14>=6,K61>=1),K16>=5,AND(K40,K13>=5)),K98,0))) -> 0 | L153: =IF('Base Numbers'!$C$21,'Base Numbers'!$G$21,MIN('Base Numbers'!$G$21,IF(OR('Base Numbers'!L14>=10,AND(L14>=6,L61>=1),L16>=5,AND(L40,L13>=5)),L98,0))) -> 0 | M153: =IF('Base Numbers'!$C$21,'Base Numbers'!$G$21,MIN('Base Numbers'!$G$21,IF(OR('Base Numbers'!M14>=10,AND(M14>=6,M61>=1),M16>=5,AND(M40,M13>=5)),M98,0))) -> 0 | N153: =IF('Base Numbers'!$C$21,'Base Numbers'!$G$21,MIN('Base Numbers'!$G$21,IF(OR('Base Numbers'!N14>=10,AND(N14>=6,N61>=1),N16>=5,AND(N40,N13>=5)),N98,0))) -> 0 | O153: =IF('Base Numbers'!$C$21,'Base Numbers'!$G$21,MIN('Base Numbers'!$G$21,IF(OR('Base Numbers'!O14>=10,AND(O14>=6,O61>=1),O16>=5,AND(O40,O13>=5)),O98,0))) -> 0 | P153: =IF('Base Numbers'!$C$21,'Base Numbers'!$G$21,MIN('Base Numbers'!$G$21,IF(OR('Base Numbers'!P14>=10,AND(P14>=6,P61>=1),P16>=5,AND(P40,P13>=5)),P98,0))) -> 0 | Q153: =IF('Base Numbers'!$C$21,'Base Numbers'!$G$21,MIN('Base Numbers'!$G$21,IF(OR('Base Numbers'!Q14>=10,AND(Q14>=6,Q61>=1),Q16>=5,AND(Q40,Q13>=5)),Q98,0))) -> 0 | R153: =IF('Base Numbers'!$C$21,'Base Numbers'!$G$21,MIN('Base Numbers'!$G$21,IF(OR('Base Numbers'!R14>=10,AND(R14>=6,R61>=1),R16>=5,AND(R40,R13>=5)),R98,0))) -> 0 | S153: =IF('Base Numbers'!$C$21,'Base Numbers'!$G$21,MIN('Base Numbers'!$G$21,IF(OR('Base Numbers'!S14>=10,AND(S14>=6,S61>=1),S16>=5,AND(S40,S13>=5)),S98,0))) -> 0 | T153: =IF('Base Numbers'!$C$21,'Base Numbers'!$G$21,MIN('Base Numbers'!$G$21,IF(OR('Base Numbers'!T14>=10,AND(T14>=6,T61>=1),T16>=5,AND(T40,T13>=5)),T98,0))) -> 0 | U153: =IF('Base Numbers'!$C$21,'Base Numbers'!$G$21,MIN('Base Numbers'!$G$21,IF(OR('Base Numbers'!U14>=10,AND(U14>=6,U61>=1),U16>=5,AND(U40,U13>=5)),U98,0))) -> 0 | V153: =IF('Base Numbers'!$C$21,'Base Numbers'!$G$21,MIN('Base Numbers'!$G$21,IF(OR('Base Numbers'!V14>=10,AND(V14>=6,V61>=1),V16>=5,AND(V40,V13>=5)),V98,0))) -> 0 | W153: =IF('Base Numbers'!$C$21,'Base Numbers'!$G$21,MIN('Base Numbers'!$G$21,IF(OR('Base Numbers'!W14>=10,AND(W14>=6,W61>=1),W16>=5,AND(W40,W13>=5)),W98,0))) -> 0 | X153: =IF('Base Numbers'!$C$21,'Base Numbers'!$G$21,MIN('Base Numbers'!$G$21,IF(OR('Base Numbers'!X14>=10,AND(X14>=6,X61>=1),X16>=5,AND(X40,X13>=5)),X98,0))) -> 0 | Z153: fighter
D154: faerie fire casts (c) | E154: =IF(OR('Base Numbers'!$C$21,E17>=1,E9>=2,E14>=10,AND(E14>=6,E61>=1)),E99,0) -> 0 | F154: =IF(OR('Base Numbers'!$C$21,F17>=1,F9>=2,F14>=10,AND(F14>=6,F61>=1)),F99,0) -> 0 | G154: =IF(OR('Base Numbers'!$C$21,G17>=1,G9>=2,G14>=10,AND(G14>=6,G61>=1)),G99,0) -> 0 | H154: =IF(OR('Base Numbers'!$C$21,H17>=1,H9>=2,H14>=10,AND(H14>=6,H61>=1)),H99,0) -> 0 | I154: =IF(OR('Base Numbers'!$C$21,I17>=1,I9>=2,I14>=10,AND(I14>=6,I61>=1)),I99,0) -> 0 | J154: =IF(OR('Base Numbers'!$C$21,J17>=1,J9>=2,J14>=10,AND(J14>=6,J61>=1)),J99,0) -> 0 | K154: =IF(OR('Base Numbers'!$C$21,K17>=1,K9>=2,K14>=10,AND(K14>=6,K61>=1)),K99,0) -> 0 | L154: =IF(OR('Base Numbers'!$C$21,L17>=1,L9>=2,L14>=10,AND(L14>=6,L61>=1)),L99,0) -> 0 | M154: =IF(OR('Base Numbers'!$C$21,M17>=1,M9>=2,M14>=10,AND(M14>=6,M61>=1)),M99,0) -> 0 | N154: =IF(OR('Base Numbers'!$C$21,N17>=1,N9>=2,N14>=10,AND(N14>=6,N61>=1)),N99,0) -> 0 | O154: =IF(OR('Base Numbers'!$C$21,O17>=1,O9>=2,O14>=10,AND(O14>=6,O61>=1)),O99,0) -> 0 | P154: =IF(OR('Base Numbers'!$C$21,P17>=1,P9>=2,P14>=10,AND(P14>=6,P61>=1)),P99,0) -> 0 | Q154: =IF(OR('Base Numbers'!$C$21,Q17>=1,Q9>=2,Q14>=10,AND(Q14>=6,Q61>=1)),Q99,0) -> 0 | R154: =IF(OR('Base Numbers'!$C$21,R17>=1,R9>=2,R14>=10,AND(R14>=6,R61>=1)),R99,0) -> 0 | S154: =IF(OR('Base Numbers'!$C$21,S17>=1,S9>=2,S14>=10,AND(S14>=6,S61>=1)),S99,0) -> 0 | T154: =IF(OR('Base Numbers'!$C$21,T17>=1,T9>=2,T14>=10,AND(T14>=6,T61>=1)),T99,0) -> 0 | U154: =IF(OR('Base Numbers'!$C$21,U17>=1,U9>=2,U14>=10,AND(U14>=6,U61>=1)),U99,0) -> 0 | V154: =IF(OR('Base Numbers'!$C$21,V17>=1,V9>=2,V14>=10,AND(V14>=6,V61>=1)),V99,0) -> 0 | W154: =IF(OR('Base Numbers'!$C$21,W17>=1,W9>=2,W14>=10,AND(W14>=6,W61>=1)),W99,0) -> 0 | X154: =IF(OR('Base Numbers'!$C$21,X17>=1,X9>=2,X14>=10,AND(X14>=6,X61>=1)),X99,0) -> 0 | Z154: samurai has daily advantage, plus extra attacks instead of advantage
D155: spirit shroud casts (c) | E155: =IF(OR('Base Numbers'!$C$21,E12>=5,E15>=5,E16>=5,E7>=9,E14>=10,AND(E14>=6,E61>=1)),E100,0) -> 0 | F155: =IF(OR('Base Numbers'!$C$21,F12>=5,F15>=5,F16>=5,F7>=9,F14>=10,AND(F14>=6,F61>=1)),F100,0) -> 0 | G155: =IF(OR('Base Numbers'!$C$21,G12>=5,G15>=5,G16>=5,G7>=9,G14>=10,AND(G14>=6,G61>=1)),G100,0) -> 0 | H155: =IF(OR('Base Numbers'!$C$21,H12>=5,H15>=5,H16>=5,H7>=9,H14>=10,AND(H14>=6,H61>=1)),H100,0) -> 0 | I155: =IF(OR('Base Numbers'!$C$21,I12>=5,I15>=5,I16>=5,I7>=9,I14>=10,AND(I14>=6,I61>=1)),I100,0) -> 0 | J155: =IF(OR('Base Numbers'!$C$21,J12>=5,J15>=5,J16>=5,J7>=9,J14>=10,AND(J14>=6,J61>=1)),J100,0) -> 0 | K155: =IF(OR('Base Numbers'!$C$21,K12>=5,K15>=5,K16>=5,K7>=9,K14>=10,AND(K14>=6,K61>=1)),K100,0) -> 0 | L155: =IF(OR('Base Numbers'!$C$21,L12>=5,L15>=5,L16>=5,L7>=9,L14>=10,AND(L14>=6,L61>=1)),L100,0) -> 0 | M155: =IF(OR('Base Numbers'!$C$21,M12>=5,M15>=5,M16>=5,M7>=9,M14>=10,AND(M14>=6,M61>=1)),M100,0) -> 0 | N155: =IF(OR('Base Numbers'!$C$21,N12>=5,N15>=5,N16>=5,N7>=9,N14>=10,AND(N14>=6,N61>=1)),N100,0) -> 0 | O155: =IF(OR('Base Numbers'!$C$21,O12>=5,O15>=5,O16>=5,O7>=9,O14>=10,AND(O14>=6,O61>=1)),O100,0) -> 0 | P155: =IF(OR('Base Numbers'!$C$21,P12>=5,P15>=5,P16>=5,P7>=9,P14>=10,AND(P14>=6,P61>=1)),P100,0) -> 0 | Q155: =IF(OR('Base Numbers'!$C$21,Q12>=5,Q15>=5,Q16>=5,Q7>=9,Q14>=10,AND(Q14>=6,Q61>=1)),Q100,0) -> 0 | R155: =IF(OR('Base Numbers'!$C$21,R12>=5,R15>=5,R16>=5,R7>=9,R14>=10,AND(R14>=6,R61>=1)),R100,0) -> 0 | S155: =IF(OR('Base Numbers'!$C$21,S12>=5,S15>=5,S16>=5,S7>=9,S14>=10,AND(S14>=6,S61>=1)),S100,0) -> 0 | T155: =IF(OR('Base Numbers'!$C$21,T12>=5,T15>=5,T16>=5,T7>=9,T14>=10,AND(T14>=6,T61>=1)),T100,0) -> 0 | U155: =IF(OR('Base Numbers'!$C$21,U12>=5,U15>=5,U16>=5,U7>=9,U14>=10,AND(U14>=6,U61>=1)),U100,0) -> 0 | V155: =IF(OR('Base Numbers'!$C$21,V12>=5,V15>=5,V16>=5,V7>=9,V14>=10,AND(V14>=6,V61>=1)),V100,0) -> 0 | W155: =IF(OR('Base Numbers'!$C$21,W12>=5,W15>=5,W16>=5,W7>=9,W14>=10,AND(W14>=6,W61>=1)),W100,0) -> 0 | X155: =IF(OR('Base Numbers'!$C$21,X12>=5,X15>=5,X16>=5,X7>=9,X14>=10,AND(X14>=6,X61>=1)),X100,0) -> 0 | Z155: Piercer Feat
D156: steel wind strike | E156: =MIN('Base Numbers'!$G$21,IF(OR('Base Numbers'!$C$21,E15>=9,OR(E9>=17,E14>=10)),E101,0)) -> 0 | F156: =MIN('Base Numbers'!$G$21,IF(OR('Base Numbers'!$C$21,F15>=9,OR(F9>=17,F14>=10)),F101,0)) -> 0 | G156: =MIN('Base Numbers'!$G$21,IF(OR('Base Numbers'!$C$21,G15>=9,OR(G9>=17,G14>=10)),G101,0)) -> 0 | H156: =MIN('Base Numbers'!$G$21,IF(OR('Base Numbers'!$C$21,H15>=9,OR(H9>=17,H14>=10)),H101,0)) -> 0 | I156: =MIN('Base Numbers'!$G$21,IF(OR('Base Numbers'!$C$21,I15>=9,OR(I9>=17,I14>=10)),I101,0)) -> 0 | J156: =MIN('Base Numbers'!$G$21,IF(OR('Base Numbers'!$C$21,J15>=9,OR(J9>=17,J14>=10)),J101,0)) -> 0 | K156: =MIN('Base Numbers'!$G$21,IF(OR('Base Numbers'!$C$21,K15>=9,OR(K9>=17,K14>=10)),K101,0)) -> 0 | L156: =MIN('Base Numbers'!$G$21,IF(OR('Base Numbers'!$C$21,L15>=9,OR(L9>=17,L14>=10)),L101,0)) -> 0 | M156: =MIN('Base Numbers'!$G$21,IF(OR('Base Numbers'!$C$21,M15>=9,OR(M9>=17,M14>=10)),M101,0)) -> 0 | N156: =MIN('Base Numbers'!$G$21,IF(OR('Base Numbers'!$C$21,N15>=9,OR(N9>=17,N14>=10)),N101,0)) -> 0 | O156: =MIN('Base Numbers'!$G$21,IF(OR('Base Numbers'!$C$21,O15>=9,OR(O9>=17,O14>=10)),O101,0)) -> 0 | P156: =MIN('Base Numbers'!$G$21,IF(OR('Base Numbers'!$C$21,P15>=9,OR(P9>=17,P14>=10)),P101,0)) -> 0 | Q156: =MIN('Base Numbers'!$G$21,IF(OR('Base Numbers'!$C$21,Q15>=9,OR(Q9>=17,Q14>=10)),Q101,0)) -> 0 | R156: =MIN('Base Numbers'!$G$21,IF(OR('Base Numbers'!$C$21,R15>=9,OR(R9>=17,R14>=10)),R101,0)) -> 0 | S156: =MIN('Base Numbers'!$G$21,IF(OR('Base Numbers'!$C$21,S15>=9,OR(S9>=17,S14>=10)),S101,0)) -> 0 | T156: =MIN('Base Numbers'!$G$21,IF(OR('Base Numbers'!$C$21,T15>=9,OR(T9>=17,T14>=10)),T101,0)) -> 0 | U156: =MIN('Base Numbers'!$G$21,IF(OR('Base Numbers'!$C$21,U15>=9,OR(U9>=17,U14>=10)),U101,0)) -> 0 | V156: =MIN('Base Numbers'!$G$21,IF(OR('Base Numbers'!$C$21,V15>=9,OR(V9>=17,V14>=10)),V101,0)) -> 0 | W156: =MIN('Base Numbers'!$G$21,IF(OR('Base Numbers'!$C$21,W15>=9,OR(W9>=17,W14>=10)),W101,0)) -> 0 | X156: =MIN('Base Numbers'!$G$21,IF(OR('Base Numbers'!$C$21,X15>=9,OR(X9>=17,X14>=10)),X101,0)) -> 0 | Z156: Halfling Lucky hit/crit chance mod
D157: guardian of nature (bonus action) (c) | E157: =IF(OR('Base Numbers'!$C$21,E17>=7,OR(E9>=13,E14>=10)),E102,0) -> 0 | F157: =IF(OR('Base Numbers'!$C$21,F17>=7,OR(F9>=13,F14>=10)),F102,0) -> 0 | G157: =IF(OR('Base Numbers'!$C$21,G17>=7,OR(G9>=13,G14>=10)),G102,0) -> 0 | H157: =IF(OR('Base Numbers'!$C$21,H17>=7,OR(H9>=13,H14>=10)),H102,0) -> 0 | I157: =IF(OR('Base Numbers'!$C$21,I17>=7,OR(I9>=13,I14>=10)),I102,0) -> 0 | J157: =IF(OR('Base Numbers'!$C$21,J17>=7,OR(J9>=13,J14>=10)),J102,0) -> 0 | K157: =IF(OR('Base Numbers'!$C$21,K17>=7,OR(K9>=13,K14>=10)),K102,0) -> 0 | L157: =IF(OR('Base Numbers'!$C$21,L17>=7,OR(L9>=13,L14>=10)),L102,0) -> 0 | M157: =IF(OR('Base Numbers'!$C$21,M17>=7,OR(M9>=13,M14>=10)),M102,0) -> 0 | N157: =IF(OR('Base Numbers'!$C$21,N17>=7,OR(N9>=13,N14>=10)),N102,0) -> 0 | O157: =IF(OR('Base Numbers'!$C$21,O17>=7,OR(O9>=13,O14>=10)),O102,0) -> 0 | P157: =IF(OR('Base Numbers'!$C$21,P17>=7,OR(P9>=13,P14>=10)),P102,0) -> 0 | Q157: =IF(OR('Base Numbers'!$C$21,Q17>=7,OR(Q9>=13,Q14>=10)),Q102,0) -> 0 | R157: =IF(OR('Base Numbers'!$C$21,R17>=7,OR(R9>=13,R14>=10)),R102,0) -> 0 | S157: =IF(OR('Base Numbers'!$C$21,S17>=7,OR(S9>=13,S14>=10)),S102,0) -> 0 | T157: =IF(OR('Base Numbers'!$C$21,T17>=7,OR(T9>=13,T14>=10)),T102,0) -> 0 | U157: =IF(OR('Base Numbers'!$C$21,U17>=7,OR(U9>=13,U14>=10)),U102,0) -> 0 | V157: =IF(OR('Base Numbers'!$C$21,V17>=7,OR(V9>=13,V14>=10)),V102,0) -> 0 | W157: =IF(OR('Base Numbers'!$C$21,W17>=7,OR(W9>=13,W14>=10)),W102,0) -> 0 | X157: =IF(OR('Base Numbers'!$C$21,X17>=7,OR(X9>=13,X14>=10)),X102,0) -> 0 | Z157: different save probs for different ability save spells
D158: crown of stars | E158: =IF(OR('Base Numbers'!$C$21,E15>=13,OR(E13>=13,OR(E12>=13,E14>=14))),E103,0) -> 0 | F158: =IF(OR('Base Numbers'!$C$21,F15>=13,OR(F13>=13,OR(F12>=13,F14>=14))),F103,0) -> 0 | G158: =IF(OR('Base Numbers'!$C$21,G15>=13,OR(G13>=13,OR(G12>=13,G14>=14))),G103,0) -> 0 | H158: =IF(OR('Base Numbers'!$C$21,H15>=13,OR(H13>=13,OR(H12>=13,H14>=14))),H103,0) -> 0 | I158: =IF(OR('Base Numbers'!$C$21,I15>=13,OR(I13>=13,OR(I12>=13,I14>=14))),I103,0) -> 0 | J158: =IF(OR('Base Numbers'!$C$21,J15>=13,OR(J13>=13,OR(J12>=13,J14>=14))),J103,0) -> 0 | K158: =IF(OR('Base Numbers'!$C$21,K15>=13,OR(K13>=13,OR(K12>=13,K14>=14))),K103,0) -> 0 | L158: =IF(OR('Base Numbers'!$C$21,L15>=13,OR(L13>=13,OR(L12>=13,L14>=14))),L103,0) -> 0 | M158: =IF(OR('Base Numbers'!$C$21,M15>=13,OR(M13>=13,OR(M12>=13,M14>=14))),M103,0) -> 0 | N158: =IF(OR('Base Numbers'!$C$21,N15>=13,OR(N13>=13,OR(N12>=13,N14>=14))),N103,0) -> 0 | O158: =IF(OR('Base Numbers'!$C$21,O15>=13,OR(O13>=13,OR(O12>=13,O14>=14))),O103,0) -> 0 | P158: =IF(OR('Base Numbers'!$C$21,P15>=13,OR(P13>=13,OR(P12>=13,P14>=14))),P103,0) -> 0 | Q158: =IF(OR('Base Numbers'!$C$21,Q15>=13,OR(Q13>=13,OR(Q12>=13,Q14>=14))),Q103,0) -> 0 | R158: =IF(OR('Base Numbers'!$C$21,R15>=13,OR(R13>=13,OR(R12>=13,R14>=14))),R103,0) -> 0 | S158: =IF(OR('Base Numbers'!$C$21,S15>=13,OR(S13>=13,OR(S12>=13,S14>=14))),S103,0) -> 0 | T158: =IF(OR('Base Numbers'!$C$21,T15>=13,OR(T13>=13,OR(T12>=13,T14>=14))),T103,0) -> 0 | U158: =IF(OR('Base Numbers'!$C$21,U15>=13,OR(U13>=13,OR(U12>=13,U14>=14))),U103,0) -> 0 | V158: =IF(OR('Base Numbers'!$C$21,V15>=13,OR(V13>=13,OR(V12>=13,V14>=14))),V103,0) -> 0 | W158: =IF(OR('Base Numbers'!$C$21,W15>=13,OR(W13>=13,OR(W12>=13,W14>=14))),W103,0) -> 0 | X158: =IF(OR('Base Numbers'!$C$21,X15>=13,OR(X13>=13,OR(X12>=13,X14>=14))),X103,0) -> 0 | Z158: heavy xbow option
D159: holy weapon casts (bonus action) (c) | E159: =IF(OR('Base Numbers'!$C$21,E14>=9,E16>=9,E7>=17,AND(E40,E13>=9)),E104,0) -> 0 | F159: =IF(OR('Base Numbers'!$C$21,F14>=9,F16>=9,F7>=17,AND(F40,F13>=9)),F104,0) -> 0 | G159: =IF(OR('Base Numbers'!$C$21,G14>=9,G16>=9,G7>=17,AND(G40,G13>=9)),G104,0) -> 0 | H159: =IF(OR('Base Numbers'!$C$21,H14>=9,H16>=9,H7>=17,AND(H40,H13>=9)),H104,0) -> 0 | I159: =IF(OR('Base Numbers'!$C$21,I14>=9,I16>=9,I7>=17,AND(I40,I13>=9)),I104,0) -> 0 | J159: =IF(OR('Base Numbers'!$C$21,J14>=9,J16>=9,J7>=17,AND(J40,J13>=9)),J104,0) -> 0 | K159: =IF(OR('Base Numbers'!$C$21,K14>=9,K16>=9,K7>=17,AND(K40,K13>=9)),K104,0) -> 0 | L159: =IF(OR('Base Numbers'!$C$21,L14>=9,L16>=9,L7>=17,AND(L40,L13>=9)),L104,0) -> 0 | M159: =IF(OR('Base Numbers'!$C$21,M14>=9,M16>=9,M7>=17,AND(M40,M13>=9)),M104,0) -> 0 | N159: =IF(OR('Base Numbers'!$C$21,N14>=9,N16>=9,N7>=17,AND(N40,N13>=9)),N104,0) -> 0 | O159: =IF(OR('Base Numbers'!$C$21,O14>=9,O16>=9,O7>=17,AND(O40,O13>=9)),O104,0) -> 0 | P159: =IF(OR('Base Numbers'!$C$21,P14>=9,P16>=9,P7>=17,AND(P40,P13>=9)),P104,0) -> 0 | Q159: =IF(OR('Base Numbers'!$C$21,Q14>=9,Q16>=9,Q7>=17,AND(Q40,Q13>=9)),Q104,0) -> 0 | R159: =IF(OR('Base Numbers'!$C$21,R14>=9,R16>=9,R7>=17,AND(R40,R13>=9)),R104,0) -> 0 | S159: =IF(OR('Base Numbers'!$C$21,S14>=9,S16>=9,S7>=17,AND(S40,S13>=9)),S104,0) -> 0 | T159: =IF(OR('Base Numbers'!$C$21,T14>=9,T16>=9,T7>=17,AND(T40,T13>=9)),T104,0) -> 0 | U159: =IF(OR('Base Numbers'!$C$21,U14>=9,U16>=9,U7>=17,AND(U40,U13>=9)),U104,0) -> 0 | V159: =IF(OR('Base Numbers'!$C$21,V14>=9,V16>=9,V7>=17,AND(V40,V13>=9)),V104,0) -> 0 | W159: =IF(OR('Base Numbers'!$C$21,W14>=9,W16>=9,W7>=17,AND(W40,W13>=9)),W104,0) -> 0 | X159: =IF(OR('Base Numbers'!$C$21,X14>=9,X16>=9,X7>=17,AND(X40,X13>=9)),X104,0) -> 0 | Z159: separate spell attack chances
D160: hold person casts (conq, veng) (c) | E160: =IF(OR('Base Numbers'!$C$21,E14>=3,E17>=3,E15>=3,E16>=3,E13>=3,AND(E7>=5,OR(E36,E38))),E105,0) -> 0 | F160: =IF(OR('Base Numbers'!$C$21,F14>=3,F17>=3,F15>=3,F16>=3,F13>=3,AND(F7>=5,OR(F36,F38))),F105,0) -> 0 | G160: =IF(OR('Base Numbers'!$C$21,G14>=3,G17>=3,G15>=3,G16>=3,G13>=3,AND(G7>=5,OR(G36,G38))),G105,0) -> 0 | H160: =IF(OR('Base Numbers'!$C$21,H14>=3,H17>=3,H15>=3,H16>=3,H13>=3,AND(H7>=5,OR(H36,H38))),H105,0) -> 0 | I160: =IF(OR('Base Numbers'!$C$21,I14>=3,I17>=3,I15>=3,I16>=3,I13>=3,AND(I7>=5,OR(I36,I38))),I105,0) -> 0 | J160: =IF(OR('Base Numbers'!$C$21,J14>=3,J17>=3,J15>=3,J16>=3,J13>=3,AND(J7>=5,OR(J36,J38))),J105,0) -> 0 | K160: =IF(OR('Base Numbers'!$C$21,K14>=3,K17>=3,K15>=3,K16>=3,K13>=3,AND(K7>=5,OR(K36,K38))),K105,0) -> 0 | L160: =IF(OR('Base Numbers'!$C$21,L14>=3,L17>=3,L15>=3,L16>=3,L13>=3,AND(L7>=5,OR(L36,L38))),L105,0) -> 0 | M160: =IF(OR('Base Numbers'!$C$21,M14>=3,M17>=3,M15>=3,M16>=3,M13>=3,AND(M7>=5,OR(M36,M38))),M105,0) -> 0 | N160: =IF(OR('Base Numbers'!$C$21,N14>=3,N17>=3,N15>=3,N16>=3,N13>=3,AND(N7>=5,OR(N36,N38))),N105,0) -> 0 | O160: =IF(OR('Base Numbers'!$C$21,O14>=3,O17>=3,O15>=3,O16>=3,O13>=3,AND(O7>=5,OR(O36,O38))),O105,0) -> 0 | P160: =IF(OR('Base Numbers'!$C$21,P14>=3,P17>=3,P15>=3,P16>=3,P13>=3,AND(P7>=5,OR(P36,P38))),P105,0) -> 0 | Q160: =IF(OR('Base Numbers'!$C$21,Q14>=3,Q17>=3,Q15>=3,Q16>=3,Q13>=3,AND(Q7>=5,OR(Q36,Q38))),Q105,0) -> 0 | R160: =IF(OR('Base Numbers'!$C$21,R14>=3,R17>=3,R15>=3,R16>=3,R13>=3,AND(R7>=5,OR(R36,R38))),R105,0) -> 0 | S160: =IF(OR('Base Numbers'!$C$21,S14>=3,S17>=3,S15>=3,S16>=3,S13>=3,AND(S7>=5,OR(S36,S38))),S105,0) -> 0 | T160: =IF(OR('Base Numbers'!$C$21,T14>=3,T17>=3,T15>=3,T16>=3,T13>=3,AND(T7>=5,OR(T36,T38))),T105,0) -> 0 | U160: =IF(OR('Base Numbers'!$C$21,U14>=3,U17>=3,U15>=3,U16>=3,U13>=3,AND(U7>=5,OR(U36,U38))),U105,0) -> 0 | V160: =IF(OR('Base Numbers'!$C$21,V14>=3,V17>=3,V15>=3,V16>=3,V13>=3,AND(V7>=5,OR(V36,V38))),V105,0) -> 0 | W160: =IF(OR('Base Numbers'!$C$21,W14>=3,W17>=3,W15>=3,W16>=3,W13>=3,AND(W7>=5,OR(W36,W38))),W105,0) -> 0 | X160: =IF(OR('Base Numbers'!$C$21,X14>=3,X17>=3,X15>=3,X16>=3,X13>=3,AND(X7>=5,OR(X36,X38))),X105,0) -> 0 | Z160: rangers
D161: hold monster casts (veng) (c) | E161: =IF(OR('Base Numbers'!$C$21,E15>=9,E14>=9,E12>=9,E13>=9,AND(E7>=5,E36)),E106,0) -> 0 | F161: =IF(OR('Base Numbers'!$C$21,F15>=9,F14>=9,F12>=9,F13>=9,AND(F7>=5,F36)),F106,0) -> 0 | G161: =IF(OR('Base Numbers'!$C$21,G15>=9,G14>=9,G12>=9,G13>=9,AND(G7>=5,G36)),G106,0) -> 0 | H161: =IF(OR('Base Numbers'!$C$21,H15>=9,H14>=9,H12>=9,H13>=9,AND(H7>=5,H36)),H106,0) -> 0 | I161: =IF(OR('Base Numbers'!$C$21,I15>=9,I14>=9,I12>=9,I13>=9,AND(I7>=5,I36)),I106,0) -> 0 | J161: =IF(OR('Base Numbers'!$C$21,J15>=9,J14>=9,J12>=9,J13>=9,AND(J7>=5,J36)),J106,0) -> 0 | K161: =IF(OR('Base Numbers'!$C$21,K15>=9,K14>=9,K12>=9,K13>=9,AND(K7>=5,K36)),K106,0) -> 0 | L161: =IF(OR('Base Numbers'!$C$21,L15>=9,L14>=9,L12>=9,L13>=9,AND(L7>=5,L36)),L106,0) -> 0 | M161: =IF(OR('Base Numbers'!$C$21,M15>=9,M14>=9,M12>=9,M13>=9,AND(M7>=5,M36)),M106,0) -> 0 | N161: =IF(OR('Base Numbers'!$C$21,N15>=9,N14>=9,N12>=9,N13>=9,AND(N7>=5,N36)),N106,0) -> 0 | O161: =IF(OR('Base Numbers'!$C$21,O15>=9,O14>=9,O12>=9,O13>=9,AND(O7>=5,O36)),O106,0) -> 0 | P161: =IF(OR('Base Numbers'!$C$21,P15>=9,P14>=9,P12>=9,P13>=9,AND(P7>=5,P36)),P106,0) -> 0 | Q161: =IF(OR('Base Numbers'!$C$21,Q15>=9,Q14>=9,Q12>=9,Q13>=9,AND(Q7>=5,Q36)),Q106,0) -> 0 | R161: =IF(OR('Base Numbers'!$C$21,R15>=9,R14>=9,R12>=9,R13>=9,AND(R7>=5,R36)),R106,0) -> 0 | S161: =IF(OR('Base Numbers'!$C$21,S15>=9,S14>=9,S12>=9,S13>=9,AND(S7>=5,S36)),S106,0) -> 0 | T161: =IF(OR('Base Numbers'!$C$21,T15>=9,T14>=9,T12>=9,T13>=9,AND(T7>=5,T36)),T106,0) -> 0 | U161: =IF(OR('Base Numbers'!$C$21,U15>=9,U14>=9,U12>=9,U13>=9,AND(U7>=5,U36)),U106,0) -> 0 | V161: =IF(OR('Base Numbers'!$C$21,V15>=9,V14>=9,V12>=9,V13>=9,AND(V7>=5,V36)),V106,0) -> 0 | W161: =IF(OR('Base Numbers'!$C$21,W15>=9,W14>=9,W12>=9,W13>=9,AND(W7>=5,W36)),W106,0) -> 0 | X161: =IF(OR('Base Numbers'!$C$21,X15>=9,X14>=9,X12>=9,X13>=9,AND(X7>=5,X36)),X106,0) -> 0 | Z161: feywild (tasha's)
D162: shadow of moil (c) | E162: =IF(OR('Base Numbers'!$C$21,E14>=10,E12>=7),E107,0) -> 0 | F162: =IF(OR('Base Numbers'!$C$21,F14>=10,F12>=7),F107,0) -> 0 | G162: =IF(OR('Base Numbers'!$C$21,G14>=10,G12>=7),G107,0) -> 0 | H162: =IF(OR('Base Numbers'!$C$21,H14>=10,H12>=7),H107,0) -> 0 | I162: =IF(OR('Base Numbers'!$C$21,I14>=10,I12>=7),I107,0) -> 0 | J162: =IF(OR('Base Numbers'!$C$21,J14>=10,J12>=7),J107,0) -> 0 | K162: =IF(OR('Base Numbers'!$C$21,K14>=10,K12>=7),K107,0) -> 0 | L162: =IF(OR('Base Numbers'!$C$21,L14>=10,L12>=7),L107,0) -> 0 | M162: =IF(OR('Base Numbers'!$C$21,M14>=10,M12>=7),M107,0) -> 0 | N162: =IF(OR('Base Numbers'!$C$21,N14>=10,N12>=7),N107,0) -> 0 | O162: =IF(OR('Base Numbers'!$C$21,O14>=10,O12>=7),O107,0) -> 0 | P162: =IF(OR('Base Numbers'!$C$21,P14>=10,P12>=7),P107,0) -> 0 | Q162: =IF(OR('Base Numbers'!$C$21,Q14>=10,Q12>=7),Q107,0) -> 0 | R162: =IF(OR('Base Numbers'!$C$21,R14>=10,R12>=7),R107,0) -> 0 | S162: =IF(OR('Base Numbers'!$C$21,S14>=10,S12>=7),S107,0) -> 0 | T162: =IF(OR('Base Numbers'!$C$21,T14>=10,T12>=7),T107,0) -> 0 | U162: =IF(OR('Base Numbers'!$C$21,U14>=10,U12>=7),U107,0) -> 0 | V162: =IF(OR('Base Numbers'!$C$21,V14>=10,V12>=7),V107,0) -> 0 | W162: =IF(OR('Base Numbers'!$C$21,W14>=10,W12>=7),W107,0) -> 0 | X162: =IF(OR('Base Numbers'!$C$21,X14>=10,X12>=7),X107,0) -> 0 | Z162: rogue
D163: greater invisibility (c) | E163: =IF(OR('Base Numbers'!$C$21,E14>=7,E13>=7,E15>=7,AND(E9>=13,E77>=1),AND(E11>=19,E67>=1)),E108,0) -> 0 | F163: =IF(OR('Base Numbers'!$C$21,F14>=7,F13>=7,F15>=7,AND(F9>=13,F77>=1),AND(F11>=19,F67>=1)),F108,0) -> 0 | G163: =IF(OR('Base Numbers'!$C$21,G14>=7,G13>=7,G15>=7,AND(G9>=13,G77>=1),AND(G11>=19,G67>=1)),G108,0) -> 0 | H163: =IF(OR('Base Numbers'!$C$21,H14>=7,H13>=7,H15>=7,AND(H9>=13,H77>=1),AND(H11>=19,H67>=1)),H108,0) -> 0 | I163: =IF(OR('Base Numbers'!$C$21,I14>=7,I13>=7,I15>=7,AND(I9>=13,I77>=1),AND(I11>=19,I67>=1)),I108,0) -> 0 | J163: =IF(OR('Base Numbers'!$C$21,J14>=7,J13>=7,J15>=7,AND(J9>=13,J77>=1),AND(J11>=19,J67>=1)),J108,0) -> 0 | K163: =IF(OR('Base Numbers'!$C$21,K14>=7,K13>=7,K15>=7,AND(K9>=13,K77>=1),AND(K11>=19,K67>=1)),K108,0) -> 0 | L163: =IF(OR('Base Numbers'!$C$21,L14>=7,L13>=7,L15>=7,AND(L9>=13,L77>=1),AND(L11>=19,L67>=1)),L108,0) -> 0 | M163: =IF(OR('Base Numbers'!$C$21,M14>=7,M13>=7,M15>=7,AND(M9>=13,M77>=1),AND(M11>=19,M67>=1)),M108,0) -> 0 | N163: =IF(OR('Base Numbers'!$C$21,N14>=7,N13>=7,N15>=7,AND(N9>=13,N77>=1),AND(N11>=19,N67>=1)),N108,0) -> 0 | O163: =IF(OR('Base Numbers'!$C$21,O14>=7,O13>=7,O15>=7,AND(O9>=13,O77>=1),AND(O11>=19,O67>=1)),O108,0) -> 0 | P163: =IF(OR('Base Numbers'!$C$21,P14>=7,P13>=7,P15>=7,AND(P9>=13,P77>=1),AND(P11>=19,P67>=1)),P108,0) -> 0 | Q163: =IF(OR('Base Numbers'!$C$21,Q14>=7,Q13>=7,Q15>=7,AND(Q9>=13,Q77>=1),AND(Q11>=19,Q67>=1)),Q108,0) -> 0 | R163: =IF(OR('Base Numbers'!$C$21,R14>=7,R13>=7,R15>=7,AND(R9>=13,R77>=1),AND(R11>=19,R67>=1)),R108,0) -> 0 | S163: =IF(OR('Base Numbers'!$C$21,S14>=7,S13>=7,S15>=7,AND(S9>=13,S77>=1),AND(S11>=19,S67>=1)),S108,0) -> 0 | T163: =IF(OR('Base Numbers'!$C$21,T14>=7,T13>=7,T15>=7,AND(T9>=13,T77>=1),AND(T11>=19,T67>=1)),T108,0) -> 0 | U163: =IF(OR('Base Numbers'!$C$21,U14>=7,U13>=7,U15>=7,AND(U9>=13,U77>=1),AND(U11>=19,U67>=1)),U108,0) -> 0 | V163: =IF(OR('Base Numbers'!$C$21,V14>=7,V13>=7,V15>=7,AND(V9>=13,V77>=1),AND(V11>=19,V67>=1)),V108,0) -> 0 | W163: =IF(OR('Base Numbers'!$C$21,W14>=7,W13>=7,W15>=7,AND(W9>=13,W77>=1),AND(W11>=19,W67>=1)),W108,0) -> 0 | X163: =IF(OR('Base Numbers'!$C$21,X14>=7,X13>=7,X15>=7,AND(X9>=13,X77>=1),AND(X11>=19,X67>=1)),X108,0) -> 0 | Z163: L3: sacrifice bonus action for advantage
D164: fear casts (conq) (c) | E164: =IF(OR('Base Numbers'!$C$21,E15>=5,E14>=5,E12>=5,E13>=5,E12>=5,AND(E7>=9,E38)),E109,0) -> 0 | F164: =IF(OR('Base Numbers'!$C$21,F15>=5,F14>=5,F12>=5,F13>=5,F12>=5,AND(F7>=9,F38)),F109,0) -> 0 | G164: =IF(OR('Base Numbers'!$C$21,G15>=5,G14>=5,G12>=5,G13>=5,G12>=5,AND(G7>=9,G38)),G109,0) -> 0 | H164: =IF(OR('Base Numbers'!$C$21,H15>=5,H14>=5,H12>=5,H13>=5,H12>=5,AND(H7>=9,H38)),H109,0) -> 0 | I164: =IF(OR('Base Numbers'!$C$21,I15>=5,I14>=5,I12>=5,I13>=5,I12>=5,AND(I7>=9,I38)),I109,0) -> 0 | J164: =IF(OR('Base Numbers'!$C$21,J15>=5,J14>=5,J12>=5,J13>=5,J12>=5,AND(J7>=9,J38)),J109,0) -> 0 | K164: =IF(OR('Base Numbers'!$C$21,K15>=5,K14>=5,K12>=5,K13>=5,K12>=5,AND(K7>=9,K38)),K109,0) -> 0 | L164: =IF(OR('Base Numbers'!$C$21,L15>=5,L14>=5,L12>=5,L13>=5,L12>=5,AND(L7>=9,L38)),L109,0) -> 0 | M164: =IF(OR('Base Numbers'!$C$21,M15>=5,M14>=5,M12>=5,M13>=5,M12>=5,AND(M7>=9,M38)),M109,0) -> 0 | N164: =IF(OR('Base Numbers'!$C$21,N15>=5,N14>=5,N12>=5,N13>=5,N12>=5,AND(N7>=9,N38)),N109,0) -> 0 | O164: =IF(OR('Base Numbers'!$C$21,O15>=5,O14>=5,O12>=5,O13>=5,O12>=5,AND(O7>=9,O38)),O109,0) -> 0 | P164: =IF(OR('Base Numbers'!$C$21,P15>=5,P14>=5,P12>=5,P13>=5,P12>=5,AND(P7>=9,P38)),P109,0) -> 0 | Q164: =IF(OR('Base Numbers'!$C$21,Q15>=5,Q14>=5,Q12>=5,Q13>=5,Q12>=5,AND(Q7>=9,Q38)),Q109,0) -> 0 | R164: =IF(OR('Base Numbers'!$C$21,R15>=5,R14>=5,R12>=5,R13>=5,R12>=5,AND(R7>=9,R38)),R109,0) -> 0 | S164: =IF(OR('Base Numbers'!$C$21,S15>=5,S14>=5,S12>=5,S13>=5,S12>=5,AND(S7>=9,S38)),S109,0) -> 0 | T164: =IF(OR('Base Numbers'!$C$21,T15>=5,T14>=5,T12>=5,T13>=5,T12>=5,AND(T7>=9,T38)),T109,0) -> 0 | U164: =IF(OR('Base Numbers'!$C$21,U15>=5,U14>=5,U12>=5,U13>=5,U12>=5,AND(U7>=9,U38)),U109,0) -> 0 | V164: =IF(OR('Base Numbers'!$C$21,V15>=5,V14>=5,V12>=5,V13>=5,V12>=5,AND(V7>=9,V38)),V109,0) -> 0 | W164: =IF(OR('Base Numbers'!$C$21,W15>=5,W14>=5,W12>=5,W13>=5,W12>=5,AND(W7>=9,W38)),W109,0) -> 0 | X164: =IF(OR('Base Numbers'!$C$21,X15>=5,X14>=5,X12>=5,X13>=5,X12>=5,AND(X7>=9,X38)),X109,0) -> 0 | Z164: arcane trickster: gain FF, BB, and GFB at L3
D165: tenser's transformation (c) | E165: =IF(OR('Base Numbers'!$C$21,E15>=11,E14>=14),E110,0) -> 0 | F165: =IF(OR('Base Numbers'!$C$21,F15>=11,F14>=14),F110,0) -> 0 | G165: =IF(OR('Base Numbers'!$C$21,G15>=11,G14>=14),G110,0) -> 0 | H165: =IF(OR('Base Numbers'!$C$21,H15>=11,H14>=14),H110,0) -> 0 | I165: =IF(OR('Base Numbers'!$C$21,I15>=11,I14>=14),I110,0) -> 0 | J165: =IF(OR('Base Numbers'!$C$21,J15>=11,J14>=14),J110,0) -> 0 | K165: =IF(OR('Base Numbers'!$C$21,K15>=11,K14>=14),K110,0) -> 0 | L165: =IF(OR('Base Numbers'!$C$21,L15>=11,L14>=14),L110,0) -> 0 | M165: =IF(OR('Base Numbers'!$C$21,M15>=11,M14>=14),M110,0) -> 0 | N165: =IF(OR('Base Numbers'!$C$21,N15>=11,N14>=14),N110,0) -> 0 | O165: =IF(OR('Base Numbers'!$C$21,O15>=11,O14>=14),O110,0) -> 0 | P165: =IF(OR('Base Numbers'!$C$21,P15>=11,P14>=14),P110,0) -> 0 | Q165: =IF(OR('Base Numbers'!$C$21,Q15>=11,Q14>=14),Q110,0) -> 0 | R165: =IF(OR('Base Numbers'!$C$21,R15>=11,R14>=14),R110,0) -> 0 | S165: =IF(OR('Base Numbers'!$C$21,S15>=11,S14>=14),S110,0) -> 0 | T165: =IF(OR('Base Numbers'!$C$21,T15>=11,T14>=14),T110,0) -> 0 | U165: =IF(OR('Base Numbers'!$C$21,U15>=11,U14>=14),U110,0) -> 0 | V165: =IF(OR('Base Numbers'!$C$21,V15>=11,V14>=14),V110,0) -> 0 | W165: =IF(OR('Base Numbers'!$C$21,W15>=11,W14>=14),W110,0) -> 0 | X165: =IF(OR('Base Numbers'!$C$21,X15>=11,X14>=14),X110,0) -> 0 | Z165: artificer
D166: flaming sphere casts (c) | E166: =IF(OR('Base Numbers'!$C$21,E17>=3,E15>=3,E14>=10,AND(E14>=6,E61>=1),E13>=3),E111,0) -> 0 | F166: =IF(OR('Base Numbers'!$C$21,F17>=3,F15>=3,F14>=10,AND(F14>=6,F61>=1),F13>=3),F111,0) -> 0 | G166: =IF(OR('Base Numbers'!$C$21,G17>=3,G15>=3,G14>=10,AND(G14>=6,G61>=1),G13>=3),G111,0) -> 0 | H166: =IF(OR('Base Numbers'!$C$21,H17>=3,H15>=3,H14>=10,AND(H14>=6,H61>=1),H13>=3),H111,0) -> 0 | I166: =IF(OR('Base Numbers'!$C$21,I17>=3,I15>=3,I14>=10,AND(I14>=6,I61>=1),I13>=3),I111,0) -> 0 | J166: =IF(OR('Base Numbers'!$C$21,J17>=3,J15>=3,J14>=10,AND(J14>=6,J61>=1),J13>=3),J111,0) -> 0 | K166: =IF(OR('Base Numbers'!$C$21,K17>=3,K15>=3,K14>=10,AND(K14>=6,K61>=1),K13>=3),K111,0) -> 0 | L166: =IF(OR('Base Numbers'!$C$21,L17>=3,L15>=3,L14>=10,AND(L14>=6,L61>=1),L13>=3),L111,0) -> 0 | M166: =IF(OR('Base Numbers'!$C$21,M17>=3,M15>=3,M14>=10,AND(M14>=6,M61>=1),M13>=3),M111,0) -> 0 | N166: =IF(OR('Base Numbers'!$C$21,N17>=3,N15>=3,N14>=10,AND(N14>=6,N61>=1),N13>=3),N111,0) -> 0 | O166: =IF(OR('Base Numbers'!$C$21,O17>=3,O15>=3,O14>=10,AND(O14>=6,O61>=1),O13>=3),O111,0) -> 0 | P166: =IF(OR('Base Numbers'!$C$21,P17>=3,P15>=3,P14>=10,AND(P14>=6,P61>=1),P13>=3),P111,0) -> 0 | Q166: =IF(OR('Base Numbers'!$C$21,Q17>=3,Q15>=3,Q14>=10,AND(Q14>=6,Q61>=1),Q13>=3),Q111,0) -> 0 | R166: =IF(OR('Base Numbers'!$C$21,R17>=3,R15>=3,R14>=10,AND(R14>=6,R61>=1),R13>=3),R111,0) -> 0 | S166: =IF(OR('Base Numbers'!$C$21,S17>=3,S15>=3,S14>=10,AND(S14>=6,S61>=1),S13>=3),S111,0) -> 0 | T166: =IF(OR('Base Numbers'!$C$21,T17>=3,T15>=3,T14>=10,AND(T14>=6,T61>=1),T13>=3),T111,0) -> 0 | U166: =IF(OR('Base Numbers'!$C$21,U17>=3,U15>=3,U14>=10,AND(U14>=6,U61>=1),U13>=3),U111,0) -> 0 | V166: =IF(OR('Base Numbers'!$C$21,V17>=3,V15>=3,V14>=10,AND(V14>=6,V61>=1),V13>=3),V111,0) -> 0 | W166: =IF(OR('Base Numbers'!$C$21,W17>=3,W15>=3,W14>=10,AND(W14>=6,W61>=1),W13>=3),W111,0) -> 0 | X166: =IF(OR('Base Numbers'!$C$21,X17>=3,X15>=3,X14>=10,AND(X14>=6,X61>=1),X13>=3),X111,0) -> 0 | Z166: battlesmith
D167: bigby's hand casts (c) | E167: =IF(OR('Base Numbers'!$C$21,E15>=9,E14>=10,E12>=9,E13>=9,E19>=17),E112,0) -> 0 | F167: =IF(OR('Base Numbers'!$C$21,F15>=9,F14>=10,F12>=9,F13>=9,F19>=17),F112,0) -> 0 | G167: =IF(OR('Base Numbers'!$C$21,G15>=9,G14>=10,G12>=9,G13>=9,G19>=17),G112,0) -> 0 | H167: =IF(OR('Base Numbers'!$C$21,H15>=9,H14>=10,H12>=9,H13>=9,H19>=17),H112,0) -> 0 | I167: =IF(OR('Base Numbers'!$C$21,I15>=9,I14>=10,I12>=9,I13>=9,I19>=17),I112,0) -> 0 | J167: =IF(OR('Base Numbers'!$C$21,J15>=9,J14>=10,J12>=9,J13>=9,J19>=17),J112,0) -> 0 | K167: =IF(OR('Base Numbers'!$C$21,K15>=9,K14>=10,K12>=9,K13>=9,K19>=17),K112,0) -> 0 | L167: =IF(OR('Base Numbers'!$C$21,L15>=9,L14>=10,L12>=9,L13>=9,L19>=17),L112,0) -> 0 | M167: =IF(OR('Base Numbers'!$C$21,M15>=9,M14>=10,M12>=9,M13>=9,M19>=17),M112,0) -> 0 | N167: =IF(OR('Base Numbers'!$C$21,N15>=9,N14>=10,N12>=9,N13>=9,N19>=17),N112,0) -> 0 | O167: =IF(OR('Base Numbers'!$C$21,O15>=9,O14>=10,O12>=9,O13>=9,O19>=17),O112,0) -> 0 | P167: =IF(OR('Base Numbers'!$C$21,P15>=9,P14>=10,P12>=9,P13>=9,P19>=17),P112,0) -> 0 | Q167: =IF(OR('Base Numbers'!$C$21,Q15>=9,Q14>=10,Q12>=9,Q13>=9,Q19>=17),Q112,0) -> 0 | R167: =IF(OR('Base Numbers'!$C$21,R15>=9,R14>=10,R12>=9,R13>=9,R19>=17),R112,0) -> 0 | S167: =IF(OR('Base Numbers'!$C$21,S15>=9,S14>=10,S12>=9,S13>=9,S19>=17),S112,0) -> 0 | T167: =IF(OR('Base Numbers'!$C$21,T15>=9,T14>=10,T12>=9,T13>=9,T19>=17),T112,0) -> 0 | U167: =IF(OR('Base Numbers'!$C$21,U15>=9,U14>=10,U12>=9,U13>=9,U19>=17),U112,0) -> 0 | V167: =IF(OR('Base Numbers'!$C$21,V15>=9,V14>=10,V12>=9,V13>=9,V19>=17),V112,0) -> 0 | W167: =IF(OR('Base Numbers'!$C$21,W15>=9,W14>=10,W12>=9,W13>=9,W19>=17),W112,0) -> 0 | X167: =IF(OR('Base Numbers'!$C$21,X15>=9,X14>=10,X12>=9,X13>=9,X19>=17),X112,0) -> 0 | Z167: artillerist
D168: animate objects casts (c) | E168: =IF(OR('Base Numbers'!$C$21,E15>=9,E14>=9,E12>=9,E13>=9,E19>=17),E113,0) -> 0 | F168: =IF(OR('Base Numbers'!$C$21,F15>=9,F14>=9,F12>=9,F13>=9,F19>=17),F113,0) -> 0 | G168: =IF(OR('Base Numbers'!$C$21,G15>=9,G14>=9,G12>=9,G13>=9,G19>=17),G113,0) -> 0 | H168: =IF(OR('Base Numbers'!$C$21,H15>=9,H14>=9,H12>=9,H13>=9,H19>=17),H113,0) -> 0 | I168: =IF(OR('Base Numbers'!$C$21,I15>=9,I14>=9,I12>=9,I13>=9,I19>=17),I113,0) -> 0 | J168: =IF(OR('Base Numbers'!$C$21,J15>=9,J14>=9,J12>=9,J13>=9,J19>=17),J113,0) -> 0 | K168: =IF(OR('Base Numbers'!$C$21,K15>=9,K14>=9,K12>=9,K13>=9,K19>=17),K113,0) -> 0 | L168: =IF(OR('Base Numbers'!$C$21,L15>=9,L14>=9,L12>=9,L13>=9,L19>=17),L113,0) -> 0 | M168: =IF(OR('Base Numbers'!$C$21,M15>=9,M14>=9,M12>=9,M13>=9,M19>=17),M113,0) -> 0 | N168: =IF(OR('Base Numbers'!$C$21,N15>=9,N14>=9,N12>=9,N13>=9,N19>=17),N113,0) -> 0 | O168: =IF(OR('Base Numbers'!$C$21,O15>=9,O14>=9,O12>=9,O13>=9,O19>=17),O113,0) -> 0 | P168: =IF(OR('Base Numbers'!$C$21,P15>=9,P14>=9,P12>=9,P13>=9,P19>=17),P113,0) -> 0 | Q168: =IF(OR('Base Numbers'!$C$21,Q15>=9,Q14>=9,Q12>=9,Q13>=9,Q19>=17),Q113,0) -> 0 | R168: =IF(OR('Base Numbers'!$C$21,R15>=9,R14>=9,R12>=9,R13>=9,R19>=17),R113,0) -> 0 | S168: =IF(OR('Base Numbers'!$C$21,S15>=9,S14>=9,S12>=9,S13>=9,S19>=17),S113,0) -> 0 | T168: =IF(OR('Base Numbers'!$C$21,T15>=9,T14>=9,T12>=9,T13>=9,T19>=17),T113,0) -> 0 | U168: =IF(OR('Base Numbers'!$C$21,U15>=9,U14>=9,U12>=9,U13>=9,U19>=17),U113,0) -> 0 | V168: =IF(OR('Base Numbers'!$C$21,V15>=9,V14>=9,V12>=9,V13>=9,V19>=17),V113,0) -> 0 | W168: =IF(OR('Base Numbers'!$C$21,W15>=9,W14>=9,W12>=9,W13>=9,W19>=17),W113,0) -> 0 | X168: =IF(OR('Base Numbers'!$C$21,X15>=9,X14>=9,X12>=9,X13>=9,X19>=17),X113,0) -> 0 | Z168: generalized cantrip action value
D169: spirtual weapon casts (free) req Conq or Divine S | E169: =IF(OR('Base Numbers'!$C$21,E14>=10,AND(E14>=6,E61>=1),E16>=3,AND(E40,E13>=3),AND(E38,E7>=5)),E114,0) -> 0 | F169: =IF(OR('Base Numbers'!$C$21,F14>=10,AND(F14>=6,F61>=1),F16>=3,AND(F40,F13>=3),AND(F38,F7>=5)),F114,0) -> 0 | G169: =IF(OR('Base Numbers'!$C$21,G14>=10,AND(G14>=6,G61>=1),G16>=3,AND(G40,G13>=3),AND(G38,G7>=5)),G114,0) -> 0 | H169: =IF(OR('Base Numbers'!$C$21,H14>=10,AND(H14>=6,H61>=1),H16>=3,AND(H40,H13>=3),AND(H38,H7>=5)),H114,0) -> 0 | I169: =IF(OR('Base Numbers'!$C$21,I14>=10,AND(I14>=6,I61>=1),I16>=3,AND(I40,I13>=3),AND(I38,I7>=5)),I114,0) -> 0 | J169: =IF(OR('Base Numbers'!$C$21,J14>=10,AND(J14>=6,J61>=1),J16>=3,AND(J40,J13>=3),AND(J38,J7>=5)),J114,0) -> 0 | K169: =IF(OR('Base Numbers'!$C$21,K14>=10,AND(K14>=6,K61>=1),K16>=3,AND(K40,K13>=3),AND(K38,K7>=5)),K114,0) -> 0 | L169: =IF(OR('Base Numbers'!$C$21,L14>=10,AND(L14>=6,L61>=1),L16>=3,AND(L40,L13>=3),AND(L38,L7>=5)),L114,0) -> 0 | M169: =IF(OR('Base Numbers'!$C$21,M14>=10,AND(M14>=6,M61>=1),M16>=3,AND(M40,M13>=3),AND(M38,M7>=5)),M114,0) -> 0 | N169: =IF(OR('Base Numbers'!$C$21,N14>=10,AND(N14>=6,N61>=1),N16>=3,AND(N40,N13>=3),AND(N38,N7>=5)),N114,0) -> 0 | O169: =IF(OR('Base Numbers'!$C$21,O14>=10,AND(O14>=6,O61>=1),O16>=3,AND(O40,O13>=3),AND(O38,O7>=5)),O114,0) -> 0 | P169: =IF(OR('Base Numbers'!$C$21,P14>=10,AND(P14>=6,P61>=1),P16>=3,AND(P40,P13>=3),AND(P38,P7>=5)),P114,0) -> 0 | Q169: =IF(OR('Base Numbers'!$C$21,Q14>=10,AND(Q14>=6,Q61>=1),Q16>=3,AND(Q40,Q13>=3),AND(Q38,Q7>=5)),Q114,0) -> 0 | R169: =IF(OR('Base Numbers'!$C$21,R14>=10,AND(R14>=6,R61>=1),R16>=3,AND(R40,R13>=3),AND(R38,R7>=5)),R114,0) -> 0 | S169: =IF(OR('Base Numbers'!$C$21,S14>=10,AND(S14>=6,S61>=1),S16>=3,AND(S40,S13>=3),AND(S38,S7>=5)),S114,0) -> 0 | T169: =IF(OR('Base Numbers'!$C$21,T14>=10,AND(T14>=6,T61>=1),T16>=3,AND(T40,T13>=3),AND(T38,T7>=5)),T114,0) -> 0 | U169: =IF(OR('Base Numbers'!$C$21,U14>=10,AND(U14>=6,U61>=1),U16>=3,AND(U40,U13>=3),AND(U38,U7>=5)),U114,0) -> 0 | V169: =IF(OR('Base Numbers'!$C$21,V14>=10,AND(V14>=6,V61>=1),V16>=3,AND(V40,V13>=3),AND(V38,V7>=5)),V114,0) -> 0 | W169: =IF(OR('Base Numbers'!$C$21,W14>=10,AND(W14>=6,W61>=1),W16>=3,AND(W40,W13>=3),AND(W38,W7>=5)),W114,0) -> 0 | X169: =IF(OR('Base Numbers'!$C$21,X14>=10,AND(X14>=6,X61>=1),X16>=3,AND(X40,X13>=3),AND(X38,X7>=5)),X114,0) -> 0 | Z169: circle of stars
D170: fireball casts | E170: =MIN('Base Numbers'!$G$21,IF(OR('Base Numbers'!$C$21,E15>=5,E14>=10,AND(E14>=6,E61>=1),AND(E12>=5,OR(E48>=1,E47>=1)),E13>=5,AND(E19>=9,E71)),E115,0)) -> 0 | F170: =MIN('Base Numbers'!$G$21,IF(OR('Base Numbers'!$C$21,F15>=5,F14>=10,AND(F14>=6,F61>=1),AND(F12>=5,OR(F48>=1,F47>=1)),F13>=5,AND(F19>=9,F71)),F115,0)) -> 0 | G170: =MIN('Base Numbers'!$G$21,IF(OR('Base Numbers'!$C$21,G15>=5,G14>=10,AND(G14>=6,G61>=1),AND(G12>=5,OR(G48>=1,G47>=1)),G13>=5,AND(G19>=9,G71)),G115,0)) -> 0 | H170: =MIN('Base Numbers'!$G$21,IF(OR('Base Numbers'!$C$21,H15>=5,H14>=10,AND(H14>=6,H61>=1),AND(H12>=5,OR(H48>=1,H47>=1)),H13>=5,AND(H19>=9,H71)),H115,0)) -> 0 | I170: =MIN('Base Numbers'!$G$21,IF(OR('Base Numbers'!$C$21,I15>=5,I14>=10,AND(I14>=6,I61>=1),AND(I12>=5,OR(I48>=1,I47>=1)),I13>=5,AND(I19>=9,I71)),I115,0)) -> 0 | J170: =MIN('Base Numbers'!$G$21,IF(OR('Base Numbers'!$C$21,J15>=5,J14>=10,AND(J14>=6,J61>=1),AND(J12>=5,OR(J48>=1,J47>=1)),J13>=5,AND(J19>=9,J71)),J115,0)) -> 0 | K170: =MIN('Base Numbers'!$G$21,IF(OR('Base Numbers'!$C$21,K15>=5,K14>=10,AND(K14>=6,K61>=1),AND(K12>=5,OR(K48>=1,K47>=1)),K13>=5,AND(K19>=9,K71)),K115,0)) -> 0 | L170: =MIN('Base Numbers'!$G$21,IF(OR('Base Numbers'!$C$21,L15>=5,L14>=10,AND(L14>=6,L61>=1),AND(L12>=5,OR(L48>=1,L47>=1)),L13>=5,AND(L19>=9,L71)),L115,0)) -> 0 | M170: =MIN('Base Numbers'!$G$21,IF(OR('Base Numbers'!$C$21,M15>=5,M14>=10,AND(M14>=6,M61>=1),AND(M12>=5,OR(M48>=1,M47>=1)),M13>=5,AND(M19>=9,M71)),M115,0)) -> 0 | N170: =MIN('Base Numbers'!$G$21,IF(OR('Base Numbers'!$C$21,N15>=5,N14>=10,AND(N14>=6,N61>=1),AND(N12>=5,OR(N48>=1,N47>=1)),N13>=5,AND(N19>=9,N71)),N115,0)) -> 0 | O170: =MIN('Base Numbers'!$G$21,IF(OR('Base Numbers'!$C$21,O15>=5,O14>=10,AND(O14>=6,O61>=1),AND(O12>=5,OR(O48>=1,O47>=1)),O13>=5,AND(O19>=9,O71)),O115,0)) -> 0 | P170: =MIN('Base Numbers'!$G$21,IF(OR('Base Numbers'!$C$21,P15>=5,P14>=10,AND(P14>=6,P61>=1),AND(P12>=5,OR(P48>=1,P47>=1)),P13>=5,AND(P19>=9,P71)),P115,0)) -> 0 | Q170: =MIN('Base Numbers'!$G$21,IF(OR('Base Numbers'!$C$21,Q15>=5,Q14>=10,AND(Q14>=6,Q61>=1),AND(Q12>=5,OR(Q48>=1,Q47>=1)),Q13>=5,AND(Q19>=9,Q71)),Q115,0)) -> 0 | R170: =MIN('Base Numbers'!$G$21,IF(OR('Base Numbers'!$C$21,R15>=5,R14>=10,AND(R14>=6,R61>=1),AND(R12>=5,OR(R48>=1,R47>=1)),R13>=5,AND(R19>=9,R71)),R115,0)) -> 0 | S170: =MIN('Base Numbers'!$G$21,IF(OR('Base Numbers'!$C$21,S15>=5,S14>=10,AND(S14>=6,S61>=1),AND(S12>=5,OR(S48>=1,S47>=1)),S13>=5,AND(S19>=9,S71)),S115,0)) -> 0 | T170: =MIN('Base Numbers'!$G$21,IF(OR('Base Numbers'!$C$21,T15>=5,T14>=10,AND(T14>=6,T61>=1),AND(T12>=5,OR(T48>=1,T47>=1)),T13>=5,AND(T19>=9,T71)),T115,0)) -> 0 | U170: =MIN('Base Numbers'!$G$21,IF(OR('Base Numbers'!$C$21,U15>=5,U14>=10,AND(U14>=6,U61>=1),AND(U12>=5,OR(U48>=1,U47>=1)),U13>=5,AND(U19>=9,U71)),U115,0)) -> 0 | V170: =MIN('Base Numbers'!$G$21,IF(OR('Base Numbers'!$C$21,V15>=5,V14>=10,AND(V14>=6,V61>=1),AND(V12>=5,OR(V48>=1,V47>=1)),V13>=5,AND(V19>=9,V71)),V115,0)) -> 0 | W170: =MIN('Base Numbers'!$G$21,IF(OR('Base Numbers'!$C$21,W15>=5,W14>=10,AND(W14>=6,W61>=1),AND(W12>=5,OR(W48>=1,W47>=1)),W13>=5,AND(W19>=9,W71)),W115,0)) -> 0 | X170: =MIN('Base Numbers'!$G$21,IF(OR('Base Numbers'!$C$21,X15>=5,X14>=10,AND(X14>=6,X61>=1),AND(X12>=5,OR(X48>=1,X47>=1)),X13>=5,AND(X19>=9,X71)),X115,0)) -> 0 | Z170: Druid circle of spores damage
D171: animate dead (non-combat) | E171: =IF(OR('Base Numbers'!$C$21,E15>=5,E16>=5,E14>=10,AND(E14>=6,E61>=1)),E116,0) -> 0 | F171: =IF(OR('Base Numbers'!$C$21,F15>=5,F16>=5,F14>=10,AND(F14>=6,F61>=1)),F116,0) -> 0 | G171: =IF(OR('Base Numbers'!$C$21,G15>=5,G16>=5,G14>=10,AND(G14>=6,G61>=1)),G116,0) -> 0 | H171: =IF(OR('Base Numbers'!$C$21,H15>=5,H16>=5,H14>=10,AND(H14>=6,H61>=1)),H116,0) -> 0 | I171: =IF(OR('Base Numbers'!$C$21,I15>=5,I16>=5,I14>=10,AND(I14>=6,I61>=1)),I116,0) -> 0 | J171: =IF(OR('Base Numbers'!$C$21,J15>=5,J16>=5,J14>=10,AND(J14>=6,J61>=1)),J116,0) -> 0 | K171: =IF(OR('Base Numbers'!$C$21,K15>=5,K16>=5,K14>=10,AND(K14>=6,K61>=1)),K116,0) -> 0 | L171: =IF(OR('Base Numbers'!$C$21,L15>=5,L16>=5,L14>=10,AND(L14>=6,L61>=1)),L116,0) -> 0 | M171: =IF(OR('Base Numbers'!$C$21,M15>=5,M16>=5,M14>=10,AND(M14>=6,M61>=1)),M116,0) -> 0 | N171: =IF(OR('Base Numbers'!$C$21,N15>=5,N16>=5,N14>=10,AND(N14>=6,N61>=1)),N116,0) -> 0 | O171: =IF(OR('Base Numbers'!$C$21,O15>=5,O16>=5,O14>=10,AND(O14>=6,O61>=1)),O116,0) -> 0 | P171: =IF(OR('Base Numbers'!$C$21,P15>=5,P16>=5,P14>=10,AND(P14>=6,P61>=1)),P116,0) -> 0 | Q171: =IF(OR('Base Numbers'!$C$21,Q15>=5,Q16>=5,Q14>=10,AND(Q14>=6,Q61>=1)),Q116,0) -> 0 | R171: =IF(OR('Base Numbers'!$C$21,R15>=5,R16>=5,R14>=10,AND(R14>=6,R61>=1)),R116,0) -> 0 | S171: =IF(OR('Base Numbers'!$C$21,S15>=5,S16>=5,S14>=10,AND(S14>=6,S61>=1)),S116,0) -> 0 | T171: =IF(OR('Base Numbers'!$C$21,T15>=5,T16>=5,T14>=10,AND(T14>=6,T61>=1)),T116,0) -> 0 | U171: =IF(OR('Base Numbers'!$C$21,U15>=5,U16>=5,U14>=10,AND(U14>=6,U61>=1)),U116,0) -> 0 | V171: =IF(OR('Base Numbers'!$C$21,V15>=5,V16>=5,V14>=10,AND(V14>=6,V61>=1)),V116,0) -> 0 | W171: =IF(OR('Base Numbers'!$C$21,W15>=5,W16>=5,W14>=10,AND(W14>=6,W61>=1)),W116,0) -> 0 | X171: =IF(OR('Base Numbers'!$C$21,X15>=5,X16>=5,X14>=10,AND(X14>=6,X61>=1)),X116,0) -> 0 | Z171: assassin advantage
D172: tiny servant (non-combat) | E172: =IF(OR('Base Numbers'!$C$21,E15>=5,E19>=9,E14>=10,AND(E14>=6,E61>=1)),E117,0) -> 0 | F172: =IF(OR('Base Numbers'!$C$21,F15>=5,F19>=9,F14>=10,AND(F14>=6,F61>=1)),F117,0) -> 0 | G172: =IF(OR('Base Numbers'!$C$21,G15>=5,G19>=9,G14>=10,AND(G14>=6,G61>=1)),G117,0) -> 0 | H172: =IF(OR('Base Numbers'!$C$21,H15>=5,H19>=9,H14>=10,AND(H14>=6,H61>=1)),H117,0) -> 0 | I172: =IF(OR('Base Numbers'!$C$21,I15>=5,I19>=9,I14>=10,AND(I14>=6,I61>=1)),I117,0) -> 0 | J172: =IF(OR('Base Numbers'!$C$21,J15>=5,J19>=9,J14>=10,AND(J14>=6,J61>=1)),J117,0) -> 0 | K172: =IF(OR('Base Numbers'!$C$21,K15>=5,K19>=9,K14>=10,AND(K14>=6,K61>=1)),K117,0) -> 0 | L172: =IF(OR('Base Numbers'!$C$21,L15>=5,L19>=9,L14>=10,AND(L14>=6,L61>=1)),L117,0) -> 0 | M172: =IF(OR('Base Numbers'!$C$21,M15>=5,M19>=9,M14>=10,AND(M14>=6,M61>=1)),M117,0) -> 0 | N172: =IF(OR('Base Numbers'!$C$21,N15>=5,N19>=9,N14>=10,AND(N14>=6,N61>=1)),N117,0) -> 0 | O172: =IF(OR('Base Numbers'!$C$21,O15>=5,O19>=9,O14>=10,AND(O14>=6,O61>=1)),O117,0) -> 0 | P172: =IF(OR('Base Numbers'!$C$21,P15>=5,P19>=9,P14>=10,AND(P14>=6,P61>=1)),P117,0) -> 0 | Q172: =IF(OR('Base Numbers'!$C$21,Q15>=5,Q19>=9,Q14>=10,AND(Q14>=6,Q61>=1)),Q117,0) -> 0 | R172: =IF(OR('Base Numbers'!$C$21,R15>=5,R19>=9,R14>=10,AND(R14>=6,R61>=1)),R117,0) -> 0 | S172: =IF(OR('Base Numbers'!$C$21,S15>=5,S19>=9,S14>=10,AND(S14>=6,S61>=1)),S117,0) -> 0 | T172: =IF(OR('Base Numbers'!$C$21,T15>=5,T19>=9,T14>=10,AND(T14>=6,T61>=1)),T117,0) -> 0 | U172: =IF(OR('Base Numbers'!$C$21,U15>=5,U19>=9,U14>=10,AND(U14>=6,U61>=1)),U117,0) -> 0 | V172: =IF(OR('Base Numbers'!$C$21,V15>=5,V19>=9,V14>=10,AND(V14>=6,V61>=1)),V117,0) -> 0 | W172: =IF(OR('Base Numbers'!$C$21,W15>=5,W19>=9,W14>=10,AND(W14>=6,W61>=1)),W117,0) -> 0 | X172: =IF(OR('Base Numbers'!$C$21,X15>=5,X19>=9,X14>=10,AND(X14>=6,X61>=1)),X117,0) -> 0 | Z172: assassin deathstrike (L17)
D173: summon beast (c) | E173: =IF(OR('Base Numbers'!$C$21,E17>=3,E9>=5,E14>=10,AND(E14>=6,E61>=1)),E118,0) -> 0 | F173: =IF(OR('Base Numbers'!$C$21,F17>=3,F9>=5,F14>=10,AND(F14>=6,F61>=1)),F118,0) -> 0 | G173: =IF(OR('Base Numbers'!$C$21,G17>=3,G9>=5,G14>=10,AND(G14>=6,G61>=1)),G118,0) -> 0 | H173: =IF(OR('Base Numbers'!$C$21,H17>=3,H9>=5,H14>=10,AND(H14>=6,H61>=1)),H118,0) -> 0 | I173: =IF(OR('Base Numbers'!$C$21,I17>=3,I9>=5,I14>=10,AND(I14>=6,I61>=1)),I118,0) -> 0 | J173: =IF(OR('Base Numbers'!$C$21,J17>=3,J9>=5,J14>=10,AND(J14>=6,J61>=1)),J118,0) -> 0 | K173: =IF(OR('Base Numbers'!$C$21,K17>=3,K9>=5,K14>=10,AND(K14>=6,K61>=1)),K118,0) -> 0 | L173: =IF(OR('Base Numbers'!$C$21,L17>=3,L9>=5,L14>=10,AND(L14>=6,L61>=1)),L118,0) -> 0 | M173: =IF(OR('Base Numbers'!$C$21,M17>=3,M9>=5,M14>=10,AND(M14>=6,M61>=1)),M118,0) -> 0 | N173: =IF(OR('Base Numbers'!$C$21,N17>=3,N9>=5,N14>=10,AND(N14>=6,N61>=1)),N118,0) -> 0 | O173: =IF(OR('Base Numbers'!$C$21,O17>=3,O9>=5,O14>=10,AND(O14>=6,O61>=1)),O118,0) -> 0 | P173: =IF(OR('Base Numbers'!$C$21,P17>=3,P9>=5,P14>=10,AND(P14>=6,P61>=1)),P118,0) -> 0 | Q173: =IF(OR('Base Numbers'!$C$21,Q17>=3,Q9>=5,Q14>=10,AND(Q14>=6,Q61>=1)),Q118,0) -> 0 | R173: =IF(OR('Base Numbers'!$C$21,R17>=3,R9>=5,R14>=10,AND(R14>=6,R61>=1)),R118,0) -> 0 | S173: =IF(OR('Base Numbers'!$C$21,S17>=3,S9>=5,S14>=10,AND(S14>=6,S61>=1)),S118,0) -> 0 | T173: =IF(OR('Base Numbers'!$C$21,T17>=3,T9>=5,T14>=10,AND(T14>=6,T61>=1)),T118,0) -> 0 | U173: =IF(OR('Base Numbers'!$C$21,U17>=3,U9>=5,U14>=10,AND(U14>=6,U61>=1)),U118,0) -> 0 | V173: =IF(OR('Base Numbers'!$C$21,V17>=3,V9>=5,V14>=10,AND(V14>=6,V61>=1)),V118,0) -> 0 | W173: =IF(OR('Base Numbers'!$C$21,W17>=3,W9>=5,W14>=10,AND(W14>=6,W61>=1)),W118,0) -> 0 | X173: =IF(OR('Base Numbers'!$C$21,X17>=3,X9>=5,X14>=10,AND(X14>=6,X61>=1)),X118,0) -> 0 | Z173: Base Numbers option for DM allows BB with Shadowblade
D174: summon fey (c) | E174: =IF(OR('Base Numbers'!$C$21,E9>=9,E12>=5,E15>=5,E17>=5,E14>=10,AND(E14>=6,E61>=1)),E119,0) -> 0 | F174: =IF(OR('Base Numbers'!$C$21,F9>=9,F12>=5,F15>=5,F17>=5,F14>=10,AND(F14>=6,F61>=1)),F119,0) -> 0 | G174: =IF(OR('Base Numbers'!$C$21,G9>=9,G12>=5,G15>=5,G17>=5,G14>=10,AND(G14>=6,G61>=1)),G119,0) -> 0 | H174: =IF(OR('Base Numbers'!$C$21,H9>=9,H12>=5,H15>=5,H17>=5,H14>=10,AND(H14>=6,H61>=1)),H119,0) -> 0 | I174: =IF(OR('Base Numbers'!$C$21,I9>=9,I12>=5,I15>=5,I17>=5,I14>=10,AND(I14>=6,I61>=1)),I119,0) -> 0 | J174: =IF(OR('Base Numbers'!$C$21,J9>=9,J12>=5,J15>=5,J17>=5,J14>=10,AND(J14>=6,J61>=1)),J119,0) -> 0 | K174: =IF(OR('Base Numbers'!$C$21,K9>=9,K12>=5,K15>=5,K17>=5,K14>=10,AND(K14>=6,K61>=1)),K119,0) -> 0 | L174: =IF(OR('Base Numbers'!$C$21,L9>=9,L12>=5,L15>=5,L17>=5,L14>=10,AND(L14>=6,L61>=1)),L119,0) -> 0 | M174: =IF(OR('Base Numbers'!$C$21,M9>=9,M12>=5,M15>=5,M17>=5,M14>=10,AND(M14>=6,M61>=1)),M119,0) -> 0 | N174: =IF(OR('Base Numbers'!$C$21,N9>=9,N12>=5,N15>=5,N17>=5,N14>=10,AND(N14>=6,N61>=1)),N119,0) -> 0 | O174: =IF(OR('Base Numbers'!$C$21,O9>=9,O12>=5,O15>=5,O17>=5,O14>=10,AND(O14>=6,O61>=1)),O119,0) -> 0 | P174: =IF(OR('Base Numbers'!$C$21,P9>=9,P12>=5,P15>=5,P17>=5,P14>=10,AND(P14>=6,P61>=1)),P119,0) -> 0 | Q174: =IF(OR('Base Numbers'!$C$21,Q9>=9,Q12>=5,Q15>=5,Q17>=5,Q14>=10,AND(Q14>=6,Q61>=1)),Q119,0) -> 0 | R174: =IF(OR('Base Numbers'!$C$21,R9>=9,R12>=5,R15>=5,R17>=5,R14>=10,AND(R14>=6,R61>=1)),R119,0) -> 0 | S174: =IF(OR('Base Numbers'!$C$21,S9>=9,S12>=5,S15>=5,S17>=5,S14>=10,AND(S14>=6,S61>=1)),S119,0) -> 0 | T174: =IF(OR('Base Numbers'!$C$21,T9>=9,T12>=5,T15>=5,T17>=5,T14>=10,AND(T14>=6,T61>=1)),T119,0) -> 0 | U174: =IF(OR('Base Numbers'!$C$21,U9>=9,U12>=5,U15>=5,U17>=5,U14>=10,AND(U14>=6,U61>=1)),U119,0) -> 0 | V174: =IF(OR('Base Numbers'!$C$21,V9>=9,V12>=5,V15>=5,V17>=5,V14>=10,AND(V14>=6,V61>=1)),V119,0) -> 0 | W174: =IF(OR('Base Numbers'!$C$21,W9>=9,W12>=5,W15>=5,W17>=5,W14>=10,AND(W14>=6,W61>=1)),W119,0) -> 0 | X174: =IF(OR('Base Numbers'!$C$21,X9>=9,X12>=5,X15>=5,X17>=5,X14>=10,AND(X14>=6,X61>=1)),X119,0) -> 0 | Z174: add ranged weapons to weapon choice
D175: summon undead (c) | E175: =IF(OR('Base Numbers'!$C$21,E12>=5,E15>=5,E14>=10,AND(E14>=6,E61>=1)),E120,0) -> 0 | F175: =IF(OR('Base Numbers'!$C$21,F12>=5,F15>=5,F14>=10,AND(F14>=6,F61>=1)),F120,0) -> 0 | G175: =IF(OR('Base Numbers'!$C$21,G12>=5,G15>=5,G14>=10,AND(G14>=6,G61>=1)),G120,0) -> 0 | H175: =IF(OR('Base Numbers'!$C$21,H12>=5,H15>=5,H14>=10,AND(H14>=6,H61>=1)),H120,0) -> 0 | I175: =IF(OR('Base Numbers'!$C$21,I12>=5,I15>=5,I14>=10,AND(I14>=6,I61>=1)),I120,0) -> 0 | J175: =IF(OR('Base Numbers'!$C$21,J12>=5,J15>=5,J14>=10,AND(J14>=6,J61>=1)),J120,0) -> 0 | K175: =IF(OR('Base Numbers'!$C$21,K12>=5,K15>=5,K14>=10,AND(K14>=6,K61>=1)),K120,0) -> 0 | L175: =IF(OR('Base Numbers'!$C$21,L12>=5,L15>=5,L14>=10,AND(L14>=6,L61>=1)),L120,0) -> 0 | M175: =IF(OR('Base Numbers'!$C$21,M12>=5,M15>=5,M14>=10,AND(M14>=6,M61>=1)),M120,0) -> 0 | N175: =IF(OR('Base Numbers'!$C$21,N12>=5,N15>=5,N14>=10,AND(N14>=6,N61>=1)),N120,0) -> 0 | O175: =IF(OR('Base Numbers'!$C$21,O12>=5,O15>=5,O14>=10,AND(O14>=6,O61>=1)),O120,0) -> 0 | P175: =IF(OR('Base Numbers'!$C$21,P12>=5,P15>=5,P14>=10,AND(P14>=6,P61>=1)),P120,0) -> 0 | Q175: =IF(OR('Base Numbers'!$C$21,Q12>=5,Q15>=5,Q14>=10,AND(Q14>=6,Q61>=1)),Q120,0) -> 0 | R175: =IF(OR('Base Numbers'!$C$21,R12>=5,R15>=5,R14>=10,AND(R14>=6,R61>=1)),R120,0) -> 0 | S175: =IF(OR('Base Numbers'!$C$21,S12>=5,S15>=5,S14>=10,AND(S14>=6,S61>=1)),S120,0) -> 0 | T175: =IF(OR('Base Numbers'!$C$21,T12>=5,T15>=5,T14>=10,AND(T14>=6,T61>=1)),T120,0) -> 0 | U175: =IF(OR('Base Numbers'!$C$21,U12>=5,U15>=5,U14>=10,AND(U14>=6,U61>=1)),U120,0) -> 0 | V175: =IF(OR('Base Numbers'!$C$21,V12>=5,V15>=5,V14>=10,AND(V14>=6,V61>=1)),V120,0) -> 0 | W175: =IF(OR('Base Numbers'!$C$21,W12>=5,W15>=5,W14>=10,AND(W14>=6,W61>=1)),W120,0) -> 0 | X175: =IF(OR('Base Numbers'!$C$21,X12>=5,X15>=5,X14>=10,AND(X14>=6,X61>=1)),X120,0) -> 0 | Z175: Summons?
D176: summon aberation (c) | E176: =IF(OR('Base Numbers'!$C$21,E12>=7,E15>=7,E14>=10),E121,0) -> 0 | F176: =IF(OR('Base Numbers'!$C$21,F12>=7,F15>=7,F14>=10),F121,0) -> 0 | G176: =IF(OR('Base Numbers'!$C$21,G12>=7,G15>=7,G14>=10),G121,0) -> 0 | H176: =IF(OR('Base Numbers'!$C$21,H12>=7,H15>=7,H14>=10),H121,0) -> 0 | I176: =IF(OR('Base Numbers'!$C$21,I12>=7,I15>=7,I14>=10),I121,0) -> 0 | J176: =IF(OR('Base Numbers'!$C$21,J12>=7,J15>=7,J14>=10),J121,0) -> 0 | K176: =IF(OR('Base Numbers'!$C$21,K12>=7,K15>=7,K14>=10),K121,0) -> 0 | L176: =IF(OR('Base Numbers'!$C$21,L12>=7,L15>=7,L14>=10),L121,0) -> 0 | M176: =IF(OR('Base Numbers'!$C$21,M12>=7,M15>=7,M14>=10),M121,0) -> 0 | N176: =IF(OR('Base Numbers'!$C$21,N12>=7,N15>=7,N14>=10),N121,0) -> 0 | O176: =IF(OR('Base Numbers'!$C$21,O12>=7,O15>=7,O14>=10),O121,0) -> 0 | P176: =IF(OR('Base Numbers'!$C$21,P12>=7,P15>=7,P14>=10),P121,0) -> 0 | Q176: =IF(OR('Base Numbers'!$C$21,Q12>=7,Q15>=7,Q14>=10),Q121,0) -> 0 | R176: =IF(OR('Base Numbers'!$C$21,R12>=7,R15>=7,R14>=10),R121,0) -> 0 | S176: =IF(OR('Base Numbers'!$C$21,S12>=7,S15>=7,S14>=10),S121,0) -> 0 | T176: =IF(OR('Base Numbers'!$C$21,T12>=7,T15>=7,T14>=10),T121,0) -> 0 | U176: =IF(OR('Base Numbers'!$C$21,U12>=7,U15>=7,U14>=10),U121,0) -> 0 | V176: =IF(OR('Base Numbers'!$C$21,V12>=7,V15>=7,V14>=10),V121,0) -> 0 | W176: =IF(OR('Base Numbers'!$C$21,W12>=7,W15>=7,W14>=10),W121,0) -> 0 | X176: =IF(OR('Base Numbers'!$C$21,X12>=7,X15>=7,X14>=10),X121,0) -> 0 | Z176: monk unarmed fighting style (d8)
D177: summon construct (c) | E177: =IF(OR('Base Numbers'!$C$21,E19>=13,E15>=7,E14>=10),E122,0) -> 0 | F177: =IF(OR('Base Numbers'!$C$21,F19>=13,F15>=7,F14>=10),F122,0) -> 0 | G177: =IF(OR('Base Numbers'!$C$21,G19>=13,G15>=7,G14>=10),G122,0) -> 0 | H177: =IF(OR('Base Numbers'!$C$21,H19>=13,H15>=7,H14>=10),H122,0) -> 0 | I177: =IF(OR('Base Numbers'!$C$21,I19>=13,I15>=7,I14>=10),I122,0) -> 0 | J177: =IF(OR('Base Numbers'!$C$21,J19>=13,J15>=7,J14>=10),J122,0) -> 0 | K177: =IF(OR('Base Numbers'!$C$21,K19>=13,K15>=7,K14>=10),K122,0) -> 0 | L177: =IF(OR('Base Numbers'!$C$21,L19>=13,L15>=7,L14>=10),L122,0) -> 0 | M177: =IF(OR('Base Numbers'!$C$21,M19>=13,M15>=7,M14>=10),M122,0) -> 0 | N177: =IF(OR('Base Numbers'!$C$21,N19>=13,N15>=7,N14>=10),N122,0) -> 0 | O177: =IF(OR('Base Numbers'!$C$21,O19>=13,O15>=7,O14>=10),O122,0) -> 0 | P177: =IF(OR('Base Numbers'!$C$21,P19>=13,P15>=7,P14>=10),P122,0) -> 0 | Q177: =IF(OR('Base Numbers'!$C$21,Q19>=13,Q15>=7,Q14>=10),Q122,0) -> 0 | R177: =IF(OR('Base Numbers'!$C$21,R19>=13,R15>=7,R14>=10),R122,0) -> 0 | S177: =IF(OR('Base Numbers'!$C$21,S19>=13,S15>=7,S14>=10),S122,0) -> 0 | T177: =IF(OR('Base Numbers'!$C$21,T19>=13,T15>=7,T14>=10),T122,0) -> 0 | U177: =IF(OR('Base Numbers'!$C$21,U19>=13,U15>=7,U14>=10),U122,0) -> 0 | V177: =IF(OR('Base Numbers'!$C$21,V19>=13,V15>=7,V14>=10),V122,0) -> 0 | W177: =IF(OR('Base Numbers'!$C$21,W19>=13,W15>=7,W14>=10),W122,0) -> 0 | X177: =IF(OR('Base Numbers'!$C$21,X19>=13,X15>=7,X14>=10),X122,0) -> 0 | Z177: assassination round with cantrips / EB
D178: summon celestial (c) | E178: =IF(OR('Base Numbers'!$C$21,E16>=9,E7>=17,E14>=10),E123,0) -> 0 | F178: =IF(OR('Base Numbers'!$C$21,F16>=9,F7>=17,F14>=10),F123,0) -> 0 | G178: =IF(OR('Base Numbers'!$C$21,G16>=9,G7>=17,G14>=10),G123,0) -> 0 | H178: =IF(OR('Base Numbers'!$C$21,H16>=9,H7>=17,H14>=10),H123,0) -> 0 | I178: =IF(OR('Base Numbers'!$C$21,I16>=9,I7>=17,I14>=10),I123,0) -> 0 | J178: =IF(OR('Base Numbers'!$C$21,J16>=9,J7>=17,J14>=10),J123,0) -> 0 | K178: =IF(OR('Base Numbers'!$C$21,K16>=9,K7>=17,K14>=10),K123,0) -> 0 | L178: =IF(OR('Base Numbers'!$C$21,L16>=9,L7>=17,L14>=10),L123,0) -> 0 | M178: =IF(OR('Base Numbers'!$C$21,M16>=9,M7>=17,M14>=10),M123,0) -> 0 | N178: =IF(OR('Base Numbers'!$C$21,N16>=9,N7>=17,N14>=10),N123,0) -> 0 | O178: =IF(OR('Base Numbers'!$C$21,O16>=9,O7>=17,O14>=10),O123,0) -> 0 | P178: =IF(OR('Base Numbers'!$C$21,P16>=9,P7>=17,P14>=10),P123,0) -> 0 | Q178: =IF(OR('Base Numbers'!$C$21,Q16>=9,Q7>=17,Q14>=10),Q123,0) -> 0 | R178: =IF(OR('Base Numbers'!$C$21,R16>=9,R7>=17,R14>=10),R123,0) -> 0 | S178: =IF(OR('Base Numbers'!$C$21,S16>=9,S7>=17,S14>=10),S123,0) -> 0 | T178: =IF(OR('Base Numbers'!$C$21,T16>=9,T7>=17,T14>=10),T123,0) -> 0 | U178: =IF(OR('Base Numbers'!$C$21,U16>=9,U7>=17,U14>=10),U123,0) -> 0 | V178: =IF(OR('Base Numbers'!$C$21,V16>=9,V7>=17,V14>=10),V123,0) -> 0 | W178: =IF(OR('Base Numbers'!$C$21,W16>=9,W7>=17,W14>=10),W123,0) -> 0 | X178: =IF(OR('Base Numbers'!$C$21,X16>=9,X7>=17,X14>=10),X123,0) -> 0 | Z178: warlock CHA bonus on two handed weapons on at L3
D179: Favored Foe Ranger marking ability (c) (free action) | E179: =IF(E9>=1,MIN(E124,'Base Numbers'!$C$5*'Base Numbers'!$C$6,E35),0) -> 0 | F179: =IF(F9>=1,MIN(F124,'Base Numbers'!$C$5*'Base Numbers'!$C$6,F35),0) -> 0 | G179: =IF(G9>=1,MIN(G124,'Base Numbers'!$C$5*'Base Numbers'!$C$6,G35),0) -> 0 | H179: =IF(H9>=1,MIN(H124,'Base Numbers'!$C$5*'Base Numbers'!$C$6,H35),0) -> 0 | I179: =IF(I9>=1,MIN(I124,'Base Numbers'!$C$5*'Base Numbers'!$C$6,I35),0) -> 0 | J179: =IF(J9>=1,MIN(J124,'Base Numbers'!$C$5*'Base Numbers'!$C$6,J35),0) -> 0 | K179: =IF(K9>=1,MIN(K124,'Base Numbers'!$C$5*'Base Numbers'!$C$6,K35),0) -> 0 | L179: =IF(L9>=1,MIN(L124,'Base Numbers'!$C$5*'Base Numbers'!$C$6,L35),0) -> 0 | M179: =IF(M9>=1,MIN(M124,'Base Numbers'!$C$5*'Base Numbers'!$C$6,M35),0) -> 0 | N179: =IF(N9>=1,MIN(N124,'Base Numbers'!$C$5*'Base Numbers'!$C$6,N35),0) -> 0 | O179: =IF(O9>=1,MIN(O124,'Base Numbers'!$C$5*'Base Numbers'!$C$6,O35),0) -> 0 | P179: =IF(P9>=1,MIN(P124,'Base Numbers'!$C$5*'Base Numbers'!$C$6,P35),0) -> 0 | Q179: =IF(Q9>=1,MIN(Q124,'Base Numbers'!$C$5*'Base Numbers'!$C$6,Q35),0) -> 0 | R179: =IF(R9>=1,MIN(R124,'Base Numbers'!$C$5*'Base Numbers'!$C$6,R35),0) -> 0 | S179: =IF(S9>=1,MIN(S124,'Base Numbers'!$C$5*'Base Numbers'!$C$6,S35),0) -> 0 | T179: =IF(T9>=1,MIN(T124,'Base Numbers'!$C$5*'Base Numbers'!$C$6,T35),0) -> 0 | U179: =IF(U9>=1,MIN(U124,'Base Numbers'!$C$5*'Base Numbers'!$C$6,U35),0) -> 0 | V179: =IF(V9>=1,MIN(V124,'Base Numbers'!$C$5*'Base Numbers'!$C$6,V35),0) -> 0 | W179: =IF(W9>=1,MIN(W124,'Base Numbers'!$C$5*'Base Numbers'!$C$6,W35),0) -> 0 | X179: =IF(X9>=1,MIN(X124,'Base Numbers'!$C$5*'Base Numbers'!$C$6,X35),0) -> 0 | Z179: kobold pack tactics | AA179: (kensai, mercy, astral self)
D180: Bonus Action to provide Advantage (Spell-like action: Rogue, Ranger) | E180: =IF(OR(E11>=3,E9>=14),MIN(E125,'Base Numbers'!$C$5*'Base Numbers'!$C$6),0) -> 0 | F180: =IF(OR(F11>=3,F9>=14),MIN(F125,'Base Numbers'!$C$5*'Base Numbers'!$C$6),0) -> 0 | G180: =IF(OR(G11>=3,G9>=14),MIN(G125,'Base Numbers'!$C$5*'Base Numbers'!$C$6),0) -> 0 | H180: =IF(OR(H11>=3,H9>=14),MIN(H125,'Base Numbers'!$C$5*'Base Numbers'!$C$6),0) -> 0 | I180: =IF(OR(I11>=3,I9>=14),MIN(I125,'Base Numbers'!$C$5*'Base Numbers'!$C$6),0) -> 0 | J180: =IF(OR(J11>=3,J9>=14),MIN(J125,'Base Numbers'!$C$5*'Base Numbers'!$C$6),0) -> 0 | K180: =IF(OR(K11>=3,K9>=14),MIN(K125,'Base Numbers'!$C$5*'Base Numbers'!$C$6),0) -> 0 | L180: =IF(OR(L11>=3,L9>=14),MIN(L125,'Base Numbers'!$C$5*'Base Numbers'!$C$6),0) -> 0 | M180: =IF(OR(M11>=3,M9>=14),MIN(M125,'Base Numbers'!$C$5*'Base Numbers'!$C$6),0) -> 0 | N180: =IF(OR(N11>=3,N9>=14),MIN(N125,'Base Numbers'!$C$5*'Base Numbers'!$C$6),0) -> 0 | O180: =IF(OR(O11>=3,O9>=14),MIN(O125,'Base Numbers'!$C$5*'Base Numbers'!$C$6),0) -> 0 | P180: =IF(OR(P11>=3,P9>=14),MIN(P125,'Base Numbers'!$C$5*'Base Numbers'!$C$6),0) -> 0 | Q180: =IF(OR(Q11>=3,Q9>=14),MIN(Q125,'Base Numbers'!$C$5*'Base Numbers'!$C$6),0) -> 0 | R180: =IF(OR(R11>=3,R9>=14),MIN(R125,'Base Numbers'!$C$5*'Base Numbers'!$C$6),0) -> 0 | S180: =IF(OR(S11>=3,S9>=14),MIN(S125,'Base Numbers'!$C$5*'Base Numbers'!$C$6),0) -> 0 | T180: =IF(OR(T11>=3,T9>=14),MIN(T125,'Base Numbers'!$C$5*'Base Numbers'!$C$6),0) -> 0 | U180: =IF(OR(U11>=3,U9>=14),MIN(U125,'Base Numbers'!$C$5*'Base Numbers'!$C$6),0) -> 0 | V180: =IF(OR(V11>=3,V9>=14),MIN(V125,'Base Numbers'!$C$5*'Base Numbers'!$C$6),0) -> 0 | W180: =IF(OR(W11>=3,W9>=14),MIN(W125,'Base Numbers'!$C$5*'Base Numbers'!$C$6),0) -> 0 | X180: =IF(OR(X11>=3,X9>=14),MIN(X125,'Base Numbers'!$C$5*'Base Numbers'!$C$6),0) -> 0 | Z180: Crusher feat
D181: total allowed concenctration spells: | E181: =E148+E149+E150+E151+E152+E153+E154+E155+E157+E159+E165+E166+E167+E168+E179 -> 0 | F181: =F148+F149+F150+F151+F152+F153+F154+F155+F157+F159+F165+F166+F167+F168+F179 -> 0 | G181: 0 | H181: 0 | I181: 0 | J181: 0 | K181: 0 | L181: 0 | M181: 0 | N181: 0 | O181: 0 | P181: 0 | Q181: 0 | R181: 0 | S181: 0 | T181: 0 | U181: 0 | V181: 0 | W181: 0 | X181: 0 | Z181: fog cloud and pyrotecnics
D182: total allowed defensive concenctration spells: | E182: =E145+E147+E160+E161+E162+E164+E163 -> 0 | F182: =F145+F147+F160+F161+F162+F164+F163 -> 0 | G182: 0 | H182: 0 | I182: 0 | J182: 0 | K182: 0 | L182: 0 | M182: 0 | N182: 0 | O182: 0 | P182: 0 | Q182: 0 | R182: 0 | S182: 0 | T182: 0 | U182: 0 | V182: 0 | W182: 0 | X182: 0 | Z182: bard whipsers damage
D183: total allowed 1-hour summon concentration spells: | E183: =E173+E174+E175+E176+E177+E178 -> 0 | F183: =F173+F174+F175+F176+F177+F178 -> 0 | G183: 0 | H183: 0 | I183: 0 | J183: 0 | K183: 0 | L183: 0 | M183: 0 | N183: 0 | O183: 0 | P183: 0 | Q183: 0 | R183: 0 | S183: 0 | T183: 0 | U183: 0 | V183: 0 | W183: 0 | X183: 0 | Z183: fog cloud and pyrotecnics
D184: concentration spell percent reduction | E184: =IF(E182+E181+E183 > 0, MIN(1,'Base Numbers'!$C$5*'Base Numbers'!$C$6/(E182*MIN('Base Numbers'!$C$6,(1+E307))+E181*MIN('Base Numbers'!$C$6,(1+E306))+E183*MIN('Base Numbers'!$C$6*2,(1+E308)))),1) -> 1 | F184: =IF(F182+F181+F183 > 0, MIN(1,'Base Numbers'!$C$5*'Base Numbers'!$C$6/(F182*MIN('Base Numbers'!$C$6,(1+F307))+F181*MIN('Base Numbers'!$C$6,(1+F306))+F183*MIN('Base Numbers'!$C$6*2,(1+F308)))),1) -> 1 | G184: =IF(G182+G181+G183 > 0, MIN(1,'Base Numbers'!$C$5*'Base Numbers'!$C$6/(G182*MIN('Base Numbers'!$C$6,(1+G307))+G181*MIN('Base Numbers'!$C$6,(1+G306))+G183*MIN('Base Numbers'!$C$6*2,(1+G308)))),1) -> 1 | H184: =IF(H182+H181+H183 > 0, MIN(1,'Base Numbers'!$C$5*'Base Numbers'!$C$6/(H182*MIN('Base Numbers'!$C$6,(1+H307))+H181*MIN('Base Numbers'!$C$6,(1+H306))+H183*MIN('Base Numbers'!$C$6*2,(1+H308)))),1) -> 1 | I184: =IF(I182+I181+I183 > 0, MIN(1,'Base Numbers'!$C$5*'Base Numbers'!$C$6/(I182*MIN('Base Numbers'!$C$6,(1+I307))+I181*MIN('Base Numbers'!$C$6,(1+I306))+I183*MIN('Base Numbers'!$C$6*2,(1+I308)))),1) -> 1 | J184: =IF(J182+J181+J183 > 0, MIN(1,'Base Numbers'!$C$5*'Base Numbers'!$C$6/(J182*MIN('Base Numbers'!$C$6,(1+J307))+J181*MIN('Base Numbers'!$C$6,(1+J306))+J183*MIN('Base Numbers'!$C$6*2,(1+J308)))),1) -> 1 | K184: =IF(K182+K181+K183 > 0, MIN(1,'Base Numbers'!$C$5*'Base Numbers'!$C$6/(K182*MIN('Base Numbers'!$C$6,(1+K307))+K181*MIN('Base Numbers'!$C$6,(1+K306))+K183*MIN('Base Numbers'!$C$6*2,(1+K308)))),1) -> 1 | L184: =IF(L182+L181+L183 > 0, MIN(1,'Base Numbers'!$C$5*'Base Numbers'!$C$6/(L182*MIN('Base Numbers'!$C$6,(1+L307))+L181*MIN('Base Numbers'!$C$6,(1+L306))+L183*MIN('Base Numbers'!$C$6*2,(1+L308)))),1) -> 1 | M184: =IF(M182+M181+M183 > 0, MIN(1,'Base Numbers'!$C$5*'Base Numbers'!$C$6/(M182*MIN('Base Numbers'!$C$6,(1+M307))+M181*MIN('Base Numbers'!$C$6,(1+M306))+M183*MIN('Base Numbers'!$C$6*2,(1+M308)))),1) -> 1 | N184: =IF(N182+N181+N183 > 0, MIN(1,'Base Numbers'!$C$5*'Base Numbers'!$C$6/(N182*MIN('Base Numbers'!$C$6,(1+N307))+N181*MIN('Base Numbers'!$C$6,(1+N306))+N183*MIN('Base Numbers'!$C$6*2,(1+N308)))),1) -> 1 | O184: =IF(O182+O181+O183 > 0, MIN(1,'Base Numbers'!$C$5*'Base Numbers'!$C$6/(O182*MIN('Base Numbers'!$C$6,(1+O307))+O181*MIN('Base Numbers'!$C$6,(1+O306))+O183*MIN('Base Numbers'!$C$6*2,(1+O308)))),1) -> 1 | P184: =IF(P182+P181+P183 > 0, MIN(1,'Base Numbers'!$C$5*'Base Numbers'!$C$6/(P182*MIN('Base Numbers'!$C$6,(1+P307))+P181*MIN('Base Numbers'!$C$6,(1+P306))+P183*MIN('Base Numbers'!$C$6*2,(1+P308)))),1) -> 1 | Q184: =IF(Q182+Q181+Q183 > 0, MIN(1,'Base Numbers'!$C$5*'Base Numbers'!$C$6/(Q182*MIN('Base Numbers'!$C$6,(1+Q307))+Q181*MIN('Base Numbers'!$C$6,(1+Q306))+Q183*MIN('Base Numbers'!$C$6*2,(1+Q308)))),1) -> 1 | R184: =IF(R182+R181+R183 > 0, MIN(1,'Base Numbers'!$C$5*'Base Numbers'!$C$6/(R182*MIN('Base Numbers'!$C$6,(1+R307))+R181*MIN('Base Numbers'!$C$6,(1+R306))+R183*MIN('Base Numbers'!$C$6*2,(1+R308)))),1) -> 1 | S184: =IF(S182+S181+S183 > 0, MIN(1,'Base Numbers'!$C$5*'Base Numbers'!$C$6/(S182*MIN('Base Numbers'!$C$6,(1+S307))+S181*MIN('Base Numbers'!$C$6,(1+S306))+S183*MIN('Base Numbers'!$C$6*2,(1+S308)))),1) -> 1 | T184: =IF(T182+T181+T183 > 0, MIN(1,'Base Numbers'!$C$5*'Base Numbers'!$C$6/(T182*MIN('Base Numbers'!$C$6,(1+T307))+T181*MIN('Base Numbers'!$C$6,(1+T306))+T183*MIN('Base Numbers'!$C$6*2,(1+T308)))),1) -> 1 | U184: =IF(U182+U181+U183 > 0, MIN(1,'Base Numbers'!$C$5*'Base Numbers'!$C$6/(U182*MIN('Base Numbers'!$C$6,(1+U307))+U181*MIN('Base Numbers'!$C$6,(1+U306))+U183*MIN('Base Numbers'!$C$6*2,(1+U308)))),1) -> 1 | V184: =IF(V182+V181+V183 > 0, MIN(1,'Base Numbers'!$C$5*'Base Numbers'!$C$6/(V182*MIN('Base Numbers'!$C$6,(1+V307))+V181*MIN('Base Numbers'!$C$6,(1+V306))+V183*MIN('Base Numbers'!$C$6*2,(1+V308)))),1) -> 1 | W184: =IF(W182+W181+W183 > 0, MIN(1,'Base Numbers'!$C$5*'Base Numbers'!$C$6/(W182*MIN('Base Numbers'!$C$6,(1+W307))+W181*MIN('Base Numbers'!$C$6,(1+W306))+W183*MIN('Base Numbers'!$C$6*2,(1+W308)))),1) -> 1 | X184: =IF(X182+X181+X183 > 0, MIN(1,'Base Numbers'!$C$5*'Base Numbers'!$C$6/(X182*MIN('Base Numbers'!$C$6,(1+X307))+X181*MIN('Base Numbers'!$C$6,(1+X306))+X183*MIN('Base Numbers'!$C$6*2,(1+X308)))),1) -> 1 | Z184: variable monster saves vs. abilities
Z185: wizard bladesinger doesn't actually require one-handed weapon for extra attack
D186: ADJUSTED CONCENTRATION SPELLS PER DAY (based on total fights) | E186: 1 | F186: 2 | G186: 3 | H186: 4 | I186: 5 | J186: 6 | K186: 7 | L186: 8 | M186: 9 | N186: 10 | O186: 11 | P186: 12 | Q186: 13 | R186: 14 | S186: 15 | T186: 16 | U186: 17 | V186: 18 | W186: 19 | X186: 20 | Z186: wizard bladesong 14th level dmg bonus only applies to one-handed weapons
D187: fog cloud casts: (c) | E187: =E145*E$184 -> 0 | F187: 0 | G187: 0 | H187: 0 | I187: 0 | J187: 0 | K187: 0 | L187: 0 | M187: 0 | N187: 0 | O187: 0 | P187: 0 | Q187: 0 | R187: 0 | S187: 0 | T187: 0 | U187: 0 | V187: 0 | W187: 0 | X187: 0 | Z187: hunters mark hex
D188: darkness casts: (c) (oathbreaker) | E188: =E147*E$184 -> 0 | F188: 0 | G188: 0 | H188: 0 | I188: 0 | J188: 0 | K188: 0 | L188: 0 | M188: 0 | N188: 0 | O188: 0 | P188: 0 | Q188: 0 | R188: 0 | S188: 0 | T188: 0 | U188: 0 | V188: 0 | W188: 0 | X188: 0 | Z188: spirit guardians
D189: shadow blade (c) (bonus action) | E189: =E148*E$184 -> 0 | F189: 0 | G189: 0 | H189: 0 | I189: 0 | J189: 0 | K189: 0 | L189: 0 | M189: 0 | N189: 0 | O189: 0 | P189: 0 | Q189: 0 | R189: 0 | S189: 0 | T189: 0 | U189: 0 | V189: 0 | W189: 0 | X189: 0 | Z189: holy weapono
D190: bless casts (c) | E190: =E149*E$184 -> 0 | F190: 0 | G190: 0 | H190: 0 | I190: 0 | J190: 0 | K190: 0 | L190: 0 | M190: 0 | N190: 0 | O190: 0 | P190: 0 | Q190: 0 | R190: 0 | S190: 0 | T190: 0 | U190: 0 | V190: 0 | W190: 0 | X190: 0 | Z190: concentration based on Con Resilience and Ranged attacks
D191: divine favor casts (c) | E191: =E150*E$184 -> 0 | F191: 0 | G191: 0 | H191: 0 | I191: 0 | J191: 0 | K191: 0 | L191: 0 | M191: 0 | N191: 0 | O191: 0 | P191: 0 | Q191: 0 | R191: 0 | S191: 0 | T191: 0 | U191: 0 | V191: 0 | W191: 0 | X191: 0 | Z191: concentration easier to maintain on ranged casters/spells
D192: haste casts (c) (veng) | E192: =E151*E$184 -> 0 | F192: 0 | G192: 0 | H192: 0 | I192: 0 | J192: 0 | K192: 0 | L192: 0 | M192: 0 | N192: 0 | O192: 0 | P192: 0 | Q192: 0 | R192: 0 | S192: 0 | T192: 0 | U192: 0 | V192: 0 | W192: 0 | X192: 0 | Z192: variable monster saves vs. abilities
D193: hunter's mark / hex casts (c) (veng) (bonus action) | E193: =E152*E$184 -> 0 | F193: 0 | G193: 0 | H193: 0 | I193: 0 | J193: 0 | K193: 0 | L193: 0 | M193: 0 | N193: 0 | O193: 0 | P193: 0 | Q193: 0 | R193: 0 | S193: 0 | T193: 0 | U193: 0 | V193: 0 | W193: 0 | X193: 0 | Z193: wizard invoker and magic missile
D194: spirit guardians casts (c) (req Divine Soul) | E194: =E153*E$184 -> 0 | F194: 0 | G194: 0 | H194: 0 | I194: 0 | J194: 0 | K194: 0 | L194: 0 | M194: 0 | N194: 0 | O194: 0 | P194: 0 | Q194: 0 | R194: 0 | S194: 0 | T194: 0 | U194: 0 | V194: 0 | W194: 0 | X194: 0 | Z194: spellcasting limits barbarian rage uptime
D195: faerie fire casts (c) | E195: =E154*E$184 -> 0 | F195: 0 | G195: 0 | H195: 0 | I195: 0 | J195: 0 | K195: 0 | L195: 0 | M195: 0 | N195: 0 | O195: 0 | P195: 0 | Q195: 0 | R195: 0 | S195: 0 | T195: 0 | U195: 0 | V195: 0 | W195: 0 | X195: 0 | Z195: piercer feat used with polearm doesn't apply to the bonus attack unless GWM procs
D196: spirit shroud casts (c) | E196: =E155*E$184 -> 0 | F196: 0 | G196: 0 | H196: 0 | I196: 0 | J196: 0 | K196: 0 | L196: 0 | M196: 0 | N196: 0 | O196: 0 | P196: 0 | Q196: 0 | R196: 0 | S196: 0 | T196: 0 | U196: 0 | V196: 0 | W196: 0 | X196: 0 | Z196: magic missile
D197: guardian of nature (bonus action) (c) | E197: =E157*E$184 -> 0 | F197: 0 | G197: 0 | H197: 0 | I197: 0 | J197: 0 | K197: 0 | L197: 0 | M197: 0 | N197: 0 | O197: 0 | P197: 0 | Q197: 0 | R197: 0 | S197: 0 | T197: 0 | U197: 0 | V197: 0 | W197: 0 | X197: 0 | Z197: animate dead
D198: holy weapon casts (bonus action) (c) | E198: =E159*E$184 -> 0 | F198: 0 | G198: 0 | H198: 0 | I198: 0 | J198: 0 | K198: 0 | L198: 0 | M198: 0 | N198: 0 | O198: 0 | P198: 0 | Q198: 0 | R198: 0 | S198: 0 | T198: 0 | U198: 0 | V198: 0 | W198: 0 | X198: 0 | Z198: wizard: conjurer summons bonus
D199: hold person casts (conq, veng) (c) | E199: =E160*E$184 -> 0 | F199: 0 | G199: 0 | H199: 0 | I199: 0 | J199: 0 | K199: 0 | L199: 0 | M199: 0 | N199: 0 | O199: 0 | P199: 0 | Q199: 0 | R199: 0 | S199: 0 | T199: 0 | U199: 0 | V199: 0 | W199: 0 | X199: 0 | Z199: wizard: necromancer animate dead bonus
D200: hold monster casts (veng) (c) | E200: =E161*E$184 -> 0 | F200: 0 | G200: 0 | H200: 0 | I200: 0 | J200: 0 | K200: 0 | L200: 0 | M200: 0 | N200: 0 | O200: 0 | P200: 0 | Q200: 0 | R200: 0 | S200: 0 | T200: 0 | U200: 0 | V200: 0 | W200: 0 | X200: 0 | Z200: animate dead: use remaining spell slots for next day's skeletons
D201: shadow of moil (c) | E201: =E162*E$184 -> 0 | F201: =F162*F$184 -> 0 | G201: 0 | H201: 0 | I201: 0 | J201: 0 | K201: 0 | L201: 0 | M201: 0 | N201: 0 | O201: 0 | P201: 0 | Q201: 0 | R201: 0 | S201: 0 | T201: 0 | U201: 0 | V201: 0 | W201: 0 | X201: 0 | Z201: rangers
D202: greater invisibility (c) | E202: =E163*E$184 -> 0 | F202: =F163*F$184 -> 0 | G202: 0 | H202: 0 | I202: 0 | J202: 0 | K202: 0 | L202: 0 | M202: 0 | N202: 0 | O202: 0 | P202: 0 | Q202: 0 | R202: 0 | S202: 0 | T202: 0 | U202: 0 | V202: 0 | W202: 0 | X202: 0 | Z202: beastmaster ranger
... 1142 more rows

Sheet Base Numbers
F1: LEVEL | G1: 1 | H1: 2 | I1: 3 | J1: 4 | K1: 5 | L1: 6 | M1: 7 | N1: 8 | O1: 9 | P1: 10 | Q1: 11 | R1: 12 | S1: 13 | T1: 14 | U1: 15 | V1: 16 | W1: 17 | X1: 18 | Y1: 19 | Z1: 20
F2: TOTAL DPR OUTPUT | G2: =Sorcadins!E1421 -> 4.40 | H2: =Sorcadins!F1421 -> 4.40 | I2: =Sorcadins!G1421 -> 4.08 | J2: =Sorcadins!H1421 -> 4.08 | K2: =Sorcadins!I1421 -> 4.40 | L2: =Sorcadins!J1421 -> 4.08 | M2: =Sorcadins!K1421 -> 4.08 | N2: =Sorcadins!L1421 -> 4.08 | O2: =Sorcadins!M1421 -> 4.08 | P2: =Sorcadins!N1421 -> 4.08 | Q2: =Sorcadins!O1421 -> 4.08 | R2: =Sorcadins!P1421 -> 3.75 | S2: =Sorcadins!Q1421 -> 4.08 | T2: =Sorcadins!R1421 -> 4.08 | U2: =Sorcadins!S1421 -> 3.75 | V2: =Sorcadins!T1421 -> 3.75 | W2: =Sorcadins!U1421 -> 4.08 | X2: =Sorcadins!V1421 -> 3.75 | Y2: =Sorcadins!W1421 -> 3.75 | Z2: =Sorcadins!X1421 -> 3.75
B4: CAMPAIGN AVERAGES | F4: MODIFIERS:
B5: fights per day | C5: 4 | F5: Enemy Armor Class modifier: | G5: 0
B6: rounds per fight | C6: 4 | F6: Magic Weapon mod: | G6: 0
B7: short rests | C7: 1 | F7: Caster DC mod: | G7: 0
B8: pct fights with a buff round | C8: 0.3 | F8: Magic Weapon additional Damage Dice | G8: 0
F10: Booming Blade + GFB secondary damage percent
B11: Opportunity attacks per round | G11: 0.35
B12: base | C12: 0.25
B13: polearm master | C13: 0.2
B14: sentinel | C14: 0.4 | F14: prob of qualifying for sneak damage | G14: 0.8
B15: soul of vengeance / retaliation | C15: 0.65 | F15: percent fights with surprise | G15: 0.33
F16: DM allows Booming Blade with Shadow Blade | G16: 0
B19: Find Familiar adv pct | C19: 0.9 | F19: Area Of Effect effects
B20: Disable Simulacrum damage | C20: 0 | F20: Avg number of targets to AOE | G20: 2.5
B21: Disable spell class/level-based selection checking | C21: 0 | F21: Avg number of AOE opportunities per day | G21: 2

Sheet Caster Tables
B3: Progresion:
B4: Level | C4: 1 | D4: 2 | E4: 3 | F4: 4 | G4: 5 | H4: 6 | I4: 7 | J4: 8 | K4: 9 | L4: 10 | M4: 11 | N4: 12 | O4: 13 | P4: 14 | Q4: 15 | R4: 16 | S4: 17 | T4: 18 | U4: 19 | V4: 20 | Y4: Piercer Feat damage gains
B5: chance of killing blow per attack (GWM) | C5: 0.1 | D5: 0.1 | E5: 0.1 | F5: 0.09 | G5: 0.09 | H5: 0.08 | I5: 0.08 | J5: 0.07 | K5: 0.07 | L5: 0.06 | M5: 0.06 | N5: 0.05 | O5: 0.05 | P5: 0.05 | Q5: 0.05 | R5: 0.05 | S5: 0.05 | T5: 0.05 | U5: 0.05 | V5: 0.05 | Y5: weapon die | Z5: base avg | AA5: piercer avg | AB5: gain
B6: avg save bonus | C6: -1 | D6: -1 | E6: 0 | F6: 0 | G6: 0 | H6: 0 | I6: 1 | J6: 1 | K6: 2 | L6: 2 | M6: 2 | N6: 3 | O6: 3 | P6: 4 | Q6: 4 | R6: 5 | S6: 5 | T6: 6 | U6: 6 | V6: 7 | Y6: d4 | Z6: 2.5 | AA6: 3 | AB6: =AA6-Z6 -> 0.5
B7: AC | C7: 13 | D7: 13 | E7: 14 | F7: 14 | G7: 14 | H7: 15 | I7: 15 | J7: 15 | K7: 16 | L7: 16 | M7: 16 | N7: 17 | O7: 17 | P7: 17 | Q7: 18 | R7: 18 | S7: 18 | T7: 19 | U7: 19 | V7: 19 | Y7: d6 | Z7: 3.5 | AA7: 4.25 | AB7: =AA7-Z7 -> 0.75
B8: Cantrip Power | C8: 0 | D8: 0 | E8: 0 | F8: 0 | G8: 1 | H8: 1 | I8: 1 | J8: 1 | K8: 1 | L8: 1 | M8: 2 | N8: 2 | O8: 2 | P8: 2 | Q8: 2 | R8: 2 | S8: 3 | T8: 3 | U8: 3 | V8: 3 | Y8: d8 | Z8: 4.5 | AA8: 5.5 | AB8: =AA8-Z8 -> 1
B9: fights with pronable target | C9: 1 | D9: 0.95 | E9: 0.92 | F9: 0.9 | G9: 0.85 | H9: 0.8 | I9: 0.75 | J9: 0.7 | K9: 0.65 | L9: 0.6 | M9: 0.55 | N9: 0.5 | O9: 0.4 | P9: 0.35 | Q9: 0.3 | R9: 0.3 | S9: 0.25 | T9: 0.25 | U9: 0.2 | V9: 0.2 | Y9: d10 | Z9: 5.5 | AA9: 6.75 | AB9: =AA9-Z9 -> 1.25
C10: Multiclass Casters | G10: Half Casters (Paladin, Ranger) | I10: Warlocks (per day; adj for short rests) | M10: One-Third Casters (Eldritch Knight, Arcane Trickster) | O10: Warlocks (per short rest)
B11: Caster Level | C11: Total Spell Levels | D11: total smite (d8s) | E11: ratio: | F11: max slot | G11: Total Spell Levels | H11: total smite (d8s) | I11: Total Spell Levels | J11: total smite (d8s) | K11: ratio | L11: max slot | M11: Total Spell Levels | N11: total smite (d8s) | O11: Total Spell Levels | P11: total smite (d8s)
B12: 0 | C12: 0 | D12: 0 | E12: 0 | F12: 0 | G12: 0 | H12: 0 | I12: =O12*(1+'Base Numbers'!$C$7) -> 0 | J12: =P12*(1+'Base Numbers'!$C$7) -> 0 | K12: 0 | L12: 0 | M12: 0 | N12: 0 | O12: =0*(1+'Base Numbers'!$C$7) -> 0 | P12: 0
B13: 1 | C13: 2 | D13: 4 | E13: =D13/C13 -> 2 | F13: 1 | G13: 0 | H13: 0 | I13: =O13*(1+'Base Numbers'!$C$7) -> 2 | J13: =P13*(1+'Base Numbers'!$C$7) -> 4 | K13: =J13/I13 -> 2 | L13: 1 | M13: 0 | N13: 0 | O13: 1 | P13: 2
B14: =B13+1 -> 2 | C14: 3 | D14: 6 | E14: =D14/C14 -> 2 | F14: 1 | G14: 2 | H14: 4 | I14: =O14*(1+'Base Numbers'!$C$7) -> 4 | J14: =P14*(1+'Base Numbers'!$C$7) -> 8 | K14: =J14/I14 -> 2 | L14: 1 | M14: 0 | N14: 0 | O14: 2 | P14: 4
B15: 3 | C15: 8 | D15: 14 | E15: 1.75 | F15: 2 | G15: 3 | H15: 6 | I15: =O15*(1+'Base Numbers'!$C$7) -> 8 | J15: =P15*(1+'Base Numbers'!$C$7) -> 12 | K15: 1.5 | L15: 2 | M15: 2 | N15: 4 | O15: 4 | P15: 6
B16: 4 | C16: 10 | D16: 17 | E16: 1.7 | F16: 2 | G16: 3 | H16: 6 | I16: =O16*(1+'Base Numbers'!$C$7) -> 8 | J16: =P16*(1+'Base Numbers'!$C$7) -> 12 | K16: 1.5 | L16: 2 | M16: 3 | N16: 6 | O16: 4 | P16: 6
B17: 5 | C17: 16 | D17: 25 | E17: 1.5625 | F17: 3 | G17: 8 | H17: 14 | I17: =O17*(1+'Base Numbers'!$C$7) -> 12 | J17: =P17*(1+'Base Numbers'!$C$7) -> 16 | K17: 1.333333333 | L17: 3 | M17: 3 | N17: 6 | O17: 6 | P17: 8
B18: 6 | C18: 19 | D18: 29 | E18: 1.526315789 | F18: 3 | G18: 8 | H18: 14 | I18: =O18*(1+'Base Numbers'!$C$7) -> 12 | J18: =P18*(1+'Base Numbers'!$C$7) -> 16 | K18: 1.333333333 | L18: 3 | M18: 3 | N18: 6 | O18: 6 | P18: 8
B19: 7 | C19: 23 | D19: 34 | E19: 1.47826087 | F19: 4 | G19: 10 | H19: 17 | I19: =O19*(1+'Base Numbers'!$C$7) -> 16 | J19: =P19*(1+'Base Numbers'!$C$7) -> 20 | K19: 1.25 | L19: 4 | M19: 8 | N19: 14 | O19: 8 | P19: 10
B20: 8 | C20: 27 | D20: 39 | E20: 1.444444444 | F20: 4 | G20: 10 | H20: 17 | I20: =O20*(1+'Base Numbers'!$C$7) -> 16 | J20: =P20*(1+'Base Numbers'!$C$7) -> 20 | K20: 1.25 | L20: 4 | M20: 8 | N20: 14 | O20: 8 | P20: 10
B21: 9 | C21: 36 | D21: 50 | E21: 1.388888889 | F21: 5 | G21: 16 | H21: 25 | I21: =O21*(1+'Base Numbers'!$C$7) -> 20 | J21: =P21*(1+'Base Numbers'!$C$7) -> 24 | K21: 1.2 | L21: 5 | M21: 8 | N21: 14 | O21: 10 | P21: 12
B22: 10 | C22: 41 | D22: 56 | E22: 1.365853659 | F22: 5 | G22: 16 | H22: 25 | I22: =O22*(1+'Base Numbers'!$C$7) -> 20 | J22: =P22*(1+'Base Numbers'!$C$7) -> 24 | K22: 1.2 | L22: 5 | M22: 10 | N22: 17 | O22: 10 | P22: 12
B23: 11 | C23: 47 | D23: 63 | E23: 1.340425532 | F23: 6 | G23: 19 | H23: 29 | I23: =O23*(1+'Base Numbers'!$C$7) -> 30 | J23: =P23*(1+'Base Numbers'!$C$7) -> 36 | K23: 1.2 | L23: 5 | M23: 10 | N23: 17 | O23: 15 | P23: 18
B24: 12 | C24: 47 | D24: 63 | E24: 1.340425532 | F24: 6 | G24: 19 | H24: 29 | I24: =O24*(1+'Base Numbers'!$C$7) -> 30 | J24: =P24*(1+'Base Numbers'!$C$7) -> 36 | K24: 1.2 | L24: 5 | M24: 10 | N24: 17 | O24: 15 | P24: 18
B25: 13 | C25: 54 | D25: 71 | E25: 1.314814815 | F25: 7 | G25: 23 | H25: 34 | I25: =O25*(1+'Base Numbers'!$C$7) -> 30 | J25: =P25*(1+'Base Numbers'!$C$7) -> 36 | K25: 1.2 | L25: 5 | M25: 16 | N25: 25 | O25: 15 | P25: 18
B26: 14 | C26: 54 | D26: 71 | E26: 1.314814815 | F26: 7 | G26: 23 | H26: 34 | I26: =O26*(1+'Base Numbers'!$C$7) -> 30 | J26: =P26*(1+'Base Numbers'!$C$7) -> 36 | K26: 1.2 | L26: 5 | M26: 16 | N26: 25 | O26: 15 | P26: 18
B27: 15 | C27: 62 | D27: 80 | E27: 1.290322581 | F27: 8 | G27: 27 | H27: 39 | I27: =O27*(1+'Base Numbers'!$C$7) -> 30 | J27: =P27*(1+'Base Numbers'!$C$7) -> 36 | K27: 1.2 | L27: 5 | M27: 16 | N27: 25 | O27: 15 | P27: 18
B28: 16 | C28: 62 | D28: 80 | E28: 1.290322581 | F28: 8 | G28: 27 | H28: 39 | I28: =O28*(1+'Base Numbers'!$C$7) -> 30 | J28: =P28*(1+'Base Numbers'!$C$7) -> 36 | K28: 1.2 | L28: 5 | M28: 19 | N28: 29 | O28: 15 | P28: 18
B29: 17 | C29: 71 | D29: 90 | E29: 1.267605634 | F29: 9 | G29: 36 | H29: 50 | I29: =O29*(1+'Base Numbers'!$C$7) -> 40 | J29: =P29*(1+'Base Numbers'!$C$7) -> 48 | K29: 1.2 | L29: 5 | M29: 19 | N29: 29 | O29: 20 | P29: 24
B30: 18 | C30: 76 | D30: 96 | E30: 1.263157895 | F30: 9 | G30: 36 | H30: 50 | I30: =O30*(1+'Base Numbers'!$C$7) -> 40 | J30: =P30*(1+'Base Numbers'!$C$7) -> 48 | K30: 1.2 | L30: 5 | M30: 19 | N30: 29 | O30: 20 | P30: 24
B31: 19 | C31: 82 | D31: 103 | E31: 1.256097561 | F31: 9 | G31: 41 | H31: 56 | I31: =O31*(1+'Base Numbers'!$C$7) -> 40 | J31: =P31*(1+'Base Numbers'!$C$7) -> 48 | K31: 1.2 | L31: 5 | M31: 23 | N31: 34 | O31: 20 | P31: 24
B32: 20 | C32: 89 | D32: 111 | E32: 1.247191011 | F32: 9 | G32: 41 | H32: 56 | I32: =O32*(2+'Base Numbers'!$C$7) -> 60 | J32: =P32*(2+'Base Numbers'!$C$7) -> 72 | K32: 1.2 | L32: 5 | M32: 23 | N32: 34 | O32: 20 | P32: 24
B35: notes
B36: Count spell slots as smites +1
B37: Count spell slots above 6th level as 5th level for smites
B38: L20 warlock ability returns all spell slots 1/day
F41: average slot level for number of max-level slots requested:
B42: Multiclass Caster Level | C42: Total Spell Levels | D42: max slot | E42: 0 | F42: 1 | G42: 2 | H42: 3 | I42: 4 | J42: 5 | K42: 6 | L42: 7 | M42: 8 | N42: 9 | O42: 10 | P42: 11 | Q42: 12 | R42: 13 | S42: 14 | T42: 15 | U42: 16 | V42: 17 | W42: 18 | X42: 19 | Y42: 20
B43: 0 | C43: 0 | D43: 0 | E43: 0 | F43: 0 | G43: 0 | H43: 0 | I43: 0 | J43: 0 | K43: 0 | L43: 0 | M43: 0 | N43: 0 | O43: 0 | P43: 0 | Q43: 0 | R43: 0 | S43: 0 | T43: 0 | U43: 0 | V43: 0 | W43: 0 | X43: 0 | Y43: 0
B44: 1 | C44: 2 | D44: 1 | E44: 0 | F44: =MIN($D$44,$C$44/F42) -> 1 | G44: =MIN($D$44,$C$44/G42) -> 1 | H44: 0.6666666667 | I44: 0.5 | J44: 0.4 | K44: 0.3333333333 | L44: 0.2857142857 | M44: 0.25 | N44: 0.2222222222 | O44: =MIN($D$44,$C$44/O42) -> 0.2 | P44: =MIN($D$44,$C$44/P42) -> 0.1818181818 | Q44: 0.1666666667 | R44: 0.1538461538 | S44: 0.1428571429 | T44: 0.1333333333 | U44: 0.125 | V44: 0.1176470588 | W44: 0.1111111111 | X44: 0.1052631579 | Y44: 0.1
B45: =B44+1 -> 2 | C45: 3 | D45: 1 | E45: 0 | F45: =MIN($D45,$C45/F42) -> 1 | G45: =MIN($D45,$C45/G42) -> 1 | H45: 1 | I45: 0.75 | J45: 0.6 | K45: 0.5 | L45: 0.4285714286 | M45: 0.375 | N45: 0.3333333333 | O45: 0.3 | P45: =MIN($D45,$C45/P42) -> 0.2727272727 | Q45: 0.25 | R45: 0.2307692308 | S45: 0.2142857143 | T45: 0.2 | U45: 0.1875 | V45: 0.1764705882 | W45: 0.1666666667 | X45: 0.1578947368 | Y45: 0.15
B46: 3 | C46: 8 | D46: 2 | E46: 0 | F46: 2 | G46: 2 | H46: =5/H42 -> 1.666666667 | I46: =6/I42 -> 1.5 | J46: =7/J42 -> 1.4 | K46: =8/K42 -> 1.333333333 | L46: =8/L42 -> 1.142857143 | M46: =8/M42 -> 1 | N46: =8/N42 -> 0.8888888889 | O46: =8/O42 -> 0.8 | P46: =8/P42 -> 0.7272727273 | Q46: 0.6666666667 | R46: 0.6153846154 | S46: 0.5714285714 | T46: 0.5333333333 | U46: 0.5 | V46: 0.4705882353 | W46: 0.4444444444 | X46: 0.4210526316 | Y46: 0.4
B47: 4 | C47: 10 | D47: 2 | E47: 0 | F47: 2 | G47: 2 | H47: 2 | I47: =7/I42 -> 1.75 | J47: =8/J42 -> 1.6 | K47: =9/K42 -> 1.5 | L47: =10/L42 -> 1.428571429 | M47: =10/M42 -> 1.25 | N47: =10/N42 -> 1.111111111 | O47: =10/O42 -> 1 | P47: =10/P42 -> 0.9090909091 | Q47: 0.8333333333 | R47: 0.7692307692 | S47: 0.7142857143 | T47: 0.6666666667 | U47: 0.625 | V47: 0.5882352941 | W47: 0.5555555556 | X47: 0.5263157895 | Y47: 0.5
B48: 5 | C48: 16 | D48: 3 | E48: 0 | F48: 3 | G48: 3 | H48: =8/3 -> 2.666666667 | I48: =10/4 -> 2.5 | J48: =12/5 -> 2.4 | K48: =13/6 -> 2.166666667 | L48: =14/7 -> 2 | M48: =15/8 -> 1.875 | N48: =16/9 -> 1.777777778 | O48: =16/O42 -> 1.6 | P48: =16/P42 -> 1.454545455 | Q48: 1.333333333 | R48: 1.230769231 | S48: 1.142857143 | T48: 1.066666667 | U48: 1 | V48: 0.9411764706 | W48: 0.8888888889 | X48: 0.8421052632 | Y48: 0.8
B49: 6 | C49: 19 | D49: 3 | E49: 0 | F49: 3 | G49: 3 | H49: 3 | I49: =11/4 -> 2.75 | J49: =13/5 -> 2.6 | K49: =15/6 -> 2.5 | L49: =16/7 -> 2.285714286 | M49: =18/8 -> 2.25 | N49: =19/9 -> 2.111111111 | O49: =19/O42 -> 1.9 | P49: =19/P42 -> 1.727272727 | Q49: 1.583333333 | R49: 1.461538462 | S49: 1.357142857 | T49: 1.266666667 | U49: 1.1875 | V49: 1.117647059 | W49: 1.055555556 | X49: 1 | Y49: 0.95
B50: 7 | C50: 23 | D50: 4 | E50: 0 | F50: 4 | G50: =7/2 -> 3.5 | H50: =10/3 -> 3.333333333 | I50: =13/4 -> 3.25 | J50: =15/5 -> 3 | K50: =17/6 -> 2.833333333 | L50: =19/7 -> 2.714285714 | M50: =20/8 -> 2.5 | N50: =21/9 -> 2.333333333 | O50: =22/10 -> 2.2 | P50: =22/P42 -> 2 | Q50: =22/Q42 -> 1.833333333 | R50: 1.692307692 | S50: 1.571428571 | T50: 1.466666667 | U50: 1.375 | V50: 1.294117647 | W50: 1.222222222 | X50: 1.157894737 | Y50: 1.1
B51: 8 | C51: 27 | D51: 4 | E51: 0 | F51: 4 | G51: 4 | H51: =11/3 -> 3.666666667 | I51: =14/4 -> 3.5 | J51: =17/5 -> 3.4 | K51: =19/6 -> 3.166666667 | L51: =21/7 -> 3 | M51: =23/8 -> 2.875 | N51: =24/9 -> 2.666666667 | O51: =25/10 -> 2.5 | P51: =26/11 -> 2.363636364 | Q51: =27/Q42 -> 2.25 | R51: =27/R42 -> 2.076923077 | S51: 1.928571429 | T51: 1.8 | U51: 1.6875 | V51: 1.588235294 | W51: 1.5 | X51: 1.421052632 | Y51: 1.35
B52: 9 | C52: 36 | D52: 5 | E52: 0 | F52: 5 | G52: =9/2 -> 4.5 | H52: =13/3 -> 4.333333333 | I52: =17/4 -> 4.25 | J52: =20/5 -> 4 | K52: =23/6 -> 3.833333333 | L52: =26/7 -> 3.714285714 | M52: =28/8 -> 3.5 | N52: =30/9 -> 3.333333333 | O52: =32/10 -> 3.2 | P52: =33/11 -> 3 | Q52: =34/12 -> 2.833333333 | R52: =35/13 -> 2.692307692 | S52: =36/S42 -> 2.571428571 | T52: =36/T42 -> 2.4 | U52: 2.25 | V52: 2.117647059 | W52: 2 | X52: 1.894736842 | Y52: 1.8
B53: 10 | C53: 41 | D53: 5 | E53: 0 | F53: 5 | G53: 5 | H53: =14/3 -> 4.666666667 | I53: =18/4 -> 4.5 | J53: =22/5 -> 4.4 | K53: =25/6 -> 4.166666667 | L53: =28/7 -> 4 | M53: =31/8 -> 3.875 | N53: =33/9 -> 3.666666667 | O53: =35/10 -> 3.5 | P53: =37/11 -> 3.363636364 | Q53: =38/12 -> 3.166666667 | R53: =39/13 -> 3 | S53: =40/14 -> 2.857142857 | T53: =41/T42 -> 2.733333333 | U53: 2.5625 | V53: 2.411764706 | W53: 2.277777778 | X53: 2.157894737 | Y53: 2.05
B54: 11 | C54: 47 | D54: 6 | E54: 0 | F54: 6 | G54: =11/2 -> 5.5 | H54: =16/3 -> 5.333333333 | I54: =20/4 -> 5 | J54: =24/5 -> 4.8 | K54: =28/6 -> 4.666666667 | L54: =31/7 -> 4.428571429 | M54: =34/8 -> 4.25 | N54: =37/9 -> 4.111111111 | O54: =39/10 -> 3.9 | P54: =41/11 -> 3.727272727 | Q54: =43/12 -> 3.583333333 | R54: =44/13 -> 3.384615385 | S54: =45/14 -> 3.214285714 | T54: =46/15 -> 3.066666667 | U54: =47/U42 -> 2.9375 | V54: =47/V42 -> 2.764705882 | W54: =47/W42 -> 2.611111111 | X54: =47/X42 -> 2.473684211 | Y54: =47/Y42 -> 2.35
B55: 12 | C55: 47 | D55: 6 | E55: 0 | F55: 6 | G55: =11/2 -> 5.5 | H55: =16/3 -> 5.333333333 | I55: =20/4 -> 5 | J55: =24/5 -> 4.8 | K55: =28/6 -> 4.666666667 | L55: =31/7 -> 4.428571429 | M55: =34/8 -> 4.25 | N55: =37/9 -> 4.111111111 | O55: =39/10 -> 3.9 | P55: 3.727272727 | Q55: 3.583333333 | R55: 3.384615385 | S55: 3.214285714 | T55: 3.066666667 | U55: 2.9375 | V55: 2.764705882 | W55: 2.611111111 | X55: 2.473684211 | Y55: 2.35
B56: 13 | C56: 54 | D56: 7 | E56: 0 | F56: 7 | G56: =13/2 -> 6.5 | H56: =18/3 -> 6 | I56: =23/4 -> 5.75 | J56: =27/5 -> 5.4 | K56: =31/6 -> 5.166666667 | L56: =35/7 -> 5 | M56: =38/8 -> 4.75 | N56: =41/9 -> 4.555555556 | O56: =44/10 -> 4.4 | P56: =46/11 -> 4.181818182 | Q56: =48/12 -> 4 | R56: =50/13 -> 3.846153846 | S56: =51/14 -> 3.642857143 | T56: =52/15 -> 3.466666667 | U56: =53/16 -> 3.3125 | V56: =54/V42 -> 3.176470588 | W56: =54/W42 -> 3 | X56: =54/X42 -> 2.842105263 | Y56: =54/Y42 -> 2.7
B57: 14 | C57: 54 | D57: 7 | E57: 0 | F57: 7 | G57: =13/2 -> 6.5 | H57: =18/3 -> 6 | I57: =23/4 -> 5.75 | J57: =27/5 -> 5.4 | K57: =31/6 -> 5.166666667 | L57: =35/7 -> 5 | M57: =38/8 -> 4.75 | N57: =41/9 -> 4.555555556 | O57: 4.4 | P57: 4.181818182 | Q57: 4 | R57: 3.846153846 | S57: 3.642857143 | T57: 3.466666667 | U57: 3.3125 | V57: 3.176470588 | W57: 3 | X57: 2.842105263 | Y57: 2.7
B58: 15 | C58: 62 | D58: 8 | E58: 0 | F58: 8 | G58: =15/2 -> 7.5 | H58: =21/3 -> 7 | I58: =26/4 -> 6.5 | J58: =31/5 -> 6.2 | K58: =35/6 -> 5.833333333 | L58: =39/7 -> 5.571428571 | M58: =43/8 -> 5.375 | N58: =46/9 -> 5.111111111 | O58: =49/10 -> 4.9 | P58: =52/11 -> 4.727272727 | Q58: =54/12 -> 4.5 | R58: =56/13 -> 4.307692308 | S58: =58/14 -> 4.142857143 | T58: =59/15 -> 3.933333333 | U58: =60/16 -> 3.75 | V58: =61/17 -> 3.588235294 | W58: =62/W42 -> 3.444444444 | X58: =62/X42 -> 3.263157895 | Y58: =62/Y42 -> 3.1
B59: 16 | C59: 62 | D59: 8 | E59: 0 | F59: 8 | G59: =15/2 -> 7.5 | H59: =21/3 -> 7 | I59: =26/4 -> 6.5 | J59: =31/5 -> 6.2 | K59: =35/6 -> 5.833333333 | L59: =39/7 -> 5.571428571 | M59: =43/8 -> 5.375 | N59: =46/9 -> 5.111111111 | O59: =49/10 -> 4.9 | P59: 4.727272727 | Q59: 4.5 | R59: 4.307692308 | S59: 4.142857143 | T59: =59/15 -> 3.933333333 | U59: 3.75 | V59: 3.588235294 | W59: 3.444444444 | X59: 3.263157895 | Y59: 3.1
B60: 17 | C60: 71 | D60: 9 | E60: 0 | F60: 9 | G60: =17/2 -> 8.5 | H60: =24/3 -> 8 | I60: =30/4 -> 7.5 | J60: =35/5 -> 7 | K60: =40/6 -> 6.666666667 | L60: =44/7 -> 6.285714286 | M60: =48/8 -> 6 | N60: =52/9 -> 5.777777778 | O60: =55/10 -> 5.5 | P60: =58/11 -> 5.272727273 | Q60: =61/12 -> 5.083333333 | R60: =63/13 -> 4.846153846 | S60: =65/14 -> 4.642857143 | T60: =67/15 -> 4.466666667 | U60: =68/16 -> 4.25 | V60: =69/17 -> 4.058823529 | W60: =70/18 -> 3.888888889 | X60: =71/19 -> 3.736842105 | Y60: =71/20 -> 3.55
B61: 18 | C61: 76 | D61: 9 | E61: 0 | F61: 9 | G61: =17/2 -> 8.5 | H61: =24/3 -> 8 | I61: =30/4 -> 7.5 | J61: =35/5 -> 7 | K61: =40/6 -> 6.666666667 | L61: =45/7 -> 6.428571429 | M61: =49/8 -> 6.125 | N61: =53/9 -> 5.888888889 | O61: =57/10 -> 5.7 | P61: =60/11 -> 5.454545455 | Q61: =63/12 -> 5.25 | R61: =66/13 -> 5.076923077 | S61: =68/14 -> 4.857142857 | T61: =70/15 -> 4.666666667 | U61: =72/16 -> 4.5 | V61: =73/17 -> 4.294117647 | W61: =74/18 -> 4.111111111 | X61: =75/19 -> 3.947368421 | Y61: =76/20 -> 3.8
B62: 19 | C62: 82 | D62: 9 | E62: 0 | F62: 9 | G62: =17/2 -> 8.5 | H62: =24/3 -> 8 | I62: =30/4 -> 7.5 | J62: =36/5 -> 7.2 | K62: =41/6 -> 6.833333333 | L62: =46/7 -> 6.571428571 | M62: =51/8 -> 6.375 | N62: =55/9 -> 6.111111111 | O62: =59/10 -> 5.9 | P62: =63/11 -> 5.727272727 | Q62: =66/12 -> 5.5 | R62: =69/13 -> 5.307692308 | S62: =72/14 -> 5.142857143 | T62: =74/15 -> 4.933333333 | U62: =76/16 -> 4.75 | V62: =78/17 -> 4.588235294 | W62: =79/18 -> 4.388888889 | X62: =80/19 -> 4.210526316 | Y62: =81/20 -> 4.05
B63: 20 | C63: 89 | D63: 9 | E63: 0 | F63: 9 | G63: =17/2 -> 8.5 | H63: =24/3 -> 8 | I63: =31/4 -> 7.75 | J63: =37/5 -> 7.4 | K63: =43/6 -> 7.166666667 | L63: =48/7 -> 6.857142857 | M63: =53/8 -> 6.625 | N63: =58/9 -> 6.444444444 | O63: =62/10 -> 6.2 | P63: =66/11 -> 6 | Q63: =70/12 -> 5.833333333 | R63: =73/13 -> 5.615384615 | S63: =76/14 -> 5.428571429 | T63: =79/15 -> 5.266666667 | U63: =81/16 -> 5.0625 | V63: =83/17 -> 4.882352941 | W63: =85/18 -> 4.722222222 | X63: =86/19 -> 4.526315789 | Y63: =87/20 -> 4.35
B69: Progresion:
B70: Level | C70: 1 | D70: 2 | E70: 3 | F70: 4 | G70: 5 | H70: 6 | I70: 7 | J70: 8 | K70: 9 | L70: 10 | M70: 11 | N70: 12 | O70: 13 | P70: 14 | Q70: 15 | R70: 16 | S70: 17 | T70: 18 | U70: 19 | V70: 20
B71: pct of fights without creatures with blindsight, truesight | C71: 1 | D71: 1 | E71: 1 | F71: 1 | G71: 1 | H71: 0.9 | I71: 0.9 | J71: 0.8 | K71: 0.8 | L71: 0.7 | M71: 0.6 | N71: 0.5 | O71: 0.4 | P71: 0.35 | Q71: 0.3 | R71: 0.2 | S71: 0.15 | T71: 0.1 | U71: 0.1 | V71: 0.1
B72: Monster Saves
B73: avg monster str save | C73: 0.2 | D73: 0.7 | E73: 1.5 | F73: 2.2 | G73: 2.5 | H73: 3 | I73: 3 | J73: 3.3 | K73: 3.6 | L73: 4 | M73: 4.3 | N73: 4.6 | O73: 5 | P73: 5.2 | Q73: 5.4 | R73: 5.6 | S73: 5.8 | T73: 6 | U73: 7 | V73: 8
B74: avg monster dex save | C74: 1 | D74: 1.3 | E74: 1.5 | F74: 1.7 | G74: 1.85 | H74: 2 | I74: 2.2 | J74: 2.5 | K74: 2.75 | L74: 3 | M74: 3.25 | N74: 3.5 | O74: 3.75 | P74: 4 | Q74: 5 | R74: 6 | S74: 6.5 | T74: 7 | U74: 7.5 | V74: 8
B75: avg monster con save | C75: 1 | D75: 1.5 | E75: 2 | F75: 2.5 | G75: 3 | H75: 3.5 | I75: 4 | J75: 4.5 | K75: 5 | L75: 5.5 | M75: 6 | N75: 6.5 | O75: 7 | P75: 8 | Q75: 9 | R75: 10 | S75: 11 | T75: 12 | U75: 13 | V75: 13
B76: avg monster int save | C76: -2 | D76: -1.3 | E76: -1 | F76: -0.5 | G76: -0.25 | H76: 0 | I76: 0.5 | J76: 1 | K76: 1.5 | L76: 2 | M76: 2.5 | N76: 3 | O76: 3 | P76: 3.25 | Q76: 3.5 | R76: 4 | S76: 4 | T76: 5 | U76: 6 | V76: 7
B77: avg monster wis save | C77: -0.5 | D77: 0 | E77: 0.5 | F77: 1 | G77: 1.50 | H77: 2 | I77: 2.5 | J77: 3 | K77: 3.5 | L77: 4 | M77: 4.5 | N77: 5 | O77: 5.5 | P77: 6 | Q77: 6.5 | R77: 7 | S77: 7.5 | T77: 8 | U77: 8.5 | V77: 9
B78: avg monster cha save | C78: -2 | D78: -1 | E78: 0 | F78: 0.25 | G78: 0.5 | H78: 0.75 | I78: 1 | J78: 2 | K78: 2.5 | L78: 3 | M78: 3.5 | N78: 4 | O78: 4.5 | P78: 5 | Q78: 6 | R78: 6.5 | S78: 7 | T78: 8 | U78: 9 | V78: 9
B79: Avg Monster DPR | C79: 2.5 | D79: 4.5 | E79: 7 | F79: 11.5 | G79: 17.5 | H79: 23.5 | I79: 29.5 | J79: 35.5 | K79: 41.5 | L79: 47.5 | M79: 53.5 | N79: 59.5 | O79: 65.5 | P79: 71.5 | Q79: 77.5 | R79: 83.5 | S79: 89.5 | T79: 95.5 | U79: 101.5 | V79: 107.5
B80: Monster NonMagic Immunity
B81: pct of monsters w/o non-magic weapon immunity | C81: 1 | D81: 1 | E81: 1 | F81: 0.9 | G81: 0.9 | H81: 0.8 | I81: 0.8 | J81: 0.75 | K81: 0.75 | L81: 0.7 | M81: 0.7 | N81: 0.65 | O81: 0.65 | P81: 0.6 | Q81: 0.55 | R81: 0.5 | S81: 0.4 | T81: 0.3 | U81: 0.3 | V81: 0.3

Sheet Smites
D4: SMITES - Gereral Info | E4: 1 | F4: 2 | G4: 3 | H4: 4 | I4: 5 | J4: 6 | K4: 7 | L4: 8 | M4: 9 | N4: 10 | O4: 11 | P4: 12 | Q4: 13 | R4: 14 | S4: 15 | T4: 16 | U4: 17 | V4: 18 | W4: 19 | X4: 20
D5: use all smite dice? (pal, warlock, wiz, sorc, priest, etc) | E5: =IF(AND(Sorcadins!E7>=2,Sorcadins!E137=0),1,0) -> 0 | F5: =IF(AND(Sorcadins!F7>=2,Sorcadins!F137=0),1,0) -> 0 | G5: =IF(AND(Sorcadins!G7>=2,Sorcadins!G137=0),1,0) -> 0 | H5: =IF(AND(Sorcadins!H7>=2,Sorcadins!H137=0),1,0) -> 0 | I5: =IF(AND(Sorcadins!I7>=2,Sorcadins!I137=0),1,0) -> 0 | J5: =IF(AND(Sorcadins!J7>=2,Sorcadins!J137=0),1,0) -> 0 | K5: =IF(AND(Sorcadins!K7>=2,Sorcadins!K137=0),1,0) -> 0 | L5: =IF(AND(Sorcadins!L7>=2,Sorcadins!L137=0),1,0) -> 0 | M5: =IF(AND(Sorcadins!M7>=2,Sorcadins!M137=0),1,0) -> 0 | N5: =IF(AND(Sorcadins!N7>=2,Sorcadins!N137=0),1,0) -> 0 | O5: =IF(AND(Sorcadins!O7>=2,Sorcadins!O137=0),1,0) -> 0 | P5: =IF(AND(Sorcadins!P7>=2,Sorcadins!P137=0),1,0) -> 0 | Q5: =IF(AND(Sorcadins!Q7>=2,Sorcadins!Q137=0),1,0) -> 0 | R5: =IF(AND(Sorcadins!R7>=2,Sorcadins!R137=0),1,0) -> 0 | S5: =IF(AND(Sorcadins!S7>=2,Sorcadins!S137=0),1,0) -> 0 | T5: =IF(AND(Sorcadins!T7>=2,Sorcadins!T137=0),1,0) -> 0 | U5: =IF(AND(Sorcadins!U7>=2,Sorcadins!U137=0),1,0) -> 0 | V5: =IF(AND(Sorcadins!V7>=2,Sorcadins!V137=0),1,0) -> 0 | W5: =IF(AND(Sorcadins!W7>=2,1),1,0) -> 0 | X5: =IF(AND(Sorcadins!X7>=2,Sorcadins!X137=0),1,0) -> 0
D6: use only warlock smite dice? | E6: =IF(AND(Sorcadins!E12>=5,Sorcadins!E49>=1,OR(Sorcadins!E7<=1,Sorcadins!E137>=1)),1,0) -> 0 | F6: =IF(AND(Sorcadins!F12>=5,Sorcadins!F49>=1,OR(Sorcadins!F7<=1,Sorcadins!F137>=1)),1,0) -> 0 | G6: =IF(AND(Sorcadins!G12>=5,Sorcadins!G49>=1,OR(Sorcadins!G7<=1,Sorcadins!G137>=1)),1,0) -> 0 | H6: =IF(AND(Sorcadins!H12>=5,Sorcadins!H49>=1,OR(Sorcadins!H7<=1,Sorcadins!H137>=1)),1,0) -> 0 | I6: =IF(AND(Sorcadins!I12>=5,Sorcadins!I49>=1,OR(Sorcadins!I7<=1,Sorcadins!I137>=1)),1,0) -> 0 | J6: =IF(AND(Sorcadins!J12>=5,Sorcadins!J49>=1,OR(Sorcadins!J7<=1,Sorcadins!J137>=1)),1,0) -> 0 | K6: =IF(AND(Sorcadins!K12>=5,Sorcadins!K49>=1,OR(Sorcadins!K7<=1,Sorcadins!K137>=1)),1,0) -> 0 | L6: =IF(AND(Sorcadins!L12>=5,Sorcadins!L49>=1,OR(Sorcadins!L7<=1,Sorcadins!L137>=1)),1,0) -> 0 | M6: =IF(AND(Sorcadins!M12>=5,Sorcadins!M49>=1,OR(Sorcadins!M7<=1,Sorcadins!M137>=1)),1,0) -> 0 | N6: =IF(AND(Sorcadins!N12>=5,Sorcadins!N49>=1,OR(Sorcadins!N7<=1,Sorcadins!N137>=1)),1,0) -> 0 | O6: =IF(AND(Sorcadins!O12>=5,Sorcadins!O49>=1,OR(Sorcadins!O7<=1,Sorcadins!O137>=1)),1,0) -> 0 | P6: =IF(AND(Sorcadins!P12>=5,Sorcadins!P49>=1,OR(Sorcadins!P7<=1,Sorcadins!P137>=1)),1,0) -> 0 | Q6: =IF(AND(Sorcadins!Q12>=5,Sorcadins!Q49>=1,OR(Sorcadins!Q7<=1,Sorcadins!Q137>=1)),1,0) -> 0 | R6: =IF(AND(Sorcadins!R12>=5,Sorcadins!R49>=1,OR(Sorcadins!R7<=1,Sorcadins!R137>=1)),1,0) -> 0 | S6: =IF(AND(Sorcadins!S12>=5,Sorcadins!S49>=1,OR(Sorcadins!S7<=1,Sorcadins!S137>=1)),1,0) -> 0 | T6: =IF(AND(Sorcadins!T12>=5,Sorcadins!T49>=1,OR(Sorcadins!T7<=1,Sorcadins!T137>=1)),1,0) -> 0 | U6: =IF(AND(Sorcadins!U12>=5,Sorcadins!U49>=1,OR(Sorcadins!U7<=1,Sorcadins!U137>=1)),1,0) -> 0 | V6: =IF(AND(Sorcadins!V12>=5,Sorcadins!V49>=1,OR(Sorcadins!V7<=1,Sorcadins!V137>=1)),1,0) -> 0 | W6: =IF(AND(Sorcadins!W12>=5,Sorcadins!W49>=1,OR(Sorcadins!W7<=1,Sorcadins!W137>=1)),1,0) -> 0 | X6: =IF(AND(Sorcadins!X12>=5,Sorcadins!X49>=1,OR(Sorcadins!X7<=1,Sorcadins!X137>=1)),1,0) -> 0
D7: max smite dice per smite | E7: =IF(OR(Sorcadins!E12>=5,Sorcadins!E7>=2),MIN(IF(E6,6,5),Sorcadins!E274+1),0) -> 0 | F7: =IF(OR(Sorcadins!F12>=5,Sorcadins!F7>=2),MIN(IF(F6,6,5),Sorcadins!F274+1),0) -> 0 | G7: =IF(OR(Sorcadins!G12>=5,Sorcadins!G7>=2),MIN(IF(G6,6,5),Sorcadins!G274+1),0) -> 0 | H7: =IF(OR(Sorcadins!H12>=5,Sorcadins!H7>=2),MIN(IF(H6,6,5),Sorcadins!H274+1),0) -> 0 | I7: =IF(OR(Sorcadins!I12>=5,Sorcadins!I7>=2),MIN(IF(I6,6,5),Sorcadins!I274+1),0) -> 0 | J7: =IF(OR(Sorcadins!J12>=5,Sorcadins!J7>=2),MIN(IF(J6,6,5),Sorcadins!J274+1),0) -> 0 | K7: =IF(OR(Sorcadins!K12>=5,Sorcadins!K7>=2),MIN(IF(K6,6,5),Sorcadins!K274+1),0) -> 0 | L7: =IF(OR(Sorcadins!L12>=5,Sorcadins!L7>=2),MIN(IF(L6,6,5),Sorcadins!L274+1),0) -> 0 | M7: =IF(OR(Sorcadins!M12>=5,Sorcadins!M7>=2),MIN(IF(M6,6,5),Sorcadins!M274+1),0) -> 0 | N7: =IF(OR(Sorcadins!N12>=5,Sorcadins!N7>=2),MIN(IF(N6,6,5),Sorcadins!N274+1),0) -> 0 | O7: =IF(OR(Sorcadins!O12>=5,Sorcadins!O7>=2),MIN(IF(O6,6,5),Sorcadins!O274+1),0) -> 0 | P7: =IF(OR(Sorcadins!P12>=5,Sorcadins!P7>=2),MIN(IF(P6,6,5),Sorcadins!P274+1),0) -> 0 | Q7: =IF(OR(Sorcadins!Q12>=5,Sorcadins!Q7>=2),MIN(IF(Q6,6,5),Sorcadins!Q274+1),0) -> 0 | R7: =IF(OR(Sorcadins!R12>=5,Sorcadins!R7>=2),MIN(IF(R6,6,5),Sorcadins!R274+1),0) -> 0 | S7: =IF(OR(Sorcadins!S12>=5,Sorcadins!S7>=2),MIN(IF(S6,6,5),Sorcadins!S274+1),0) -> 0 | T7: =IF(OR(Sorcadins!T12>=5,Sorcadins!T7>=2),MIN(IF(T6,6,5),Sorcadins!T274+1),0) -> 0 | U7: =IF(OR(Sorcadins!U12>=5,Sorcadins!U7>=2),MIN(IF(U6,6,5),Sorcadins!U274+1),0) -> 0 | V7: =IF(OR(Sorcadins!V12>=5,Sorcadins!V7>=2),MIN(IF(V6,6,5),Sorcadins!V274+1),0) -> 0 | W7: =IF(OR(Sorcadins!W12>=5,Sorcadins!W7>=2),MIN(IF(W6,6,5),Sorcadins!W274+1),0) -> 0 | X7: =IF(OR(Sorcadins!X12>=5,Sorcadins!X7>=2),MIN(IF(X6,6,5),Sorcadins!X274+1),0) -> 0
D9: SMITES - M1, B1, O1/O2 | E9: 1 | F9: 2 | G9: 3 | H9: 4 | I9: 5 | J9: 6 | K9: 7 | L9: 8 | M9: 9 | N9: 10 | O9: 11 | P9: 12 | Q9: 13 | R9: 14 | S9: 15 | T9: 16 | U9: 17 | V9: 18 | W9: 19 | X9: 20
D10: remaining sorcery points (based on Damage Scenario) | E10: =MAX(0,Sorcadins!E$561-Sorcadins!E$1276) -> 0 | F10: =MAX(0,Sorcadins!F$561-Sorcadins!F$1276) -> 0 | G10: =MAX(0,Sorcadins!G$561-Sorcadins!G$1276) -> 0 | H10: =MAX(0,Sorcadins!H$561-Sorcadins!H$1276) -> 0 | I10: =MAX(0,Sorcadins!I$561-Sorcadins!I$1276) -> 0 | J10: =MAX(0,Sorcadins!J$561-Sorcadins!J$1276) -> 0 | K10: =MAX(0,Sorcadins!K$561-Sorcadins!K$1276) -> 0 | L10: =MAX(0,Sorcadins!L$561-Sorcadins!L$1276) -> 0 | M10: =MAX(0,Sorcadins!M$561-Sorcadins!M$1276) -> 0 | N10: =MAX(0,Sorcadins!N$561-Sorcadins!N$1276) -> 0 | O10: =MAX(0,Sorcadins!O$561-Sorcadins!O$1276) -> 0 | P10: =MAX(0,Sorcadins!P$561-Sorcadins!P$1276) -> 0 | Q10: =MAX(0,Sorcadins!Q$561-Sorcadins!Q$1276) -> 0 | R10: =MAX(0,Sorcadins!R$561-Sorcadins!R$1276) -> 0 | S10: =MAX(0,Sorcadins!S$561-Sorcadins!S$1276) -> 0 | T10: =MAX(0,Sorcadins!T$561-Sorcadins!T$1276) -> 0 | U10: =MAX(0,Sorcadins!U$561-Sorcadins!U$1276) -> 0 | V10: =MAX(0,Sorcadins!V$561-Sorcadins!V$1276) -> 0 | W10: =MAX(0,Sorcadins!W$561-Sorcadins!W$1276) -> 0 | X10: =MAX(0,Sorcadins!X$561-Sorcadins!X$1276) -> 0 | Z10: *Sorc points directly convertible to Smite Dice
D11: remaining spell slot levels (based on Damage Scenario) | E11: =MAX(0,Sorcadins!E$281-MAX(0,Sorcadins!E$1276-Sorcadins!E$561)) -> 0 | F11: =MAX(0,Sorcadins!F$281-MAX(0,Sorcadins!F$1276-Sorcadins!F$561)) -> 0 | G11: =MAX(0,Sorcadins!G$281-MAX(0,Sorcadins!G$1276-Sorcadins!G$561)) -> 0 | H11: =MAX(0,Sorcadins!H$281-MAX(0,Sorcadins!H$1276-Sorcadins!H$561)) -> 0 | I11: =MAX(0,Sorcadins!I$281-MAX(0,Sorcadins!I$1276-Sorcadins!I$561)) -> 0 | J11: =MAX(0,Sorcadins!J$281-MAX(0,Sorcadins!J$1276-Sorcadins!J$561)) -> 0 | K11: =MAX(0,Sorcadins!K$281-MAX(0,Sorcadins!K$1276-Sorcadins!K$561)) -> 0 | L11: =MAX(0,Sorcadins!L$281-MAX(0,Sorcadins!L$1276-Sorcadins!L$561)) -> 0 | M11: =MAX(0,Sorcadins!M$281-MAX(0,Sorcadins!M$1276-Sorcadins!M$561)) -> 0 | N11: =MAX(0,Sorcadins!N$281-MAX(0,Sorcadins!N$1276-Sorcadins!N$561)) -> 0 | O11: =MAX(0,Sorcadins!O$281-MAX(0,Sorcadins!O$1276-Sorcadins!O$561)) -> 0 | P11: =MAX(0,Sorcadins!P$281-MAX(0,Sorcadins!P$1276-Sorcadins!P$561)) -> 0 | Q11: =MAX(0,Sorcadins!Q$281-MAX(0,Sorcadins!Q$1276-Sorcadins!Q$561)) -> 0 | R11: =MAX(0,Sorcadins!R$281-MAX(0,Sorcadins!R$1276-Sorcadins!R$561)) -> 0 | S11: =MAX(0,Sorcadins!S$281-MAX(0,Sorcadins!S$1276-Sorcadins!S$561)) -> 0 | T11: =MAX(0,Sorcadins!T$281-MAX(0,Sorcadins!T$1276-Sorcadins!T$561)) -> 0 | U11: =MAX(0,Sorcadins!U$281-MAX(0,Sorcadins!U$1276-Sorcadins!U$561)) -> 0 | V11: =MAX(0,Sorcadins!V$281-MAX(0,Sorcadins!V$1276-Sorcadins!V$561)) -> 0 | W11: =MAX(0,Sorcadins!W$281-MAX(0,Sorcadins!W$1276-Sorcadins!W$561)) -> 0 | X11: =MAX(0,Sorcadins!X$281-MAX(0,Sorcadins!X$1276-Sorcadins!X$561)) -> 0
D12: total warlock smite levels remaining | E12: =MIN(Sorcadins!E$273*E11,Sorcadins!E$264) -> 0 | F12: =MIN(Sorcadins!F$273*F11,Sorcadins!F$264) -> 0 | G12: =MIN(Sorcadins!G$273*G11,Sorcadins!G$264) -> 0 | H12: =MIN(Sorcadins!H$273*H11,Sorcadins!H$264) -> 0 | I12: =MIN(Sorcadins!I$273*I11,Sorcadins!I$264) -> 0 | J12: =MIN(Sorcadins!J$273*J11,Sorcadins!J$264) -> 0 | K12: =MIN(Sorcadins!K$273*K11,Sorcadins!K$264) -> 0 | L12: =MIN(Sorcadins!L$273*L11,Sorcadins!L$264) -> 0 | M12: =MIN(Sorcadins!M$273*M11,Sorcadins!M$264) -> 0 | N12: =MIN(Sorcadins!N$273*N11,Sorcadins!N$264) -> 0 | O12: =MIN(Sorcadins!O$273*O11,Sorcadins!O$264) -> 0 | P12: =MIN(Sorcadins!P$273*P11,Sorcadins!P$264) -> 0 | Q12: =MIN(Sorcadins!Q$273*Q11,Sorcadins!Q$264) -> 0 | R12: =MIN(Sorcadins!R$273*R11,Sorcadins!R$264) -> 0 | S12: =MIN(Sorcadins!S$273*S11,Sorcadins!S$264) -> 0 | T12: =MIN(Sorcadins!T$273*T11,Sorcadins!T$264) -> 0 | U12: =MIN(Sorcadins!U$273*U11,Sorcadins!U$264) -> 0 | V12: =MIN(Sorcadins!V$273*V11,Sorcadins!V$264) -> 0 | W12: =MIN(Sorcadins!W$273*W11,Sorcadins!W$264) -> 0 | X12: =MIN(Sorcadins!X$273*X11,Sorcadins!X$264) -> 0
D13: total smite levels remaining | E13: =IF(E$5>=1,Sorcadins!E$273*E11+E10,IF(E$6,E12,0)) -> 0 | F13: =IF(F$5>=1,Sorcadins!F$273*F11+F10,IF(F$6,F12,0)) -> 0 | G13: =IF(G$5>=1,Sorcadins!G$273*G11+G10,IF(G$6,G12,0)) -> 0 | H13: =IF(H$5>=1,Sorcadins!H$273*H11+H10,IF(H$6,H12,0)) -> 0 | I13: =IF(I$5>=1,Sorcadins!I$273*I11+I10,IF(I$6,I12,0)) -> 0 | J13: =IF(J$5>=1,Sorcadins!J$273*J11+J10,IF(J$6,J12,0)) -> 0 | K13: =IF(K$5>=1,Sorcadins!K$273*K11+K10,IF(K$6,K12,0)) -> 0 | L13: =IF(L$5>=1,Sorcadins!L$273*L11+L10,IF(L$6,L12,0)) -> 0 | M13: =IF(M$5>=1,Sorcadins!M$273*M11+M10,IF(M$6,M12,0)) -> 0 | N13: =IF(N$5>=1,Sorcadins!N$273*N11+N10,IF(N$6,N12,0)) -> 0 | O13: =IF(O$5>=1,Sorcadins!O$273*O11+O10,IF(O$6,O12,0)) -> 0 | P13: =IF(P$5>=1,Sorcadins!P$273*P11+P10,IF(P$6,P12,0)) -> 0 | Q13: =IF(Q$5>=1,Sorcadins!Q$273*Q11+Q10,IF(Q$6,Q12,0)) -> 0 | R13: =IF(R$5>=1,Sorcadins!R$273*R11+R10,IF(R$6,R12,0)) -> 0 | S13: =IF(S$5>=1,Sorcadins!S$273*S11+S10,IF(S$6,S12,0)) -> 0 | T13: =IF(T$5>=1,Sorcadins!T$273*T11+T10,IF(T$6,T12,0)) -> 0 | U13: =IF(U$5>=1,Sorcadins!U$273*U11+U10,IF(U$6,U12,0)) -> 0 | V13: =IF(V$5>=1,Sorcadins!V$273*V11+V10,IF(V$6,V12,0)) -> 0 | W13: =IF(W$5>=1,Sorcadins!W$273*W11+W10,IF(W$6,W12,0)) -> 0 | X13: =IF(X$5>=1,Sorcadins!X$273*X11+X10,IF(X$6,X12,0)) -> 0
D14: max number of daily smites (total no of spells left after casts) | E14: =IF(E$6,Sorcadins!E$1157,IF(E$5,Sorcadins!E$282+E10/2,0)) -> 0 | F14: =IF(F$6,Sorcadins!F$1157,IF(F$5,Sorcadins!F$282+F10/2,0)) -> 0 | G14: =IF(G$6,Sorcadins!G$1157,IF(G$5,Sorcadins!G$282+G10/2,0)) -> 0 | H14: =IF(H$6,Sorcadins!H$1157,IF(H$5,Sorcadins!H$282+H10/2,0)) -> 0 | I14: =IF(I$6,Sorcadins!I$1157,IF(I$5,Sorcadins!I$282+I10/2,0)) -> 0 | J14: =IF(J$6,Sorcadins!J$1157,IF(J$5,Sorcadins!J$282+J10/2,0)) -> 0 | K14: =IF(K$6,Sorcadins!K$1157,IF(K$5,Sorcadins!K$282+K10/2,0)) -> 0 | L14: =IF(L$6,Sorcadins!L$1157,IF(L$5,Sorcadins!L$282+L10/2,0)) -> 0 | M14: =IF(M$6,Sorcadins!M$1157,IF(M$5,Sorcadins!M$282+M10/2,0)) -> 0 | N14: =IF(N$6,Sorcadins!N$1157,IF(N$5,Sorcadins!N$282+N10/2,0)) -> 0 | O14: =IF(O$6,Sorcadins!O$1157,IF(O$5,Sorcadins!O$282+O10/2,0)) -> 0 | P14: =IF(P$6,Sorcadins!P$1157,IF(P$5,Sorcadins!P$282+P10/2,0)) -> 0 | Q14: =IF(Q$6,Sorcadins!Q$1157,IF(Q$5,Sorcadins!Q$282+Q10/2,0)) -> 0 | R14: =IF(R$6,Sorcadins!R$1157,IF(R$5,Sorcadins!R$282+R10/2,0)) -> 0 | S14: =IF(S$6,Sorcadins!S$1157,IF(S$5,Sorcadins!S$282+S10/2,0)) -> 0 | T14: =IF(T$6,Sorcadins!T$1157,IF(T$5,Sorcadins!T$282+T10/2,0)) -> 0 | U14: =IF(U$6,Sorcadins!U$1157,IF(U$5,Sorcadins!U$282+U10/2,0)) -> 0 | V14: =IF(V$6,Sorcadins!V$1157,IF(V$5,Sorcadins!V$282+V10/2,0)) -> 0 | W14: =IF(W$6,Sorcadins!W$1157,IF(W$5,Sorcadins!W$282+W10/2,0)) -> 0 | X14: =IF(X$6,Sorcadins!X$1157,IF(X$5,Sorcadins!X$282+X10/2,0)) -> 0
D15: avg crits per day for smite purposes (based on Damage Scenario) | E15: ='Base Numbers'!$C$5*'Base Numbers'!$C$6*Sorcadins!E$1308 -> 1 | F15: ='Base Numbers'!$C$5*'Base Numbers'!$C$6*Sorcadins!F$1308 -> 1 | G15: ='Base Numbers'!$C$5*'Base Numbers'!$C$6*Sorcadins!G$1308 -> 1 | H15: ='Base Numbers'!$C$5*'Base Numbers'!$C$6*Sorcadins!H$1308 -> 1 | I15: ='Base Numbers'!$C$5*'Base Numbers'!$C$6*Sorcadins!I$1308 -> 1 | J15: ='Base Numbers'!$C$5*'Base Numbers'!$C$6*Sorcadins!J$1308 -> 1 | K15: ='Base Numbers'!$C$5*'Base Numbers'!$C$6*Sorcadins!K$1308 -> 1 | L15: ='Base Numbers'!$C$5*'Base Numbers'!$C$6*Sorcadins!L$1308 -> 1 | M15: ='Base Numbers'!$C$5*'Base Numbers'!$C$6*Sorcadins!M$1308 -> 1 | N15: ='Base Numbers'!$C$5*'Base Numbers'!$C$6*Sorcadins!N$1308 -> 1 | O15: ='Base Numbers'!$C$5*'Base Numbers'!$C$6*Sorcadins!O$1308 -> 1 | P15: ='Base Numbers'!$C$5*'Base Numbers'!$C$6*Sorcadins!P$1308 -> 1 | Q15: ='Base Numbers'!$C$5*'Base Numbers'!$C$6*Sorcadins!Q$1308 -> 1 | R15: ='Base Numbers'!$C$5*'Base Numbers'!$C$6*Sorcadins!R$1308 -> 1 | S15: ='Base Numbers'!$C$5*'Base Numbers'!$C$6*Sorcadins!S$1308 -> 1 | T15: ='Base Numbers'!$C$5*'Base Numbers'!$C$6*Sorcadins!T$1308 -> 1 | U15: ='Base Numbers'!$C$5*'Base Numbers'!$C$6*Sorcadins!U$1308 -> 1 | V15: ='Base Numbers'!$C$5*'Base Numbers'!$C$6*Sorcadins!V$1308 -> 1 | W15: ='Base Numbers'!$C$5*'Base Numbers'!$C$6*Sorcadins!W$1308 -> 1 | X15: ='Base Numbers'!$C$5*'Base Numbers'!$C$6*Sorcadins!X$1308 -> 1
D16: number of smites used on crits | E16: =MIN(E14,E15) -> 0 | F16: =MIN(F14,F15) -> 0 | G16: 0 | H16: 0 | I16: 0 | J16: 0 | K16: 0 | L16: 0 | M16: 0 | N16: 0 | O16: 0 | P16: 0 | Q16: 0 | R16: 0 | S16: 0 | T16: 0 | U16: 0 | V16: 0 | W16: 0 | X16: 0
D17: avg smite dice per crit | E17: =IF(E16>0,MIN(E$7,(E13/MIN(E16,E15))),0) -> 0 | F17: 0 | G17: 0 | H17: 0 | I17: =IF(I16>0,MIN(I$7,(I13/MIN(I16,I15))),0) -> 0 | J17: 0 | K17: 0 | L17: 0 | M17: =IF(M16>0,MIN(M$7,(M13/MIN(M16,M15))),0) -> 0 | N17: 0 | O17: 0 | P17: 0 | Q17: 0 | R17: 0 | S17: 0 | T17: 0 | U17: 0 | V17: 0 | W17: 0 | X17: 0
D18: smites left for non-crits | E18: =E14-E16 -> 0 | F18: 0 | G18: 0 | H18: 0 | I18: =I14-I16 -> 0 | J18: 0 | K18: 0 | L18: 0 | M18: 0 | N18: 0 | O18: 0 | P18: 0 | Q18: 0 | R18: 0 | S18: 0 | T18: 0 | U18: 0 | V18: 0 | W18: 0 | X18: 0
D19: total non-crit smite-qualifying attacks available | E19: =Sorcadins!E$1283*('Base Numbers'!$C$5*'Base Numbers'!$C$6)-E15 -> 19 | F19: =Sorcadins!F$1283*('Base Numbers'!$C$5*'Base Numbers'!$C$6)-F15 -> 19 | G19: =Sorcadins!G$1283*('Base Numbers'!$C$5*'Base Numbers'!$C$6)-G15 -> 19 | H19: =Sorcadins!H$1283*('Base Numbers'!$C$5*'Base Numbers'!$C$6)-H15 -> 19 | I19: =Sorcadins!I$1283*('Base Numbers'!$C$5*'Base Numbers'!$C$6)-I15 -> 19 | J19: =Sorcadins!J$1283*('Base Numbers'!$C$5*'Base Numbers'!$C$6)-J15 -> 19 | K19: =Sorcadins!K$1283*('Base Numbers'!$C$5*'Base Numbers'!$C$6)-K15 -> 19 | L19: =Sorcadins!L$1283*('Base Numbers'!$C$5*'Base Numbers'!$C$6)-L15 -> 19 | M19: =Sorcadins!M$1283*('Base Numbers'!$C$5*'Base Numbers'!$C$6)-M15 -> 19 | N19: =Sorcadins!N$1283*('Base Numbers'!$C$5*'Base Numbers'!$C$6)-N15 -> 19 | O19: =Sorcadins!O$1283*('Base Numbers'!$C$5*'Base Numbers'!$C$6)-O15 -> 19 | P19: =Sorcadins!P$1283*('Base Numbers'!$C$5*'Base Numbers'!$C$6)-P15 -> 19 | Q19: =Sorcadins!Q$1283*('Base Numbers'!$C$5*'Base Numbers'!$C$6)-Q15 -> 19 | R19: =Sorcadins!R$1283*('Base Numbers'!$C$5*'Base Numbers'!$C$6)-R15 -> 19 | S19: =Sorcadins!S$1283*('Base Numbers'!$C$5*'Base Numbers'!$C$6)-S15 -> 19 | T19: =Sorcadins!T$1283*('Base Numbers'!$C$5*'Base Numbers'!$C$6)-T15 -> 19 | U19: =Sorcadins!U$1283*('Base Numbers'!$C$5*'Base Numbers'!$C$6)-U15 -> 19 | V19: =Sorcadins!V$1283*('Base Numbers'!$C$5*'Base Numbers'!$C$6)-V15 -> 19 | W19: =Sorcadins!W$1283*('Base Numbers'!$C$5*'Base Numbers'!$C$6)-W15 -> 19 | X19: =Sorcadins!X$1283*('Base Numbers'!$C$5*'Base Numbers'!$C$6)-X15 -> 19
D20: smite dice left for non-crits | E20: =ROUND(MAX(0,E13-E15*E17),4) -> 0 | F20: 0 | G20: 0 | H20: 0 | I20: 0 | J20: 0 | K20: 0 | L20: 0 | M20: 0 | N20: 0 | O20: 0 | P20: 0 | Q20: 0 | R20: 0 | S20: 0 | T20: 0 | U20: 0 | V20: 0 | W20: 0 | X20: 0
D21: total smite dice used on crits | E21: =E16*E17 -> 0 | F21: =F16*F17 -> 0 | G21: 0 | H21: 0 | I21: 0 | J21: 0 | K21: 0 | L21: 0 | M21: 0 | N21: 0 | O21: 0 | P21: 0 | Q21: 0 | R21: 0 | S21: 0 | T21: 0 | U21: 0 | V21: 0 | W21: 0 | X21: 0
D22: total crit smite damage per day | E22: =9*E21 -> 0 | F22: =9*F21 -> 0 | G22: 0 | H22: 0 | I22: 0 | J22: 0 | K22: 0 | L22: 0 | M22: 0 | N22: 0 | O22: 0 | P22: 0 | Q22: 0 | R22: 0 | S22: 0 | T22: 0 | U22: 0 | V22: 0 | W22: 0 | X22: 0
D23: total non-crit smite damage per day | E23: =4.5*MIN(MIN(E19,E18)*E$7,E20) -> 0 | F23: =4.5*MIN(MIN(F19,F18)*F$7,F20) -> 0 | G23: 0 | H23: 0 | I23: 0 | J23: 0 | K23: 0 | L23: 0 | M23: 0 | N23: 0 | O23: 0 | P23: 0 | Q23: 0 | R23: 0 | S23: 0 | T23: 0 | U23: 0 | V23: 0 | W23: 0 | X23: 0
D24: leftover sorc points + spell levels | E24: =IF(E13>0,IF(Sorcadins!E$273>0,(Sorcadins!E$273*E11+E10-E16*E17-E23/4.5)/Sorcadins!E$273,0),E11+E10) -> 0 | F24: =IF(F13>0,IF(Sorcadins!F$273>0,(Sorcadins!F$273*F11+F10-F16*F17-F23/4.5)/Sorcadins!F$273,0),F11+F10) -> 0 | G24: =IF(G13>0,IF(Sorcadins!G$273>0,(Sorcadins!G$273*G11+G10-G16*G17-G23/4.5)/Sorcadins!G$273,0),G11+G10) -> 0 | H24: =IF(H13>0,IF(Sorcadins!H$273>0,(Sorcadins!H$273*H11+H10-H16*H17-H23/4.5)/Sorcadins!H$273,0),H11+H10) -> 0 | I24: =IF(I13>0,IF(Sorcadins!I$273>0,(Sorcadins!I$273*I11+I10-I16*I17-I23/4.5)/Sorcadins!I$273,0),I11+I10) -> 0 | J24: =IF(J13>0,IF(Sorcadins!J$273>0,(Sorcadins!J$273*J11+J10-J16*J17-J23/4.5)/Sorcadins!J$273,0),J11+J10) -> 0 | K24: =IF(K13>0,IF(Sorcadins!K$273>0,(Sorcadins!K$273*K11+K10-K16*K17-K23/4.5)/Sorcadins!K$273,0),K11+K10) -> 0 | L24: =IF(L13>0,IF(Sorcadins!L$273>0,(Sorcadins!L$273*L11+L10-L16*L17-L23/4.5)/Sorcadins!L$273,0),L11+L10) -> 0 | M24: =IF(M13>0,IF(Sorcadins!M$273>0,(Sorcadins!M$273*M11+M10-M16*M17-M23/4.5)/Sorcadins!M$273,0),M11+M10) -> 0 | N24: =IF(N13>0,IF(Sorcadins!N$273>0,(Sorcadins!N$273*N11+N10-N16*N17-N23/4.5)/Sorcadins!N$273,0),N11+N10) -> 0 | O24: =IF(O13>0,IF(Sorcadins!O$273>0,(Sorcadins!O$273*O11+O10-O16*O17-O23/4.5)/Sorcadins!O$273,0),O11+O10) -> 0 | P24: =IF(P13>0,IF(Sorcadins!P$273>0,(Sorcadins!P$273*P11+P10-P16*P17-P23/4.5)/Sorcadins!P$273,0),P11+P10) -> 0 | Q24: =IF(Q13>0,IF(Sorcadins!Q$273>0,(Sorcadins!Q$273*Q11+Q10-Q16*Q17-Q23/4.5)/Sorcadins!Q$273,0),Q11+Q10) -> 0 | R24: =IF(R13>0,IF(Sorcadins!R$273>0,(Sorcadins!R$273*R11+R10-R16*R17-R23/4.5)/Sorcadins!R$273,0),R11+R10) -> 0 | S24: =IF(S13>0,IF(Sorcadins!S$273>0,(Sorcadins!S$273*S11+S10-S16*S17-S23/4.5)/Sorcadins!S$273,0),S11+S10) -> 0 | T24: =IF(T13>0,IF(Sorcadins!T$273>0,(Sorcadins!T$273*T11+T10-T16*T17-T23/4.5)/Sorcadins!T$273,0),T11+T10) -> 0 | U24: =IF(U13>0,IF(Sorcadins!U$273>0,(Sorcadins!U$273*U11+U10-U16*U17-U23/4.5)/Sorcadins!U$273,0),U11+U10) -> 0 | V24: =IF(V13>0,IF(Sorcadins!V$273>0,(Sorcadins!V$273*V11+V10-V16*V17-V23/4.5)/Sorcadins!V$273,0),V11+V10) -> 0 | W24: =IF(W13>0,IF(Sorcadins!W$273>0,(Sorcadins!W$273*W11+W10-W16*W17-W23/4.5)/Sorcadins!W$273,0),W11+W10) -> 0 | X24: =IF(X13>0,IF(Sorcadins!X$273>0,(Sorcadins!X$273*X11+X10-X16*X17-X23/4.5)/Sorcadins!X$273,0),X11+X10) -> 0
D25: actual smites performed | E25: =E16+IF(E$7>0,MIN(E18,E19,E20/E$7),0) -> 0 | F25: =F16+IF(F$7>0,MIN(F18,F19,F20/F$7),0) -> 0 | G25: 0 | H25: 0 | I25: 0 | J25: 0 | K25: 0 | L25: 0 | M25: 0 | N25: 0 | O25: 0 | P25: 0 | Q25: 0 | R25: 0 | S25: 0 | T25: 0 | U25: 0 | V25: 0 | W25: 0 | X25: 0
D26: total daily smite damage: M1, B1, O1/O2 | E26: =E22+E23 -> 0 | F26: 0 | G26: 0 | H26: 0 | I26: 0 | J26: 0 | K26: 0 | L26: 0 | M26: 0 | N26: 0 | O26: 0 | P26: 0 | Q26: 0 | R26: 0 | S26: 0 | T26: 0 | U26: 0 | V26: 0 | W26: 0 | X26: 0
D28: SMITES - M1, B1, O3 | E28: 1 | F28: 2 | G28: 3 | H28: 4 | I28: 5 | J28: 6 | K28: 7 | L28: 8 | M28: 9 | N28: 10 | O28: 11 | P28: 12 | Q28: 13 | R28: 14 | S28: 15 | T28: 16 | U28: 17 | V28: 18 | W28: 19 | X28: 20
D29: remaining sorcery points (based on Damage Scenario) | E29: =MAX(0,Sorcadins!E$561-Sorcadins!E$1276) -> 0 | F29: =MAX(0,Sorcadins!F$561-Sorcadins!F$1276) -> 0 | G29: =MAX(0,Sorcadins!G$561-Sorcadins!G$1276) -> 0 | H29: =MAX(0,Sorcadins!H$561-Sorcadins!H$1276) -> 0 | I29: =MAX(0,Sorcadins!I$561-Sorcadins!I$1276) -> 0 | J29: =MAX(0,Sorcadins!J$561-Sorcadins!J$1276) -> 0 | K29: =MAX(0,Sorcadins!K$561-Sorcadins!K$1276) -> 0 | L29: =MAX(0,Sorcadins!L$561-Sorcadins!L$1276) -> 0 | M29: =MAX(0,Sorcadins!M$561-Sorcadins!M$1276) -> 0 | N29: =MAX(0,Sorcadins!N$561-Sorcadins!N$1276) -> 0 | O29: =MAX(0,Sorcadins!O$561-Sorcadins!O$1276) -> 0 | P29: =MAX(0,Sorcadins!P$561-Sorcadins!P$1276) -> 0 | Q29: =MAX(0,Sorcadins!Q$561-Sorcadins!Q$1276) -> 0 | R29: =MAX(0,Sorcadins!R$561-Sorcadins!R$1276) -> 0 | S29: =MAX(0,Sorcadins!S$561-Sorcadins!S$1276) -> 0 | T29: =MAX(0,Sorcadins!T$561-Sorcadins!T$1276) -> 0 | U29: =MAX(0,Sorcadins!U$561-Sorcadins!U$1276) -> 0 | V29: =MAX(0,Sorcadins!V$561-Sorcadins!V$1276) -> 0 | W29: =MAX(0,Sorcadins!W$561-Sorcadins!W$1276) -> 0 | X29: =MAX(0,Sorcadins!X$561-Sorcadins!X$1276) -> 0 | Z29: *Sorc points directly convertible to Smite Dice
D30: remaining spell slot levels (based on Damage Scenario) | E30: =MAX(0,Sorcadins!E$281-MAX(0,Sorcadins!E$1276-Sorcadins!E$561)) -> 0 | F30: =MAX(0,Sorcadins!F$281-MAX(0,Sorcadins!F$1276-Sorcadins!F$561)) -> 0 | G30: =MAX(0,Sorcadins!G$281-MAX(0,Sorcadins!G$1276-Sorcadins!G$561)) -> 0 | H30: =MAX(0,Sorcadins!H$281-MAX(0,Sorcadins!H$1276-Sorcadins!H$561)) -> 0 | I30: =MAX(0,Sorcadins!I$281-MAX(0,Sorcadins!I$1276-Sorcadins!I$561)) -> 0 | J30: =MAX(0,Sorcadins!J$281-MAX(0,Sorcadins!J$1276-Sorcadins!J$561)) -> 0 | K30: =MAX(0,Sorcadins!K$281-MAX(0,Sorcadins!K$1276-Sorcadins!K$561)) -> 0 | L30: =MAX(0,Sorcadins!L$281-MAX(0,Sorcadins!L$1276-Sorcadins!L$561)) -> 0 | M30: =MAX(0,Sorcadins!M$281-MAX(0,Sorcadins!M$1276-Sorcadins!M$561)) -> 0 | N30: =MAX(0,Sorcadins!N$281-MAX(0,Sorcadins!N$1276-Sorcadins!N$561)) -> 0 | O30: =MAX(0,Sorcadins!O$281-MAX(0,Sorcadins!O$1276-Sorcadins!O$561)) -> 0 | P30: =MAX(0,Sorcadins!P$281-MAX(0,Sorcadins!P$1276-Sorcadins!P$561)) -> 0 | Q30: =MAX(0,Sorcadins!Q$281-MAX(0,Sorcadins!Q$1276-Sorcadins!Q$561)) -> 0 | R30: =MAX(0,Sorcadins!R$281-MAX(0,Sorcadins!R$1276-Sorcadins!R$561)) -> 0 | S30: =MAX(0,Sorcadins!S$281-MAX(0,Sorcadins!S$1276-Sorcadins!S$561)) -> 0 | T30: =MAX(0,Sorcadins!T$281-MAX(0,Sorcadins!T$1276-Sorcadins!T$561)) -> 0 | U30: =MAX(0,Sorcadins!U$281-MAX(0,Sorcadins!U$1276-Sorcadins!U$561)) -> 0 | V30: =MAX(0,Sorcadins!V$281-MAX(0,Sorcadins!V$1276-Sorcadins!V$561)) -> 0 | W30: =MAX(0,Sorcadins!W$281-MAX(0,Sorcadins!W$1276-Sorcadins!W$561)) -> 0 | X30: =MAX(0,Sorcadins!X$281-MAX(0,Sorcadins!X$1276-Sorcadins!X$561)) -> 0
D31: total warlock smite levels remaining | E31: =MIN(Sorcadins!E$273*E30,Sorcadins!E$264) -> 0 | F31: =MIN(Sorcadins!F$273*F30,Sorcadins!F$264) -> 0 | G31: =MIN(Sorcadins!G$273*G30,Sorcadins!G$264) -> 0 | H31: =MIN(Sorcadins!H$273*H30,Sorcadins!H$264) -> 0 | I31: =MIN(Sorcadins!I$273*I30,Sorcadins!I$264) -> 0 | J31: =MIN(Sorcadins!J$273*J30,Sorcadins!J$264) -> 0 | K31: =MIN(Sorcadins!K$273*K30,Sorcadins!K$264) -> 0 | L31: =MIN(Sorcadins!L$273*L30,Sorcadins!L$264) -> 0 | M31: =MIN(Sorcadins!M$273*M30,Sorcadins!M$264) -> 0 | N31: =MIN(Sorcadins!N$273*N30,Sorcadins!N$264) -> 0 | O31: =MIN(Sorcadins!O$273*O30,Sorcadins!O$264) -> 0 | P31: =MIN(Sorcadins!P$273*P30,Sorcadins!P$264) -> 0 | Q31: =MIN(Sorcadins!Q$273*Q30,Sorcadins!Q$264) -> 0 | R31: =MIN(Sorcadins!R$273*R30,Sorcadins!R$264) -> 0 | S31: =MIN(Sorcadins!S$273*S30,Sorcadins!S$264) -> 0 | T31: =MIN(Sorcadins!T$273*T30,Sorcadins!T$264) -> 0 | U31: =MIN(Sorcadins!U$273*U30,Sorcadins!U$264) -> 0 | V31: =MIN(Sorcadins!V$273*V30,Sorcadins!V$264) -> 0 | W31: =MIN(Sorcadins!W$273*W30,Sorcadins!W$264) -> 0 | X31: =MIN(Sorcadins!X$273*X30,Sorcadins!X$264) -> 0
D32: total smite levels remaining | E32: =IF(E$5>=1,Sorcadins!E$273*E30+E29,IF(E$6,E31,0)) -> 0 | F32: =IF(F$5>=1,Sorcadins!F$273*F30+F29,IF(F$6,F31,0)) -> 0 | G32: =IF(G$5>=1,Sorcadins!G$273*G30+G29,IF(G$6,G31,0)) -> 0 | H32: =IF(H$5>=1,Sorcadins!H$273*H30+H29,IF(H$6,H31,0)) -> 0 | I32: =IF(I$5>=1,Sorcadins!I$273*I30+I29,IF(I$6,I31,0)) -> 0 | J32: =IF(J$5>=1,Sorcadins!J$273*J30+J29,IF(J$6,J31,0)) -> 0 | K32: =IF(K$5>=1,Sorcadins!K$273*K30+K29,IF(K$6,K31,0)) -> 0 | L32: =IF(L$5>=1,Sorcadins!L$273*L30+L29,IF(L$6,L31,0)) -> 0 | M32: =IF(M$5>=1,Sorcadins!M$273*M30+M29,IF(M$6,M31,0)) -> 0 | N32: =IF(N$5>=1,Sorcadins!N$273*N30+N29,IF(N$6,N31,0)) -> 0 | O32: =IF(O$5>=1,Sorcadins!O$273*O30+O29,IF(O$6,O31,0)) -> 0 | P32: =IF(P$5>=1,Sorcadins!P$273*P30+P29,IF(P$6,P31,0)) -> 0 | Q32: =IF(Q$5>=1,Sorcadins!Q$273*Q30+Q29,IF(Q$6,Q31,0)) -> 0 | R32: =IF(R$5>=1,Sorcadins!R$273*R30+R29,IF(R$6,R31,0)) -> 0 | S32: =IF(S$5>=1,Sorcadins!S$273*S30+S29,IF(S$6,S31,0)) -> 0 | T32: =IF(T$5>=1,Sorcadins!T$273*T30+T29,IF(T$6,T31,0)) -> 0 | U32: =IF(U$5>=1,Sorcadins!U$273*U30+U29,IF(U$6,U31,0)) -> 0 | V32: =IF(V$5>=1,Sorcadins!V$273*V30+V29,IF(V$6,V31,0)) -> 0 | W32: =IF(W$5>=1,Sorcadins!W$273*W30+W29,IF(W$6,W31,0)) -> 0 | X32: =IF(X$5>=1,Sorcadins!X$273*X30+X29,IF(X$6,X31,0)) -> 0
D33: max number of daily smites (after spells) | E33: =IF(E$6,Sorcadins!E$1157,IF(E$5,Sorcadins!E$282+E29/2,0)) -> 0 | F33: =IF(F$6,Sorcadins!F$1157,IF(F$5,Sorcadins!F$282+F29/2,0)) -> 0 | G33: =IF(G$6,Sorcadins!G$1157,IF(G$5,Sorcadins!G$282+G29/2,0)) -> 0 | H33: =IF(H$6,Sorcadins!H$1157,IF(H$5,Sorcadins!H$282+H29/2,0)) -> 0 | I33: =IF(I$6,Sorcadins!I$1157,IF(I$5,Sorcadins!I$282+I29/2,0)) -> 0 | J33: =IF(J$6,Sorcadins!J$1157,IF(J$5,Sorcadins!J$282+J29/2,0)) -> 0 | K33: =IF(K$6,Sorcadins!K$1157,IF(K$5,Sorcadins!K$282+K29/2,0)) -> 0 | L33: =IF(L$6,Sorcadins!L$1157,IF(L$5,Sorcadins!L$282+L29/2,0)) -> 0 | M33: =IF(M$6,Sorcadins!M$1157,IF(M$5,Sorcadins!M$282+M29/2,0)) -> 0 | N33: =IF(N$6,Sorcadins!N$1157,IF(N$5,Sorcadins!N$282+N29/2,0)) -> 0 | O33: =IF(O$6,Sorcadins!O$1157,IF(O$5,Sorcadins!O$282+O29/2,0)) -> 0 | P33: =IF(P$6,Sorcadins!P$1157,IF(P$5,Sorcadins!P$282+P29/2,0)) -> 0 | Q33: =IF(Q$6,Sorcadins!Q$1157,IF(Q$5,Sorcadins!Q$282+Q29/2,0)) -> 0 | R33: =IF(R$6,Sorcadins!R$1157,IF(R$5,Sorcadins!R$282+R29/2,0)) -> 0 | S33: =IF(S$6,Sorcadins!S$1157,IF(S$5,Sorcadins!S$282+S29/2,0)) -> 0 | T33: =IF(T$6,Sorcadins!T$1157,IF(T$5,Sorcadins!T$282+T29/2,0)) -> 0 | U33: =IF(U$6,Sorcadins!U$1157,IF(U$5,Sorcadins!U$282+U29/2,0)) -> 0 | V33: =IF(V$6,Sorcadins!V$1157,IF(V$5,Sorcadins!V$282+V29/2,0)) -> 0 | W33: =IF(W$6,Sorcadins!W$1157,IF(W$5,Sorcadins!W$282+W29/2,0)) -> 0 | X33: =IF(X$6,Sorcadins!X$1157,IF(X$5,Sorcadins!X$282+X29/2,0)) -> 0
D34: avg crits per day for smite purposes (based on Damage Scenario) | E34: ='Base Numbers'!$C$5*'Base Numbers'!$C$6*Sorcadins!E$1309 -> 0.8 | F34: ='Base Numbers'!$C$5*'Base Numbers'!$C$6*Sorcadins!F$1309 -> 0.8 | G34: ='Base Numbers'!$C$5*'Base Numbers'!$C$6*Sorcadins!G$1309 -> 0.8 | H34: ='Base Numbers'!$C$5*'Base Numbers'!$C$6*Sorcadins!H$1309 -> 0.8 | I34: ='Base Numbers'!$C$5*'Base Numbers'!$C$6*Sorcadins!I$1309 -> 0.8 | J34: ='Base Numbers'!$C$5*'Base Numbers'!$C$6*Sorcadins!J$1309 -> 0.8 | K34: ='Base Numbers'!$C$5*'Base Numbers'!$C$6*Sorcadins!K$1309 -> 0.8 | L34: ='Base Numbers'!$C$5*'Base Numbers'!$C$6*Sorcadins!L$1309 -> 0.8 | M34: ='Base Numbers'!$C$5*'Base Numbers'!$C$6*Sorcadins!M$1309 -> 0.8 | N34: ='Base Numbers'!$C$5*'Base Numbers'!$C$6*Sorcadins!N$1309 -> 0.8 | O34: ='Base Numbers'!$C$5*'Base Numbers'!$C$6*Sorcadins!O$1309 -> 0.8 | P34: ='Base Numbers'!$C$5*'Base Numbers'!$C$6*Sorcadins!P$1309 -> 0.8 | Q34: ='Base Numbers'!$C$5*'Base Numbers'!$C$6*Sorcadins!Q$1309 -> 0.8 | R34: ='Base Numbers'!$C$5*'Base Numbers'!$C$6*Sorcadins!R$1309 -> 0.8 | S34: ='Base Numbers'!$C$5*'Base Numbers'!$C$6*Sorcadins!S$1309 -> 0.8 | T34: ='Base Numbers'!$C$5*'Base Numbers'!$C$6*Sorcadins!T$1309 -> 0.8 | U34: ='Base Numbers'!$C$5*'Base Numbers'!$C$6*Sorcadins!U$1309 -> 0.8 | V34: ='Base Numbers'!$C$5*'Base Numbers'!$C$6*Sorcadins!V$1309 -> 0.8 | W34: ='Base Numbers'!$C$5*'Base Numbers'!$C$6*Sorcadins!W$1309 -> 0.8 | X34: ='Base Numbers'!$C$5*'Base Numbers'!$C$6*Sorcadins!X$1309 -> 0.8
D35: number of smites used on crits | E35: =MIN(E33,E34) -> 0 | F35: 0 | G35: 0 | H35: 0 | I35: 0 | J35: 0 | K35: 0 | L35: 0 | M35: 0 | N35: 0 | O35: 0 | P35: 0 | Q35: 0 | R35: 0 | S35: 0 | T35: 0 | U35: 0 | V35: 0 | W35: 0 | X35: 0
D36: avg smite dice per crit | E36: =IF(E35>0,MIN(E$7,(E32/MIN(E35,E34))),0) -> 0 | F36: 0 | G36: 0 | H36: 0 | I36: 0 | J36: 0 | K36: 0 | L36: 0 | M36: 0 | N36: 0 | O36: 0 | P36: 0 | Q36: 0 | R36: 0 | S36: 0 | T36: 0 | U36: 0 | V36: 0 | W36: 0 | X36: 0
D37: smites left for non-crits | E37: =E33-E35 -> 0 | F37: =F33-F35 -> 0 | G37: 0 | H37: 0 | I37: 0 | J37: 0 | K37: 0 | L37: 0 | M37: 0 | N37: 0 | O37: 0 | P37: 0 | Q37: 0 | R37: 0 | S37: 0 | T37: 0 | U37: 0 | V37: 0 | W37: 0 | X37: 0
D38: total non-crit smite-qualifying attacks available | E38: =Sorcadins!E$1284*('Base Numbers'!$C$5*'Base Numbers'!$C$6)-E34 -> 15.2 | F38: =Sorcadins!F$1284*('Base Numbers'!$C$5*'Base Numbers'!$C$6)-F34 -> 15.2 | G38: =Sorcadins!G$1284*('Base Numbers'!$C$5*'Base Numbers'!$C$6)-G34 -> 15.2 | H38: =Sorcadins!H$1284*('Base Numbers'!$C$5*'Base Numbers'!$C$6)-H34 -> 15.2 | I38: =Sorcadins!I$1284*('Base Numbers'!$C$5*'Base Numbers'!$C$6)-I34 -> 15.2 | J38: =Sorcadins!J$1284*('Base Numbers'!$C$5*'Base Numbers'!$C$6)-J34 -> 15.2 | K38: =Sorcadins!K$1284*('Base Numbers'!$C$5*'Base Numbers'!$C$6)-K34 -> 15.2 | L38: =Sorcadins!L$1284*('Base Numbers'!$C$5*'Base Numbers'!$C$6)-L34 -> 15.2 | M38: =Sorcadins!M$1284*('Base Numbers'!$C$5*'Base Numbers'!$C$6)-M34 -> 15.2 | N38: =Sorcadins!N$1284*('Base Numbers'!$C$5*'Base Numbers'!$C$6)-N34 -> 15.2 | O38: =Sorcadins!O$1284*('Base Numbers'!$C$5*'Base Numbers'!$C$6)-O34 -> 15.2 | P38: =Sorcadins!P$1284*('Base Numbers'!$C$5*'Base Numbers'!$C$6)-P34 -> 15.2 | Q38: =Sorcadins!Q$1284*('Base Numbers'!$C$5*'Base Numbers'!$C$6)-Q34 -> 15.2 | R38: =Sorcadins!R$1284*('Base Numbers'!$C$5*'Base Numbers'!$C$6)-R34 -> 15.2 | S38: =Sorcadins!S$1284*('Base Numbers'!$C$5*'Base Numbers'!$C$6)-S34 -> 15.2 | T38: =Sorcadins!T$1284*('Base Numbers'!$C$5*'Base Numbers'!$C$6)-T34 -> 15.2 | U38: =Sorcadins!U$1284*('Base Numbers'!$C$5*'Base Numbers'!$C$6)-U34 -> 15.2 | V38: =Sorcadins!V$1284*('Base Numbers'!$C$5*'Base Numbers'!$C$6)-V34 -> 15.2 | W38: =Sorcadins!W$1284*('Base Numbers'!$C$5*'Base Numbers'!$C$6)-W34 -> 15.2 | X38: =Sorcadins!X$1284*('Base Numbers'!$C$5*'Base Numbers'!$C$6)-X34 -> 15.2
D39: smite dice left for non-crits | E39: =ROUND(MAX(0,E32-E34*E36),4) -> 0 | F39: 0 | G39: 0 | H39: 0 | I39: 0 | J39: 0 | K39: 0 | L39: 0 | M39: 0 | N39: 0 | O39: 0 | P39: 0 | Q39: 0 | R39: 0 | S39: 0 | T39: 0 | U39: 0 | V39: 0 | W39: 0 | X39: 0
D40: total smite dice used on crits | E40: =E35*E36 -> 0 | F40: =F35*F36 -> 0 | G40: 0 | H40: 0 | I40: 0 | J40: 0 | K40: 0 | L40: 0 | M40: 0 | N40: 0 | O40: 0 | P40: 0 | Q40: 0 | R40: 0 | S40: 0 | T40: 0 | U40: 0 | V40: 0 | W40: 0 | X40: 0
D41: total crit smite damage per day | E41: =9*E40 -> 0 | F41: 0 | G41: 0 | H41: 0 | I41: 0 | J41: 0 | K41: 0 | L41: 0 | M41: 0 | N41: 0 | O41: 0 | P41: 0 | Q41: 0 | R41: 0 | S41: 0 | T41: 0 | U41: 0 | V41: 0 | W41: 0 | X41: 0
D42: total non-crit smite damage per day | E42: =4.5*MIN(MIN(E38,E37)*E$7,E39) -> 0 | F42: =4.5*MIN(MIN(F38,F37)*F$7,F39) -> 0 | G42: 0 | H42: 0 | I42: 0 | J42: 0 | K42: 0 | L42: 0 | M42: 0 | N42: 0 | O42: 0 | P42: 0 | Q42: 0 | R42: 0 | S42: 0 | T42: 0 | U42: 0 | V42: 0 | W42: 0 | X42: =4.5*MIN(MIN(X38,X37)*X$7,X39) -> 0
D43: leftover sorc points + spell levels | E43: =IF(E32>0,IF(Sorcadins!E$273>0,(Sorcadins!E$273*E30+E29-E35*E36-E42/4.5)/Sorcadins!E$273,0),E30+E29) -> 0 | F43: =IF(F32>0,IF(Sorcadins!F$273>0,(Sorcadins!F$273*F30+F29-F35*F36-F42/4.5)/Sorcadins!F$273,0),F30+F29) -> 0 | G43: =IF(G32>0,IF(Sorcadins!G$273>0,(Sorcadins!G$273*G30+G29-G35*G36-G42/4.5)/Sorcadins!G$273,0),G30+G29) -> 0 | H43: =IF(H32>0,IF(Sorcadins!H$273>0,(Sorcadins!H$273*H30+H29-H35*H36-H42/4.5)/Sorcadins!H$273,0),H30+H29) -> 0 | I43: =IF(I32>0,IF(Sorcadins!I$273>0,(Sorcadins!I$273*I30+I29-I35*I36-I42/4.5)/Sorcadins!I$273,0),I30+I29) -> 0 | J43: =IF(J32>0,IF(Sorcadins!J$273>0,(Sorcadins!J$273*J30+J29-J35*J36-J42/4.5)/Sorcadins!J$273,0),J30+J29) -> 0 | K43: =IF(K32>0,IF(Sorcadins!K$273>0,(Sorcadins!K$273*K30+K29-K35*K36-K42/4.5)/Sorcadins!K$273,0),K30+K29) -> 0 | L43: =IF(L32>0,IF(Sorcadins!L$273>0,(Sorcadins!L$273*L30+L29-L35*L36-L42/4.5)/Sorcadins!L$273,0),L30+L29) -> 0 | M43: =IF(M32>0,IF(Sorcadins!M$273>0,(Sorcadins!M$273*M30+M29-M35*M36-M42/4.5)/Sorcadins!M$273,0),M30+M29) -> 0 | N43: =IF(N32>0,IF(Sorcadins!N$273>0,(Sorcadins!N$273*N30+N29-N35*N36-N42/4.5)/Sorcadins!N$273,0),N30+N29) -> 0 | O43: =IF(O32>0,IF(Sorcadins!O$273>0,(Sorcadins!O$273*O30+O29-O35*O36-O42/4.5)/Sorcadins!O$273,0),O30+O29) -> 0 | P43: =IF(P32>0,IF(Sorcadins!P$273>0,(Sorcadins!P$273*P30+P29-P35*P36-P42/4.5)/Sorcadins!P$273,0),P30+P29) -> 0 | Q43: =IF(Q32>0,IF(Sorcadins!Q$273>0,(Sorcadins!Q$273*Q30+Q29-Q35*Q36-Q42/4.5)/Sorcadins!Q$273,0),Q30+Q29) -> 0 | R43: =IF(R32>0,IF(Sorcadins!R$273>0,(Sorcadins!R$273*R30+R29-R35*R36-R42/4.5)/Sorcadins!R$273,0),R30+R29) -> 0 | S43: =IF(S32>0,IF(Sorcadins!S$273>0,(Sorcadins!S$273*S30+S29-S35*S36-S42/4.5)/Sorcadins!S$273,0),S30+S29) -> 0 | T43: =IF(T32>0,IF(Sorcadins!T$273>0,(Sorcadins!T$273*T30+T29-T35*T36-T42/4.5)/Sorcadins!T$273,0),T30+T29) -> 0 | U43: =IF(U32>0,IF(Sorcadins!U$273>0,(Sorcadins!U$273*U30+U29-U35*U36-U42/4.5)/Sorcadins!U$273,0),U30+U29) -> 0 | V43: =IF(V32>0,IF(Sorcadins!V$273>0,(Sorcadins!V$273*V30+V29-V35*V36-V42/4.5)/Sorcadins!V$273,0),V30+V29) -> 0 | W43: =IF(W32>0,IF(Sorcadins!W$273>0,(Sorcadins!W$273*W30+W29-W35*W36-W42/4.5)/Sorcadins!W$273,0),W30+W29) -> 0 | X43: =IF(X32>0,IF(Sorcadins!X$273>0,(Sorcadins!X$273*X30+X29-X35*X36-X42/4.5)/Sorcadins!X$273,0),X30+X29) -> 0
D44: actual smites performed | E44: =E35+IF(E$7>0,MIN(E37,E38,E39/E$7),0) -> 0 | F44: =F35+IF(F$7>0,MIN(F37,F38,F39/F$7),0) -> 0 | G44: 0 | H44: 0 | I44: 0 | J44: 0 | K44: 0 | L44: 0 | M44: 0 | N44: 0 | O44: 0 | P44: 0 | Q44: 0 | R44: 0 | S44: 0 | T44: 0 | U44: 0 | V44: 0 | W44: 0 | X44: 0
D45: total daily smite damage: M1, B1, O3 | E45: =E41+E42 -> 0 | F45: 0 | G45: 0 | H45: 0 | I45: 0 | J45: 0 | K45: 0 | L45: 0 | M45: 0 | N45: 0 | O45: 0 | P45: 0 | Q45: 0 | R45: 0 | S45: 0 | T45: 0 | U45: 0 | V45: 0 | W45: 0 | X45: 0
D47: SMITES - M1, B2, O1/O2 | E47: 1 | F47: 2 | G47: 3 | H47: 4 | I47: 5 | J47: 6 | K47: 7 | L47: 8 | M47: 9 | N47: 10 | O47: 11 | P47: 12 | Q47: 13 | R47: 14 | S47: 15 | T47: 16 | U47: 17 | V47: 18 | W47: 19 | X47: 20
D48: remaining sorcery points (based on Damage Scenario) | E48: =MAX(0,Sorcadins!E$561-Sorcadins!E$1277) -> 0 | F48: =MAX(0,Sorcadins!F$561-Sorcadins!F$1277) -> 0 | G48: =MAX(0,Sorcadins!G$561-Sorcadins!G$1277) -> 0 | H48: =MAX(0,Sorcadins!H$561-Sorcadins!H$1277) -> 0 | I48: =MAX(0,Sorcadins!I$561-Sorcadins!I$1277) -> 0 | J48: =MAX(0,Sorcadins!J$561-Sorcadins!J$1277) -> 0 | K48: =MAX(0,Sorcadins!K$561-Sorcadins!K$1277) -> 0 | L48: =MAX(0,Sorcadins!L$561-Sorcadins!L$1277) -> 0 | M48: =MAX(0,Sorcadins!M$561-Sorcadins!M$1277) -> 0 | N48: =MAX(0,Sorcadins!N$561-Sorcadins!N$1277) -> 0 | O48: =MAX(0,Sorcadins!O$561-Sorcadins!O$1277) -> 0 | P48: =MAX(0,Sorcadins!P$561-Sorcadins!P$1277) -> 0 | Q48: =MAX(0,Sorcadins!Q$561-Sorcadins!Q$1277) -> 0 | R48: =MAX(0,Sorcadins!R$561-Sorcadins!R$1277) -> 0 | S48: =MAX(0,Sorcadins!S$561-Sorcadins!S$1277) -> 0 | T48: =MAX(0,Sorcadins!T$561-Sorcadins!T$1277) -> 0 | U48: =MAX(0,Sorcadins!U$561-Sorcadins!U$1277) -> 0 | V48: =MAX(0,Sorcadins!V$561-Sorcadins!V$1277) -> 0 | W48: =MAX(0,Sorcadins!W$561-Sorcadins!W$1277) -> 0 | X48: =MAX(0,Sorcadins!X$561-Sorcadins!X$1277) -> 0 | Z48: *Sorc points directly convertible to Smite Dice
D49: remaining spell slot levels (based on Damage Scenario) | E49: =MAX(0,Sorcadins!E$281-MAX(0,Sorcadins!E$1277-Sorcadins!E$561)) -> 0 | F49: =MAX(0,Sorcadins!F$281-MAX(0,Sorcadins!F$1277-Sorcadins!F$561)) -> 0 | G49: =MAX(0,Sorcadins!G$281-MAX(0,Sorcadins!G$1277-Sorcadins!G$561)) -> 0 | H49: =MAX(0,Sorcadins!H$281-MAX(0,Sorcadins!H$1277-Sorcadins!H$561)) -> 0 | I49: =MAX(0,Sorcadins!I$281-MAX(0,Sorcadins!I$1277-Sorcadins!I$561)) -> 0 | J49: =MAX(0,Sorcadins!J$281-MAX(0,Sorcadins!J$1277-Sorcadins!J$561)) -> 0 | K49: =MAX(0,Sorcadins!K$281-MAX(0,Sorcadins!K$1277-Sorcadins!K$561)) -> 0 | L49: =MAX(0,Sorcadins!L$281-MAX(0,Sorcadins!L$1277-Sorcadins!L$561)) -> 0 | M49: =MAX(0,Sorcadins!M$281-MAX(0,Sorcadins!M$1277-Sorcadins!M$561)) -> 0 | N49: =MAX(0,Sorcadins!N$281-MAX(0,Sorcadins!N$1277-Sorcadins!N$561)) -> 0 | O49: =MAX(0,Sorcadins!O$281-MAX(0,Sorcadins!O$1277-Sorcadins!O$561)) -> 0 | P49: =MAX(0,Sorcadins!P$281-MAX(0,Sorcadins!P$1277-Sorcadins!P$561)) -> 0 | Q49: =MAX(0,Sorcadins!Q$281-MAX(0,Sorcadins!Q$1277-Sorcadins!Q$561)) -> 0 | R49: =MAX(0,Sorcadins!R$281-MAX(0,Sorcadins!R$1277-Sorcadins!R$561)) -> 0 | S49: =MAX(0,Sorcadins!S$281-MAX(0,Sorcadins!S$1277-Sorcadins!S$561)) -> 0 | T49: =MAX(0,Sorcadins!T$281-MAX(0,Sorcadins!T$1277-Sorcadins!T$561)) -> 0 | U49: =MAX(0,Sorcadins!U$281-MAX(0,Sorcadins!U$1277-Sorcadins!U$561)) -> 0 | V49: =MAX(0,Sorcadins!V$281-MAX(0,Sorcadins!V$1277-Sorcadins!V$561)) -> 0 | W49: =MAX(0,Sorcadins!W$281-MAX(0,Sorcadins!W$1277-Sorcadins!W$561)) -> 0 | X49: =MAX(0,Sorcadins!X$281-MAX(0,Sorcadins!X$1277-Sorcadins!X$561)) -> 0
D50: total warlock smite levels remaining | E50: =MIN(Sorcadins!E$273*E49,Sorcadins!E$264) -> 0 | F50: =MIN(Sorcadins!F$273*F49,Sorcadins!F$264) -> 0 | G50: =MIN(Sorcadins!G$273*G49,Sorcadins!G$264) -> 0 | H50: =MIN(Sorcadins!H$273*H49,Sorcadins!H$264) -> 0 | I50: =MIN(Sorcadins!I$273*I49,Sorcadins!I$264) -> 0 | J50: =MIN(Sorcadins!J$273*J49,Sorcadins!J$264) -> 0 | K50: =MIN(Sorcadins!K$273*K49,Sorcadins!K$264) -> 0 | L50: =MIN(Sorcadins!L$273*L49,Sorcadins!L$264) -> 0 | M50: =MIN(Sorcadins!M$273*M49,Sorcadins!M$264) -> 0 | N50: =MIN(Sorcadins!N$273*N49,Sorcadins!N$264) -> 0 | O50: =MIN(Sorcadins!O$273*O49,Sorcadins!O$264) -> 0 | P50: =MIN(Sorcadins!P$273*P49,Sorcadins!P$264) -> 0 | Q50: =MIN(Sorcadins!Q$273*Q49,Sorcadins!Q$264) -> 0 | R50: =MIN(Sorcadins!R$273*R49,Sorcadins!R$264) -> 0 | S50: =MIN(Sorcadins!S$273*S49,Sorcadins!S$264) -> 0 | T50: =MIN(Sorcadins!T$273*T49,Sorcadins!T$264) -> 0 | U50: =MIN(Sorcadins!U$273*U49,Sorcadins!U$264) -> 0 | V50: =MIN(Sorcadins!V$273*V49,Sorcadins!V$264) -> 0 | W50: =MIN(Sorcadins!W$273*W49,Sorcadins!W$264) -> 0 | X50: =MIN(Sorcadins!X$273*X49,Sorcadins!X$264) -> 0
D51: total smite levels remaining | E51: =IF(E$5>=1,Sorcadins!E$273*E49+E48,IF(E$6,E50,0)) -> 0 | F51: =IF(F$5>=1,Sorcadins!F$273*F49+F48,IF(F$6,F50,0)) -> 0 | G51: =IF(G$5>=1,Sorcadins!G$273*G49+G48,IF(G$6,G50,0)) -> 0 | H51: =IF(H$5>=1,Sorcadins!H$273*H49+H48,IF(H$6,H50,0)) -> 0 | I51: =IF(I$5>=1,Sorcadins!I$273*I49+I48,IF(I$6,I50,0)) -> 0 | J51: =IF(J$5>=1,Sorcadins!J$273*J49+J48,IF(J$6,J50,0)) -> 0 | K51: =IF(K$5>=1,Sorcadins!K$273*K49+K48,IF(K$6,K50,0)) -> 0 | L51: =IF(L$5>=1,Sorcadins!L$273*L49+L48,IF(L$6,L50,0)) -> 0 | M51: =IF(M$5>=1,Sorcadins!M$273*M49+M48,IF(M$6,M50,0)) -> 0 | N51: =IF(N$5>=1,Sorcadins!N$273*N49+N48,IF(N$6,N50,0)) -> 0 | O51: =IF(O$5>=1,Sorcadins!O$273*O49+O48,IF(O$6,O50,0)) -> 0 | P51: =IF(P$5>=1,Sorcadins!P$273*P49+P48,IF(P$6,P50,0)) -> 0 | Q51: =IF(Q$5>=1,Sorcadins!Q$273*Q49+Q48,IF(Q$6,Q50,0)) -> 0 | R51: =IF(R$5>=1,Sorcadins!R$273*R49+R48,IF(R$6,R50,0)) -> 0 | S51: =IF(S$5>=1,Sorcadins!S$273*S49+S48,IF(S$6,S50,0)) -> 0 | T51: =IF(T$5>=1,Sorcadins!T$273*T49+T48,IF(T$6,T50,0)) -> 0 | U51: =IF(U$5>=1,Sorcadins!U$273*U49+U48,IF(U$6,U50,0)) -> 0 | V51: =IF(V$5>=1,Sorcadins!V$273*V49+V48,IF(V$6,V50,0)) -> 0 | W51: =IF(W$5>=1,Sorcadins!W$273*W49+W48,IF(W$6,W50,0)) -> 0 | X51: =IF(X$5>=1,Sorcadins!X$273*X49+X48,IF(X$6,X50,0)) -> 0
D52: max number of daily smites (after spells) | E52: =IF(E$6,Sorcadins!E$1157,IF(E$5,Sorcadins!E$282+E48/2,0)) -> 0 | F52: =IF(F$6,Sorcadins!F$1157,IF(F$5,Sorcadins!F$282+F48/2,0)) -> 0 | G52: =IF(G$6,Sorcadins!G$1157,IF(G$5,Sorcadins!G$282+G48/2,0)) -> 0 | H52: =IF(H$6,Sorcadins!H$1157,IF(H$5,Sorcadins!H$282+H48/2,0)) -> 0 | I52: =IF(I$6,Sorcadins!I$1157,IF(I$5,Sorcadins!I$282+I48/2,0)) -> 0 | J52: =IF(J$6,Sorcadins!J$1157,IF(J$5,Sorcadins!J$282+J48/2,0)) -> 0 | K52: =IF(K$6,Sorcadins!K$1157,IF(K$5,Sorcadins!K$282+K48/2,0)) -> 0 | L52: =IF(L$6,Sorcadins!L$1157,IF(L$5,Sorcadins!L$282+L48/2,0)) -> 0 | M52: =IF(M$6,Sorcadins!M$1157,IF(M$5,Sorcadins!M$282+M48/2,0)) -> 0 | N52: =IF(N$6,Sorcadins!N$1157,IF(N$5,Sorcadins!N$282+N48/2,0)) -> 0 | O52: =IF(O$6,Sorcadins!O$1157,IF(O$5,Sorcadins!O$282+O48/2,0)) -> 0 | P52: =IF(P$6,Sorcadins!P$1157,IF(P$5,Sorcadins!P$282+P48/2,0)) -> 0 | Q52: =IF(Q$6,Sorcadins!Q$1157,IF(Q$5,Sorcadins!Q$282+Q48/2,0)) -> 0 | R52: =IF(R$6,Sorcadins!R$1157,IF(R$5,Sorcadins!R$282+R48/2,0)) -> 0 | S52: =IF(S$6,Sorcadins!S$1157,IF(S$5,Sorcadins!S$282+S48/2,0)) -> 0 | T52: =IF(T$6,Sorcadins!T$1157,IF(T$5,Sorcadins!T$282+T48/2,0)) -> 0 | U52: =IF(U$6,Sorcadins!U$1157,IF(U$5,Sorcadins!U$282+U48/2,0)) -> 0 | V52: =IF(V$6,Sorcadins!V$1157,IF(V$5,Sorcadins!V$282+V48/2,0)) -> 0 | W52: =IF(W$6,Sorcadins!W$1157,IF(W$5,Sorcadins!W$282+W48/2,0)) -> 0 | X52: =IF(X$6,Sorcadins!X$1157,IF(X$5,Sorcadins!X$282+X48/2,0)) -> 0
D53: avg crits per day for smite purposes (based on Damage Scenario) | E53: ='Base Numbers'!$C$5*'Base Numbers'!$C$6*Sorcadins!E$1310 -> 1 | F53: ='Base Numbers'!$C$5*'Base Numbers'!$C$6*Sorcadins!F$1310 -> 1 | G53: ='Base Numbers'!$C$5*'Base Numbers'!$C$6*Sorcadins!G$1310 -> 1 | H53: ='Base Numbers'!$C$5*'Base Numbers'!$C$6*Sorcadins!H$1310 -> 1 | I53: ='Base Numbers'!$C$5*'Base Numbers'!$C$6*Sorcadins!I$1310 -> 1 | J53: ='Base Numbers'!$C$5*'Base Numbers'!$C$6*Sorcadins!J$1310 -> 1 | K53: ='Base Numbers'!$C$5*'Base Numbers'!$C$6*Sorcadins!K$1310 -> 1 | L53: ='Base Numbers'!$C$5*'Base Numbers'!$C$6*Sorcadins!L$1310 -> 1 | M53: ='Base Numbers'!$C$5*'Base Numbers'!$C$6*Sorcadins!M$1310 -> 1 | N53: ='Base Numbers'!$C$5*'Base Numbers'!$C$6*Sorcadins!N$1310 -> 1 | O53: ='Base Numbers'!$C$5*'Base Numbers'!$C$6*Sorcadins!O$1310 -> 1 | P53: ='Base Numbers'!$C$5*'Base Numbers'!$C$6*Sorcadins!P$1310 -> 1 | Q53: ='Base Numbers'!$C$5*'Base Numbers'!$C$6*Sorcadins!Q$1310 -> 1 | R53: ='Base Numbers'!$C$5*'Base Numbers'!$C$6*Sorcadins!R$1310 -> 1 | S53: ='Base Numbers'!$C$5*'Base Numbers'!$C$6*Sorcadins!S$1310 -> 1 | T53: ='Base Numbers'!$C$5*'Base Numbers'!$C$6*Sorcadins!T$1310 -> 1 | U53: ='Base Numbers'!$C$5*'Base Numbers'!$C$6*Sorcadins!U$1310 -> 1 | V53: ='Base Numbers'!$C$5*'Base Numbers'!$C$6*Sorcadins!V$1310 -> 1 | W53: ='Base Numbers'!$C$5*'Base Numbers'!$C$6*Sorcadins!W$1310 -> 1 | X53: ='Base Numbers'!$C$5*'Base Numbers'!$C$6*Sorcadins!X$1310 -> 1
D54: number of smites used on crits | E54: =MIN(E52,E53) -> 0 | F54: =MIN(F52,F53) -> 0 | G54: 0 | H54: 0 | I54: 0 | J54: 0 | K54: 0 | L54: 0 | M54: 0 | N54: 0 | O54: 0 | P54: 0 | Q54: 0 | R54: 0 | S54: 0 | T54: 0 | U54: 0 | V54: 0 | W54: 0 | X54: 0
D55: avg smite dice per crit | E55: =IF(E54>0,MIN(E$7,(E51/MIN(E54,E53))),0) -> 0 | F55: 0 | G55: 0 | H55: 0 | I55: 0 | J55: 0 | K55: 0 | L55: 0 | M55: 0 | N55: 0 | O55: 0 | P55: 0 | Q55: 0 | R55: 0 | S55: 0 | T55: 0 | U55: 0 | V55: 0 | W55: 0 | X55: 0
D56: smites left for non-crits | E56: =E52-E54 -> 0 | F56: =F52-F54 -> 0 | G56: 0 | H56: 0 | I56: 0 | J56: 0 | K56: 0 | L56: 0 | M56: 0 | N56: 0 | O56: 0 | P56: 0 | Q56: 0 | R56: 0 | S56: 0 | T56: 0 | U56: 0 | V56: 0 | W56: 0 | X56: 0
D57: total non-crit smite-qualifying attacks available | E57: =Sorcadins!E$1285*('Base Numbers'!$C$5*'Base Numbers'!$C$6)-E53 -> 19 | F57: =Sorcadins!F$1285*('Base Numbers'!$C$5*'Base Numbers'!$C$6)-F53 -> 19 | G57: =Sorcadins!G$1285*('Base Numbers'!$C$5*'Base Numbers'!$C$6)-G53 -> 19 | H57: =Sorcadins!H$1285*('Base Numbers'!$C$5*'Base Numbers'!$C$6)-H53 -> 19 | I57: =Sorcadins!I$1285*('Base Numbers'!$C$5*'Base Numbers'!$C$6)-I53 -> 19 | J57: =Sorcadins!J$1285*('Base Numbers'!$C$5*'Base Numbers'!$C$6)-J53 -> 19 | K57: =Sorcadins!K$1285*('Base Numbers'!$C$5*'Base Numbers'!$C$6)-K53 -> 19 | L57: =Sorcadins!L$1285*('Base Numbers'!$C$5*'Base Numbers'!$C$6)-L53 -> 19 | M57: =Sorcadins!M$1285*('Base Numbers'!$C$5*'Base Numbers'!$C$6)-M53 -> 19 | N57: =Sorcadins!N$1285*('Base Numbers'!$C$5*'Base Numbers'!$C$6)-N53 -> 19 | O57: =Sorcadins!O$1285*('Base Numbers'!$C$5*'Base Numbers'!$C$6)-O53 -> 19 | P57: =Sorcadins!P$1285*('Base Numbers'!$C$5*'Base Numbers'!$C$6)-P53 -> 19 | Q57: =Sorcadins!Q$1285*('Base Numbers'!$C$5*'Base Numbers'!$C$6)-Q53 -> 19 | R57: =Sorcadins!R$1285*('Base Numbers'!$C$5*'Base Numbers'!$C$6)-R53 -> 19 | S57: =Sorcadins!S$1285*('Base Numbers'!$C$5*'Base Numbers'!$C$6)-S53 -> 19 | T57: =Sorcadins!T$1285*('Base Numbers'!$C$5*'Base Numbers'!$C$6)-T53 -> 19 | U57: =Sorcadins!U$1285*('Base Numbers'!$C$5*'Base Numbers'!$C$6)-U53 -> 19 | V57: =Sorcadins!V$1285*('Base Numbers'!$C$5*'Base Numbers'!$C$6)-V53 -> 19 | W57: =Sorcadins!W$1285*('Base Numbers'!$C$5*'Base Numbers'!$C$6)-W53 -> 19 | X57: =Sorcadins!X$1285*('Base Numbers'!$C$5*'Base Numbers'!$C$6)-X53 -> 19
D58: smite dice left for non-crits | E58: =ROUND(MAX(0,E51-E53*E55),4) -> 0 | F58: 0 | G58: 0 | H58: 0 | I58: 0 | J58: 0 | K58: 0 | L58: 0 | M58: 0 | N58: 0 | O58: 0 | P58: 0 | Q58: 0 | R58: 0 | S58: 0 | T58: 0 | U58: 0 | V58: 0 | W58: 0 | X58: 0
D59: total smite dice used on crits | E59: =E54*E55 -> 0 | F59: 0 | G59: 0 | H59: 0 | I59: 0 | J59: 0 | K59: 0 | L59: 0 | M59: 0 | N59: 0 | O59: 0 | P59: 0 | Q59: 0 | R59: 0 | S59: 0 | T59: 0 | U59: 0 | V59: 0 | W59: 0 | X59: 0
D60: total crit smite damage per day | E60: =9*E59 -> 0 | F60: =9*F59 -> 0 | G60: 0 | H60: 0 | I60: 0 | J60: 0 | K60: 0 | L60: 0 | M60: 0 | N60: 0 | O60: 0 | P60: 0 | Q60: 0 | R60: 0 | S60: 0 | T60: 0 | U60: 0 | V60: 0 | W60: 0 | X60: 0
D61: total non-crit smite damage per day | E61: =4.5*MIN(MIN(E57,E56)*E$7,E58) -> 0 | F61: =4.5*MIN(MIN(F57,F56)*F$7,F58) -> 0 | G61: 0 | H61: 0 | I61: 0 | J61: 0 | K61: 0 | L61: 0 | M61: 0 | N61: 0 | O61: 0 | P61: 0 | Q61: 0 | R61: 0 | S61: 0 | T61: 0 | U61: 0 | V61: 0 | W61: 0 | X61: 0
D62: leftover sorc points + spell levels | E62: =IF(E51>0,IF(Sorcadins!E$273>0,(Sorcadins!E$273*E49+E48-E54*E55-E61/4.5)/Sorcadins!E$273,0),E49+E48) -> 0 | F62: =IF(F51>0,IF(Sorcadins!F$273>0,(Sorcadins!F$273*F49+F48-F54*F55-F61/4.5)/Sorcadins!F$273,0),F49+F48) -> 0 | G62: =IF(G51>0,IF(Sorcadins!G$273>0,(Sorcadins!G$273*G49+G48-G54*G55-G61/4.5)/Sorcadins!G$273,0),G49+G48) -> 0 | H62: =IF(H51>0,IF(Sorcadins!H$273>0,(Sorcadins!H$273*H49+H48-H54*H55-H61/4.5)/Sorcadins!H$273,0),H49+H48) -> 0 | I62: =IF(I51>0,IF(Sorcadins!I$273>0,(Sorcadins!I$273*I49+I48-I54*I55-I61/4.5)/Sorcadins!I$273,0),I49+I48) -> 0 | J62: =IF(J51>0,IF(Sorcadins!J$273>0,(Sorcadins!J$273*J49+J48-J54*J55-J61/4.5)/Sorcadins!J$273,0),J49+J48) -> 0 | K62: =IF(K51>0,IF(Sorcadins!K$273>0,(Sorcadins!K$273*K49+K48-K54*K55-K61/4.5)/Sorcadins!K$273,0),K49+K48) -> 0 | L62: =IF(L51>0,IF(Sorcadins!L$273>0,(Sorcadins!L$273*L49+L48-L54*L55-L61/4.5)/Sorcadins!L$273,0),L49+L48) -> 0 | M62: =IF(M51>0,IF(Sorcadins!M$273>0,(Sorcadins!M$273*M49+M48-M54*M55-M61/4.5)/Sorcadins!M$273,0),M49+M48) -> 0 | N62: =IF(N51>0,IF(Sorcadins!N$273>0,(Sorcadins!N$273*N49+N48-N54*N55-N61/4.5)/Sorcadins!N$273,0),N49+N48) -> 0 | O62: =IF(O51>0,IF(Sorcadins!O$273>0,(Sorcadins!O$273*O49+O48-O54*O55-O61/4.5)/Sorcadins!O$273,0),O49+O48) -> 0 | P62: =IF(P51>0,IF(Sorcadins!P$273>0,(Sorcadins!P$273*P49+P48-P54*P55-P61/4.5)/Sorcadins!P$273,0),P49+P48) -> 0 | Q62: =IF(Q51>0,IF(Sorcadins!Q$273>0,(Sorcadins!Q$273*Q49+Q48-Q54*Q55-Q61/4.5)/Sorcadins!Q$273,0),Q49+Q48) -> 0 | R62: =IF(R51>0,IF(Sorcadins!R$273>0,(Sorcadins!R$273*R49+R48-R54*R55-R61/4.5)/Sorcadins!R$273,0),R49+R48) -> 0 | S62: =IF(S51>0,IF(Sorcadins!S$273>0,(Sorcadins!S$273*S49+S48-S54*S55-S61/4.5)/Sorcadins!S$273,0),S49+S48) -> 0 | T62: =IF(T51>0,IF(Sorcadins!T$273>0,(Sorcadins!T$273*T49+T48-T54*T55-T61/4.5)/Sorcadins!T$273,0),T49+T48) -> 0 | U62: =IF(U51>0,IF(Sorcadins!U$273>0,(Sorcadins!U$273*U49+U48-U54*U55-U61/4.5)/Sorcadins!U$273,0),U49+U48) -> 0 | V62: =IF(V51>0,IF(Sorcadins!V$273>0,(Sorcadins!V$273*V49+V48-V54*V55-V61/4.5)/Sorcadins!V$273,0),V49+V48) -> 0 | W62: =IF(W51>0,IF(Sorcadins!W$273>0,(Sorcadins!W$273*W49+W48-W54*W55-W61/4.5)/Sorcadins!W$273,0),W49+W48) -> 0 | X62: =IF(X51>0,IF(Sorcadins!X$273>0,(Sorcadins!X$273*X49+X48-X54*X55-X61/4.5)/Sorcadins!X$273,0),X49+X48) -> 0
D63: actual smites performed | E63: =E54+IF(E$7>0,MIN(E56,E57,E58/E$7),0) -> 0 | F63: =F54+IF(F$7>0,MIN(F56,F57,F58/F$7),0) -> 0 | G63: 0 | H63: 0 | I63: 0 | J63: 0 | K63: 0 | L63: 0 | M63: 0 | N63: 0 | O63: 0 | P63: 0 | Q63: 0 | R63: 0 | S63: 0 | T63: 0 | U63: 0 | V63: 0 | W63: 0 | X63: 0
D64: total daily smite damage: M1, B2, O1/O2 | E64: =E60+E61 -> 0 | F64: =F60+F61 -> 0 | G64: 0 | H64: 0 | I64: 0 | J64: 0 | K64: 0 | L64: 0 | M64: 0 | N64: 0 | O64: 0 | P64: 0 | Q64: 0 | R64: 0 | S64: 0 | T64: 0 | U64: 0 | V64: 0 | W64: 0 | X64: 0
D66: SMITES - M1, B2, O3 | E66: 1 | F66: 2 | G66: 3 | H66: 4 | I66: 5 | J66: 6 | K66: 7 | L66: 8 | M66: 9 | N66: 10 | O66: 11 | P66: 12 | Q66: 13 | R66: 14 | S66: 15 | T66: 16 | U66: 17 | V66: 18 | W66: 19 | X66: 20
D67: remaining sorcery points (based on Damage Scenario) | E67: =MAX(0,Sorcadins!E$561-Sorcadins!E$1277) -> 0 | F67: =MAX(0,Sorcadins!F$561-Sorcadins!F$1277) -> 0 | G67: =MAX(0,Sorcadins!G$561-Sorcadins!G$1277) -> 0 | H67: =MAX(0,Sorcadins!H$561-Sorcadins!H$1277) -> 0 | I67: =MAX(0,Sorcadins!I$561-Sorcadins!I$1277) -> 0 | J67: =MAX(0,Sorcadins!J$561-Sorcadins!J$1277) -> 0 | K67: =MAX(0,Sorcadins!K$561-Sorcadins!K$1277) -> 0 | L67: =MAX(0,Sorcadins!L$561-Sorcadins!L$1277) -> 0 | M67: =MAX(0,Sorcadins!M$561-Sorcadins!M$1277) -> 0 | N67: =MAX(0,Sorcadins!N$561-Sorcadins!N$1277) -> 0 | O67: =MAX(0,Sorcadins!O$561-Sorcadins!O$1277) -> 0 | P67: =MAX(0,Sorcadins!P$561-Sorcadins!P$1277) -> 0 | Q67: =MAX(0,Sorcadins!Q$561-Sorcadins!Q$1277) -> 0 | R67: =MAX(0,Sorcadins!R$561-Sorcadins!R$1277) -> 0 | S67: =MAX(0,Sorcadins!S$561-Sorcadins!S$1277) -> 0 | T67: =MAX(0,Sorcadins!T$561-Sorcadins!T$1277) -> 0 | U67: =MAX(0,Sorcadins!U$561-Sorcadins!U$1277) -> 0 | V67: =MAX(0,Sorcadins!V$561-Sorcadins!V$1277) -> 0 | W67: =MAX(0,Sorcadins!W$561-Sorcadins!W$1277) -> 0 | X67: =MAX(0,Sorcadins!X$561-Sorcadins!X$1277) -> 0 | Z67: *Sorc points directly convertible to Smite Dice
D68: remaining spell slot levels (based on Damage Scenario) | E68: =MAX(0,Sorcadins!E$281-MAX(0,Sorcadins!E$1277-Sorcadins!E$561)) -> 0 | F68: =MAX(0,Sorcadins!F$281-MAX(0,Sorcadins!F$1277-Sorcadins!F$561)) -> 0 | G68: =MAX(0,Sorcadins!G$281-MAX(0,Sorcadins!G$1277-Sorcadins!G$561)) -> 0 | H68: =MAX(0,Sorcadins!H$281-MAX(0,Sorcadins!H$1277-Sorcadins!H$561)) -> 0 | I68: =MAX(0,Sorcadins!I$281-MAX(0,Sorcadins!I$1277-Sorcadins!I$561)) -> 0 | J68: =MAX(0,Sorcadins!J$281-MAX(0,Sorcadins!J$1277-Sorcadins!J$561)) -> 0 | K68: =MAX(0,Sorcadins!K$281-MAX(0,Sorcadins!K$1277-Sorcadins!K$561)) -> 0 | L68: =MAX(0,Sorcadins!L$281-MAX(0,Sorcadins!L$1277-Sorcadins!L$561)) -> 0 | M68: =MAX(0,Sorcadins!M$281-MAX(0,Sorcadins!M$1277-Sorcadins!M$561)) -> 0 | N68: =MAX(0,Sorcadins!N$281-MAX(0,Sorcadins!N$1277-Sorcadins!N$561)) -> 0 | O68: =MAX(0,Sorcadins!O$281-MAX(0,Sorcadins!O$1277-Sorcadins!O$561)) -> 0 | P68: =MAX(0,Sorcadins!P$281-MAX(0,Sorcadins!P$1277-Sorcadins!P$561)) -> 0 | Q68: =MAX(0,Sorcadins!Q$281-MAX(0,Sorcadins!Q$1277-Sorcadins!Q$561)) -> 0 | R68: =MAX(0,Sorcadins!R$281-MAX(0,Sorcadins!R$1277-Sorcadins!R$561)) -> 0 | S68: =MAX(0,Sorcadins!S$281-MAX(0,Sorcadins!S$1277-Sorcadins!S$561)) -> 0 | T68: =MAX(0,Sorcadins!T$281-MAX(0,Sorcadins!T$1277-Sorcadins!T$561)) -> 0 | U68: =MAX(0,Sorcadins!U$281-MAX(0,Sorcadins!U$1277-Sorcadins!U$561)) -> 0 | V68: =MAX(0,Sorcadins!V$281-MAX(0,Sorcadins!V$1277-Sorcadins!V$561)) -> 0 | W68: =MAX(0,Sorcadins!W$281-MAX(0,Sorcadins!W$1277-Sorcadins!W$561)) -> 0 | X68: =MAX(0,Sorcadins!X$281-MAX(0,Sorcadins!X$1277-Sorcadins!X$561)) -> 0
D69: total warlock smite levels remaining | E69: =MIN(Sorcadins!E$273*E68,Sorcadins!E$264) -> 0 | F69: =MIN(Sorcadins!F$273*F68,Sorcadins!F$264) -> 0 | G69: =MIN(Sorcadins!G$273*G68,Sorcadins!G$264) -> 0 | H69: =MIN(Sorcadins!H$273*H68,Sorcadins!H$264) -> 0 | I69: =MIN(Sorcadins!I$273*I68,Sorcadins!I$264) -> 0 | J69: =MIN(Sorcadins!J$273*J68,Sorcadins!J$264) -> 0 | K69: =MIN(Sorcadins!K$273*K68,Sorcadins!K$264) -> 0 | L69: =MIN(Sorcadins!L$273*L68,Sorcadins!L$264) -> 0 | M69: =MIN(Sorcadins!M$273*M68,Sorcadins!M$264) -> 0 | N69: =MIN(Sorcadins!N$273*N68,Sorcadins!N$264) -> 0 | O69: =MIN(Sorcadins!O$273*O68,Sorcadins!O$264) -> 0 | P69: =MIN(Sorcadins!P$273*P68,Sorcadins!P$264) -> 0 | Q69: =MIN(Sorcadins!Q$273*Q68,Sorcadins!Q$264) -> 0 | R69: =MIN(Sorcadins!R$273*R68,Sorcadins!R$264) -> 0 | S69: =MIN(Sorcadins!S$273*S68,Sorcadins!S$264) -> 0 | T69: =MIN(Sorcadins!T$273*T68,Sorcadins!T$264) -> 0 | U69: =MIN(Sorcadins!U$273*U68,Sorcadins!U$264) -> 0 | V69: =MIN(Sorcadins!V$273*V68,Sorcadins!V$264) -> 0 | W69: =MIN(Sorcadins!W$273*W68,Sorcadins!W$264) -> 0 | X69: =MIN(Sorcadins!X$273*X68,Sorcadins!X$264) -> 0
D70: total smite levels remaining | E70: =IF(E$5>=1,Sorcadins!E$273*E68+E67,IF(E$6,E69,0)) -> 0 | F70: =IF(F$5>=1,Sorcadins!F$273*F68+F67,IF(F$6,F69,0)) -> 0 | G70: =IF(G$5>=1,Sorcadins!G$273*G68+G67,IF(G$6,G69,0)) -> 0 | H70: =IF(H$5>=1,Sorcadins!H$273*H68+H67,IF(H$6,H69,0)) -> 0 | I70: =IF(I$5>=1,Sorcadins!I$273*I68+I67,IF(I$6,I69,0)) -> 0 | J70: =IF(J$5>=1,Sorcadins!J$273*J68+J67,IF(J$6,J69,0)) -> 0 | K70: =IF(K$5>=1,Sorcadins!K$273*K68+K67,IF(K$6,K69,0)) -> 0 | L70: =IF(L$5>=1,Sorcadins!L$273*L68+L67,IF(L$6,L69,0)) -> 0 | M70: =IF(M$5>=1,Sorcadins!M$273*M68+M67,IF(M$6,M69,0)) -> 0 | N70: =IF(N$5>=1,Sorcadins!N$273*N68+N67,IF(N$6,N69,0)) -> 0 | O70: =IF(O$5>=1,Sorcadins!O$273*O68+O67,IF(O$6,O69,0)) -> 0 | P70: =IF(P$5>=1,Sorcadins!P$273*P68+P67,IF(P$6,P69,0)) -> 0 | Q70: =IF(Q$5>=1,Sorcadins!Q$273*Q68+Q67,IF(Q$6,Q69,0)) -> 0 | R70: =IF(R$5>=1,Sorcadins!R$273*R68+R67,IF(R$6,R69,0)) -> 0 | S70: =IF(S$5>=1,Sorcadins!S$273*S68+S67,IF(S$6,S69,0)) -> 0 | T70: =IF(T$5>=1,Sorcadins!T$273*T68+T67,IF(T$6,T69,0)) -> 0 | U70: =IF(U$5>=1,Sorcadins!U$273*U68+U67,IF(U$6,U69,0)) -> 0 | V70: =IF(V$5>=1,Sorcadins!V$273*V68+V67,IF(V$6,V69,0)) -> 0 | W70: =IF(W$5>=1,Sorcadins!W$273*W68+W67,IF(W$6,W69,0)) -> 0 | X70: =IF(X$5>=1,Sorcadins!X$273*X68+X67,IF(X$6,X69,0)) -> 0
D71: max number of daily smites (after spells) | E71: =IF(E$6,Sorcadins!E$1157,IF(E$5,Sorcadins!E$282+E67/2,0)) -> 0 | F71: =IF(F$6,Sorcadins!F$1157,IF(F$5,Sorcadins!F$282+F67/2,0)) -> 0 | G71: =IF(G$6,Sorcadins!G$1157,IF(G$5,Sorcadins!G$282+G67/2,0)) -> 0 | H71: =IF(H$6,Sorcadins!H$1157,IF(H$5,Sorcadins!H$282+H67/2,0)) -> 0 | I71: =IF(I$6,Sorcadins!I$1157,IF(I$5,Sorcadins!I$282+I67/2,0)) -> 0 | J71: =IF(J$6,Sorcadins!J$1157,IF(J$5,Sorcadins!J$282+J67/2,0)) -> 0 | K71: =IF(K$6,Sorcadins!K$1157,IF(K$5,Sorcadins!K$282+K67/2,0)) -> 0 | L71: =IF(L$6,Sorcadins!L$1157,IF(L$5,Sorcadins!L$282+L67/2,0)) -> 0 | M71: =IF(M$6,Sorcadins!M$1157,IF(M$5,Sorcadins!M$282+M67/2,0)) -> 0 | N71: =IF(N$6,Sorcadins!N$1157,IF(N$5,Sorcadins!N$282+N67/2,0)) -> 0 | O71: =IF(O$6,Sorcadins!O$1157,IF(O$5,Sorcadins!O$282+O67/2,0)) -> 0 | P71: =IF(P$6,Sorcadins!P$1157,IF(P$5,Sorcadins!P$282+P67/2,0)) -> 0 | Q71: =IF(Q$6,Sorcadins!Q$1157,IF(Q$5,Sorcadins!Q$282+Q67/2,0)) -> 0 | R71: =IF(R$6,Sorcadins!R$1157,IF(R$5,Sorcadins!R$282+R67/2,0)) -> 0 | S71: =IF(S$6,Sorcadins!S$1157,IF(S$5,Sorcadins!S$282+S67/2,0)) -> 0 | T71: =IF(T$6,Sorcadins!T$1157,IF(T$5,Sorcadins!T$282+T67/2,0)) -> 0 | U71: =IF(U$6,Sorcadins!U$1157,IF(U$5,Sorcadins!U$282+U67/2,0)) -> 0 | V71: =IF(V$6,Sorcadins!V$1157,IF(V$5,Sorcadins!V$282+V67/2,0)) -> 0 | W71: =IF(W$6,Sorcadins!W$1157,IF(W$5,Sorcadins!W$282+W67/2,0)) -> 0 | X71: =IF(X$6,Sorcadins!X$1157,IF(X$5,Sorcadins!X$282+X67/2,0)) -> 0
D72: avg crits per day for smite purposes (based on Damage Scenario) | E72: ='Base Numbers'!$C$5*'Base Numbers'!$C$6*Sorcadins!E$1311 -> 0.8 | F72: ='Base Numbers'!$C$5*'Base Numbers'!$C$6*Sorcadins!F$1311 -> 0.8 | G72: ='Base Numbers'!$C$5*'Base Numbers'!$C$6*Sorcadins!G$1311 -> 0.8 | H72: ='Base Numbers'!$C$5*'Base Numbers'!$C$6*Sorcadins!H$1311 -> 0.8 | I72: ='Base Numbers'!$C$5*'Base Numbers'!$C$6*Sorcadins!I$1311 -> 0.8 | J72: ='Base Numbers'!$C$5*'Base Numbers'!$C$6*Sorcadins!J$1311 -> 0.8 | K72: ='Base Numbers'!$C$5*'Base Numbers'!$C$6*Sorcadins!K$1311 -> 0.8 | L72: ='Base Numbers'!$C$5*'Base Numbers'!$C$6*Sorcadins!L$1311 -> 0.8 | M72: ='Base Numbers'!$C$5*'Base Numbers'!$C$6*Sorcadins!M$1311 -> 0.8 | N72: ='Base Numbers'!$C$5*'Base Numbers'!$C$6*Sorcadins!N$1311 -> 0.8 | O72: ='Base Numbers'!$C$5*'Base Numbers'!$C$6*Sorcadins!O$1311 -> 0.8 | P72: ='Base Numbers'!$C$5*'Base Numbers'!$C$6*Sorcadins!P$1311 -> 0.8 | Q72: ='Base Numbers'!$C$5*'Base Numbers'!$C$6*Sorcadins!Q$1311 -> 0.8 | R72: ='Base Numbers'!$C$5*'Base Numbers'!$C$6*Sorcadins!R$1311 -> 0.8 | S72: ='Base Numbers'!$C$5*'Base Numbers'!$C$6*Sorcadins!S$1311 -> 0.8 | T72: ='Base Numbers'!$C$5*'Base Numbers'!$C$6*Sorcadins!T$1311 -> 0.8 | U72: ='Base Numbers'!$C$5*'Base Numbers'!$C$6*Sorcadins!U$1311 -> 0.8 | V72: ='Base Numbers'!$C$5*'Base Numbers'!$C$6*Sorcadins!V$1311 -> 0.8 | W72: ='Base Numbers'!$C$5*'Base Numbers'!$C$6*Sorcadins!W$1311 -> 0.8 | X72: ='Base Numbers'!$C$5*'Base Numbers'!$C$6*Sorcadins!X$1311 -> 0.8
D73: number of smites used on crits | E73: =MIN(E71,E72) -> 0 | F73: =MIN(F71,F72) -> 0 | G73: 0 | H73: 0 | I73: 0 | J73: 0 | K73: 0 | L73: 0 | M73: 0 | N73: 0 | O73: 0 | P73: 0 | Q73: 0 | R73: 0 | S73: 0 | T73: 0 | U73: 0 | V73: 0 | W73: 0 | X73: 0
D74: avg smite dice per crit | E74: =IF(E73>0,MIN(E$7,(E70/MIN(E73,E72))),0) -> 0 | F74: 0 | G74: 0 | H74: 0 | I74: 0 | J74: 0 | K74: 0 | L74: 0 | M74: 0 | N74: 0 | O74: 0 | P74: 0 | Q74: 0 | R74: 0 | S74: 0 | T74: 0 | U74: 0 | V74: 0 | W74: 0 | X74: 0
D75: smites left for non-crits | E75: =E71-E73 -> 0 | F75: =F71-F73 -> 0 | G75: 0 | H75: 0 | I75: 0 | J75: 0 | K75: 0 | L75: 0 | M75: 0 | N75: 0 | O75: 0 | P75: 0 | Q75: 0 | R75: 0 | S75: 0 | T75: 0 | U75: 0 | V75: 0 | W75: 0 | X75: 0
D76: total non-crit smite-qualifying attacks available | E76: =Sorcadins!E$1286*('Base Numbers'!$C$5*'Base Numbers'!$C$6)-E72 -> 15.2 | F76: =Sorcadins!F$1286*('Base Numbers'!$C$5*'Base Numbers'!$C$6)-F72 -> 15.2 | G76: =Sorcadins!G$1286*('Base Numbers'!$C$5*'Base Numbers'!$C$6)-G72 -> 15.2 | H76: =Sorcadins!H$1286*('Base Numbers'!$C$5*'Base Numbers'!$C$6)-H72 -> 15.2 | I76: =Sorcadins!I$1286*('Base Numbers'!$C$5*'Base Numbers'!$C$6)-I72 -> 15.2 | J76: =Sorcadins!J$1286*('Base Numbers'!$C$5*'Base Numbers'!$C$6)-J72 -> 15.2 | K76: =Sorcadins!K$1286*('Base Numbers'!$C$5*'Base Numbers'!$C$6)-K72 -> 15.2 | L76: =Sorcadins!L$1286*('Base Numbers'!$C$5*'Base Numbers'!$C$6)-L72 -> 15.2 | M76: =Sorcadins!M$1286*('Base Numbers'!$C$5*'Base Numbers'!$C$6)-M72 -> 15.2 | N76: =Sorcadins!N$1286*('Base Numbers'!$C$5*'Base Numbers'!$C$6)-N72 -> 15.2 | O76: =Sorcadins!O$1286*('Base Numbers'!$C$5*'Base Numbers'!$C$6)-O72 -> 15.2 | P76: =Sorcadins!P$1286*('Base Numbers'!$C$5*'Base Numbers'!$C$6)-P72 -> 15.2 | Q76: =Sorcadins!Q$1286*('Base Numbers'!$C$5*'Base Numbers'!$C$6)-Q72 -> 15.2 | R76: =Sorcadins!R$1286*('Base Numbers'!$C$5*'Base Numbers'!$C$6)-R72 -> 15.2 | S76: =Sorcadins!S$1286*('Base Numbers'!$C$5*'Base Numbers'!$C$6)-S72 -> 15.2 | T76: =Sorcadins!T$1286*('Base Numbers'!$C$5*'Base Numbers'!$C$6)-T72 -> 15.2 | U76: =Sorcadins!U$1286*('Base Numbers'!$C$5*'Base Numbers'!$C$6)-U72 -> 15.2 | V76: =Sorcadins!V$1286*('Base Numbers'!$C$5*'Base Numbers'!$C$6)-V72 -> 15.2 | W76: =Sorcadins!W$1286*('Base Numbers'!$C$5*'Base Numbers'!$C$6)-W72 -> 15.2 | X76: =Sorcadins!X$1286*('Base Numbers'!$C$5*'Base Numbers'!$C$6)-X72 -> 15.2
D77: smite dice left for non-crits | E77: =ROUND(MAX(0,E70-E72*E74),4) -> 0 | F77: 0 | G77: 0 | H77: 0 | I77: 0 | J77: 0 | K77: 0 | L77: 0 | M77: 0 | N77: 0 | O77: 0 | P77: 0 | Q77: 0 | R77: 0 | S77: 0 | T77: 0 | U77: 0 | V77: 0 | W77: 0 | X77: 0
D78: total smite dice used on crits | E78: =E73*E74 -> 0 | F78: =F73*F74 -> 0 | G78: 0 | H78: 0 | I78: 0 | J78: 0 | K78: 0 | L78: 0 | M78: 0 | N78: 0 | O78: 0 | P78: 0 | Q78: 0 | R78: 0 | S78: 0 | T78: 0 | U78: 0 | V78: 0 | W78: 0 | X78: 0
D79: total crit smite damage per day | E79: =9*E78 -> 0 | F79: =9*F78 -> 0 | G79: 0 | H79: 0 | I79: 0 | J79: 0 | K79: 0 | L79: 0 | M79: 0 | N79: 0 | O79: 0 | P79: 0 | Q79: 0 | R79: 0 | S79: 0 | T79: 0 | U79: 0 | V79: 0 | W79: 0 | X79: 0
D80: total non-crit smite damage per day | E80: =4.5*MIN(MIN(E76,E75)*E$7,E77) -> 0 | F80: =4.5*MIN(MIN(F76,F75)*F$7,F77) -> 0 | G80: 0 | H80: 0 | I80: 0 | J80: 0 | K80: 0 | L80: 0 | M80: 0 | N80: 0 | O80: 0 | P80: 0 | Q80: 0 | R80: 0 | S80: 0 | T80: 0 | U80: 0 | V80: 0 | W80: 0 | X80: 0
D81: leftover sorc points + spell levels | E81: =IF(E70>0,IF(Sorcadins!E$273>0,(Sorcadins!E$273*E68+E67-E73*E74-E80/4.5)/Sorcadins!E$273,0),E68+E67) -> 0 | F81: =IF(F70>0,IF(Sorcadins!F$273>0,(Sorcadins!F$273*F68+F67-F73*F74-F80/4.5)/Sorcadins!F$273,0),F68+F67) -> 0 | G81: =IF(G70>0,IF(Sorcadins!G$273>0,(Sorcadins!G$273*G68+G67-G73*G74-G80/4.5)/Sorcadins!G$273,0),G68+G67) -> 0 | H81: =IF(H70>0,IF(Sorcadins!H$273>0,(Sorcadins!H$273*H68+H67-H73*H74-H80/4.5)/Sorcadins!H$273,0),H68+H67) -> 0 | I81: =IF(I70>0,IF(Sorcadins!I$273>0,(Sorcadins!I$273*I68+I67-I73*I74-I80/4.5)/Sorcadins!I$273,0),I68+I67) -> 0 | J81: =IF(J70>0,IF(Sorcadins!J$273>0,(Sorcadins!J$273*J68+J67-J73*J74-J80/4.5)/Sorcadins!J$273,0),J68+J67) -> 0 | K81: =IF(K70>0,IF(Sorcadins!K$273>0,(Sorcadins!K$273*K68+K67-K73*K74-K80/4.5)/Sorcadins!K$273,0),K68+K67) -> 0 | L81: =IF(L70>0,IF(Sorcadins!L$273>0,(Sorcadins!L$273*L68+L67-L73*L74-L80/4.5)/Sorcadins!L$273,0),L68+L67) -> 0 | M81: =IF(M70>0,IF(Sorcadins!M$273>0,(Sorcadins!M$273*M68+M67-M73*M74-M80/4.5)/Sorcadins!M$273,0),M68+M67) -> 0 | N81: =IF(N70>0,IF(Sorcadins!N$273>0,(Sorcadins!N$273*N68+N67-N73*N74-N80/4.5)/Sorcadins!N$273,0),N68+N67) -> 0 | O81: =IF(O70>0,IF(Sorcadins!O$273>0,(Sorcadins!O$273*O68+O67-O73*O74-O80/4.5)/Sorcadins!O$273,0),O68+O67) -> 0 | P81: =IF(P70>0,IF(Sorcadins!P$273>0,(Sorcadins!P$273*P68+P67-P73*P74-P80/4.5)/Sorcadins!P$273,0),P68+P67) -> 0 | Q81: =IF(Q70>0,IF(Sorcadins!Q$273>0,(Sorcadins!Q$273*Q68+Q67-Q73*Q74-Q80/4.5)/Sorcadins!Q$273,0),Q68+Q67) -> 0 | R81: =IF(R70>0,IF(Sorcadins!R$273>0,(Sorcadins!R$273*R68+R67-R73*R74-R80/4.5)/Sorcadins!R$273,0),R68+R67) -> 0 | S81: =IF(S70>0,IF(Sorcadins!S$273>0,(Sorcadins!S$273*S68+S67-S73*S74-S80/4.5)/Sorcadins!S$273,0),S68+S67) -> 0 | T81: =IF(T70>0,IF(Sorcadins!T$273>0,(Sorcadins!T$273*T68+T67-T73*T74-T80/4.5)/Sorcadins!T$273,0),T68+T67) -> 0 | U81: =IF(U70>0,IF(Sorcadins!U$273>0,(Sorcadins!U$273*U68+U67-U73*U74-U80/4.5)/Sorcadins!U$273,0),U68+U67) -> 0 | V81: =IF(V70>0,IF(Sorcadins!V$273>0,(Sorcadins!V$273*V68+V67-V73*V74-V80/4.5)/Sorcadins!V$273,0),V68+V67) -> 0 | W81: =IF(W70>0,IF(Sorcadins!W$273>0,(Sorcadins!W$273*W68+W67-W73*W74-W80/4.5)/Sorcadins!W$273,0),W68+W67) -> 0 | X81: =IF(X70>0,IF(Sorcadins!X$273>0,(Sorcadins!X$273*X68+X67-X73*X74-X80/4.5)/Sorcadins!X$273,0),X68+X67) -> 0
D82: actual smites performed | E82: =E73+IF(E$7>0,MIN(E75,E76,E77/E$7),0) -> 0 | F82: =F73+IF(F$7>0,MIN(F75,F76,F77/F$7),0) -> 0 | G82: 0 | H82: 0 | I82: 0 | J82: 0 | K82: 0 | L82: 0 | M82: 0 | N82: 0 | O82: 0 | P82: 0 | Q82: 0 | R82: 0 | S82: 0 | T82: 0 | U82: 0 | V82: 0 | W82: 0 | X82: 0
D83: total daily smite damage: M1, B2, O3 | E83: =E79+E80 -> 0 | F83: =F79+F80 -> 0 | G83: 0 | H83: 0 | I83: 0 | J83: 0 | K83: 0 | L83: 0 | M83: 0 | N83: 0 | O83: 0 | P83: 0 | Q83: 0 | R83: 0 | S83: 0 | T83: 0 | U83: 0 | V83: 0 | W83: 0 | X83: 0
D85: SMITES - M1, B3, O1/O2 | E85: 1 | F85: 2 | G85: 3 | H85: 4 | I85: 5 | J85: 6 | K85: 7 | L85: 8 | M85: 9 | N85: 10 | O85: 11 | P85: 12 | Q85: 13 | R85: 14 | S85: 15 | T85: 16 | U85: 17 | V85: 18 | W85: 19 | X85: 20
D86: remaining sorcery points (based on Damage Scenario) | E86: =MAX(0,Sorcadins!E$561-Sorcadins!E$1277) -> 0 | F86: =MAX(0,Sorcadins!F$561-Sorcadins!F$1277) -> 0 | G86: =MAX(0,Sorcadins!G$561-Sorcadins!G$1277) -> 0 | H86: =MAX(0,Sorcadins!H$561-Sorcadins!H$1277) -> 0 | I86: =MAX(0,Sorcadins!I$561-Sorcadins!I$1277) -> 0 | J86: =MAX(0,Sorcadins!J$561-Sorcadins!J$1277) -> 0 | K86: =MAX(0,Sorcadins!K$561-Sorcadins!K$1277) -> 0 | L86: =MAX(0,Sorcadins!L$561-Sorcadins!L$1277) -> 0 | M86: =MAX(0,Sorcadins!M$561-Sorcadins!M$1277) -> 0 | N86: =MAX(0,Sorcadins!N$561-Sorcadins!N$1277) -> 0 | O86: =MAX(0,Sorcadins!O$561-Sorcadins!O$1277) -> 0 | P86: =MAX(0,Sorcadins!P$561-Sorcadins!P$1277) -> 0 | Q86: =MAX(0,Sorcadins!Q$561-Sorcadins!Q$1277) -> 0 | R86: =MAX(0,Sorcadins!R$561-Sorcadins!R$1277) -> 0 | S86: =MAX(0,Sorcadins!S$561-Sorcadins!S$1277) -> 0 | T86: =MAX(0,Sorcadins!T$561-Sorcadins!T$1277) -> 0 | U86: =MAX(0,Sorcadins!U$561-Sorcadins!U$1277) -> 0 | V86: =MAX(0,Sorcadins!V$561-Sorcadins!V$1277) -> 0 | W86: =MAX(0,Sorcadins!W$561-Sorcadins!W$1277) -> 0 | X86: =MAX(0,Sorcadins!X$561-Sorcadins!X$1277) -> 0 | Z86: *Sorc points directly convertible to Smite Dice
D87: remaining spell slot levels (based on Damage Scenario) | E87: =MAX(0,Sorcadins!E$281-MAX(0,Sorcadins!E$1277-Sorcadins!E$561)) -> 0 | F87: =MAX(0,Sorcadins!F$281-MAX(0,Sorcadins!F$1277-Sorcadins!F$561)) -> 0 | G87: =MAX(0,Sorcadins!G$281-MAX(0,Sorcadins!G$1277-Sorcadins!G$561)) -> 0 | H87: =MAX(0,Sorcadins!H$281-MAX(0,Sorcadins!H$1277-Sorcadins!H$561)) -> 0 | I87: =MAX(0,Sorcadins!I$281-MAX(0,Sorcadins!I$1277-Sorcadins!I$561)) -> 0 | J87: =MAX(0,Sorcadins!J$281-MAX(0,Sorcadins!J$1277-Sorcadins!J$561)) -> 0 | K87: =MAX(0,Sorcadins!K$281-MAX(0,Sorcadins!K$1277-Sorcadins!K$561)) -> 0 | L87: =MAX(0,Sorcadins!L$281-MAX(0,Sorcadins!L$1277-Sorcadins!L$561)) -> 0 | M87: =MAX(0,Sorcadins!M$281-MAX(0,Sorcadins!M$1277-Sorcadins!M$561)) -> 0 | N87: =MAX(0,Sorcadins!N$281-MAX(0,Sorcadins!N$1277-Sorcadins!N$561)) -> 0 | O87: =MAX(0,Sorcadins!O$281-MAX(0,Sorcadins!O$1277-Sorcadins!O$561)) -> 0 | P87: =MAX(0,Sorcadins!P$281-MAX(0,Sorcadins!P$1277-Sorcadins!P$561)) -> 0 | Q87: =MAX(0,Sorcadins!Q$281-MAX(0,Sorcadins!Q$1277-Sorcadins!Q$561)) -> 0 | R87: =MAX(0,Sorcadins!R$281-MAX(0,Sorcadins!R$1277-Sorcadins!R$561)) -> 0 | S87: =MAX(0,Sorcadins!S$281-MAX(0,Sorcadins!S$1277-Sorcadins!S$561)) -> 0 | T87: =MAX(0,Sorcadins!T$281-MAX(0,Sorcadins!T$1277-Sorcadins!T$561)) -> 0 | U87: =MAX(0,Sorcadins!U$281-MAX(0,Sorcadins!U$1277-Sorcadins!U$561)) -> 0 | V87: =MAX(0,Sorcadins!V$281-MAX(0,Sorcadins!V$1277-Sorcadins!V$561)) -> 0 | W87: =MAX(0,Sorcadins!W$281-MAX(0,Sorcadins!W$1277-Sorcadins!W$561)) -> 0 | X87: =MAX(0,Sorcadins!X$281-MAX(0,Sorcadins!X$1277-Sorcadins!X$561)) -> 0
D88: total warlock smite levels remaining | E88: =MIN(Sorcadins!E$273*E87,Sorcadins!E$264) -> 0 | F88: =MIN(Sorcadins!F$273*F87,Sorcadins!F$264) -> 0 | G88: =MIN(Sorcadins!G$273*G87,Sorcadins!G$264) -> 0 | H88: =MIN(Sorcadins!H$273*H87,Sorcadins!H$264) -> 0 | I88: =MIN(Sorcadins!I$273*I87,Sorcadins!I$264) -> 0 | J88: =MIN(Sorcadins!J$273*J87,Sorcadins!J$264) -> 0 | K88: =MIN(Sorcadins!K$273*K87,Sorcadins!K$264) -> 0 | L88: =MIN(Sorcadins!L$273*L87,Sorcadins!L$264) -> 0 | M88: =MIN(Sorcadins!M$273*M87,Sorcadins!M$264) -> 0 | N88: =MIN(Sorcadins!N$273*N87,Sorcadins!N$264) -> 0 | O88: =MIN(Sorcadins!O$273*O87,Sorcadins!O$264) -> 0 | P88: =MIN(Sorcadins!P$273*P87,Sorcadins!P$264) -> 0 | Q88: =MIN(Sorcadins!Q$273*Q87,Sorcadins!Q$264) -> 0 | R88: =MIN(Sorcadins!R$273*R87,Sorcadins!R$264) -> 0 | S88: =MIN(Sorcadins!S$273*S87,Sorcadins!S$264) -> 0 | T88: =MIN(Sorcadins!T$273*T87,Sorcadins!T$264) -> 0 | U88: =MIN(Sorcadins!U$273*U87,Sorcadins!U$264) -> 0 | V88: =MIN(Sorcadins!V$273*V87,Sorcadins!V$264) -> 0 | W88: =MIN(Sorcadins!W$273*W87,Sorcadins!W$264) -> 0 | X88: =MIN(Sorcadins!X$273*X87,Sorcadins!X$264) -> 0
D89: total smite levels remaining | E89: =IF(E$5>=1,Sorcadins!E$273*E87+E86,IF(E$6,E88,0)) -> 0 | F89: =IF(F$5>=1,Sorcadins!F$273*F87+F86,IF(F$6,F88,0)) -> 0 | G89: =IF(G$5>=1,Sorcadins!G$273*G87+G86,IF(G$6,G88,0)) -> 0 | H89: =IF(H$5>=1,Sorcadins!H$273*H87+H86,IF(H$6,H88,0)) -> 0 | I89: =IF(I$5>=1,Sorcadins!I$273*I87+I86,IF(I$6,I88,0)) -> 0 | J89: =IF(J$5>=1,Sorcadins!J$273*J87+J86,IF(J$6,J88,0)) -> 0 | K89: =IF(K$5>=1,Sorcadins!K$273*K87+K86,IF(K$6,K88,0)) -> 0 | L89: =IF(L$5>=1,Sorcadins!L$273*L87+L86,IF(L$6,L88,0)) -> 0 | M89: =IF(M$5>=1,Sorcadins!M$273*M87+M86,IF(M$6,M88,0)) -> 0 | N89: =IF(N$5>=1,Sorcadins!N$273*N87+N86,IF(N$6,N88,0)) -> 0 | O89: =IF(O$5>=1,Sorcadins!O$273*O87+O86,IF(O$6,O88,0)) -> 0 | P89: =IF(P$5>=1,Sorcadins!P$273*P87+P86,IF(P$6,P88,0)) -> 0 | Q89: =IF(Q$5>=1,Sorcadins!Q$273*Q87+Q86,IF(Q$6,Q88,0)) -> 0 | R89: =IF(R$5>=1,Sorcadins!R$273*R87+R86,IF(R$6,R88,0)) -> 0 | S89: =IF(S$5>=1,Sorcadins!S$273*S87+S86,IF(S$6,S88,0)) -> 0 | T89: =IF(T$5>=1,Sorcadins!T$273*T87+T86,IF(T$6,T88,0)) -> 0 | U89: =IF(U$5>=1,Sorcadins!U$273*U87+U86,IF(U$6,U88,0)) -> 0 | V89: =IF(V$5>=1,Sorcadins!V$273*V87+V86,IF(V$6,V88,0)) -> 0 | W89: =IF(W$5>=1,Sorcadins!W$273*W87+W86,IF(W$6,W88,0)) -> 0 | X89: =IF(X$5>=1,Sorcadins!X$273*X87+X86,IF(X$6,X88,0)) -> 0
D90: max number of daily smites (after spells) | E90: =IF(E$6,Sorcadins!E$1157,IF(E$5,Sorcadins!E$282+E86/2,0)) -> 0 | F90: =IF(F$6,Sorcadins!F$1157,IF(F$5,Sorcadins!F$282+F86/2,0)) -> 0 | G90: =IF(G$6,Sorcadins!G$1157,IF(G$5,Sorcadins!G$282+G86/2,0)) -> 0 | H90: =IF(H$6,Sorcadins!H$1157,IF(H$5,Sorcadins!H$282+H86/2,0)) -> 0 | I90: =IF(I$6,Sorcadins!I$1157,IF(I$5,Sorcadins!I$282+I86/2,0)) -> 0 | J90: =IF(J$6,Sorcadins!J$1157,IF(J$5,Sorcadins!J$282+J86/2,0)) -> 0 | K90: =IF(K$6,Sorcadins!K$1157,IF(K$5,Sorcadins!K$282+K86/2,0)) -> 0 | L90: =IF(L$6,Sorcadins!L$1157,IF(L$5,Sorcadins!L$282+L86/2,0)) -> 0 | M90: =IF(M$6,Sorcadins!M$1157,IF(M$5,Sorcadins!M$282+M86/2,0)) -> 0 | N90: =IF(N$6,Sorcadins!N$1157,IF(N$5,Sorcadins!N$282+N86/2,0)) -> 0 | O90: =IF(O$6,Sorcadins!O$1157,IF(O$5,Sorcadins!O$282+O86/2,0)) -> 0 | P90: =IF(P$6,Sorcadins!P$1157,IF(P$5,Sorcadins!P$282+P86/2,0)) -> 0 | Q90: =IF(Q$6,Sorcadins!Q$1157,IF(Q$5,Sorcadins!Q$282+Q86/2,0)) -> 0 | R90: =IF(R$6,Sorcadins!R$1157,IF(R$5,Sorcadins!R$282+R86/2,0)) -> 0 | S90: =IF(S$6,Sorcadins!S$1157,IF(S$5,Sorcadins!S$282+S86/2,0)) -> 0 | T90: =IF(T$6,Sorcadins!T$1157,IF(T$5,Sorcadins!T$282+T86/2,0)) -> 0 | U90: =IF(U$6,Sorcadins!U$1157,IF(U$5,Sorcadins!U$282+U86/2,0)) -> 0 | V90: =IF(V$6,Sorcadins!V$1157,IF(V$5,Sorcadins!V$282+V86/2,0)) -> 0 | W90: =IF(W$6,Sorcadins!W$1157,IF(W$5,Sorcadins!W$282+W86/2,0)) -> 0 | X90: =IF(X$6,Sorcadins!X$1157,IF(X$5,Sorcadins!X$282+X86/2,0)) -> 0
D91: avg crits per day for smite purposes (based on Damage Scenario) | E91: ='Base Numbers'!$C$5*'Base Numbers'!$C$6*Sorcadins!E$1312 -> 1 | F91: ='Base Numbers'!$C$5*'Base Numbers'!$C$6*Sorcadins!F$1312 -> 1 | G91: ='Base Numbers'!$C$5*'Base Numbers'!$C$6*Sorcadins!G$1312 -> 1 | H91: ='Base Numbers'!$C$5*'Base Numbers'!$C$6*Sorcadins!H$1312 -> 1 | I91: ='Base Numbers'!$C$5*'Base Numbers'!$C$6*Sorcadins!I$1312 -> 1 | J91: ='Base Numbers'!$C$5*'Base Numbers'!$C$6*Sorcadins!J$1312 -> 1 | K91: ='Base Numbers'!$C$5*'Base Numbers'!$C$6*Sorcadins!K$1312 -> 1 | L91: ='Base Numbers'!$C$5*'Base Numbers'!$C$6*Sorcadins!L$1312 -> 1 | M91: ='Base Numbers'!$C$5*'Base Numbers'!$C$6*Sorcadins!M$1312 -> 1 | N91: ='Base Numbers'!$C$5*'Base Numbers'!$C$6*Sorcadins!N$1312 -> 1 | O91: ='Base Numbers'!$C$5*'Base Numbers'!$C$6*Sorcadins!O$1312 -> 1 | P91: ='Base Numbers'!$C$5*'Base Numbers'!$C$6*Sorcadins!P$1312 -> 1 | Q91: ='Base Numbers'!$C$5*'Base Numbers'!$C$6*Sorcadins!Q$1312 -> 1 | R91: ='Base Numbers'!$C$5*'Base Numbers'!$C$6*Sorcadins!R$1312 -> 1 | S91: ='Base Numbers'!$C$5*'Base Numbers'!$C$6*Sorcadins!S$1312 -> 1 | T91: ='Base Numbers'!$C$5*'Base Numbers'!$C$6*Sorcadins!T$1312 -> 1 | U91: ='Base Numbers'!$C$5*'Base Numbers'!$C$6*Sorcadins!U$1312 -> 1 | V91: ='Base Numbers'!$C$5*'Base Numbers'!$C$6*Sorcadins!V$1312 -> 1 | W91: ='Base Numbers'!$C$5*'Base Numbers'!$C$6*Sorcadins!W$1312 -> 1 | X91: ='Base Numbers'!$C$5*'Base Numbers'!$C$6*Sorcadins!X$1312 -> 1
D92: number of smites used on crits | E92: =MIN(E90,E91) -> 0 | F92: =MIN(F90,F91) -> 0 | G92: 0 | H92: 0 | I92: 0 | J92: 0 | K92: 0 | L92: 0 | M92: 0 | N92: 0 | O92: 0 | P92: 0 | Q92: 0 | R92: 0 | S92: 0 | T92: 0 | U92: 0 | V92: 0 | W92: 0 | X92: 0
D93: avg smite dice per crit | E93: =IF(E92>0,MIN(E$7,(E89/MIN(E92,E91))),0) -> 0 | F93: 0 | G93: 0 | H93: 0 | I93: 0 | J93: 0 | K93: 0 | L93: 0 | M93: 0 | N93: 0 | O93: 0 | P93: 0 | Q93: 0 | R93: 0 | S93: 0 | T93: 0 | U93: 0 | V93: 0 | W93: 0 | X93: 0
D94: smites left for non-crits | E94: =E90-E92 -> 0 | F94: =F90-F92 -> 0 | G94: 0 | H94: 0 | I94: 0 | J94: 0 | K94: 0 | L94: 0 | M94: 0 | N94: 0 | O94: 0 | P94: 0 | Q94: 0 | R94: 0 | S94: 0 | T94: 0 | U94: 0 | V94: 0 | W94: 0 | X94: 0
D95: total non-crit smite-qualifying attacks available | E95: =Sorcadins!E$1287*('Base Numbers'!$C$5*'Base Numbers'!$C$6)-E91 -> 19 | F95: =Sorcadins!F$1287*('Base Numbers'!$C$5*'Base Numbers'!$C$6)-F91 -> 19 | G95: =Sorcadins!G$1287*('Base Numbers'!$C$5*'Base Numbers'!$C$6)-G91 -> 19 | H95: =Sorcadins!H$1287*('Base Numbers'!$C$5*'Base Numbers'!$C$6)-H91 -> 19 | I95: =Sorcadins!I$1287*('Base Numbers'!$C$5*'Base Numbers'!$C$6)-I91 -> 19 | J95: =Sorcadins!J$1287*('Base Numbers'!$C$5*'Base Numbers'!$C$6)-J91 -> 19 | K95: =Sorcadins!K$1287*('Base Numbers'!$C$5*'Base Numbers'!$C$6)-K91 -> 19 | L95: =Sorcadins!L$1287*('Base Numbers'!$C$5*'Base Numbers'!$C$6)-L91 -> 19 | M95: =Sorcadins!M$1287*('Base Numbers'!$C$5*'Base Numbers'!$C$6)-M91 -> 19 | N95: =Sorcadins!N$1287*('Base Numbers'!$C$5*'Base Numbers'!$C$6)-N91 -> 19 | O95: =Sorcadins!O$1287*('Base Numbers'!$C$5*'Base Numbers'!$C$6)-O91 -> 19 | P95: =Sorcadins!P$1287*('Base Numbers'!$C$5*'Base Numbers'!$C$6)-P91 -> 19 | Q95: =Sorcadins!Q$1287*('Base Numbers'!$C$5*'Base Numbers'!$C$6)-Q91 -> 19 | R95: =Sorcadins!R$1287*('Base Numbers'!$C$5*'Base Numbers'!$C$6)-R91 -> 19 | S95: =Sorcadins!S$1287*('Base Numbers'!$C$5*'Base Numbers'!$C$6)-S91 -> 19 | T95: =Sorcadins!T$1287*('Base Numbers'!$C$5*'Base Numbers'!$C$6)-T91 -> 19 | U95: =Sorcadins!U$1287*('Base Numbers'!$C$5*'Base Numbers'!$C$6)-U91 -> 19 | V95: =Sorcadins!V$1287*('Base Numbers'!$C$5*'Base Numbers'!$C$6)-V91 -> 19 | W95: =Sorcadins!W$1287*('Base Numbers'!$C$5*'Base Numbers'!$C$6)-W91 -> 19 | X95: =Sorcadins!X$1287*('Base Numbers'!$C$5*'Base Numbers'!$C$6)-X91 -> 19
D96: smite dice left for non-crits | E96: =ROUND(MAX(0,E89-E91*E93),4) -> 0 | F96: 0 | G96: 0 | H96: 0 | I96: 0 | J96: 0 | K96: 0 | L96: 0 | M96: 0 | N96: 0 | O96: 0 | P96: 0 | Q96: 0 | R96: 0 | S96: 0 | T96: 0 | U96: 0 | V96: 0 | W96: 0 | X96: 0
D97: total smite dice used on crits | E97: =E92*E93 -> 0 | F97: =F92*F93 -> 0 | G97: 0 | H97: 0 | I97: 0 | J97: 0 | K97: 0 | L97: 0 | M97: 0 | N97: 0 | O97: 0 | P97: 0 | Q97: 0 | R97: 0 | S97: 0 | T97: 0 | U97: 0 | V97: 0 | W97: 0 | X97: 0
D98: total crit smite damage per day | E98: =9*E97 -> 0 | F98: =9*F97 -> 0 | G98: 0 | H98: 0 | I98: 0 | J98: 0 | K98: 0 | L98: 0 | M98: 0 | N98: 0 | O98: 0 | P98: 0 | Q98: 0 | R98: 0 | S98: 0 | T98: 0 | U98: 0 | V98: 0 | W98: 0 | X98: 0
D99: total non-crit smite damage per day | E99: =4.5*MIN(MIN(E95,E94)*E$7,E96) -> 0 | F99: =4.5*MIN(MIN(F95,F94)*F$7,F96) -> 0 | G99: 0 | H99: 0 | I99: 0 | J99: 0 | K99: 0 | L99: 0 | M99: 0 | N99: 0 | O99: 0 | P99: 0 | Q99: 0 | R99: 0 | S99: 0 | T99: 0 | U99: 0 | V99: 0 | W99: 0 | X99: 0
D100: leftover sorc points + spell levels | E100: =IF(E89>0,IF(Sorcadins!E$273>0,(Sorcadins!E$273*E87+E86-E92*E93-E99/4.5)/Sorcadins!E$273,0),E87+E86) -> 0 | F100: =IF(F89>0,IF(Sorcadins!F$273>0,(Sorcadins!F$273*F87+F86-F92*F93-F99/4.5)/Sorcadins!F$273,0),F87+F86) -> 0 | G100: =IF(G89>0,IF(Sorcadins!G$273>0,(Sorcadins!G$273*G87+G86-G92*G93-G99/4.5)/Sorcadins!G$273,0),G87+G86) -> 0 | H100: =IF(H89>0,IF(Sorcadins!H$273>0,(Sorcadins!H$273*H87+H86-H92*H93-H99/4.5)/Sorcadins!H$273,0),H87+H86) -> 0 | I100: =IF(I89>0,IF(Sorcadins!I$273>0,(Sorcadins!I$273*I87+I86-I92*I93-I99/4.5)/Sorcadins!I$273,0),I87+I86) -> 0 | J100: =IF(J89>0,IF(Sorcadins!J$273>0,(Sorcadins!J$273*J87+J86-J92*J93-J99/4.5)/Sorcadins!J$273,0),J87+J86) -> 0 | K100: =IF(K89>0,IF(Sorcadins!K$273>0,(Sorcadins!K$273*K87+K86-K92*K93-K99/4.5)/Sorcadins!K$273,0),K87+K86) -> 0 | L100: =IF(L89>0,IF(Sorcadins!L$273>0,(Sorcadins!L$273*L87+L86-L92*L93-L99/4.5)/Sorcadins!L$273,0),L87+L86) -> 0 | M100: =IF(M89>0,IF(Sorcadins!M$273>0,(Sorcadins!M$273*M87+M86-M92*M93-M99/4.5)/Sorcadins!M$273,0),M87+M86) -> 0 | N100: =IF(N89>0,IF(Sorcadins!N$273>0,(Sorcadins!N$273*N87+N86-N92*N93-N99/4.5)/Sorcadins!N$273,0),N87+N86) -> 0 | O100: =IF(O89>0,IF(Sorcadins!O$273>0,(Sorcadins!O$273*O87+O86-O92*O93-O99/4.5)/Sorcadins!O$273,0),O87+O86) -> 0 | P100: =IF(P89>0,IF(Sorcadins!P$273>0,(Sorcadins!P$273*P87+P86-P92*P93-P99/4.5)/Sorcadins!P$273,0),P87+P86) -> 0 | Q100: =IF(Q89>0,IF(Sorcadins!Q$273>0,(Sorcadins!Q$273*Q87+Q86-Q92*Q93-Q99/4.5)/Sorcadins!Q$273,0),Q87+Q86) -> 0 | R100: =IF(R89>0,IF(Sorcadins!R$273>0,(Sorcadins!R$273*R87+R86-R92*R93-R99/4.5)/Sorcadins!R$273,0),R87+R86) -> 0 | S100: =IF(S89>0,IF(Sorcadins!S$273>0,(Sorcadins!S$273*S87+S86-S92*S93-S99/4.5)/Sorcadins!S$273,0),S87+S86) -> 0 | T100: =IF(T89>0,IF(Sorcadins!T$273>0,(Sorcadins!T$273*T87+T86-T92*T93-T99/4.5)/Sorcadins!T$273,0),T87+T86) -> 0 | U100: =IF(U89>0,IF(Sorcadins!U$273>0,(Sorcadins!U$273*U87+U86-U92*U93-U99/4.5)/Sorcadins!U$273,0),U87+U86) -> 0 | V100: =IF(V89>0,IF(Sorcadins!V$273>0,(Sorcadins!V$273*V87+V86-V92*V93-V99/4.5)/Sorcadins!V$273,0),V87+V86) -> 0 | W100: =IF(W89>0,IF(Sorcadins!W$273>0,(Sorcadins!W$273*W87+W86-W92*W93-W99/4.5)/Sorcadins!W$273,0),W87+W86) -> 0 | X100: =IF(X89>0,IF(Sorcadins!X$273>0,(Sorcadins!X$273*X87+X86-X92*X93-X99/4.5)/Sorcadins!X$273,0),X87+X86) -> 0
D101: actual smites performed | E101: =E92+IF(E$7>0,MIN(E94,E95,E96/E$7),0) -> 0 | F101: =F92+IF(F$7>0,MIN(F94,F95,F96/F$7),0) -> 0 | G101: 0 | H101: 0 | I101: 0 | J101: 0 | K101: 0 | L101: 0 | M101: 0 | N101: 0 | O101: 0 | P101: 0 | Q101: 0 | R101: 0 | S101: 0 | T101: 0 | U101: 0 | V101: 0 | W101: 0 | X101: 0
D102: total daily smite damage: M1, B3, O1/O2 | E102: =E98+E99 -> 0 | F102: =F98+F99 -> 0 | G102: 0 | H102: 0 | I102: 0 | J102: 0 | K102: 0 | L102: 0 | M102: 0 | N102: 0 | O102: 0 | P102: 0 | Q102: 0 | R102: 0 | S102: 0 | T102: 0 | U102: 0 | V102: 0 | W102: 0 | X102: 0
D104: SMITES - M1, B3, O3 | E104: 1 | F104: 2 | G104: 3 | H104: 4 | I104: 5 | J104: 6 | K104: 7 | L104: 8 | M104: 9 | N104: 10 | O104: 11 | P104: 12 | Q104: 13 | R104: 14 | S104: 15 | T104: 16 | U104: 17 | V104: 18 | W104: 19 | X104: 20
D105: remaining sorcery points (based on Damage Scenario) | E105: =MAX(0,Sorcadins!E$561-Sorcadins!E$1277) -> 0 | F105: =MAX(0,Sorcadins!F$561-Sorcadins!F$1277) -> 0 | G105: =MAX(0,Sorcadins!G$561-Sorcadins!G$1277) -> 0 | H105: =MAX(0,Sorcadins!H$561-Sorcadins!H$1277) -> 0 | I105: =MAX(0,Sorcadins!I$561-Sorcadins!I$1277) -> 0 | J105: =MAX(0,Sorcadins!J$561-Sorcadins!J$1277) -> 0 | K105: =MAX(0,Sorcadins!K$561-Sorcadins!K$1277) -> 0 | L105: =MAX(0,Sorcadins!L$561-Sorcadins!L$1277) -> 0 | M105: =MAX(0,Sorcadins!M$561-Sorcadins!M$1277) -> 0 | N105: =MAX(0,Sorcadins!N$561-Sorcadins!N$1277) -> 0 | O105: =MAX(0,Sorcadins!O$561-Sorcadins!O$1277) -> 0 | P105: =MAX(0,Sorcadins!P$561-Sorcadins!P$1277) -> 0 | Q105: =MAX(0,Sorcadins!Q$561-Sorcadins!Q$1277) -> 0 | R105: =MAX(0,Sorcadins!R$561-Sorcadins!R$1277) -> 0 | S105: =MAX(0,Sorcadins!S$561-Sorcadins!S$1277) -> 0 | T105: =MAX(0,Sorcadins!T$561-Sorcadins!T$1277) -> 0 | U105: =MAX(0,Sorcadins!U$561-Sorcadins!U$1277) -> 0 | V105: =MAX(0,Sorcadins!V$561-Sorcadins!V$1277) -> 0 | W105: =MAX(0,Sorcadins!W$561-Sorcadins!W$1277) -> 0 | X105: =MAX(0,Sorcadins!X$561-Sorcadins!X$1277) -> 0 | Z105: *Sorc points directly convertible to Smite Dice
D106: remaining spell slot levels (based on Damage Scenario) | E106: =MAX(0,Sorcadins!E$281-MAX(0,Sorcadins!E$1277-Sorcadins!E$561)) -> 0 | F106: =MAX(0,Sorcadins!F$281-MAX(0,Sorcadins!F$1277-Sorcadins!F$561)) -> 0 | G106: =MAX(0,Sorcadins!G$281-MAX(0,Sorcadins!G$1277-Sorcadins!G$561)) -> 0 | H106: =MAX(0,Sorcadins!H$281-MAX(0,Sorcadins!H$1277-Sorcadins!H$561)) -> 0 | I106: =MAX(0,Sorcadins!I$281-MAX(0,Sorcadins!I$1277-Sorcadins!I$561)) -> 0 | J106: =MAX(0,Sorcadins!J$281-MAX(0,Sorcadins!J$1277-Sorcadins!J$561)) -> 0 | K106: =MAX(0,Sorcadins!K$281-MAX(0,Sorcadins!K$1277-Sorcadins!K$561)) -> 0 | L106: =MAX(0,Sorcadins!L$281-MAX(0,Sorcadins!L$1277-Sorcadins!L$561)) -> 0 | M106: =MAX(0,Sorcadins!M$281-MAX(0,Sorcadins!M$1277-Sorcadins!M$561)) -> 0 | N106: =MAX(0,Sorcadins!N$281-MAX(0,Sorcadins!N$1277-Sorcadins!N$561)) -> 0 | O106: =MAX(0,Sorcadins!O$281-MAX(0,Sorcadins!O$1277-Sorcadins!O$561)) -> 0 | P106: =MAX(0,Sorcadins!P$281-MAX(0,Sorcadins!P$1277-Sorcadins!P$561)) -> 0 | Q106: =MAX(0,Sorcadins!Q$281-MAX(0,Sorcadins!Q$1277-Sorcadins!Q$561)) -> 0 | R106: =MAX(0,Sorcadins!R$281-MAX(0,Sorcadins!R$1277-Sorcadins!R$561)) -> 0 | S106: =MAX(0,Sorcadins!S$281-MAX(0,Sorcadins!S$1277-Sorcadins!S$561)) -> 0 | T106: =MAX(0,Sorcadins!T$281-MAX(0,Sorcadins!T$1277-Sorcadins!T$561)) -> 0 | U106: =MAX(0,Sorcadins!U$281-MAX(0,Sorcadins!U$1277-Sorcadins!U$561)) -> 0 | V106: =MAX(0,Sorcadins!V$281-MAX(0,Sorcadins!V$1277-Sorcadins!V$561)) -> 0 | W106: =MAX(0,Sorcadins!W$281-MAX(0,Sorcadins!W$1277-Sorcadins!W$561)) -> 0 | X106: =MAX(0,Sorcadins!X$281-MAX(0,Sorcadins!X$1277-Sorcadins!X$561)) -> 0
D107: total warlock smite levels remaining | E107: =MIN(Sorcadins!E$273*E106,Sorcadins!E$264) -> 0 | F107: =MIN(Sorcadins!F$273*F106,Sorcadins!F$264) -> 0 | G107: =MIN(Sorcadins!G$273*G106,Sorcadins!G$264) -> 0 | H107: =MIN(Sorcadins!H$273*H106,Sorcadins!H$264) -> 0 | I107: =MIN(Sorcadins!I$273*I106,Sorcadins!I$264) -> 0 | J107: =MIN(Sorcadins!J$273*J106,Sorcadins!J$264) -> 0 | K107: =MIN(Sorcadins!K$273*K106,Sorcadins!K$264) -> 0 | L107: =MIN(Sorcadins!L$273*L106,Sorcadins!L$264) -> 0 | M107: =MIN(Sorcadins!M$273*M106,Sorcadins!M$264) -> 0 | N107: =MIN(Sorcadins!N$273*N106,Sorcadins!N$264) -> 0 | O107: =MIN(Sorcadins!O$273*O106,Sorcadins!O$264) -> 0 | P107: =MIN(Sorcadins!P$273*P106,Sorcadins!P$264) -> 0 | Q107: =MIN(Sorcadins!Q$273*Q106,Sorcadins!Q$264) -> 0 | R107: =MIN(Sorcadins!R$273*R106,Sorcadins!R$264) -> 0 | S107: =MIN(Sorcadins!S$273*S106,Sorcadins!S$264) -> 0 | T107: =MIN(Sorcadins!T$273*T106,Sorcadins!T$264) -> 0 | U107: =MIN(Sorcadins!U$273*U106,Sorcadins!U$264) -> 0 | V107: =MIN(Sorcadins!V$273*V106,Sorcadins!V$264) -> 0 | W107: =MIN(Sorcadins!W$273*W106,Sorcadins!W$264) -> 0 | X107: =MIN(Sorcadins!X$273*X106,Sorcadins!X$264) -> 0
D108: total smite levels remaining | E108: =IF(E$5>=1,Sorcadins!E$273*E106+E105,IF(E$6,E107,0)) -> 0 | F108: =IF(F$5>=1,Sorcadins!F$273*F106+F105,IF(F$6,F107,0)) -> 0 | G108: =IF(G$5>=1,Sorcadins!G$273*G106+G105,IF(G$6,G107,0)) -> 0 | H108: =IF(H$5>=1,Sorcadins!H$273*H106+H105,IF(H$6,H107,0)) -> 0 | I108: =IF(I$5>=1,Sorcadins!I$273*I106+I105,IF(I$6,I107,0)) -> 0 | J108: =IF(J$5>=1,Sorcadins!J$273*J106+J105,IF(J$6,J107,0)) -> 0 | K108: =IF(K$5>=1,Sorcadins!K$273*K106+K105,IF(K$6,K107,0)) -> 0 | L108: =IF(L$5>=1,Sorcadins!L$273*L106+L105,IF(L$6,L107,0)) -> 0 | M108: =IF(M$5>=1,Sorcadins!M$273*M106+M105,IF(M$6,M107,0)) -> 0 | N108: =IF(N$5>=1,Sorcadins!N$273*N106+N105,IF(N$6,N107,0)) -> 0 | O108: =IF(O$5>=1,Sorcadins!O$273*O106+O105,IF(O$6,O107,0)) -> 0 | P108: =IF(P$5>=1,Sorcadins!P$273*P106+P105,IF(P$6,P107,0)) -> 0 | Q108: =IF(Q$5>=1,Sorcadins!Q$273*Q106+Q105,IF(Q$6,Q107,0)) -> 0 | R108: =IF(R$5>=1,Sorcadins!R$273*R106+R105,IF(R$6,R107,0)) -> 0 | S108: =IF(S$5>=1,Sorcadins!S$273*S106+S105,IF(S$6,S107,0)) -> 0 | T108: =IF(T$5>=1,Sorcadins!T$273*T106+T105,IF(T$6,T107,0)) -> 0 | U108: =IF(U$5>=1,Sorcadins!U$273*U106+U105,IF(U$6,U107,0)) -> 0 | V108: =IF(V$5>=1,Sorcadins!V$273*V106+V105,IF(V$6,V107,0)) -> 0 | W108: =IF(W$5>=1,Sorcadins!W$273*W106+W105,IF(W$6,W107,0)) -> 0 | X108: =IF(X$5>=1,Sorcadins!X$273*X106+X105,IF(X$6,X107,0)) -> 0
D109: max number of daily smites (after spells) | E109: =IF(OR(Sorcadins!E$12>=5,Sorcadins!E$7>=2),Sorcadins!E$282+E105/2,0) -> 0 | F109: =IF(OR(Sorcadins!F$12>=5,Sorcadins!F$7>=2),Sorcadins!F$282+F105/2,0) -> 0 | G109: =IF(OR(Sorcadins!G$12>=5,Sorcadins!G$7>=2),Sorcadins!G$282+G105/2,0) -> 0 | H109: =IF(OR(Sorcadins!H$12>=5,Sorcadins!H$7>=2),Sorcadins!H$282+H105/2,0) -> 0 | I109: =IF(OR(Sorcadins!I$12>=5,Sorcadins!I$7>=2),Sorcadins!I$282+I105/2,0) -> 0 | J109: =IF(OR(Sorcadins!J$12>=5,Sorcadins!J$7>=2),Sorcadins!J$282+J105/2,0) -> 0 | K109: =IF(OR(Sorcadins!K$12>=5,Sorcadins!K$7>=2),Sorcadins!K$282+K105/2,0) -> 0 | L109: =IF(OR(Sorcadins!L$12>=5,Sorcadins!L$7>=2),Sorcadins!L$282+L105/2,0) -> 0 | M109: =IF(OR(Sorcadins!M$12>=5,Sorcadins!M$7>=2),Sorcadins!M$282+M105/2,0) -> 0 | N109: =IF(OR(Sorcadins!N$12>=5,Sorcadins!N$7>=2),Sorcadins!N$282+N105/2,0) -> 0 | O109: =IF(OR(Sorcadins!O$12>=5,Sorcadins!O$7>=2),Sorcadins!O$282+O105/2,0) -> 0 | P109: =IF(OR(Sorcadins!P$12>=5,Sorcadins!P$7>=2),Sorcadins!P$282+P105/2,0) -> 0 | Q109: =IF(OR(Sorcadins!Q$12>=5,Sorcadins!Q$7>=2),Sorcadins!Q$282+Q105/2,0) -> 0 | R109: =IF(OR(Sorcadins!R$12>=5,Sorcadins!R$7>=2),Sorcadins!R$282+R105/2,0) -> 0 | S109: =IF(OR(Sorcadins!S$12>=5,Sorcadins!S$7>=2),Sorcadins!S$282+S105/2,0) -> 0 | T109: =IF(OR(Sorcadins!T$12>=5,Sorcadins!T$7>=2),Sorcadins!T$282+T105/2,0) -> 0 | U109: =IF(OR(Sorcadins!U$12>=5,Sorcadins!U$7>=2),Sorcadins!U$282+U105/2,0) -> 0 | V109: =IF(OR(Sorcadins!V$12>=5,Sorcadins!V$7>=2),Sorcadins!V$282+V105/2,0) -> 0 | W109: =IF(OR(Sorcadins!W$12>=5,Sorcadins!W$7>=2),Sorcadins!W$282+W105/2,0) -> 0 | X109: =IF(OR(Sorcadins!X$12>=5,Sorcadins!X$7>=2),Sorcadins!X$282+X105/2,0) -> 0
D110: avg crits per day for smite purposes (based on Damage Scenario) | E110: ='Base Numbers'!$C$5*'Base Numbers'!$C$6*Sorcadins!E$1313 -> 0.8 | F110: ='Base Numbers'!$C$5*'Base Numbers'!$C$6*Sorcadins!F$1313 -> 0.8 | G110: ='Base Numbers'!$C$5*'Base Numbers'!$C$6*Sorcadins!G$1313 -> 0.8 | H110: ='Base Numbers'!$C$5*'Base Numbers'!$C$6*Sorcadins!H$1313 -> 0.8 | I110: ='Base Numbers'!$C$5*'Base Numbers'!$C$6*Sorcadins!I$1313 -> 0.8 | J110: ='Base Numbers'!$C$5*'Base Numbers'!$C$6*Sorcadins!J$1313 -> 0.8 | K110: ='Base Numbers'!$C$5*'Base Numbers'!$C$6*Sorcadins!K$1313 -> 0.8 | L110: ='Base Numbers'!$C$5*'Base Numbers'!$C$6*Sorcadins!L$1313 -> 0.8 | M110: ='Base Numbers'!$C$5*'Base Numbers'!$C$6*Sorcadins!M$1313 -> 0.8 | N110: ='Base Numbers'!$C$5*'Base Numbers'!$C$6*Sorcadins!N$1313 -> 0.8 | O110: ='Base Numbers'!$C$5*'Base Numbers'!$C$6*Sorcadins!O$1313 -> 0.8 | P110: ='Base Numbers'!$C$5*'Base Numbers'!$C$6*Sorcadins!P$1313 -> 0.8 | Q110: ='Base Numbers'!$C$5*'Base Numbers'!$C$6*Sorcadins!Q$1313 -> 0.8 | R110: ='Base Numbers'!$C$5*'Base Numbers'!$C$6*Sorcadins!R$1313 -> 0.8 | S110: ='Base Numbers'!$C$5*'Base Numbers'!$C$6*Sorcadins!S$1313 -> 0.8 | T110: ='Base Numbers'!$C$5*'Base Numbers'!$C$6*Sorcadins!T$1313 -> 0.8 | U110: ='Base Numbers'!$C$5*'Base Numbers'!$C$6*Sorcadins!U$1313 -> 0.8 | V110: ='Base Numbers'!$C$5*'Base Numbers'!$C$6*Sorcadins!V$1313 -> 0.8 | W110: ='Base Numbers'!$C$5*'Base Numbers'!$C$6*Sorcadins!W$1313 -> 0.8 | X110: ='Base Numbers'!$C$5*'Base Numbers'!$C$6*Sorcadins!X$1313 -> 0.8
D111: number of smites used on crits | E111: =MIN(E109,E110) -> 0 | F111: =MIN(F109,F110) -> 0 | G111: 0 | H111: 0 | I111: 0 | J111: 0 | K111: 0 | L111: 0 | M111: 0 | N111: 0 | O111: 0 | P111: 0 | Q111: 0 | R111: 0 | S111: 0 | T111: 0 | U111: 0 | V111: 0 | W111: 0 | X111: 0
D112: avg smite dice per crit | E112: =IF(E111>0,MIN(E$7,(E108/MIN(E111,E110))),0) -> 0 | F112: 0 | G112: 0 | H112: 0 | I112: 0 | J112: 0 | K112: 0 | L112: 0 | M112: 0 | N112: 0 | O112: 0 | P112: 0 | Q112: 0 | R112: 0 | S112: 0 | T112: 0 | U112: 0 | V112: 0 | W112: 0 | X112: 0
D113: smites left for non-crits | E113: =E109-E111 -> 0 | F113: =F109-F111 -> 0 | G113: 0 | H113: 0 | I113: 0 | J113: 0 | K113: 0 | L113: 0 | M113: 0 | N113: 0 | O113: 0 | P113: 0 | Q113: 0 | R113: 0 | S113: 0 | T113: 0 | U113: 0 | V113: 0 | W113: 0 | X113: 0
D114: total non-crit smite-qualifying attacks available | E114: =Sorcadins!E$1288*('Base Numbers'!$C$5*'Base Numbers'!$C$6)-E110 -> 15.2 | F114: =Sorcadins!F$1288*('Base Numbers'!$C$5*'Base Numbers'!$C$6)-F110 -> 15.2 | G114: =Sorcadins!G$1288*('Base Numbers'!$C$5*'Base Numbers'!$C$6)-G110 -> 15.2 | H114: =Sorcadins!H$1288*('Base Numbers'!$C$5*'Base Numbers'!$C$6)-H110 -> 15.2 | I114: =Sorcadins!I$1288*('Base Numbers'!$C$5*'Base Numbers'!$C$6)-I110 -> 15.2 | J114: =Sorcadins!J$1288*('Base Numbers'!$C$5*'Base Numbers'!$C$6)-J110 -> 15.2 | K114: =Sorcadins!K$1288*('Base Numbers'!$C$5*'Base Numbers'!$C$6)-K110 -> 15.2 | L114: =Sorcadins!L$1288*('Base Numbers'!$C$5*'Base Numbers'!$C$6)-L110 -> 15.2 | M114: =Sorcadins!M$1288*('Base Numbers'!$C$5*'Base Numbers'!$C$6)-M110 -> 15.2 | N114: =Sorcadins!N$1288*('Base Numbers'!$C$5*'Base Numbers'!$C$6)-N110 -> 15.2 | O114: =Sorcadins!O$1288*('Base Numbers'!$C$5*'Base Numbers'!$C$6)-O110 -> 15.2 | P114: =Sorcadins!P$1288*('Base Numbers'!$C$5*'Base Numbers'!$C$6)-P110 -> 15.2 | Q114: =Sorcadins!Q$1288*('Base Numbers'!$C$5*'Base Numbers'!$C$6)-Q110 -> 15.2 | R114: =Sorcadins!R$1288*('Base Numbers'!$C$5*'Base Numbers'!$C$6)-R110 -> 15.2 | S114: =Sorcadins!S$1288*('Base Numbers'!$C$5*'Base Numbers'!$C$6)-S110 -> 15.2 | T114: =Sorcadins!T$1288*('Base Numbers'!$C$5*'Base Numbers'!$C$6)-T110 -> 15.2 | U114: =Sorcadins!U$1288*('Base Numbers'!$C$5*'Base Numbers'!$C$6)-U110 -> 15.2 | V114: =Sorcadins!V$1288*('Base Numbers'!$C$5*'Base Numbers'!$C$6)-V110 -> 15.2 | W114: =Sorcadins!W$1288*('Base Numbers'!$C$5*'Base Numbers'!$C$6)-W110 -> 15.2 | X114: =Sorcadins!X$1288*('Base Numbers'!$C$5*'Base Numbers'!$C$6)-X110 -> 15.2
D115: smite dice left for non-crits | E115: =ROUND(MAX(0,E108-E110*E112),4) -> 0 | F115: 0 | G115: 0 | H115: 0 | I115: 0 | J115: 0 | K115: 0 | L115: 0 | M115: 0 | N115: 0 | O115: 0 | P115: 0 | Q115: 0 | R115: 0 | S115: 0 | T115: 0 | U115: 0 | V115: 0 | W115: 0 | X115: 0
D116: total smite dice used on crits | E116: =E111*E112 -> 0 | F116: =F111*F112 -> 0 | G116: 0 | H116: 0 | I116: 0 | J116: 0 | K116: 0 | L116: 0 | M116: 0 | N116: 0 | O116: 0 | P116: 0 | Q116: 0 | R116: 0 | S116: 0 | T116: 0 | U116: 0 | V116: 0 | W116: 0 | X116: 0
D117: total crit smite damage per day | E117: =9*E116 -> 0 | F117: =9*F116 -> 0 | G117: 0 | H117: 0 | I117: 0 | J117: 0 | K117: 0 | L117: 0 | M117: 0 | N117: 0 | O117: 0 | P117: 0 | Q117: 0 | R117: 0 | S117: 0 | T117: 0 | U117: 0 | V117: 0 | W117: 0 | X117: 0
D118: total non-crit smite damage per day | E118: =4.5*MIN(MIN(E114,E113)*E$7,E115) -> 0 | F118: =4.5*MIN(MIN(F114,F113)*F$7,F115) -> 0 | G118: 0 | H118: 0 | I118: 0 | J118: 0 | K118: 0 | L118: 0 | M118: 0 | N118: 0 | O118: 0 | P118: 0 | Q118: 0 | R118: 0 | S118: 0 | T118: 0 | U118: 0 | V118: 0 | W118: 0 | X118: 0
D119: leftover sorc points + spell levels | E119: =IF(E108>0,IF(Sorcadins!E$273>0,(Sorcadins!E$273*E106+E105-E111*E112-E118/4.5)/Sorcadins!E$273,0),E106+E105) -> 0 | F119: =IF(F108>0,IF(Sorcadins!F$273>0,(Sorcadins!F$273*F106+F105-F111*F112-F118/4.5)/Sorcadins!F$273,0),F106+F105) -> 0 | G119: =IF(G108>0,IF(Sorcadins!G$273>0,(Sorcadins!G$273*G106+G105-G111*G112-G118/4.5)/Sorcadins!G$273,0),G106+G105) -> 0 | H119: =IF(H108>0,IF(Sorcadins!H$273>0,(Sorcadins!H$273*H106+H105-H111*H112-H118/4.5)/Sorcadins!H$273,0),H106+H105) -> 0 | I119: =IF(I108>0,IF(Sorcadins!I$273>0,(Sorcadins!I$273*I106+I105-I111*I112-I118/4.5)/Sorcadins!I$273,0),I106+I105) -> 0 | J119: =IF(J108>0,IF(Sorcadins!J$273>0,(Sorcadins!J$273*J106+J105-J111*J112-J118/4.5)/Sorcadins!J$273,0),J106+J105) -> 0 | K119: =IF(K108>0,IF(Sorcadins!K$273>0,(Sorcadins!K$273*K106+K105-K111*K112-K118/4.5)/Sorcadins!K$273,0),K106+K105) -> 0 | L119: =IF(L108>0,IF(Sorcadins!L$273>0,(Sorcadins!L$273*L106+L105-L111*L112-L118/4.5)/Sorcadins!L$273,0),L106+L105) -> 0 | M119: =IF(M108>0,IF(Sorcadins!M$273>0,(Sorcadins!M$273*M106+M105-M111*M112-M118/4.5)/Sorcadins!M$273,0),M106+M105) -> 0 | N119: =IF(N108>0,IF(Sorcadins!N$273>0,(Sorcadins!N$273*N106+N105-N111*N112-N118/4.5)/Sorcadins!N$273,0),N106+N105) -> 0 | O119: =IF(O108>0,IF(Sorcadins!O$273>0,(Sorcadins!O$273*O106+O105-O111*O112-O118/4.5)/Sorcadins!O$273,0),O106+O105) -> 0 | P119: =IF(P108>0,IF(Sorcadins!P$273>0,(Sorcadins!P$273*P106+P105-P111*P112-P118/4.5)/Sorcadins!P$273,0),P106+P105) -> 0 | Q119: =IF(Q108>0,IF(Sorcadins!Q$273>0,(Sorcadins!Q$273*Q106+Q105-Q111*Q112-Q118/4.5)/Sorcadins!Q$273,0),Q106+Q105) -> 0 | R119: =IF(R108>0,IF(Sorcadins!R$273>0,(Sorcadins!R$273*R106+R105-R111*R112-R118/4.5)/Sorcadins!R$273,0),R106+R105) -> 0 | S119: =IF(S108>0,IF(Sorcadins!S$273>0,(Sorcadins!S$273*S106+S105-S111*S112-S118/4.5)/Sorcadins!S$273,0),S106+S105) -> 0 | T119: =IF(T108>0,IF(Sorcadins!T$273>0,(Sorcadins!T$273*T106+T105-T111*T112-T118/4.5)/Sorcadins!T$273,0),T106+T105) -> 0 | U119: =IF(U108>0,IF(Sorcadins!U$273>0,(Sorcadins!U$273*U106+U105-U111*U112-U118/4.5)/Sorcadins!U$273,0),U106+U105) -> 0 | V119: =IF(V108>0,IF(Sorcadins!V$273>0,(Sorcadins!V$273*V106+V105-V111*V112-V118/4.5)/Sorcadins!V$273,0),V106+V105) -> 0 | W119: =IF(W108>0,IF(Sorcadins!W$273>0,(Sorcadins!W$273*W106+W105-W111*W112-W118/4.5)/Sorcadins!W$273,0),W106+W105) -> 0 | X119: =IF(X108>0,IF(Sorcadins!X$273>0,(Sorcadins!X$273*X106+X105-X111*X112-X118/4.5)/Sorcadins!X$273,0),X106+X105) -> 0
D120: actual smites performed | E120: =E111+IF(E$7>0,MIN(E113,E114,E115/E$7),0) -> 0 | F120: =F111+IF(F$7>0,MIN(F113,F114,F115/F$7),0) -> 0 | G120: 0 | H120: 0 | I120: 0 | J120: 0 | K120: 0 | L120: 0 | M120: 0 | N120: 0 | O120: 0 | P120: 0 | Q120: 0 | R120: 0 | S120: 0 | T120: 0 | U120: 0 | V120: 0 | W120: 0 | X120: 0
D121: total daily smite damage: M1, B3, O3 | E121: =E117+E118 -> 0 | F121: =F117+F118 -> 0 | G121: 0 | H121: 0 | I121: 0 | J121: 0 | K121: 0 | L121: 0 | M121: 0 | N121: 0 | O121: 0 | P121: 0 | Q121: 0 | R121: 0 | S121: 0 | T121: 0 | U121: 0 | V121: 0 | W121: 0 | X121: 0
D123: SMITES - M1, B4, O1/O2 | E123: 1 | F123: 2 | G123: 3 | H123: 4 | I123: 5 | J123: 6 | K123: 7 | L123: 8 | M123: 9 | N123: 10 | O123: 11 | P123: 12 | Q123: 13 | R123: 14 | S123: 15 | T123: 16 | U123: 17 | V123: 18 | W123: 19 | X123: 20
D124: remaining sorcery points (based on Damage Scenario) | E124: =MAX(0,Sorcadins!E$561-Sorcadins!E$1278) -> 0 | F124: =MAX(0,Sorcadins!F$561-Sorcadins!F$1278) -> 0 | G124: =MAX(0,Sorcadins!G$561-Sorcadins!G$1278) -> 0 | H124: =MAX(0,Sorcadins!H$561-Sorcadins!H$1278) -> 0 | I124: =MAX(0,Sorcadins!I$561-Sorcadins!I$1278) -> 0 | J124: =MAX(0,Sorcadins!J$561-Sorcadins!J$1278) -> 0 | K124: =MAX(0,Sorcadins!K$561-Sorcadins!K$1278) -> 0 | L124: =MAX(0,Sorcadins!L$561-Sorcadins!L$1278) -> 0 | M124: =MAX(0,Sorcadins!M$561-Sorcadins!M$1278) -> 0 | N124: =MAX(0,Sorcadins!N$561-Sorcadins!N$1278) -> 0 | O124: =MAX(0,Sorcadins!O$561-Sorcadins!O$1278) -> 0 | P124: =MAX(0,Sorcadins!P$561-Sorcadins!P$1278) -> 0 | Q124: =MAX(0,Sorcadins!Q$561-Sorcadins!Q$1278) -> 0 | R124: =MAX(0,Sorcadins!R$561-Sorcadins!R$1278) -> 0 | S124: =MAX(0,Sorcadins!S$561-Sorcadins!S$1278) -> 0 | T124: =MAX(0,Sorcadins!T$561-Sorcadins!T$1278) -> 0 | U124: =MAX(0,Sorcadins!U$561-Sorcadins!U$1278) -> 0 | V124: =MAX(0,Sorcadins!V$561-Sorcadins!V$1278) -> 0 | W124: =MAX(0,Sorcadins!W$561-Sorcadins!W$1278) -> 0 | X124: =MAX(0,Sorcadins!X$561-Sorcadins!X$1278) -> 0 | Z124: *Sorc points directly convertible to Smite Dice
D125: remaining spell slot levels (based on Damage Scenario) | E125: =MAX(0,Sorcadins!E$281-MAX(0,Sorcadins!E$1278-Sorcadins!E$561)) -> 0 | F125: =MAX(0,Sorcadins!F$281-MAX(0,Sorcadins!F$1278-Sorcadins!F$561)) -> 0 | G125: =MAX(0,Sorcadins!G$281-MAX(0,Sorcadins!G$1278-Sorcadins!G$561)) -> 0 | H125: =MAX(0,Sorcadins!H$281-MAX(0,Sorcadins!H$1278-Sorcadins!H$561)) -> 0 | I125: =MAX(0,Sorcadins!I$281-MAX(0,Sorcadins!I$1278-Sorcadins!I$561)) -> 0 | J125: =MAX(0,Sorcadins!J$281-MAX(0,Sorcadins!J$1278-Sorcadins!J$561)) -> 0 | K125: =MAX(0,Sorcadins!K$281-MAX(0,Sorcadins!K$1278-Sorcadins!K$561)) -> 0 | L125: =MAX(0,Sorcadins!L$281-MAX(0,Sorcadins!L$1278-Sorcadins!L$561)) -> 0 | M125: =MAX(0,Sorcadins!M$281-MAX(0,Sorcadins!M$1278-Sorcadins!M$561)) -> 0 | N125: =MAX(0,Sorcadins!N$281-MAX(0,Sorcadins!N$1278-Sorcadins!N$561)) -> 0 | O125: =MAX(0,Sorcadins!O$281-MAX(0,Sorcadins!O$1278-Sorcadins!O$561)) -> 0 | P125: =MAX(0,Sorcadins!P$281-MAX(0,Sorcadins!P$1278-Sorcadins!P$561)) -> 0 | Q125: =MAX(0,Sorcadins!Q$281-MAX(0,Sorcadins!Q$1278-Sorcadins!Q$561)) -> 0 | R125: =MAX(0,Sorcadins!R$281-MAX(0,Sorcadins!R$1278-Sorcadins!R$561)) -> 0 | S125: =MAX(0,Sorcadins!S$281-MAX(0,Sorcadins!S$1278-Sorcadins!S$561)) -> 0 | T125: =MAX(0,Sorcadins!T$281-MAX(0,Sorcadins!T$1278-Sorcadins!T$561)) -> 0 | U125: =MAX(0,Sorcadins!U$281-MAX(0,Sorcadins!U$1278-Sorcadins!U$561)) -> 0 | V125: =MAX(0,Sorcadins!V$281-MAX(0,Sorcadins!V$1278-Sorcadins!V$561)) -> 0 | W125: =MAX(0,Sorcadins!W$281-MAX(0,Sorcadins!W$1278-Sorcadins!W$561)) -> 0 | X125: =MAX(0,Sorcadins!X$281-MAX(0,Sorcadins!X$1278-Sorcadins!X$561)) -> 0
D126: total warlock smite levels remaining | E126: =MIN(Sorcadins!E$273*E125,Sorcadins!E$264) -> 0 | F126: =MIN(Sorcadins!F$273*F125,Sorcadins!F$264) -> 0 | G126: =MIN(Sorcadins!G$273*G125,Sorcadins!G$264) -> 0 | H126: =MIN(Sorcadins!H$273*H125,Sorcadins!H$264) -> 0 | I126: =MIN(Sorcadins!I$273*I125,Sorcadins!I$264) -> 0 | J126: =MIN(Sorcadins!J$273*J125,Sorcadins!J$264) -> 0 | K126: =MIN(Sorcadins!K$273*K125,Sorcadins!K$264) -> 0 | L126: =MIN(Sorcadins!L$273*L125,Sorcadins!L$264) -> 0 | M126: =MIN(Sorcadins!M$273*M125,Sorcadins!M$264) -> 0 | N126: =MIN(Sorcadins!N$273*N125,Sorcadins!N$264) -> 0 | O126: =MIN(Sorcadins!O$273*O125,Sorcadins!O$264) -> 0 | P126: =MIN(Sorcadins!P$273*P125,Sorcadins!P$264) -> 0 | Q126: =MIN(Sorcadins!Q$273*Q125,Sorcadins!Q$264) -> 0 | R126: =MIN(Sorcadins!R$273*R125,Sorcadins!R$264) -> 0 | S126: =MIN(Sorcadins!S$273*S125,Sorcadins!S$264) -> 0 | T126: =MIN(Sorcadins!T$273*T125,Sorcadins!T$264) -> 0 | U126: =MIN(Sorcadins!U$273*U125,Sorcadins!U$264) -> 0 | V126: =MIN(Sorcadins!V$273*V125,Sorcadins!V$264) -> 0 | W126: =MIN(Sorcadins!W$273*W125,Sorcadins!W$264) -> 0 | X126: =MIN(Sorcadins!X$273*X125,Sorcadins!X$264) -> 0
D127: total smite levels remaining | E127: =IF(E$5>=1,Sorcadins!E$273*E125+E124,IF(E$6,E126,0)) -> 0 | F127: =IF(F$5>=1,Sorcadins!F$273*F125+F124,IF(F$6,F126,0)) -> 0 | G127: =IF(G$5>=1,Sorcadins!G$273*G125+G124,IF(G$6,G126,0)) -> 0 | H127: =IF(H$5>=1,Sorcadins!H$273*H125+H124,IF(H$6,H126,0)) -> 0 | I127: =IF(I$5>=1,Sorcadins!I$273*I125+I124,IF(I$6,I126,0)) -> 0 | J127: =IF(J$5>=1,Sorcadins!J$273*J125+J124,IF(J$6,J126,0)) -> 0 | K127: =IF(K$5>=1,Sorcadins!K$273*K125+K124,IF(K$6,K126,0)) -> 0 | L127: =IF(L$5>=1,Sorcadins!L$273*L125+L124,IF(L$6,L126,0)) -> 0 | M127: =IF(M$5>=1,Sorcadins!M$273*M125+M124,IF(M$6,M126,0)) -> 0 | N127: =IF(N$5>=1,Sorcadins!N$273*N125+N124,IF(N$6,N126,0)) -> 0 | O127: =IF(O$5>=1,Sorcadins!O$273*O125+O124,IF(O$6,O126,0)) -> 0 | P127: =IF(P$5>=1,Sorcadins!P$273*P125+P124,IF(P$6,P126,0)) -> 0 | Q127: =IF(Q$5>=1,Sorcadins!Q$273*Q125+Q124,IF(Q$6,Q126,0)) -> 0 | R127: =IF(R$5>=1,Sorcadins!R$273*R125+R124,IF(R$6,R126,0)) -> 0 | S127: =IF(S$5>=1,Sorcadins!S$273*S125+S124,IF(S$6,S126,0)) -> 0 | T127: =IF(T$5>=1,Sorcadins!T$273*T125+T124,IF(T$6,T126,0)) -> 0 | U127: =IF(U$5>=1,Sorcadins!U$273*U125+U124,IF(U$6,U126,0)) -> 0 | V127: =IF(V$5>=1,Sorcadins!V$273*V125+V124,IF(V$6,V126,0)) -> 0 | W127: =IF(W$5>=1,Sorcadins!W$273*W125+W124,IF(W$6,W126,0)) -> 0 | X127: =IF(X$5>=1,Sorcadins!X$273*X125+X124,IF(X$6,X126,0)) -> 0
D128: max number of daily smites (after spells) | E128: =IF(E$6,Sorcadins!E$1157,IF(E$5,Sorcadins!E$282+E124/2,0)) -> 0 | F128: =IF(F$6,Sorcadins!F$1157,IF(F$5,Sorcadins!F$282+F124/2,0)) -> 0 | G128: =IF(G$6,Sorcadins!G$1157,IF(G$5,Sorcadins!G$282+G124/2,0)) -> 0 | H128: =IF(H$6,Sorcadins!H$1157,IF(H$5,Sorcadins!H$282+H124/2,0)) -> 0 | I128: =IF(I$6,Sorcadins!I$1157,IF(I$5,Sorcadins!I$282+I124/2,0)) -> 0 | J128: =IF(J$6,Sorcadins!J$1157,IF(J$5,Sorcadins!J$282+J124/2,0)) -> 0 | K128: =IF(K$6,Sorcadins!K$1157,IF(K$5,Sorcadins!K$282+K124/2,0)) -> 0 | L128: =IF(L$6,Sorcadins!L$1157,IF(L$5,Sorcadins!L$282+L124/2,0)) -> 0 | M128: =IF(M$6,Sorcadins!M$1157,IF(M$5,Sorcadins!M$282+M124/2,0)) -> 0 | N128: =IF(N$6,Sorcadins!N$1157,IF(N$5,Sorcadins!N$282+N124/2,0)) -> 0 | O128: =IF(O$6,Sorcadins!O$1157,IF(O$5,Sorcadins!O$282+O124/2,0)) -> 0 | P128: =IF(P$6,Sorcadins!P$1157,IF(P$5,Sorcadins!P$282+P124/2,0)) -> 0 | Q128: =IF(Q$6,Sorcadins!Q$1157,IF(Q$5,Sorcadins!Q$282+Q124/2,0)) -> 0 | R128: =IF(R$6,Sorcadins!R$1157,IF(R$5,Sorcadins!R$282+R124/2,0)) -> 0 | S128: =IF(S$6,Sorcadins!S$1157,IF(S$5,Sorcadins!S$282+S124/2,0)) -> 0 | T128: =IF(T$6,Sorcadins!T$1157,IF(T$5,Sorcadins!T$282+T124/2,0)) -> 0 | U128: =IF(U$6,Sorcadins!U$1157,IF(U$5,Sorcadins!U$282+U124/2,0)) -> 0 | V128: =IF(V$6,Sorcadins!V$1157,IF(V$5,Sorcadins!V$282+V124/2,0)) -> 0 | W128: =IF(W$6,Sorcadins!W$1157,IF(W$5,Sorcadins!W$282+W124/2,0)) -> 0 | X128: =IF(X$6,Sorcadins!X$1157,IF(X$5,Sorcadins!X$282+X124/2,0)) -> 0
D129: avg crits per day for smite purposes (based on Damage Scenario) | E129: ='Base Numbers'!$C$5*'Base Numbers'!$C$6*Sorcadins!E$1314 -> 1 | F129: ='Base Numbers'!$C$5*'Base Numbers'!$C$6*Sorcadins!F$1314 -> 1 | G129: ='Base Numbers'!$C$5*'Base Numbers'!$C$6*Sorcadins!G$1314 -> 1 | H129: ='Base Numbers'!$C$5*'Base Numbers'!$C$6*Sorcadins!H$1314 -> 1 | I129: ='Base Numbers'!$C$5*'Base Numbers'!$C$6*Sorcadins!I$1314 -> 1 | J129: ='Base Numbers'!$C$5*'Base Numbers'!$C$6*Sorcadins!J$1314 -> 1 | K129: ='Base Numbers'!$C$5*'Base Numbers'!$C$6*Sorcadins!K$1314 -> 1 | L129: ='Base Numbers'!$C$5*'Base Numbers'!$C$6*Sorcadins!L$1314 -> 1 | M129: ='Base Numbers'!$C$5*'Base Numbers'!$C$6*Sorcadins!M$1314 -> 1 | N129: ='Base Numbers'!$C$5*'Base Numbers'!$C$6*Sorcadins!N$1314 -> 1 | O129: ='Base Numbers'!$C$5*'Base Numbers'!$C$6*Sorcadins!O$1314 -> 1 | P129: ='Base Numbers'!$C$5*'Base Numbers'!$C$6*Sorcadins!P$1314 -> 1 | Q129: ='Base Numbers'!$C$5*'Base Numbers'!$C$6*Sorcadins!Q$1314 -> 1 | R129: ='Base Numbers'!$C$5*'Base Numbers'!$C$6*Sorcadins!R$1314 -> 1 | S129: ='Base Numbers'!$C$5*'Base Numbers'!$C$6*Sorcadins!S$1314 -> 1 | T129: ='Base Numbers'!$C$5*'Base Numbers'!$C$6*Sorcadins!T$1314 -> 1 | U129: ='Base Numbers'!$C$5*'Base Numbers'!$C$6*Sorcadins!U$1314 -> 1 | V129: ='Base Numbers'!$C$5*'Base Numbers'!$C$6*Sorcadins!V$1314 -> 1 | W129: ='Base Numbers'!$C$5*'Base Numbers'!$C$6*Sorcadins!W$1314 -> 1 | X129: ='Base Numbers'!$C$5*'Base Numbers'!$C$6*Sorcadins!X$1314 -> 1
D130: number of smites used on crits | E130: =MIN(E128,E129) -> 0 | F130: =MIN(F128,F129) -> 0 | G130: 0 | H130: 0 | I130: 0 | J130: 0 | K130: 0 | L130: 0 | M130: 0 | N130: 0 | O130: 0 | P130: 0 | Q130: 0 | R130: 0 | S130: 0 | T130: 0 | U130: 0 | V130: 0 | W130: 0 | X130: 0
D131: avg smite dice per crit | E131: =IF(E130>0,MIN(E$7,(E127/MIN(E130,E129))),0) -> 0 | F131: 0 | G131: 0 | H131: 0 | I131: 0 | J131: 0 | K131: 0 | L131: 0 | M131: 0 | N131: 0 | O131: 0 | P131: 0 | Q131: 0 | R131: 0 | S131: 0 | T131: 0 | U131: 0 | V131: 0 | W131: 0 | X131: 0
D132: smites left for non-crits | E132: =E128-E130 -> 0 | F132: =F128-F130 -> 0 | G132: 0 | H132: 0 | I132: 0 | J132: 0 | K132: 0 | L132: 0 | M132: 0 | N132: 0 | O132: 0 | P132: 0 | Q132: 0 | R132: 0 | S132: 0 | T132: 0 | U132: 0 | V132: 0 | W132: 0 | X132: 0
D133: total non-crit smite-qualifying attacks available | E133: =Sorcadins!E$1289*('Base Numbers'!$C$5*'Base Numbers'!$C$6)-E129 -> 19 | F133: =Sorcadins!F$1289*('Base Numbers'!$C$5*'Base Numbers'!$C$6)-F129 -> 19 | G133: =Sorcadins!G$1289*('Base Numbers'!$C$5*'Base Numbers'!$C$6)-G129 -> 19 | H133: =Sorcadins!H$1289*('Base Numbers'!$C$5*'Base Numbers'!$C$6)-H129 -> 19 | I133: =Sorcadins!I$1289*('Base Numbers'!$C$5*'Base Numbers'!$C$6)-I129 -> 19 | J133: =Sorcadins!J$1289*('Base Numbers'!$C$5*'Base Numbers'!$C$6)-J129 -> 19 | K133: =Sorcadins!K$1289*('Base Numbers'!$C$5*'Base Numbers'!$C$6)-K129 -> 19 | L133: =Sorcadins!L$1289*('Base Numbers'!$C$5*'Base Numbers'!$C$6)-L129 -> 19 | M133: =Sorcadins!M$1289*('Base Numbers'!$C$5*'Base Numbers'!$C$6)-M129 -> 19 | N133: =Sorcadins!N$1289*('Base Numbers'!$C$5*'Base Numbers'!$C$6)-N129 -> 19 | O133: =Sorcadins!O$1289*('Base Numbers'!$C$5*'Base Numbers'!$C$6)-O129 -> 19 | P133: =Sorcadins!P$1289*('Base Numbers'!$C$5*'Base Numbers'!$C$6)-P129 -> 19 | Q133: =Sorcadins!Q$1289*('Base Numbers'!$C$5*'Base Numbers'!$C$6)-Q129 -> 19 | R133: =Sorcadins!R$1289*('Base Numbers'!$C$5*'Base Numbers'!$C$6)-R129 -> 19 | S133: =Sorcadins!S$1289*('Base Numbers'!$C$5*'Base Numbers'!$C$6)-S129 -> 19 | T133: =Sorcadins!T$1289*('Base Numbers'!$C$5*'Base Numbers'!$C$6)-T129 -> 19 | U133: =Sorcadins!U$1289*('Base Numbers'!$C$5*'Base Numbers'!$C$6)-U129 -> 19 | V133: =Sorcadins!V$1289*('Base Numbers'!$C$5*'Base Numbers'!$C$6)-V129 -> 19 | W133: =Sorcadins!W$1289*('Base Numbers'!$C$5*'Base Numbers'!$C$6)-W129 -> 19 | X133: =Sorcadins!X$1289*('Base Numbers'!$C$5*'Base Numbers'!$C$6)-X129 -> 19
D134: smite dice left for non-crits | E134: =ROUND(MAX(0,E127-E129*E131),4) -> 0 | F134: =ROUND(MAX(0,F127-F129*F131),4) -> 0 | G134: 0 | H134: 0 | I134: 0 | J134: 0 | K134: 0 | L134: 0 | M134: 0 | N134: 0 | O134: 0 | P134: 0 | Q134: 0 | R134: 0 | S134: 0 | T134: 0 | U134: 0 | V134: 0 | W134: 0 | X134: 0
D135: total smite dice used on crits | E135: =E130*E131 -> 0 | F135: =F130*F131 -> 0 | G135: 0 | H135: 0 | I135: 0 | J135: 0 | K135: 0 | L135: 0 | M135: 0 | N135: 0 | O135: 0 | P135: 0 | Q135: 0 | R135: 0 | S135: 0 | T135: 0 | U135: 0 | V135: 0 | W135: 0 | X135: 0
D136: total crit smite damage per day | E136: =9*E135 -> 0 | F136: =9*F135 -> 0 | G136: 0 | H136: 0 | I136: 0 | J136: 0 | K136: 0 | L136: 0 | M136: 0 | N136: 0 | O136: 0 | P136: 0 | Q136: 0 | R136: 0 | S136: 0 | T136: 0 | U136: 0 | V136: 0 | W136: 0 | X136: 0
D137: total non-crit smite damage per day | E137: =4.5*MIN(MIN(E133,E132)*E$7,E134) -> 0 | F137: =4.5*MIN(MIN(F133,F132)*F$7,F134) -> 0 | G137: 0 | H137: 0 | I137: 0 | J137: 0 | K137: 0 | L137: 0 | M137: 0 | N137: 0 | O137: 0 | P137: 0 | Q137: 0 | R137: 0 | S137: 0 | T137: 0 | U137: 0 | V137: 0 | W137: 0 | X137: 0
D138: leftover sorc points + spell levels | E138: =IF(E127>0,IF(Sorcadins!E$273>0,(Sorcadins!E$273*E125+E124-E130*E131-E137/4.5)/Sorcadins!E$273,0),E125+E124) -> 0 | F138: =IF(F127>0,IF(Sorcadins!F$273>0,(Sorcadins!F$273*F125+F124-F130*F131-F137/4.5)/Sorcadins!F$273,0),F125+F124) -> 0 | G138: =IF(G127>0,IF(Sorcadins!G$273>0,(Sorcadins!G$273*G125+G124-G130*G131-G137/4.5)/Sorcadins!G$273,0),G125+G124) -> 0 | H138: =IF(H127>0,IF(Sorcadins!H$273>0,(Sorcadins!H$273*H125+H124-H130*H131-H137/4.5)/Sorcadins!H$273,0),H125+H124) -> 0 | I138: =IF(I127>0,IF(Sorcadins!I$273>0,(Sorcadins!I$273*I125+I124-I130*I131-I137/4.5)/Sorcadins!I$273,0),I125+I124) -> 0 | J138: =IF(J127>0,IF(Sorcadins!J$273>0,(Sorcadins!J$273*J125+J124-J130*J131-J137/4.5)/Sorcadins!J$273,0),J125+J124) -> 0 | K138: =IF(K127>0,IF(Sorcadins!K$273>0,(Sorcadins!K$273*K125+K124-K130*K131-K137/4.5)/Sorcadins!K$273,0),K125+K124) -> 0 | L138: =IF(L127>0,IF(Sorcadins!L$273>0,(Sorcadins!L$273*L125+L124-L130*L131-L137/4.5)/Sorcadins!L$273,0),L125+L124) -> 0 | M138: =IF(M127>0,IF(Sorcadins!M$273>0,(Sorcadins!M$273*M125+M124-M130*M131-M137/4.5)/Sorcadins!M$273,0),M125+M124) -> 0 | N138: =IF(N127>0,IF(Sorcadins!N$273>0,(Sorcadins!N$273*N125+N124-N130*N131-N137/4.5)/Sorcadins!N$273,0),N125+N124) -> 0 | O138: =IF(O127>0,IF(Sorcadins!O$273>0,(Sorcadins!O$273*O125+O124-O130*O131-O137/4.5)/Sorcadins!O$273,0),O125+O124) -> 0 | P138: =IF(P127>0,IF(Sorcadins!P$273>0,(Sorcadins!P$273*P125+P124-P130*P131-P137/4.5)/Sorcadins!P$273,0),P125+P124) -> 0 | Q138: =IF(Q127>0,IF(Sorcadins!Q$273>0,(Sorcadins!Q$273*Q125+Q124-Q130*Q131-Q137/4.5)/Sorcadins!Q$273,0),Q125+Q124) -> 0 | R138: =IF(R127>0,IF(Sorcadins!R$273>0,(Sorcadins!R$273*R125+R124-R130*R131-R137/4.5)/Sorcadins!R$273,0),R125+R124) -> 0 | S138: =IF(S127>0,IF(Sorcadins!S$273>0,(Sorcadins!S$273*S125+S124-S130*S131-S137/4.5)/Sorcadins!S$273,0),S125+S124) -> 0 | T138: =IF(T127>0,IF(Sorcadins!T$273>0,(Sorcadins!T$273*T125+T124-T130*T131-T137/4.5)/Sorcadins!T$273,0),T125+T124) -> 0 | U138: =IF(U127>0,IF(Sorcadins!U$273>0,(Sorcadins!U$273*U125+U124-U130*U131-U137/4.5)/Sorcadins!U$273,0),U125+U124) -> 0 | V138: =IF(V127>0,IF(Sorcadins!V$273>0,(Sorcadins!V$273*V125+V124-V130*V131-V137/4.5)/Sorcadins!V$273,0),V125+V124) -> 0 | W138: =IF(W127>0,IF(Sorcadins!W$273>0,(Sorcadins!W$273*W125+W124-W130*W131-W137/4.5)/Sorcadins!W$273,0),W125+W124) -> 0 | X138: =IF(X127>0,IF(Sorcadins!X$273>0,(Sorcadins!X$273*X125+X124-X130*X131-X137/4.5)/Sorcadins!X$273,0),X125+X124) -> 0
D139: actual smites performed | E139: =E130+IF(E$7>0,MIN(E132,E133,E134/E$7),0) -> 0 | F139: =F130+IF(F$7>0,MIN(F132,F133,F134/F$7),0) -> 0 | G139: 0 | H139: 0 | I139: 0 | J139: 0 | K139: 0 | L139: 0 | M139: 0 | N139: 0 | O139: 0 | P139: 0 | Q139: 0 | R139: 0 | S139: 0 | T139: 0 | U139: 0 | V139: 0 | W139: 0 | X139: 0
D140: total daily smite damage: M1, B4, O1/O2 | E140: =E136+E137 -> 0 | F140: =F136+F137 -> 0 | G140: 0 | H140: 0 | I140: 0 | J140: 0 | K140: 0 | L140: 0 | M140: 0 | N140: 0 | O140: 0 | P140: 0 | Q140: 0 | R140: 0 | S140: 0 | T140: 0 | U140: 0 | V140: 0 | W140: 0 | X140: 0
D142: SMITES - M1, B4, O3 | E142: 1 | F142: 2 | G142: 3 | H142: 4 | I142: 5 | J142: 6 | K142: 7 | L142: 8 | M142: 9 | N142: 10 | O142: 11 | P142: 12 | Q142: 13 | R142: 14 | S142: 15 | T142: 16 | U142: 17 | V142: 18 | W142: 19 | X142: 20
D143: remaining sorcery points (based on Damage Scenario) | E143: =MAX(0,Sorcadins!E$561-Sorcadins!E$1278) -> 0 | F143: =MAX(0,Sorcadins!F$561-Sorcadins!F$1278) -> 0 | G143: =MAX(0,Sorcadins!G$561-Sorcadins!G$1278) -> 0 | H143: =MAX(0,Sorcadins!H$561-Sorcadins!H$1278) -> 0 | I143: =MAX(0,Sorcadins!I$561-Sorcadins!I$1278) -> 0 | J143: =MAX(0,Sorcadins!J$561-Sorcadins!J$1278) -> 0 | K143: =MAX(0,Sorcadins!K$561-Sorcadins!K$1278) -> 0 | L143: =MAX(0,Sorcadins!L$561-Sorcadins!L$1278) -> 0 | M143: =MAX(0,Sorcadins!M$561-Sorcadins!M$1278) -> 0 | N143: =MAX(0,Sorcadins!N$561-Sorcadins!N$1278) -> 0 | O143: =MAX(0,Sorcadins!O$561-Sorcadins!O$1278) -> 0 | P143: =MAX(0,Sorcadins!P$561-Sorcadins!P$1278) -> 0 | Q143: =MAX(0,Sorcadins!Q$561-Sorcadins!Q$1278) -> 0 | R143: =MAX(0,Sorcadins!R$561-Sorcadins!R$1278) -> 0 | S143: =MAX(0,Sorcadins!S$561-Sorcadins!S$1278) -> 0 | T143: =MAX(0,Sorcadins!T$561-Sorcadins!T$1278) -> 0 | U143: =MAX(0,Sorcadins!U$561-Sorcadins!U$1278) -> 0 | V143: =MAX(0,Sorcadins!V$561-Sorcadins!V$1278) -> 0 | W143: =MAX(0,Sorcadins!W$561-Sorcadins!W$1278) -> 0 | X143: =MAX(0,Sorcadins!X$561-Sorcadins!X$1278) -> 0 | Z143: *Sorc points directly convertible to Smite Dice
D144: remaining spell slot levels (based on Damage Scenario) | E144: =MAX(0,Sorcadins!E$281-MAX(0,Sorcadins!E$1278-Sorcadins!E$561)) -> 0 | F144: =MAX(0,Sorcadins!F$281-MAX(0,Sorcadins!F$1278-Sorcadins!F$561)) -> 0 | G144: =MAX(0,Sorcadins!G$281-MAX(0,Sorcadins!G$1278-Sorcadins!G$561)) -> 0 | H144: =MAX(0,Sorcadins!H$281-MAX(0,Sorcadins!H$1278-Sorcadins!H$561)) -> 0 | I144: =MAX(0,Sorcadins!I$281-MAX(0,Sorcadins!I$1278-Sorcadins!I$561)) -> 0 | J144: =MAX(0,Sorcadins!J$281-MAX(0,Sorcadins!J$1278-Sorcadins!J$561)) -> 0 | K144: =MAX(0,Sorcadins!K$281-MAX(0,Sorcadins!K$1278-Sorcadins!K$561)) -> 0 | L144: =MAX(0,Sorcadins!L$281-MAX(0,Sorcadins!L$1278-Sorcadins!L$561)) -> 0 | M144: =MAX(0,Sorcadins!M$281-MAX(0,Sorcadins!M$1278-Sorcadins!M$561)) -> 0 | N144: =MAX(0,Sorcadins!N$281-MAX(0,Sorcadins!N$1278-Sorcadins!N$561)) -> 0 | O144: =MAX(0,Sorcadins!O$281-MAX(0,Sorcadins!O$1278-Sorcadins!O$561)) -> 0 | P144: =MAX(0,Sorcadins!P$281-MAX(0,Sorcadins!P$1278-Sorcadins!P$561)) -> 0 | Q144: =MAX(0,Sorcadins!Q$281-MAX(0,Sorcadins!Q$1278-Sorcadins!Q$561)) -> 0 | R144: =MAX(0,Sorcadins!R$281-MAX(0,Sorcadins!R$1278-Sorcadins!R$561)) -> 0 | S144: =MAX(0,Sorcadins!S$281-MAX(0,Sorcadins!S$1278-Sorcadins!S$561)) -> 0 | T144: =MAX(0,Sorcadins!T$281-MAX(0,Sorcadins!T$1278-Sorcadins!T$561)) -> 0 | U144: =MAX(0,Sorcadins!U$281-MAX(0,Sorcadins!U$1278-Sorcadins!U$561)) -> 0 | V144: =MAX(0,Sorcadins!V$281-MAX(0,Sorcadins!V$1278-Sorcadins!V$561)) -> 0 | W144: =MAX(0,Sorcadins!W$281-MAX(0,Sorcadins!W$1278-Sorcadins!W$561)) -> 0 | X144: =MAX(0,Sorcadins!X$281-MAX(0,Sorcadins!X$1278-Sorcadins!X$561)) -> 0
D145: total warlock smite levels remaining | E145: =MIN(Sorcadins!E$273*E144,Sorcadins!E$264) -> 0 | F145: =MIN(Sorcadins!F$273*F144,Sorcadins!F$264) -> 0 | G145: =MIN(Sorcadins!G$273*G144,Sorcadins!G$264) -> 0 | H145: =MIN(Sorcadins!H$273*H144,Sorcadins!H$264) -> 0 | I145: =MIN(Sorcadins!I$273*I144,Sorcadins!I$264) -> 0 | J145: =MIN(Sorcadins!J$273*J144,Sorcadins!J$264) -> 0 | K145: =MIN(Sorcadins!K$273*K144,Sorcadins!K$264) -> 0 | L145: =MIN(Sorcadins!L$273*L144,Sorcadins!L$264) -> 0 | M145: =MIN(Sorcadins!M$273*M144,Sorcadins!M$264) -> 0 | N145: =MIN(Sorcadins!N$273*N144,Sorcadins!N$264) -> 0 | O145: =MIN(Sorcadins!O$273*O144,Sorcadins!O$264) -> 0 | P145: =MIN(Sorcadins!P$273*P144,Sorcadins!P$264) -> 0 | Q145: =MIN(Sorcadins!Q$273*Q144,Sorcadins!Q$264) -> 0 | R145: =MIN(Sorcadins!R$273*R144,Sorcadins!R$264) -> 0 | S145: =MIN(Sorcadins!S$273*S144,Sorcadins!S$264) -> 0 | T145: =MIN(Sorcadins!T$273*T144,Sorcadins!T$264) -> 0 | U145: =MIN(Sorcadins!U$273*U144,Sorcadins!U$264) -> 0 | V145: =MIN(Sorcadins!V$273*V144,Sorcadins!V$264) -> 0 | W145: =MIN(Sorcadins!W$273*W144,Sorcadins!W$264) -> 0 | X145: =MIN(Sorcadins!X$273*X144,Sorcadins!X$264) -> 0
D146: total smite levels remaining | E146: =IF(E$5>=1,Sorcadins!E$273*E144+E143,IF(E$6,E145,0)) -> 0 | F146: =IF(F$5>=1,Sorcadins!F$273*F144+F143,IF(F$6,F145,0)) -> 0 | G146: =IF(G$5>=1,Sorcadins!G$273*G144+G143,IF(G$6,G145,0)) -> 0 | H146: =IF(H$5>=1,Sorcadins!H$273*H144+H143,IF(H$6,H145,0)) -> 0 | I146: =IF(I$5>=1,Sorcadins!I$273*I144+I143,IF(I$6,I145,0)) -> 0 | J146: =IF(J$5>=1,Sorcadins!J$273*J144+J143,IF(J$6,J145,0)) -> 0 | K146: =IF(K$5>=1,Sorcadins!K$273*K144+K143,IF(K$6,K145,0)) -> 0 | L146: =IF(L$5>=1,Sorcadins!L$273*L144+L143,IF(L$6,L145,0)) -> 0 | M146: =IF(M$5>=1,Sorcadins!M$273*M144+M143,IF(M$6,M145,0)) -> 0 | N146: =IF(N$5>=1,Sorcadins!N$273*N144+N143,IF(N$6,N145,0)) -> 0 | O146: =IF(O$5>=1,Sorcadins!O$273*O144+O143,IF(O$6,O145,0)) -> 0 | P146: =IF(P$5>=1,Sorcadins!P$273*P144+P143,IF(P$6,P145,0)) -> 0 | Q146: =IF(Q$5>=1,Sorcadins!Q$273*Q144+Q143,IF(Q$6,Q145,0)) -> 0 | R146: =IF(R$5>=1,Sorcadins!R$273*R144+R143,IF(R$6,R145,0)) -> 0 | S146: =IF(S$5>=1,Sorcadins!S$273*S144+S143,IF(S$6,S145,0)) -> 0 | T146: =IF(T$5>=1,Sorcadins!T$273*T144+T143,IF(T$6,T145,0)) -> 0 | U146: =IF(U$5>=1,Sorcadins!U$273*U144+U143,IF(U$6,U145,0)) -> 0 | V146: =IF(V$5>=1,Sorcadins!V$273*V144+V143,IF(V$6,V145,0)) -> 0 | W146: =IF(W$5>=1,Sorcadins!W$273*W144+W143,IF(W$6,W145,0)) -> 0 | X146: =IF(X$5>=1,Sorcadins!X$273*X144+X143,IF(X$6,X145,0)) -> 0
D147: max number of daily smites (after spells) | E147: =IF(E$6,Sorcadins!E$1157,IF(E$5,Sorcadins!E$282+E143/2,0)) -> 0 | F147: =IF(F$6,Sorcadins!F$1157,IF(F$5,Sorcadins!F$282+F143/2,0)) -> 0 | G147: =IF(G$6,Sorcadins!G$1157,IF(G$5,Sorcadins!G$282+G143/2,0)) -> 0 | H147: =IF(H$6,Sorcadins!H$1157,IF(H$5,Sorcadins!H$282+H143/2,0)) -> 0 | I147: =IF(I$6,Sorcadins!I$1157,IF(I$5,Sorcadins!I$282+I143/2,0)) -> 0 | J147: =IF(J$6,Sorcadins!J$1157,IF(J$5,Sorcadins!J$282+J143/2,0)) -> 0 | K147: =IF(K$6,Sorcadins!K$1157,IF(K$5,Sorcadins!K$282+K143/2,0)) -> 0 | L147: =IF(L$6,Sorcadins!L$1157,IF(L$5,Sorcadins!L$282+L143/2,0)) -> 0 | M147: =IF(M$6,Sorcadins!M$1157,IF(M$5,Sorcadins!M$282+M143/2,0)) -> 0 | N147: =IF(N$6,Sorcadins!N$1157,IF(N$5,Sorcadins!N$282+N143/2,0)) -> 0 | O147: =IF(O$6,Sorcadins!O$1157,IF(O$5,Sorcadins!O$282+O143/2,0)) -> 0 | P147: =IF(P$6,Sorcadins!P$1157,IF(P$5,Sorcadins!P$282+P143/2,0)) -> 0 | Q147: =IF(Q$6,Sorcadins!Q$1157,IF(Q$5,Sorcadins!Q$282+Q143/2,0)) -> 0 | R147: =IF(R$6,Sorcadins!R$1157,IF(R$5,Sorcadins!R$282+R143/2,0)) -> 0 | S147: =IF(S$6,Sorcadins!S$1157,IF(S$5,Sorcadins!S$282+S143/2,0)) -> 0 | T147: =IF(T$6,Sorcadins!T$1157,IF(T$5,Sorcadins!T$282+T143/2,0)) -> 0 | U147: =IF(U$6,Sorcadins!U$1157,IF(U$5,Sorcadins!U$282+U143/2,0)) -> 0 | V147: =IF(V$6,Sorcadins!V$1157,IF(V$5,Sorcadins!V$282+V143/2,0)) -> 0 | W147: =IF(W$6,Sorcadins!W$1157,IF(W$5,Sorcadins!W$282+W143/2,0)) -> 0 | X147: =IF(X$6,Sorcadins!X$1157,IF(X$5,Sorcadins!X$282+X143/2,0)) -> 0
D148: avg crits per day for smite purposes (based on Damage Scenario) | E148: ='Base Numbers'!$C$5*'Base Numbers'!$C$6*Sorcadins!E$1315 -> 0.8 | F148: ='Base Numbers'!$C$5*'Base Numbers'!$C$6*Sorcadins!F$1315 -> 0.8 | G148: ='Base Numbers'!$C$5*'Base Numbers'!$C$6*Sorcadins!G$1315 -> 0.8 | H148: ='Base Numbers'!$C$5*'Base Numbers'!$C$6*Sorcadins!H$1315 -> 0.8 | I148: ='Base Numbers'!$C$5*'Base Numbers'!$C$6*Sorcadins!I$1315 -> 0.8 | J148: ='Base Numbers'!$C$5*'Base Numbers'!$C$6*Sorcadins!J$1315 -> 0.8 | K148: ='Base Numbers'!$C$5*'Base Numbers'!$C$6*Sorcadins!K$1315 -> 0.8 | L148: ='Base Numbers'!$C$5*'Base Numbers'!$C$6*Sorcadins!L$1315 -> 0.8 | M148: ='Base Numbers'!$C$5*'Base Numbers'!$C$6*Sorcadins!M$1315 -> 0.8 | N148: ='Base Numbers'!$C$5*'Base Numbers'!$C$6*Sorcadins!N$1315 -> 0.8 | O148: ='Base Numbers'!$C$5*'Base Numbers'!$C$6*Sorcadins!O$1315 -> 0.8 | P148: ='Base Numbers'!$C$5*'Base Numbers'!$C$6*Sorcadins!P$1315 -> 0.8 | Q148: ='Base Numbers'!$C$5*'Base Numbers'!$C$6*Sorcadins!Q$1315 -> 0.8 | R148: ='Base Numbers'!$C$5*'Base Numbers'!$C$6*Sorcadins!R$1315 -> 0.8 | S148: ='Base Numbers'!$C$5*'Base Numbers'!$C$6*Sorcadins!S$1315 -> 0.8 | T148: ='Base Numbers'!$C$5*'Base Numbers'!$C$6*Sorcadins!T$1315 -> 0.8 | U148: ='Base Numbers'!$C$5*'Base Numbers'!$C$6*Sorcadins!U$1315 -> 0.8 | V148: ='Base Numbers'!$C$5*'Base Numbers'!$C$6*Sorcadins!V$1315 -> 0.8 | W148: ='Base Numbers'!$C$5*'Base Numbers'!$C$6*Sorcadins!W$1315 -> 0.8 | X148: ='Base Numbers'!$C$5*'Base Numbers'!$C$6*Sorcadins!X$1315 -> 0.8
D149: number of smites used on crits | E149: =MIN(E147,E148) -> 0 | F149: 0 | G149: 0 | H149: 0 | I149: 0 | J149: 0 | K149: 0 | L149: 0 | M149: 0 | N149: 0 | O149: 0 | P149: 0 | Q149: 0 | R149: 0 | S149: 0 | T149: 0 | U149: 0 | V149: 0 | W149: 0 | X149: 0
D150: avg smite dice per crit | E150: =IF(E149>0,MIN(E$7,(E146/MIN(E149,E148))),0) -> 0 | F150: 0 | G150: 0 | H150: 0 | I150: 0 | J150: 0 | K150: 0 | L150: 0 | M150: 0 | N150: 0 | O150: 0 | P150: 0 | Q150: 0 | R150: 0 | S150: 0 | T150: 0 | U150: 0 | V150: 0 | W150: 0 | X150: 0
D151: smites left for non-crits | E151: =E147-E149 -> 0 | F151: =F147-F149 -> 0 | G151: 0 | H151: 0 | I151: 0 | J151: 0 | K151: 0 | L151: 0 | M151: 0 | N151: 0 | O151: 0 | P151: 0 | Q151: 0 | R151: 0 | S151: 0 | T151: 0 | U151: 0 | V151: 0 | W151: 0 | X151: 0
D152: total non-crit smite-qualifying attacks available | E152: =Sorcadins!E$1290*('Base Numbers'!$C$5*'Base Numbers'!$C$6)-E148 -> 15.2 | F152: =Sorcadins!F$1290*('Base Numbers'!$C$5*'Base Numbers'!$C$6)-F148 -> 15.2 | G152: =Sorcadins!G$1290*('Base Numbers'!$C$5*'Base Numbers'!$C$6)-G148 -> 15.2 | H152: =Sorcadins!H$1290*('Base Numbers'!$C$5*'Base Numbers'!$C$6)-H148 -> 15.2 | I152: =Sorcadins!I$1290*('Base Numbers'!$C$5*'Base Numbers'!$C$6)-I148 -> 15.2 | J152: =Sorcadins!J$1290*('Base Numbers'!$C$5*'Base Numbers'!$C$6)-J148 -> 15.2 | K152: =Sorcadins!K$1290*('Base Numbers'!$C$5*'Base Numbers'!$C$6)-K148 -> 15.2 | L152: =Sorcadins!L$1290*('Base Numbers'!$C$5*'Base Numbers'!$C$6)-L148 -> 15.2 | M152: =Sorcadins!M$1290*('Base Numbers'!$C$5*'Base Numbers'!$C$6)-M148 -> 15.2 | N152: =Sorcadins!N$1290*('Base Numbers'!$C$5*'Base Numbers'!$C$6)-N148 -> 15.2 | O152: =Sorcadins!O$1290*('Base Numbers'!$C$5*'Base Numbers'!$C$6)-O148 -> 15.2 | P152: =Sorcadins!P$1290*('Base Numbers'!$C$5*'Base Numbers'!$C$6)-P148 -> 15.2 | Q152: =Sorcadins!Q$1290*('Base Numbers'!$C$5*'Base Numbers'!$C$6)-Q148 -> 15.2 | R152: =Sorcadins!R$1290*('Base Numbers'!$C$5*'Base Numbers'!$C$6)-R148 -> 15.2 | S152: =Sorcadins!S$1290*('Base Numbers'!$C$5*'Base Numbers'!$C$6)-S148 -> 15.2 | T152: =Sorcadins!T$1290*('Base Numbers'!$C$5*'Base Numbers'!$C$6)-T148 -> 15.2 | U152: =Sorcadins!U$1290*('Base Numbers'!$C$5*'Base Numbers'!$C$6)-U148 -> 15.2 | V152: =Sorcadins!V$1290*('Base Numbers'!$C$5*'Base Numbers'!$C$6)-V148 -> 15.2 | W152: =Sorcadins!W$1290*('Base Numbers'!$C$5*'Base Numbers'!$C$6)-W148 -> 15.2 | X152: =Sorcadins!X$1290*('Base Numbers'!$C$5*'Base Numbers'!$C$6)-X148 -> 15.2
D153: smite dice left for non-crits | E153: =ROUND(MAX(0,E146-E148*E150),4) -> 0 | F153: =ROUND(MAX(0,F146-F148*F150),4) -> 0 | G153: 0 | H153: 0 | I153: 0 | J153: 0 | K153: 0 | L153: 0 | M153: 0 | N153: 0 | O153: 0 | P153: 0 | Q153: 0 | R153: 0 | S153: 0 | T153: 0 | U153: 0 | V153: 0 | W153: 0 | X153: 0
D154: total smite dice used on crits | E154: =E149*E150 -> 0 | F154: =F149*F150 -> 0 | G154: 0 | H154: 0 | I154: 0 | J154: 0 | K154: 0 | L154: 0 | M154: 0 | N154: 0 | O154: 0 | P154: 0 | Q154: 0 | R154: 0 | S154: 0 | T154: 0 | U154: 0 | V154: 0 | W154: 0 | X154: 0
D155: total crit smite damage per day | E155: =9*E154 -> 0 | F155: 0 | G155: 0 | H155: 0 | I155: 0 | J155: 0 | K155: 0 | L155: 0 | M155: 0 | N155: 0 | O155: 0 | P155: 0 | Q155: 0 | R155: 0 | S155: 0 | T155: 0 | U155: 0 | V155: 0 | W155: 0 | X155: 0
D156: total non-crit smite damage per day | E156: =4.5*MIN(MIN(E152,E151)*E$7,E153) -> 0 | F156: =4.5*MIN(MIN(F152,F151)*F$7,F153) -> 0 | G156: 0 | H156: 0 | I156: 0 | J156: 0 | K156: 0 | L156: 0 | M156: 0 | N156: 0 | O156: 0 | P156: 0 | Q156: 0 | R156: 0 | S156: 0 | T156: 0 | U156: 0 | V156: 0 | W156: 0 | X156: 0
D157: leftover sorc points + spell levels | E157: =IF(E146>0,IF(Sorcadins!E$273>0,(Sorcadins!E$273*E144+E143-E149*E150-E156/4.5)/Sorcadins!E$273,0),E144+E143) -> 0 | F157: =IF(F146>0,IF(Sorcadins!F$273>0,(Sorcadins!F$273*F144+F143-F149*F150-F156/4.5)/Sorcadins!F$273,0),F144+F143) -> 0 | G157: =IF(G146>0,IF(Sorcadins!G$273>0,(Sorcadins!G$273*G144+G143-G149*G150-G156/4.5)/Sorcadins!G$273,0),G144+G143) -> 0 | H157: =IF(H146>0,IF(Sorcadins!H$273>0,(Sorcadins!H$273*H144+H143-H149*H150-H156/4.5)/Sorcadins!H$273,0),H144+H143) -> 0 | I157: =IF(I146>0,IF(Sorcadins!I$273>0,(Sorcadins!I$273*I144+I143-I149*I150-I156/4.5)/Sorcadins!I$273,0),I144+I143) -> 0 | J157: =IF(J146>0,IF(Sorcadins!J$273>0,(Sorcadins!J$273*J144+J143-J149*J150-J156/4.5)/Sorcadins!J$273,0),J144+J143) -> 0 | K157: =IF(K146>0,IF(Sorcadins!K$273>0,(Sorcadins!K$273*K144+K143-K149*K150-K156/4.5)/Sorcadins!K$273,0),K144+K143) -> 0 | L157: =IF(L146>0,IF(Sorcadins!L$273>0,(Sorcadins!L$273*L144+L143-L149*L150-L156/4.5)/Sorcadins!L$273,0),L144+L143) -> 0 | M157: =IF(M146>0,IF(Sorcadins!M$273>0,(Sorcadins!M$273*M144+M143-M149*M150-M156/4.5)/Sorcadins!M$273,0),M144+M143) -> 0 | N157: =IF(N146>0,IF(Sorcadins!N$273>0,(Sorcadins!N$273*N144+N143-N149*N150-N156/4.5)/Sorcadins!N$273,0),N144+N143) -> 0 | O157: =IF(O146>0,IF(Sorcadins!O$273>0,(Sorcadins!O$273*O144+O143-O149*O150-O156/4.5)/Sorcadins!O$273,0),O144+O143) -> 0 | P157: =IF(P146>0,IF(Sorcadins!P$273>0,(Sorcadins!P$273*P144+P143-P149*P150-P156/4.5)/Sorcadins!P$273,0),P144+P143) -> 0 | Q157: =IF(Q146>0,IF(Sorcadins!Q$273>0,(Sorcadins!Q$273*Q144+Q143-Q149*Q150-Q156/4.5)/Sorcadins!Q$273,0),Q144+Q143) -> 0 | R157: =IF(R146>0,IF(Sorcadins!R$273>0,(Sorcadins!R$273*R144+R143-R149*R150-R156/4.5)/Sorcadins!R$273,0),R144+R143) -> 0 | S157: =IF(S146>0,IF(Sorcadins!S$273>0,(Sorcadins!S$273*S144+S143-S149*S150-S156/4.5)/Sorcadins!S$273,0),S144+S143) -> 0 | T157: =IF(T146>0,IF(Sorcadins!T$273>0,(Sorcadins!T$273*T144+T143-T149*T150-T156/4.5)/Sorcadins!T$273,0),T144+T143) -> 0 | U157: =IF(U146>0,IF(Sorcadins!U$273>0,(Sorcadins!U$273*U144+U143-U149*U150-U156/4.5)/Sorcadins!U$273,0),U144+U143) -> 0 | V157: =IF(V146>0,IF(Sorcadins!V$273>0,(Sorcadins!V$273*V144+V143-V149*V150-V156/4.5)/Sorcadins!V$273,0),V144+V143) -> 0 | W157: =IF(W146>0,IF(Sorcadins!W$273>0,(Sorcadins!W$273*W144+W143-W149*W150-W156/4.5)/Sorcadins!W$273,0),W144+W143) -> 0 | X157: =IF(X146>0,IF(Sorcadins!X$273>0,(Sorcadins!X$273*X144+X143-X149*X150-X156/4.5)/Sorcadins!X$273,0),X144+X143) -> 0
D158: actual smites performed | E158: =E149+IF(E$7>0,MIN(E151,E152,E153/E$7),0) -> 0 | F158: =F149+IF(F$7>0,MIN(F151,F152,F153/F$7),0) -> 0 | G158: 0 | H158: 0 | I158: 0 | J158: 0 | K158: 0 | L158: 0 | M158: 0 | N158: 0 | O158: 0 | P158: 0 | Q158: 0 | R158: 0 | S158: 0 | T158: 0 | U158: 0 | V158: 0 | W158: 0 | X158: 0
D159: total daily smite damage: M1, B4, O3 | E159: =E155+E156 -> 0 | F159: 0 | G159: 0 | H159: 0 | I159: 0 | J159: 0 | K159: 0 | L159: 0 | M159: 0 | N159: 0 | O159: 0 | P159: 0 | Q159: 0 | R159: 0 | S159: 0 | T159: 0 | U159: 0 | V159: 0 | W159: 0 | X159: 0
D161: SMITES - M1, B5, O1/O2 | E161: 1 | F161: 2 | G161: 3 | H161: 4 | I161: 5 | J161: 6 | K161: 7 | L161: 8 | M161: 9 | N161: 10 | O161: 11 | P161: 12 | Q161: 13 | R161: 14 | S161: 15 | T161: 16 | U161: 17 | V161: 18 | W161: 19 | X161: 20
D162: remaining sorcery points (based on Damage Scenario) | E162: =MAX(0,Sorcadins!E$561-Sorcadins!E$1278) -> 0 | F162: =MAX(0,Sorcadins!F$561-Sorcadins!F$1278) -> 0 | G162: =MAX(0,Sorcadins!G$561-Sorcadins!G$1278) -> 0 | H162: =MAX(0,Sorcadins!H$561-Sorcadins!H$1278) -> 0 | I162: =MAX(0,Sorcadins!I$561-Sorcadins!I$1278) -> 0 | J162: =MAX(0,Sorcadins!J$561-Sorcadins!J$1278) -> 0 | K162: =MAX(0,Sorcadins!K$561-Sorcadins!K$1278) -> 0 | L162: =MAX(0,Sorcadins!L$561-Sorcadins!L$1278) -> 0 | M162: =MAX(0,Sorcadins!M$561-Sorcadins!M$1278) -> 0 | N162: =MAX(0,Sorcadins!N$561-Sorcadins!N$1278) -> 0 | O162: =MAX(0,Sorcadins!O$561-Sorcadins!O$1278) -> 0 | P162: =MAX(0,Sorcadins!P$561-Sorcadins!P$1278) -> 0 | Q162: =MAX(0,Sorcadins!Q$561-Sorcadins!Q$1278) -> 0 | R162: =MAX(0,Sorcadins!R$561-Sorcadins!R$1278) -> 0 | S162: =MAX(0,Sorcadins!S$561-Sorcadins!S$1278) -> 0 | T162: =MAX(0,Sorcadins!T$561-Sorcadins!T$1278) -> 0 | U162: =MAX(0,Sorcadins!U$561-Sorcadins!U$1278) -> 0 | V162: =MAX(0,Sorcadins!V$561-Sorcadins!V$1278) -> 0 | W162: =MAX(0,Sorcadins!W$561-Sorcadins!W$1278) -> 0 | X162: =MAX(0,Sorcadins!X$561-Sorcadins!X$1278) -> 0 | Z162: *Sorc points directly convertible to Smite Dice
D163: remaining spell slot levels (based on Damage Scenario) | E163: =MAX(0,Sorcadins!E$281-MAX(0,Sorcadins!E$1278-Sorcadins!E$561)) -> 0 | F163: =MAX(0,Sorcadins!F$281-MAX(0,Sorcadins!F$1278-Sorcadins!F$561)) -> 0 | G163: =MAX(0,Sorcadins!G$281-MAX(0,Sorcadins!G$1278-Sorcadins!G$561)) -> 0 | H163: =MAX(0,Sorcadins!H$281-MAX(0,Sorcadins!H$1278-Sorcadins!H$561)) -> 0 | I163: =MAX(0,Sorcadins!I$281-MAX(0,Sorcadins!I$1278-Sorcadins!I$561)) -> 0 | J163: =MAX(0,Sorcadins!J$281-MAX(0,Sorcadins!J$1278-Sorcadins!J$561)) -> 0 | K163: =MAX(0,Sorcadins!K$281-MAX(0,Sorcadins!K$1278-Sorcadins!K$561)) -> 0 | L163: =MAX(0,Sorcadins!L$281-MAX(0,Sorcadins!L$1278-Sorcadins!L$561)) -> 0 | M163: =MAX(0,Sorcadins!M$281-MAX(0,Sorcadins!M$1278-Sorcadins!M$561)) -> 0 | N163: =MAX(0,Sorcadins!N$281-MAX(0,Sorcadins!N$1278-Sorcadins!N$561)) -> 0 | O163: =MAX(0,Sorcadins!O$281-MAX(0,Sorcadins!O$1278-Sorcadins!O$561)) -> 0 | P163: =MAX(0,Sorcadins!P$281-MAX(0,Sorcadins!P$1278-Sorcadins!P$561)) -> 0 | Q163: =MAX(0,Sorcadins!Q$281-MAX(0,Sorcadins!Q$1278-Sorcadins!Q$561)) -> 0 | R163: =MAX(0,Sorcadins!R$281-MAX(0,Sorcadins!R$1278-Sorcadins!R$561)) -> 0 | S163: =MAX(0,Sorcadins!S$281-MAX(0,Sorcadins!S$1278-Sorcadins!S$561)) -> 0 | T163: =MAX(0,Sorcadins!T$281-MAX(0,Sorcadins!T$1278-Sorcadins!T$561)) -> 0 | U163: =MAX(0,Sorcadins!U$281-MAX(0,Sorcadins!U$1278-Sorcadins!U$561)) -> 0 | V163: =MAX(0,Sorcadins!V$281-MAX(0,Sorcadins!V$1278-Sorcadins!V$561)) -> 0 | W163: =MAX(0,Sorcadins!W$281-MAX(0,Sorcadins!W$1278-Sorcadins!W$561)) -> 0 | X163: =MAX(0,Sorcadins!X$281-MAX(0,Sorcadins!X$1278-Sorcadins!X$561)) -> 0
D164: total warlock smite levels remaining | E164: =MIN(Sorcadins!E$273*E163,Sorcadins!E$264) -> 0 | F164: =MIN(Sorcadins!F$273*F163,Sorcadins!F$264) -> 0 | G164: =MIN(Sorcadins!G$273*G163,Sorcadins!G$264) -> 0 | H164: =MIN(Sorcadins!H$273*H163,Sorcadins!H$264) -> 0 | I164: =MIN(Sorcadins!I$273*I163,Sorcadins!I$264) -> 0 | J164: =MIN(Sorcadins!J$273*J163,Sorcadins!J$264) -> 0 | K164: =MIN(Sorcadins!K$273*K163,Sorcadins!K$264) -> 0 | L164: =MIN(Sorcadins!L$273*L163,Sorcadins!L$264) -> 0 | M164: =MIN(Sorcadins!M$273*M163,Sorcadins!M$264) -> 0 | N164: =MIN(Sorcadins!N$273*N163,Sorcadins!N$264) -> 0 | O164: =MIN(Sorcadins!O$273*O163,Sorcadins!O$264) -> 0 | P164: =MIN(Sorcadins!P$273*P163,Sorcadins!P$264) -> 0 | Q164: =MIN(Sorcadins!Q$273*Q163,Sorcadins!Q$264) -> 0 | R164: =MIN(Sorcadins!R$273*R163,Sorcadins!R$264) -> 0 | S164: =MIN(Sorcadins!S$273*S163,Sorcadins!S$264) -> 0 | T164: =MIN(Sorcadins!T$273*T163,Sorcadins!T$264) -> 0 | U164: =MIN(Sorcadins!U$273*U163,Sorcadins!U$264) -> 0 | V164: =MIN(Sorcadins!V$273*V163,Sorcadins!V$264) -> 0 | W164: =MIN(Sorcadins!W$273*W163,Sorcadins!W$264) -> 0 | X164: =MIN(Sorcadins!X$273*X163,Sorcadins!X$264) -> 0
D165: total smite levels remaining | E165: =IF(E$5>=1,Sorcadins!E$273*E163+E162,IF(E$6,E164,0)) -> 0 | F165: =IF(F$5>=1,Sorcadins!F$273*F163+F162,IF(F$6,F164,0)) -> 0 | G165: =IF(G$5>=1,Sorcadins!G$273*G163+G162,IF(G$6,G164,0)) -> 0 | H165: =IF(H$5>=1,Sorcadins!H$273*H163+H162,IF(H$6,H164,0)) -> 0 | I165: =IF(I$5>=1,Sorcadins!I$273*I163+I162,IF(I$6,I164,0)) -> 0 | J165: =IF(J$5>=1,Sorcadins!J$273*J163+J162,IF(J$6,J164,0)) -> 0 | K165: =IF(K$5>=1,Sorcadins!K$273*K163+K162,IF(K$6,K164,0)) -> 0 | L165: =IF(L$5>=1,Sorcadins!L$273*L163+L162,IF(L$6,L164,0)) -> 0 | M165: =IF(M$5>=1,Sorcadins!M$273*M163+M162,IF(M$6,M164,0)) -> 0 | N165: =IF(N$5>=1,Sorcadins!N$273*N163+N162,IF(N$6,N164,0)) -> 0 | O165: =IF(O$5>=1,Sorcadins!O$273*O163+O162,IF(O$6,O164,0)) -> 0 | P165: =IF(P$5>=1,Sorcadins!P$273*P163+P162,IF(P$6,P164,0)) -> 0 | Q165: =IF(Q$5>=1,Sorcadins!Q$273*Q163+Q162,IF(Q$6,Q164,0)) -> 0 | R165: =IF(R$5>=1,Sorcadins!R$273*R163+R162,IF(R$6,R164,0)) -> 0 | S165: =IF(S$5>=1,Sorcadins!S$273*S163+S162,IF(S$6,S164,0)) -> 0 | T165: =IF(T$5>=1,Sorcadins!T$273*T163+T162,IF(T$6,T164,0)) -> 0 | U165: =IF(U$5>=1,Sorcadins!U$273*U163+U162,IF(U$6,U164,0)) -> 0 | V165: =IF(V$5>=1,Sorcadins!V$273*V163+V162,IF(V$6,V164,0)) -> 0 | W165: =IF(W$5>=1,Sorcadins!W$273*W163+W162,IF(W$6,W164,0)) -> 0 | X165: =IF(X$5>=1,Sorcadins!X$273*X163+X162,IF(X$6,X164,0)) -> 0
D166: max number of daily smites (after spells) | E166: =IF(E$6,Sorcadins!E$1157,IF(E$5,Sorcadins!E$282+E162/2,0)) -> 0 | F166: =IF(F$6,Sorcadins!F$1157,IF(F$5,Sorcadins!F$282+F162/2,0)) -> 0 | G166: =IF(G$6,Sorcadins!G$1157,IF(G$5,Sorcadins!G$282+G162/2,0)) -> 0 | H166: =IF(H$6,Sorcadins!H$1157,IF(H$5,Sorcadins!H$282+H162/2,0)) -> 0 | I166: =IF(I$6,Sorcadins!I$1157,IF(I$5,Sorcadins!I$282+I162/2,0)) -> 0 | J166: =IF(J$6,Sorcadins!J$1157,IF(J$5,Sorcadins!J$282+J162/2,0)) -> 0 | K166: =IF(K$6,Sorcadins!K$1157,IF(K$5,Sorcadins!K$282+K162/2,0)) -> 0 | L166: =IF(L$6,Sorcadins!L$1157,IF(L$5,Sorcadins!L$282+L162/2,0)) -> 0 | M166: =IF(M$6,Sorcadins!M$1157,IF(M$5,Sorcadins!M$282+M162/2,0)) -> 0 | N166: =IF(N$6,Sorcadins!N$1157,IF(N$5,Sorcadins!N$282+N162/2,0)) -> 0 | O166: =IF(O$6,Sorcadins!O$1157,IF(O$5,Sorcadins!O$282+O162/2,0)) -> 0 | P166: =IF(P$6,Sorcadins!P$1157,IF(P$5,Sorcadins!P$282+P162/2,0)) -> 0 | Q166: =IF(Q$6,Sorcadins!Q$1157,IF(Q$5,Sorcadins!Q$282+Q162/2,0)) -> 0 | R166: =IF(R$6,Sorcadins!R$1157,IF(R$5,Sorcadins!R$282+R162/2,0)) -> 0 | S166: =IF(S$6,Sorcadins!S$1157,IF(S$5,Sorcadins!S$282+S162/2,0)) -> 0 | T166: =IF(T$6,Sorcadins!T$1157,IF(T$5,Sorcadins!T$282+T162/2,0)) -> 0 | U166: =IF(U$6,Sorcadins!U$1157,IF(U$5,Sorcadins!U$282+U162/2,0)) -> 0 | V166: =IF(V$6,Sorcadins!V$1157,IF(V$5,Sorcadins!V$282+V162/2,0)) -> 0 | W166: =IF(W$6,Sorcadins!W$1157,IF(W$5,Sorcadins!W$282+W162/2,0)) -> 0 | X166: =IF(X$6,Sorcadins!X$1157,IF(X$5,Sorcadins!X$282+X162/2,0)) -> 0
D167: avg crits per day for smite purposes (based on Damage Scenario) | E167: ='Base Numbers'!$C$5*'Base Numbers'!$C$6*Sorcadins!E$1316 -> 1 | F167: ='Base Numbers'!$C$5*'Base Numbers'!$C$6*Sorcadins!F$1316 -> 1 | G167: ='Base Numbers'!$C$5*'Base Numbers'!$C$6*Sorcadins!G$1316 -> 1 | H167: ='Base Numbers'!$C$5*'Base Numbers'!$C$6*Sorcadins!H$1316 -> 1 | I167: ='Base Numbers'!$C$5*'Base Numbers'!$C$6*Sorcadins!I$1316 -> 1 | J167: ='Base Numbers'!$C$5*'Base Numbers'!$C$6*Sorcadins!J$1316 -> 1 | K167: ='Base Numbers'!$C$5*'Base Numbers'!$C$6*Sorcadins!K$1316 -> 1 | L167: ='Base Numbers'!$C$5*'Base Numbers'!$C$6*Sorcadins!L$1316 -> 1 | M167: ='Base Numbers'!$C$5*'Base Numbers'!$C$6*Sorcadins!M$1316 -> 1 | N167: ='Base Numbers'!$C$5*'Base Numbers'!$C$6*Sorcadins!N$1316 -> 1 | O167: ='Base Numbers'!$C$5*'Base Numbers'!$C$6*Sorcadins!O$1316 -> 1 | P167: ='Base Numbers'!$C$5*'Base Numbers'!$C$6*Sorcadins!P$1316 -> 1 | Q167: ='Base Numbers'!$C$5*'Base Numbers'!$C$6*Sorcadins!Q$1316 -> 1 | R167: ='Base Numbers'!$C$5*'Base Numbers'!$C$6*Sorcadins!R$1316 -> 1 | S167: ='Base Numbers'!$C$5*'Base Numbers'!$C$6*Sorcadins!S$1316 -> 1 | T167: ='Base Numbers'!$C$5*'Base Numbers'!$C$6*Sorcadins!T$1316 -> 1 | U167: ='Base Numbers'!$C$5*'Base Numbers'!$C$6*Sorcadins!U$1316 -> 1 | V167: ='Base Numbers'!$C$5*'Base Numbers'!$C$6*Sorcadins!V$1316 -> 1 | W167: ='Base Numbers'!$C$5*'Base Numbers'!$C$6*Sorcadins!W$1316 -> 1 | X167: ='Base Numbers'!$C$5*'Base Numbers'!$C$6*Sorcadins!X$1316 -> 1
D168: number of smites used on crits | E168: =MIN(E166,E167) -> 0 | F168: =MIN(F166,F167) -> 0 | G168: 0 | H168: 0 | I168: 0 | J168: 0 | K168: 0 | L168: 0 | M168: 0 | N168: 0 | O168: 0 | P168: 0 | Q168: 0 | R168: 0 | S168: 0 | T168: 0 | U168: 0 | V168: 0 | W168: 0 | X168: 0
D169: avg smite dice per crit | E169: =IF(E168>0,MIN(E$7,(E165/MIN(E168,E167))),0) -> 0 | F169: 0 | G169: 0 | H169: 0 | I169: 0 | J169: 0 | K169: 0 | L169: 0 | M169: 0 | N169: 0 | O169: 0 | P169: 0 | Q169: 0 | R169: 0 | S169: 0 | T169: 0 | U169: 0 | V169: 0 | W169: 0 | X169: 0
D170: smites left for non-crits | E170: =E166-E168 -> 0 | F170: =F166-F168 -> 0 | G170: 0 | H170: 0 | I170: 0 | J170: 0 | K170: 0 | L170: 0 | M170: 0 | N170: 0 | O170: 0 | P170: 0 | Q170: 0 | R170: 0 | S170: 0 | T170: 0 | U170: 0 | V170: 0 | W170: 0 | X170: 0
D171: total non-crit smite-qualifying attacks available | E171: =Sorcadins!E$1291*('Base Numbers'!$C$5*'Base Numbers'!$C$6)-E167 -> 19 | F171: =Sorcadins!F$1291*('Base Numbers'!$C$5*'Base Numbers'!$C$6)-F167 -> 19 | G171: =Sorcadins!G$1291*('Base Numbers'!$C$5*'Base Numbers'!$C$6)-G167 -> 19 | H171: =Sorcadins!H$1291*('Base Numbers'!$C$5*'Base Numbers'!$C$6)-H167 -> 19 | I171: =Sorcadins!I$1291*('Base Numbers'!$C$5*'Base Numbers'!$C$6)-I167 -> 19 | J171: =Sorcadins!J$1291*('Base Numbers'!$C$5*'Base Numbers'!$C$6)-J167 -> 19 | K171: =Sorcadins!K$1291*('Base Numbers'!$C$5*'Base Numbers'!$C$6)-K167 -> 19 | L171: =Sorcadins!L$1291*('Base Numbers'!$C$5*'Base Numbers'!$C$6)-L167 -> 19 | M171: =Sorcadins!M$1291*('Base Numbers'!$C$5*'Base Numbers'!$C$6)-M167 -> 19 | N171: =Sorcadins!N$1291*('Base Numbers'!$C$5*'Base Numbers'!$C$6)-N167 -> 19 | O171: =Sorcadins!O$1291*('Base Numbers'!$C$5*'Base Numbers'!$C$6)-O167 -> 19 | P171: =Sorcadins!P$1291*('Base Numbers'!$C$5*'Base Numbers'!$C$6)-P167 -> 19 | Q171: =Sorcadins!Q$1291*('Base Numbers'!$C$5*'Base Numbers'!$C$6)-Q167 -> 19 | R171: =Sorcadins!R$1291*('Base Numbers'!$C$5*'Base Numbers'!$C$6)-R167 -> 19 | S171: =Sorcadins!S$1291*('Base Numbers'!$C$5*'Base Numbers'!$C$6)-S167 -> 19 | T171: =Sorcadins!T$1291*('Base Numbers'!$C$5*'Base Numbers'!$C$6)-T167 -> 19 | U171: =Sorcadins!U$1291*('Base Numbers'!$C$5*'Base Numbers'!$C$6)-U167 -> 19 | V171: =Sorcadins!V$1291*('Base Numbers'!$C$5*'Base Numbers'!$C$6)-V167 -> 19 | W171: =Sorcadins!W$1291*('Base Numbers'!$C$5*'Base Numbers'!$C$6)-W167 -> 19 | X171: =Sorcadins!X$1291*('Base Numbers'!$C$5*'Base Numbers'!$C$6)-X167 -> 19
D172: smite dice left for non-crits | E172: =ROUND(MAX(0,E165-E167*E169),4) -> 0 | F172: =ROUND(MAX(0,F165-F167*F169),4) -> 0 | G172: 0 | H172: 0 | I172: 0 | J172: 0 | K172: 0 | L172: 0 | M172: 0 | N172: 0 | O172: 0 | P172: 0 | Q172: 0 | R172: 0 | S172: 0 | T172: 0 | U172: 0 | V172: 0 | W172: 0 | X172: 0
D173: total smite dice used on crits | E173: =E168*E169 -> 0 | F173: =F168*F169 -> 0 | G173: 0 | H173: 0 | I173: 0 | J173: 0 | K173: 0 | L173: 0 | M173: 0 | N173: 0 | O173: 0 | P173: 0 | Q173: 0 | R173: 0 | S173: 0 | T173: 0 | U173: 0 | V173: 0 | W173: 0 | X173: 0
D174: total crit smite damage per day | E174: =9*E173 -> 0 | F174: =9*F173 -> 0 | G174: 0 | H174: 0 | I174: 0 | J174: 0 | K174: 0 | L174: 0 | M174: 0 | N174: 0 | O174: 0 | P174: 0 | Q174: 0 | R174: 0 | S174: 0 | T174: 0 | U174: 0 | V174: 0 | W174: 0 | X174: 0
D175: total non-crit smite damage per day | E175: =4.5*MIN(MIN(E171,E170)*E$7,E172) -> 0 | F175: =4.5*MIN(MIN(F171,F170)*F$7,F172) -> 0 | G175: 0 | H175: 0 | I175: 0 | J175: 0 | K175: 0 | L175: 0 | M175: 0 | N175: 0 | O175: 0 | P175: 0 | Q175: 0 | R175: 0 | S175: 0 | T175: 0 | U175: 0 | V175: 0 | W175: 0 | X175: 0
